{"text_format":"1","workbook":"xlsx","n_sheets":5,"sheets":["Sheet1","مصروفات","المخزن","يوميه المبيعات","كشف حساب عميل"],"not_rendered":{"charts":0,"images":0,"macros":1,"external_links":0,"defined_names":2,"comments":0,"pivot_tables":0},"unopened":[],"bounds":{"document_bytes":16777216,"sheet_cells":100000,"rows_first":2000,"rows_last":500,"rows_between":2000,"halvings":0,"cell_chars":16384,"cell_head_chars":4096},"cells_cut":0,"cells_raw":0,"read":"whole","date_system":"1900"}

{"sheet":"Sheet1","index":0,"n_rows":101005,"n_cols":25,"rows_kept":4500,"cut":true,"hidden":false,"merged":[[39,10,40,10],[37,10,38,10],[33,10,34,10],[31,9,31,11],[232,3,232,6],[219,3,219,4],[221,3,221,4],[222,3,222,4],[224,3,224,4],[227,3,227,4],[229,3,229,4],[230,3,230,6],[231,3,231,7],[218,3,218,4],[192,3,192,4],[195,3,195,4],[197,3,197,4],[198,3,198,6],[208,3,208,5],[211,2,211,3],[211,5,211,6],[215,3,215,4],[216,3,216,4],[199,3,199,7],[11,9,11,11],[29,9,30,9],[29,11,30,11],[157,3,157,4],[159,3,159,4],[160,3,160,4],[162,3,162,4],[165,3,165,4],[78,3,78,4],[52,3,52,4],[54,3,54,4],[55,3,55,6],[56,3,56,7],[57,3,57,6],[68,3,68,5],[71,2,71,3],[33,11,34,11],[35,11,36,11],[35,10,36,10],[33,9,34,9],[35,9,36,9],[37,9,38,9],[39,9,40,9],[81,3,81,4],[200,3,200,6],[190,3,190,4],[187,3,187,4],[135,3,135,6],[111,3,111,4],[112,3,112,4],[114,3,114,4],[115,3,115,4],[117,3,117,4],[189,3,189,4],[168,3,168,6],[169,3,169,7],[170,3,170,6],[176,3,176,5],[179,2,179,3],[179,5,179,6],[134,3,134,7],[183,3,183,4],[184,3,184,4],[186,3,186,4],[133,3,133,6],[167,3,167,4],[146,3,146,5],[149,2,149,3],[149,5,149,6],[153,3,153,4],[154,3,154,4],[156,3,156,4],[107,2,107,3],[110,3,110,4],[71,5,71,6],[75,3,75,4],[76,3,76,4],[118,3,118,4],[121,3,121,4],[127,3,127,4],[129,3,129,4],[131,3,131,4],[79,3,79,4],[82,3,82,4],[84,3,84,4],[87,3,87,4],[89,3,89,4],[123,3,123,4],[125,3,125,4],[90,3,90,6],[91,3,91,7],[92,3,92,6],[104,3,104,5],[107,5,107,6],[0,4,0,7],[2,4,2,7],[20,3,20,6],[33,3,33,5],[25,2,25,7],[49,3,49,4],[22,3,22,6],[36,2,36,3],[36,5,36,6],[40,3,40,4],[41,3,41,4],[43,3,43,4],[44,3,44,4],[46,3,46,4],[47,3,47,4]],"bounds":{"rows_first":2000,"rows_last":500,"rows_between":2000,"halvings":0}}
[null,"التاريخ","2019-03-25","مبيعات تجزئة","فاتوره نقـــــــــــــــــــــــــــــــدى",null,null,null,null,null,null,null,null,null,null,null,null,null,null,null,null,null,null,"Price","Description"]
[null,"تاريخ الاستحقاق",{"$f":"C1+30","v":"2019-04-24"},2,"فاتوره رقم",null,{"$f":"I9+1","v":6},null,null,null,null,null,null,null,null,null,null,null,null,null,null,null,null,125," (( night )) إيزى  ستار & جلاكسى"]
[null,"اسم العميل",null,null,"مبيعات تجزئة",null,null,null,null,null,null,null,{"$f":"SUM(M6+H23)","v":0},null,null,null,null,null,null,null,null,null,null,10," الندى جيولس ستار (علبة)"]
[{"$f":"C1","v":"2019-03-25"},null,"الصنف ","اللون ","الوحده ","الكميه ","السعر ","الاجمالى ",null,null,null,null,null,null,null,null,null,null,null,null,null,null,null,71," ايكو بلاست (ابيض)"]
[{"$f":"C1","v":"2019-03-25"},{"$f":"C3","v":0},null,null,null,null,{"$f":"IF(C5=\"\",\"\",VLOOKUP(C5,المخزن!$B$2:$H$1673,2,0))","v":""},{"$f":"IFERROR((F5*G5),0)","v":0},null,null,null,null,null,null,null,null,null,null,null,null,null,null,null,106," ايكو بلاست (ابيض)"]
[{"$f":"C1","v":"2019-03-25"},{"$f":"C3","v":0},null,null,null,null,{"$f":"IF(C6=\"\",\"\",VLOOKUP(C6,المخزن!$B$2:$H$1673,2,0))","v":""},{"$f":"IFERROR((F6*G6),0)","v":0},null,null,null,null,0,null,null,null,null,null,null,null,null,null,null,156," ايكو بلاست (ابيض)"]
[{"$f":"C1","v":"2019-03-25"},{"$f":"C3","v":0},null,null,null,null,{"$f":"IF(C7=\"\",\"\",VLOOKUP(C7,المخزن!$B$2:$H$1673,2,0))","v":""},0,null,null,null,null,null,null,null,null,null,null,null,null,null,null,null,0," ايكو بلاست (ابيض)"]
[{"$f":"C1","v":"2019-03-25"},{"$f":"C3","v":0},null,null,null,null,{"$f":"IF(C8=\"\",\"\",VLOOKUP(C8,المخزن!$B$2:$H$1673,2,0))","v":""},0,null,null,null,null,null,null,null,null,null,null,null,null,null,null,null,111," ايكو سنواويت (ابيض)"]
[{"$f":"C1","v":"2019-03-25"},{"$f":"C3","v":0},null,null,null,null,{"$f":"IF(C9=\"\",\"\",VLOOKUP(C9,المخزن!$B$2:$H$1673,2,0))","v":""},0,5,null,null,null,null,null,null,null,null,null,null,null,null,null,null,212," ايكو سنواويت (ابيض)"]
[{"$f":"C1","v":"2019-03-25"},{"$f":"C3","v":0},null,null,null,null,{"$f":"IF(C10=\"\",\"\",VLOOKUP(C10,المخزن!$B$2:$H$1673,2,0))","v":""},0,null,null,null,null,null,null,null,null,null,null,null,null,null,null,null,0," ايكو سنواويت (ابيض)"]
[{"$f":"C1","v":"2019-03-25"},{"$f":"C3","v":0},null,null,null,null,{"$f":"IF(C11=\"\",\"\",VLOOKUP(C11,المخزن!$B$2:$H$1673,2,0))","v":""},0,null,null,null,null,null,null,null,null,null,null,null,null,null,null,null,84," ايكو سيلر(شفاف)"]
[{"$f":"C1","v":"2019-03-25"},{"$f":"C3","v":0},null,null,null,null,{"$f":"IF(C12=\"\",\"\",VLOOKUP(C12,المخزن!$B$2:$H$1673,2,0))","v":""},0,null,"يجب طباعه الفاتوره قبل الحفظ",null,null,null,null,null,null,null,null,null,null,null,null,null,192,"( Copper 902 ) الندى شيدز"]
[{"$f":"C1","v":"2019-03-25"},{"$f":"C3","v":0},null,null,null,null,{"$f":"IF(C13=\"\",\"\",VLOOKUP(C13,المخزن!$B$2:$H$1673,2,0))","v":""},0,null,null,null,null,null,null,null,null,null,null,null,null,null,null,null,192,"( Copper 902 ) الندى صحارى"]
[{"$f":"C1","v":"2019-03-25"},{"$f":"C3","v":0},null,null,null,null,{"$f":"IF(C14=\"\",\"\",VLOOKUP(C14,المخزن!$B$2:$H$1673,2,0))","v":""},0,null,null,null,null,null,null,null,null,null,null,null,null,null,null,null,192,"( Gold 901 ) الندى شيدز"]
[{"$f":"C1","v":"2019-03-25"},{"$f":"C3","v":0},null,null,null,null,{"$f":"IF(C15=\"\",\"\",VLOOKUP(C15,المخزن!$B$2:$H$1673,2,0))","v":""},0,null,null,null,null,null,null,null,null,null,null,null,null,null,null,null,192,"( Gold 901 ) الندى صحارى"]
[{"$f":"C1","v":"2019-03-25"},{"$f":"C3","v":0},null,null,null,null,{"$f":"IF(C16=\"\",\"\",VLOOKUP(C16,المخزن!$B$2:$H$1673,2,0))","v":""},0,null,null,null,null,null,null,null,null,null,null,null,null,null,null,null,192,"( Red Copper 903 ) الندى شيدز"]
[{"$f":"C1","v":"2019-03-25"},{"$f":"C3","v":0},null,null,null,null,{"$f":"IF(C17=\"\",\"\",VLOOKUP(C17,المخزن!$B$2:$H$1673,2,0))","v":""},0,null,null,null,null,null,null,null,null,null,null,null,null,null,null,null,192,"( Red Copper 903 ) الندى صحارى"]
[{"$f":"C1","v":"2019-03-25"},{"$f":"C3","v":0},null,null,null,null,{"$f":"IF(C18=\"\",\"\",VLOOKUP(C18,المخزن!$B$2:$H$1673,2,0))","v":""},0,null,null,null,null,null,null,null,null,null,null,null,null,null,null,null,192,"( Silver 900 ) الندى شيدز"]
[{"$f":"C1","v":"2019-03-25"},{"$f":"C3","v":0},null,null,null,null,{"$f":"IF(C19=\"\",\"\",VLOOKUP(C19,المخزن!$B$2:$H$1673,2,0))","v":""},0,null,null,null,null,null,null,null,null,null,null,null,null,null,null,null,192,"( Silver 900 ) الندى صحارى"]
[{"$f":"C1","v":"2019-03-25"},{"$f":"C3","v":0},null,null,null,null,{"$f":"IF(C20=\"\",\"\",VLOOKUP(C20,المخزن!$B$2:$H$1673,2,0))","v":""},0,null,"المبلغ","العدد","الاجمالى",null,null,null,null,null,null,null,null,null,null,null,470,"( SILVER 900) الندى صحارى جالون 2.5ك"]
[null,null,"الاجمالى ",null,null,null,null,{"$f":"SUM(H5:H20)","v":0},null,200,0,{"$f":"K21*J21","v":0},null,null,null,null,null,null,null,null,null,null,null,180,"( إمبلادور أخضر ) M & G الندى أرتيكو"]
[null,null,"الخصم",null,null,null,null,0,null,100,1,{"$f":"K22*J22","v":100},null,null,null,null,null,null,null,null,null,null,null,180,"( إمبلادور أزرق ) M & G الندى أرتيكو"]
[null,null,"الصافى",{"$f":"NoToTxt(H23,\"جنيه\",\"قرش\")","v":"صفر"},null,null,null,{"$f":"H21-H22","v":0},null,50,1,50,null,null,null,null,null,null,null,null,null,null,null,180,"( أحمر أسوانى ) M & G الندى أرتيكو"]
[null,null,null,null,null,null,null,null,null,20,0,0,null,null,null,null,null,null,null,null,null,null,null,180,"( جاندولا ) M & G الندى أرتيكو"]
[null,null,null,null,null,null,null,null,null,10,3,30,null,null,null,null,null,null,null,null,null,null,null,180,"( روز النصر ) M & G الندى أرتيكو"]
[null,null,null,null,null,null,null,null,null,5,1,{"$f":"K26*J26","v":5},null,null,null,null,null,null,null,null,null,null,null,180,"( رويال روز ) M & G الندى أرتيكو"]
[null,null,null,null,null,null,null,null,null,1,4,4,null,null,null,null,null,null,null,null,null,null,null,180,"( فيردى ) M & G الندى أرتيكو"]
[null,null,null,null,null,"مبيعات تجزئة","فاتوره نقـــــــــــــــــــــــــــــــدى",null,null,0.5,2,1,null,null,null,null,null,null,null,null,null,null,null,125,"(( Dawn )) إيزى  ستار & جلاكسى"]
[null,null,null,null,null,"مبيعات تجارى","فاتوره أجــــــــــــــــــــــــــــــل",null,null,0.25,0,0,null,null,null,null,null,null,null,null,null,null,null,108,"(( FREE )) الندى إستنسل 2ق"]
[null,null,null,null,null,null,null,null,null,"الاجمالى",null,{"$f":"SUM(L21:L29)","v":190},null,null,null,null,null,null,null,null,null,null,null,125,"(( midnight )) إيزى  ستار & جلاكسى"]
[null,null,null,null,null,null,null,null,null,null,null,null,null,null,null,null,null,null,null,null,null,null,null,125,"(( noon )) إيزى  ستار & جلاكسى"]
[null,null,null,null,null,null,null,null,null,{"$f":"NoToTxt(L30,\"جنيه\",\"قرش\")","v":"فقط مائة وتسعون جنيه"},null,null,null,null,null,null,null,null,null,null,null,null,null,125,"(( Sun Rise )) إيزى  ستار & جلاكسى"]
[null,null,null,null,null,null,null,null,null,null,null,null,null,null,null,null,null,null,null,null,null,null,null,125,"(( Sun Set )) إيزى ستار & جلاكسى"]
[null,null,null,null,null,null,null,null,null,0,0,0,null,null,null,null,null,null,null,null,null,null,null,300,"((FREE)) الندى إستنسل 11 قطعة"]
[null,null,null,null,null,null,null,null,null,null,null,null,null,null,null,null,null,null,null,null,null,null,null,126,"((FREE)) الندى إستنسل 3 قطعة"]
[null,null,null,null,null,null,null,null,null,0.1,0.05,{"$f":"SUM(L34-H23)","v":0},null,null,null,null,null,null,null,null,null,null,null,180,"((FREE)) الندى إستنسل قطع كبيرة"]
[null,null,null,null,null,null,null,null,null,null,null,null,null,null,null,null,null,null,null,null,null,null,null,4,"(1) فرشة خيال رقم"]
[null,null,null,null,null,null,null,null,null,{"$f":"SUM(J34*J36)","v":0},{"$f":"SUM(K34*K36)","v":0},null,null,null,null,null,null,null,null,null,null,null,null,7,"(1) فرشة نحيفة"]
[null,null,null,null,null,null,null,null,null,null,null,null,null,null,null,null,null,null,null,null,null,null,null,16,"(1.5) فرشة إيطالى"]
[null,null,null,null,null,null,null,null,null,{"$f":"SUM(J34-J38)","v":0},{"$f":"SUM(K34-K38)","v":0},null,null,null,null,null,null,null,null,null,null,null,null,1.5,"(10) الندى جيولس ليجند"]
[null,null,null,null,null,null,null,null,null,null,null,null,null,null,null,null,null,null,null,null,null,null,null,22,"(10) فرشة خيال رقم"]
[null,null,null,null,null,null,null,null,null,null,null,null,null,null,null,null,null,null,null,null,null,null,null,23,"(11) فرشة خيال رقم"]
[null,null,null,null,null,null,null,null,null,null,null,null,null,null,null,null,null,null,null,null,null,null,null,2,"(12) الندى جيولس ليجند"]
[null,null,null,null,null,null,null,null,null,null,null,null,null,null,null,null,null,null,null,null,null,null,null,24,"(12) فرشة خيال رقم"]
[null,null,null,null,null,null,null,null,null,null,null,null,null,null,null,null,null,null,null,null,null,null,null,2.5,"(14) الندى جيولس ليجند"]
[null,null,null,null,null,null,null,null,null,null,null,null,null,null,null,null,null,null,null,null,null,null,null,3,"(16) الندى جيولس ليجند"]
[null,null,null,null,null,null,null,null,null,null,null,null,null,null,null,null,null,null,null,null,null,null,null,4,"(18) الندى جيولس ليجند"]
[null,null,null,null,null,null,null,null,null,null,null,null,null,null,null,null,null,null,null,null,null,null,null,5,"(2) فرشة خيال رقم"]
[null,null,null,null,null,null,null,null,null,null,null,null,null,null,null,null,null,null,null,null,null,null,null,11,"(2) فرشة نحيفة"]
[null,null,null,null,null,null,null,null,null,null,null,null,null,null,null,null,null,null,null,null,null,null,null,80,"فرشة بيكانتو"]
[null,null,null,null,null,null,null,null,null,null,null,null,null,null,null,null,null,null,null,null,null,null,null,76,"فرشة بيد طويلة شعر أسود 3 بوصة"]
[null,null,null,null,null,null,null,null,null,null,null,null,null,null,null,null,null,null,null,null,null,null,null,24,"فرشة أكريلك ملونة 2 بوصة"]
[null,null,null,null,null,null,null,null,null,null,null,null,null,null,null,null,null,null,null,null,null,null,null,30,"فرشة أكريلك ملونة 3 بوصة"]
[null,null,null,null,null,null,null,null,null,null,null,null,null,null,null,null,null,null,null,null,null,null,null,25,"1.5 فرشة بيد خشب مشطوفة"]
[null,null,null,null,null,null,null,null,null,null,null,null,null,null,null,null,null,null,null,null,null,null,null,35,"2 فرشة بيد خشب مشطوفة"]
[null,null,null,null,null,null,null,null,null,null,null,null,null,null,null,null,null,null,null,null,null,null,null,30,"فرشة بيد خشب شعر رمادى 2 بوصة"]
[null,null,null,null,null,null,null,null,null,null,null,null,null,null,null,null,null,null,null,null,null,null,null,22,"فرشة بيد نحاسى 4 بوصة"]
[null,null,null,null,null,null,null,null,null,null,null,null,null,null,null,null,null,null,null,null,null,null,null,10,"فرشة بيد خشب × أزرق 1 بوصة"]
[null,null,null,null,null,null,null,null,null,null,null,null,null,null,null,null,null,null,null,null,null,null,null,44,"فرشة بيد خشب × أزرق 4 بوصة"]
[null,null,null,null,null,null,null,null,null,null,null,null,null,null,null,null,null,null,null,null,null,null,null,30,"فرشة بيد أكريلك أبيض 4 بوصة"]
[null,null,null,null,null,null,null,null,null,null,null,null,null,null,null,null,null,null,null,null,null,null,null,11,"فرشة مرسام 8 بوصة"]
[null,null,null,null,null,null,null,null,null,null,null,null,null,null,null,null,null,null,null,null,null,null,null,14,"فرشة مرسام 10 بوصة"]
[null,null,null,null,null,null,null,null,null,null,null,null,null,null,null,null,null,null,null,null,null,null,null,5,"(20) الندى جيولس ليجند"]
[null,null,null,null,null,null,null,null,null,null,null,null,null,null,null,null,null,null,null,null,null,null,null,7,"(3) فرشة خيال رقم"]
[null,null,null,null,null,null,null,null,null,null,null,null,null,null,null,null,null,null,null,null,null,null,null,14,"(3) فرشة نحيفة"]
[null,null,null,null,null,null,null,null,null,null,null,null,null,null,null,null,null,null,null,null,null,null,null,24,"(30) فرشة إيطالى"]
[null,null,null,null,null,null,null,null,null,null,null,null,null,null,null,null,null,null,null,null,null,null,null,36,"(3D001) الندى إستنسل 60 * 90"]
[null,null,null,null,null,null,null,null,null,null,null,null,null,null,null,null,null,null,null,null,null,null,null,36,"(3D002) الندى إستنسل 60 * 90"]
[null,null,null,null,null,null,null,null,null,null,null,null,null,null,null,null,null,null,null,null,null,null,null,36,"(3D003) الندى إستنسل 60 * 90"]
[null,null,null,null,null,null,null,null,null,null,null,null,null,null,null,null,null,null,null,null,null,null,null,36,"(3D004) الندى إستنسل 60 * 90"]
[null,null,null,null,null,null,null,null,null,null,null,null,null,null,null,null,null,null,null,null,null,null,null,8,"(4) فرشة خيال رقم"]
[null,null,null,null,null,null,null,null,null,null,null,null,null,null,null,null,null,null,null,null,null,null,null,23,"(4) فرشة نحيفة"]
[null,null,null,null,null,null,null,null,null,null,null,null,null,null,null,null,null,null,null,null,null,null,null,37,"(40) فرشة إيطالى"]
[null,null,null,null,null,null,null,null,null,null,null,null,null,null,null,null,null,null,null,null,null,null,null,11,"(5) فرشة خيال رقم"]
[null,null,null,null,null,null,null,null,null,null,null,null,null,null,null,null,null,null,null,null,null,null,null,40,"(50) فرشة إيطالى"]
[null,null,null,null,null,null,null,null,null,null,null,null,null,null,null,null,null,null,null,null,null,null,null,25,"(50*50) الندى إستنسل"]
[null,null,null,null,null,null,null,null,null,null,null,null,null,null,null,null,null,null,null,null,null,null,null,13,"(6) فرشة خيال رقم"]
[null,null,null,null,null,null,null,null,null,null,null,null,null,null,null,null,null,null,null,null,null,null,null,49,"(60) فرشة إيطالى"]
[null,null,null,null,null,null,null,null,null,null,null,null,null,null,null,null,null,null,null,null,null,null,null,14,"(7) فرشة خيال رقم"]
[null,null,null,null,null,null,null,null,null,null,null,null,null,null,null,null,null,null,null,null,null,null,null,60,"(70) فرشة إيطالى"]
[null,null,null,null,null,null,null,null,null,null,null,null,null,null,null,null,null,null,null,null,null,null,null,16,"(8) فرشة خيال رقم"]
[null,null,null,null,null,null,null,null,null,null,null,null,null,null,null,null,null,null,null,null,null,null,null,19,"(9) فرشة خيال رقم"]
[null,null,null,null,null,null,null,null,null,null,null,null,null,null,null,null,null,null,null,null,null,null,null,36,"(90*60) الندى إستنسل"]
[null,null,null,null,null,null,null,null,null,null,null,null,null,null,null,null,null,null,null,null,null,null,null,54,"(FREE) الندى إستنسل 50 سم 3 قطع"]
[null,null,null,null,null,null,null,null,null,null,null,null,null,null,null,null,null,null,null,null,null,null,null,49,"فرشة الندى يد اسود 3 بوصه"]
[null,null,null,null,null,null,null,null,null,null,null,null,null,null,null,null,null,null,null,null,null,null,null,18,"فرشة الندى يد اخضر 2بوصة"]
[null,null,null,null,null,null,null,null,null,null,null,null,null,null,null,null,null,null,null,null,null,null,null,23,"فرشة الندى يد اخضر 2.5بوصة"]
[null,null,null,null,null,null,null,null,null,null,null,null,null,null,null,null,null,null,null,null,null,null,null,0,"قسم السكين والكف"]
[null,null,null,null,null,null,null,null,null,null,null,null,null,null,null,null,null,null,null,null,null,null,null,22,"سكين معجون بيد سوداء ( 1 بوصة )"]
[null,null,null,null,null,null,null,null,null,null,null,null,null,null,null,null,null,null,null,null,null,null,null,29,"سكين معجون بيد سوداء ( 2 بوصة )"]
[null,null,null,null,null,null,null,null,null,null,null,null,null,null,null,null,null,null,null,null,null,null,null,35,"سكين معجون بيد سوداء ( 3 بوصة )"]
[null,null,null,null,null,null,null,null,null,null,null,null,null,null,null,null,null,null,null,null,null,null,null,40,"سكين معجون بيد سوداء ( 4 بوصة )"]
[null,null,null,null,null,null,null,null,null,null,null,null,null,null,null,null,null,null,null,null,null,null,null,49,"سكين معجون بيد سوداء ( 5 بوصة )"]
[null,null,null,null,null,null,null,null,null,null,null,null,null,null,null,null,null,null,null,null,null,null,null,11,"كف مثلث بيد خشب ( 6 بوصة )"]
[null,null,null,null,null,null,null,null,null,null,null,null,null,null,null,null,null,null,null,null,null,null,null,13,"كف مثلث بيد خشب ( 8 بوصة )"]
[null,null,null,null,null,null,null,null,null,null,null,null,null,null,null,null,null,null,null,null,null,null,null,11,"سكين معجون بلاستيك أبيض"]
[null,null,null,null,null,null,null,null,null,null,null,null,null,null,null,null,null,null,null,null,null,null,null,54,"(NK002) الندى إستنسل 50 سم 3 قطع"]
[null,null,null,null,null,null,null,null,null,null,null,null,null,null,null,null,null,null,null,null,null,null,null,54,"(NK003) الندى إستنسل 50 سم 3 قطع"]
[null,null,null,null,null,null,null,null,null,null,null,null,null,null,null,null,null,null,null,null,null,null,null,54,"(NK004) الندى إستنسل 50 سم 3 قطع"]
[null,null,null,null,null,null,null,null,null,null,null,null,null,null,null,null,null,null,null,null,null,null,null,54,"(NK005) الندى إستنسل 50 سم 3 قطع"]
[null,null,null,null,null,null,null,null,null,null,null,null,null,null,null,null,null,null,null,null,null,null,null,54,"(NK006) الندى إستنسل 50 سم 3 قطع"]
[null,null,null,null,null,null,null,null,null,null,null,null,null,null,null,null,null,null,null,null,null,null,null,54,"(NK007) الندى إستنسل 50 سم 3 قطع"]
[null,null,null,null,null,null,null,null,null,null,null,null,null,null,null,null,null,null,null,null,null,null,null,54,"(NK008) الندى إستنسل 50 سم 3 قطع"]
[null,null,null,null,null,null,null,null,null,null,null,null,null,null,null,null,null,null,null,null,null,null,null,54,"(NK009) الندى إستنسل 50 سم 3 قطع"]
[null,null,null,null,null,null,null,null,null,null,null,null,null,null,null,null,null,null,null,null,null,null,null,54,"(NK010) الندى إستنسل 50 سم 3 قطع"]
[null,null,null,null,null,null,null,null,null,null,null,null,null,null,null,null,null,null,null,null,null,null,null,54,"(NK011) الندى إستنسل 50 سم 3 قطع"]
[null,null,null,null,null,null,null,null,null,null,null,null,null,null,null,null,null,null,null,null,null,null,null,54,"(NK012) الندى إستنسل 50 سم 3 قطع"]
[null,null,null,null,null,null,null,null,null,null,null,null,null,null,null,null,null,null,null,null,null,null,null,54,"(NK013) الندى إستنسل 50 سم 3 قطع"]
[null,null,null,null,null,null,null,null,null,null,null,null,null,null,null,null,null,null,null,null,null,null,null,54,"(NK014) الندى إستنسل 50 سم 3 قطع"]
[null,null,null,null,null,null,null,null,null,null,null,null,null,null,null,null,null,null,null,null,null,null,null,54,"(NK015) الندى إستنسل 50 سم 3 قطع"]
[null,null,null,null,null,null,null,null,null,null,null,null,null,null,null,null,null,null,null,null,null,null,null,54,"(NK016) الندى إستنسل 50 سم 3 قطع"]
[null,null,null,null,null,null,null,null,null,null,null,null,null,null,null,null,null,null,null,null,null,null,null,54,"(NK017) الندى إستنسل 50 سم 3 قطع"]
[null,null,null,null,null,null,null,null,null,null,null,null,null,null,null,null,null,null,null,null,null,null,null,54,"(NK018) الندى إستنسل 50 سم 3 قطع"]
[null,null,null,null,null,null,null,null,null,null,null,null,null,null,null,null,null,null,null,null,null,null,null,54,"(NK019) الندى إستنسل 50 سم 3 قطع"]
[null,null,null,null,null,null,null,null,null,null,null,null,null,null,null,null,null,null,null,null,null,null,null,54,"(NK020) الندى إستنسل 50 سم 3 قطع"]
[null,null,null,null,null,null,null,null,null,null,null,null,null,null,null,null,null,null,null,null,null,null,null,54,"(NK021) الندى إستنسل 50 سم 3 قطع"]
[null,null,null,null,null,null,null,null,null,null,null,null,null,null,null,null,null,null,null,null,null,null,null,54,"(NK022) الندى إستنسل 50 سم 3 قطع"]
[null,null,null,null,null,null,null,null,null,null,null,null,null,null,null,null,null,null,null,null,null,null,null,54,"(NK023) الندى إستنسل 50 سم 3 قطع"]
[null,null,null,null,null,null,null,null,null,null,null,null,null,null,null,null,null,null,null,null,null,null,null,54,"(NK024) الندى إستنسل 50 سم 3 قطع"]
[null,null,null,null,null,null,null,null,null,null,null,null,null,null,null,null,null,null,null,null,null,null,null,54,"(NK025) الندى إستنسل 50 سم 3 قطع"]
[null,null,null,null,null,null,null,null,null,null,null,null,null,null,null,null,null,null,null,null,null,null,null,54,"(NK026) الندى إستنسل 50 سم 3 قطع"]
[null,null,null,null,null,null,null,null,null,null,null,null,null,null,null,null,null,null,null,null,null,null,null,54,"(NK027) الندى إستنسل 50 سم 3 قطع"]
[null,null,null,null,null,null,null,null,null,null,null,null,null,null,null,null,null,null,null,null,null,null,null,54,"(NK028) الندى إستنسل 50 سم 3 قطع"]
[null,null,null,null,null,null,null,null,null,null,null,null,null,null,null,null,null,null,null,null,null,null,null,54,"(NK029) الندى إستنسل 50 سم 3 قطع"]
[null,null,null,null,null,null,null,null,null,null,null,null,null,null,null,null,null,null,null,null,null,null,null,54,"(NK030) الندى إستنسل 50 سم 3 قطع"]
[null,null,null,null,null,null,null,null,null,null,null,null,null,null,null,null,null,null,null,null,null,null,null,54,"(NK031) الندى إستنسل 50 سم 3 قطع"]
[null,null,null,null,null,null,null,null,null,null,null,null,null,null,null,null,null,null,null,null,null,null,null,54,"(NK032) الندى إستنسل 50 سم 3 قطع"]
[null,null,null,null,null,null,null,null,null,null,null,null,null,null,null,null,null,null,null,null,null,null,null,54,"(NK033) الندى إستنسل 50 سم 3 قطع"]
[null,null,null,null,null,null,null,null,null,null,null,null,null,null,null,null,null,null,null,null,null,null,null,54,"(NK034) الندى إستنسل 50 سم 3 قطع"]
[null,null,null,null,null,null,null,null,null,null,null,null,null,null,null,null,null,null,null,null,null,null,null,54,"(NK035) الندى إستنسل 50 سم 3 قطع"]
[null,null,null,null,null,null,null,null,null,null,null,null,null,null,null,null,null,null,null,null,null,null,null,54,"(NK036) الندى إستنسل 50 سم 3 قطع"]
[null,null,null,null,null,null,null,null,null,null,null,null,null,null,null,null,null,null,null,null,null,null,null,120,"(فضى) (3D) الندى هيتر"]
[null,null,null,null,null,null,null,null,null,null,null,null,null,null,null,null,null,null,null,null,null,null,null,180,"(كراره ابيض)M&Gالندى ارتيكو"]
[null,null,null,null,null,null,null,null,null,null,null,null,null,null,null,null,null,null,null,null,null,null,null,180,"(كريستا اصفر)M&Gالندى ارتيكو"]
[null,null,null,null,null,null,null,null,null,null,null,null,null,null,null,null,null,null,null,null,null,null,null,37,"15 طقم فرش رسم"]
[null,null,null,null,null,null,null,null,null,null,null,null,null,null,null,null,null,null,null,null,null,null,null,33,"3D الندى اسطمبة"]
[null,null,null,null,null,null,null,null,null,null,null,null,null,null,null,null,null,null,null,null,null,null,null,31,"3D الندي اسطمبه"]
[null,null,null,null,null,null,null,null,null,null,null,null,null,null,null,null,null,null,null,null,null,null,null,52,"A الندى ماكس جلوس أكريليك"]
[null,null,null,null,null,null,null,null,null,null,null,null,null,null,null,null,null,null,null,null,null,null,null,160,"A الندى ماكس جلوس أكريليك"]
[null,null,null,null,null,null,null,null,null,null,null,null,null,null,null,null,null,null,null,null,null,null,null,516,"A الندى ماكس جلوس أكريليك"]
[null,null,null,null,null,null,null,null,null,null,null,null,null,null,null,null,null,null,null,null,null,null,null,12,"A عرض استنسل خاص"]
[null,null,null,null,null,null,null,null,null,null,null,null,null,null,null,null,null,null,null,null,null,null,null,72,"A-1 الندى استوكو"]
[null,null,null,null,null,null,null,null,null,null,null,null,null,null,null,null,null,null,null,null,null,null,null,205,"A-1 الندى استوكو"]
[null,null,null,null,null,null,null,null,null,null,null,null,null,null,null,null,null,null,null,null,null,null,null,539,"A-1 الندى استوكو"]
[null,null,null,null,null,null,null,null,null,null,null,null,null,null,null,null,null,null,null,null,null,null,null,46,"A-1 الندى إيجشل ربع لمعة"]
[null,null,null,null,null,null,null,null,null,null,null,null,null,null,null,null,null,null,null,null,null,null,null,142,"A-1 الندى إيجشل ربع لمعة"]
[null,null,null,null,null,null,null,null,null,null,null,null,null,null,null,null,null,null,null,null,null,null,null,455,"A-1 الندى إيجشل ربع لمعة"]
[null,null,null,null,null,null,null,null,null,null,null,null,null,null,null,null,null,null,null,null,null,null,null,43,"A-1 الندى بلاست سوبر مط"]
[null,null,null,null,null,null,null,null,null,null,null,null,null,null,null,null,null,null,null,null,null,null,null,133,"A-1 الندى بلاست سوبر مط"]
[null,null,null,null,null,null,null,null,null,null,null,null,null,null,null,null,null,null,null,null,null,null,null,443,"A-1 الندى بلاست سوبر مط"]
[null,null,null,null,null,null,null,null,null,null,null,null,null,null,null,null,null,null,null,null,null,null,null,50,"A-1 الندى بلاستيك نصف لمعة"]
[null,null,null,null,null,null,null,null,null,null,null,null,null,null,null,null,null,null,null,null,null,null,null,150,"A-1 الندى بلاستيك نصف لمعة"]
[null,null,null,null,null,null,null,null,null,null,null,null,null,null,null,null,null,null,null,null,null,null,null,485,"A-1 الندى بلاستيك نصف لمعة"]
[null,null,null,null,null,null,null,null,null,null,null,null,null,null,null,null,null,null,null,null,null,null,null,84,"A-1 الندى جينز"]
[null,null,null,null,null,null,null,null,null,null,null,null,null,null,null,null,null,null,null,null,null,null,null,50,"A-1 الندى فلورال لامع"]
[null,null,null,null,null,null,null,null,null,null,null,null,null,null,null,null,null,null,null,null,null,null,null,134,"A-1 الندى فلورال لامع"]
[null,null,null,null,null,null,null,null,null,null,null,null,null,null,null,null,null,null,null,null,null,null,null,377,"A-1 الندى فلورال لامع"]
[null,null,null,null,null,null,null,null,null,null,null,null,null,null,null,null,null,null,null,null,null,null,null,44,"A-1 الندى فلورال مطفى"]
[null,null,null,null,null,null,null,null,null,null,null,null,null,null,null,null,null,null,null,null,null,null,null,325,"A-1 الندى فلورال مطفى"]
[null,null,null,null,null,null,null,null,null,null,null,null,null,null,null,null,null,null,null,null,null,null,null,113,"A-1 الندى فلورال مطفى"]
[null,null,null,null,null,null,null,null,null,null,null,null,null,null,null,null,null,null,null,null,null,null,null,0,"A-1 الندى معجونة بيترا ستون"]
[null,null,null,null,null,null,null,null,null,null,null,null,null,null,null,null,null,null,null,null,null,null,null,109,"A-1 ايزى  ريفال"]
[null,null,null,null,null,null,null,null,null,null,null,null,null,null,null,null,null,null,null,null,null,null,null,359,"A-1 ايزى  ريفال"]
[null,null,null,null,null,null,null,null,null,null,null,null,null,null,null,null,null,null,null,null,null,null,null,42,"A-1 ايزى ريفال"]
[null,null,null,null,null,null,null,null,null,null,null,null,null,null,null,null,null,null,null,null,null,null,null,308,"A2006 مسدس"]
[null,null,null,null,null,null,null,null,null,null,null,null,null,null,null,null,null,null,null,null,null,null,null,4,"A4 استيكر مطبوع"]
[null,null,null,null,null,null,null,null,null,null,null,null,null,null,null,null,null,null,null,null,null,null,null,1.5,"A4 فلاير"]
[null,null,null,null,null,null,null,null,null,null,null,null,null,null,null,null,null,null,null,null,null,null,null,30,"AW32 رولة حديد"]
[null,null,null,null,null,null,null,null,null,null,null,null,null,null,null,null,null,null,null,null,null,null,null,30,"AZ42 رولة حديد"]
[null,null,null,null,null,null,null,null,null,null,null,null,null,null,null,null,null,null,null,null,null,null,null,15,"B  عرض استنسل خاص"]
[null,null,null,null,null,null,null,null,null,null,null,null,null,null,null,null,null,null,null,null,null,null,null,49,"B الندى ماكس جلوس أكريليك"]
[null,null,null,null,null,null,null,null,null,null,null,null,null,null,null,null,null,null,null,null,null,null,null,155,"B الندى ماكس جلوس أكريليك"]
[null,null,null,null,null,null,null,null,null,null,null,null,null,null,null,null,null,null,null,null,null,null,null,498,"B الندى ماكس جلوس أكريليك"]
[null,null,null,null,null,null,null,null,null,null,null,null,null,null,null,null,null,null,null,null,null,null,null,43,"B-1 الندى إيجشل ربع لمعة"]
[null,null,null,null,null,null,null,null,null,null,null,null,null,null,null,null,null,null,null,null,null,null,null,134,"B-1 الندى إيجشل ربع لمعة"]
[null,null,null,null,null,null,null,null,null,null,null,null,null,null,null,null,null,null,null,null,null,null,null,431,"B-1 الندى إيجشل ربع لمعة"]
[null,null,null,null,null,null,null,null,null,null,null,null,null,null,null,null,null,null,null,null,null,null,null,40,"B-1 الندى بلاست سوبر مط"]
[null,null,null,null,null,null,null,null,null,null,null,null,null,null,null,null,null,null,null,null,null,null,null,122,"B-1 الندى بلاست سوبر مط"]
[null,null,null,null,null,null,null,null,null,null,null,null,null,null,null,null,null,null,null,null,null,null,null,419,"B-1 الندى بلاست سوبر مط"]
[null,null,null,null,null,null,null,null,null,null,null,null,null,null,null,null,null,null,null,null,null,null,null,47,"B-1 الندى بلاستيك نصف لمعة"]
[null,null,null,null,null,null,null,null,null,null,null,null,null,null,null,null,null,null,null,null,null,null,null,143,"B-1 الندى بلاستيك نصف لمعة"]
[null,null,null,null,null,null,null,null,null,null,null,null,null,null,null,null,null,null,null,null,null,null,null,461,"B-1 الندى بلاستيك نصف لمعة"]
[null,null,null,null,null,null,null,null,null,null,null,null,null,null,null,null,null,null,null,null,null,null,null,84,"B-1 الندى جينز"]
[null,null,null,null,null,null,null,null,null,null,null,null,null,null,null,null,null,null,null,null,null,null,null,92,"B-1 ايزى  ريفال"]
[null,null,null,null,null,null,null,null,null,null,null,null,null,null,null,null,null,null,null,null,null,null,null,311,"B-1 ايزى  ريفال"]
[null,null,null,null,null,null,null,null,null,null,null,null,null,null,null,null,null,null,null,null,null,null,null,36,"B-1 ايزى ريفال"]
[null,null,null,null,null,null,null,null,null,null,null,null,null,null,null,null,null,null,null,null,null,null,null,46,"C الندى ماكس جلوس أكريليك"]
[null,null,null,null,null,null,null,null,null,null,null,null,null,null,null,null,null,null,null,null,null,null,null,148,"C الندى ماكس جلوس أكريليك"]
[null,null,null,null,null,null,null,null,null,null,null,null,null,null,null,null,null,null,null,null,null,null,null,474,"C الندى ماكس جلوس أكريليك"]
[null,null,null,null,null,null,null,null,null,null,null,null,null,null,null,null,null,null,null,null,null,null,null,24,"C عرض استنسل خاص"]
[null,null,null,null,null,null,null,null,null,null,null,null,null,null,null,null,null,null,null,null,null,null,null,59,"C-1 الندى استوكو"]
[null,null,null,null,null,null,null,null,null,null,null,null,null,null,null,null,null,null,null,null,null,null,null,165,"C-1 الندى استوكو"]
[null,null,null,null,null,null,null,null,null,null,null,null,null,null,null,null,null,null,null,null,null,null,null,482,"C-1 الندى استوكو"]
[null,null,null,null,null,null,null,null,null,null,null,null,null,null,null,null,null,null,null,null,null,null,null,41,"C-1 الندى إيجشل ربع لمعة"]
[null,null,null,null,null,null,null,null,null,null,null,null,null,null,null,null,null,null,null,null,null,null,null,127,"C-1 الندى إيجشل ربع لمعة"]
[null,null,null,null,null,null,null,null,null,null,null,null,null,null,null,null,null,null,null,null,null,null,null,407,"C-1 الندى إيجشل ربع لمعة"]
[null,null,null,null,null,null,null,null,null,null,null,null,null,null,null,null,null,null,null,null,null,null,null,36,"C-1 الندى بلاست سوبر مط"]
[null,null,null,null,null,null,null,null,null,null,null,null,null,null,null,null,null,null,null,null,null,null,null,113,"C-1 الندى بلاست سوبر مط"]
[null,null,null,null,null,null,null,null,null,null,null,null,null,null,null,null,null,null,null,null,null,null,null,395,"C-1 الندى بلاست سوبر مط"]
[null,null,null,null,null,null,null,null,null,null,null,null,null,null,null,null,null,null,null,null,null,null,null,46,"C-1 الندى بلاستيك نصف لمعة"]
[null,null,null,null,null,null,null,null,null,null,null,null,null,null,null,null,null,null,null,null,null,null,null,138,"C-1 الندى بلاستيك نصف لمعة"]
[null,null,null,null,null,null,null,null,null,null,null,null,null,null,null,null,null,null,null,null,null,null,null,443,"C-1 الندى بلاستيك نصف لمعة"]
[null,null,null,null,null,null,null,null,null,null,null,null,null,null,null,null,null,null,null,null,null,null,null,49,"C-1 الندى فلورال لامع"]
[null,null,null,null,null,null,null,null,null,null,null,null,null,null,null,null,null,null,null,null,null,null,null,354,"C-1 الندى فلورال لامع"]
[null,null,null,null,null,null,null,null,null,null,null,null,null,null,null,null,null,null,null,null,null,null,null,124,"C-1 الندى فلورال لامع"]
[null,null,null,null,null,null,null,null,null,null,null,null,null,null,null,null,null,null,null,null,null,null,null,42,"C-1 الندى فلورال مطفى"]
[null,null,null,null,null,null,null,null,null,null,null,null,null,null,null,null,null,null,null,null,null,null,null,294,"C-1 الندى فلورال مطفى"]
[null,null,null,null,null,null,null,null,null,null,null,null,null,null,null,null,null,null,null,null,null,null,null,104,"C-1 الندى فلورال مطفى"]
[null,null,null,null,null,null,null,null,null,null,null,null,null,null,null,null,null,null,null,null,null,null,null,29,"C-1 ايزى  ريفال"]
[null,null,null,null,null,null,null,null,null,null,null,null,null,null,null,null,null,null,null,null,null,null,null,76,"C-1 ايزى  ريفال"]
[null,null,null,null,null,null,null,null,null,null,null,null,null,null,null,null,null,null,null,null,null,null,null,263,"C-1 ايزى  ريفال"]
[null,null,null,null,null,null,null,null,null,null,null,null,null,null,null,null,null,null,null,null,null,null,null,73,"D عرض استنسل خاص"]
[null,null,null,null,null,null,null,null,null,null,null,null,null,null,null,null,null,null,null,null,null,null,null,150,"DW-10 مسدس رش"]
[null,null,null,null,null,null,null,null,null,null,null,null,null,null,null,null,null,null,null,null,null,null,null,150,"DW-20 مسدس رش"]
[null,null,null,null,null,null,null,null,null,null,null,null,null,null,null,null,null,null,null,null,null,null,null,101,"E عرض استنسل خاص"]
[null,null,null,null,null,null,null,null,null,null,null,null,null,null,null,null,null,null,null,null,null,null,null,36,"FR002"]
[null,null,null,null,null,null,null,null,null,null,null,null,null,null,null,null,null,null,null,null,null,null,null,36,"FR003"]
[null,null,null,null,null,null,null,null,null,null,null,null,null,null,null,null,null,null,null,null,null,null,null,36,"FR004"]
[null,null,null,null,null,null,null,null,null,null,null,null,null,null,null,null,null,null,null,null,null,null,null,36,"FR005"]
[null,null,null,null,null,null,null,null,null,null,null,null,null,null,null,null,null,null,null,null,null,null,null,36,"FR006"]
[null,null,null,null,null,null,null,null,null,null,null,null,null,null,null,null,null,null,null,null,null,null,null,36,"FR007"]
[null,null,null,null,null,null,null,null,null,null,null,null,null,null,null,null,null,null,null,null,null,null,null,36,"FR008"]
[null,null,null,null,null,null,null,null,null,null,null,null,null,null,null,null,null,null,null,null,null,null,null,200,"FR300 مسدس تكتشر قمع ألومونيوم"]
[null,null,null,null,null,null,null,null,null,null,null,null,null,null,null,null,null,null,null,null,null,null,null,200,"FR301 مسدس تكتشر قمع بلاستيك"]
[null,null,null,null,null,null,null,null,null,null,null,null,null,null,null,null,null,null,null,null,null,null,null,200,"FR301A مسدس تكتشر قمع بلاستيك"]
[null,null,null,null,null,null,null,null,null,null,null,null,null,null,null,null,null,null,null,null,null,null,null,234,"FR302 مسدس تكتشر قمع بلاستيك"]
[null,null,null,null,null,null,null,null,null,null,null,null,null,null,null,null,null,null,null,null,null,null,null,18,"FREE"]
[null,null,null,null,null,null,null,null,null,null,null,null,null,null,null,null,null,null,null,null,null,null,null,36,"FREE"]
[null,null,null,null,null,null,null,null,null,null,null,null,null,null,null,null,null,null,null,null,null,null,null,365,"FT (violeD)"]
[null,null,null,null,null,null,null,null,null,null,null,null,null,null,null,null,null,null,null,null,null,null,null,144,"G عرض استنسل خاص"]
[null,null,null,null,null,null,null,null,null,null,null,null,null,null,null,null,null,null,null,null,null,null,null,167,"H2000 مسدس رش مقلوب"]
[null,null,null,null,null,null,null,null,null,null,null,null,null,null,null,null,null,null,null,null,null,null,null,1970,"H3000 مسدس رش"]
[null,null,null,null,null,null,null,null,null,null,null,null,null,null,null,null,null,null,null,null,null,null,null,186,"H4001 مسدس بوية رش"]
[null,null,null,null,null,null,null,null,null,null,null,null,null,null,null,null,null,null,null,null,null,null,null,186,"H827 مسدس رش مقلوب"]
[null,null,null,null,null,null,null,null,null,null,null,null,null,null,null,null,null,null,null,null,null,null,null,172,"H827A مسدس رش مقلوب"]
[null,null,null,null,null,null,null,null,null,null,null,null,null,null,null,null,null,null,null,null,null,null,null,1034,"HS (bordeaux)"]
[null,null,null,null,null,null,null,null,null,null,null,null,null,null,null,null,null,null,null,null,null,null,null,547,"KS (yellow)"]
[null,null,null,null,null,null,null,null,null,null,null,null,null,null,null,null,null,null,null,null,null,null,null,197,"L الندى سبونج"]
[null,null,null,null,null,null,null,null,null,null,null,null,null,null,null,null,null,null,null,null,null,null,null,295,"L قميص يونى فورم"]
[null,null,null,null,null,null,null,null,null,null,null,null,null,null,null,null,null,null,null,null,null,null,null,108,"LA001 الندى إستنسل 2 قطعة"]
[null,null,null,null,null,null,null,null,null,null,null,null,null,null,null,null,null,null,null,null,null,null,null,126,"LA002 الندى إستنسل 3 قطعة"]
[null,null,null,null,null,null,null,null,null,null,null,null,null,null,null,null,null,null,null,null,null,null,null,108,"LA003 الندى إستنسل 2 قطعة"]
[null,null,null,null,null,null,null,null,null,null,null,null,null,null,null,null,null,null,null,null,null,null,null,538,"LS (dark green)"]
[null,null,null,null,null,null,null,null,null,null,null,null,null,null,null,null,null,null,null,null,null,null,null,426,"LT (lighD green)"]
[null,null,null,null,null,null,null,null,null,null,null,null,null,null,null,null,null,null,null,null,null,null,null,295,"M قميص يونى فورم"]
[null,null,null,null,null,null,null,null,null,null,null,null,null,null,null,null,null,null,null,null,null,null,null,558,"MS (dark blue)"]
[null,null,null,null,null,null,null,null,null,null,null,null,null,null,null,null,null,null,null,null,null,null,null,335,"MT (lighD blue)"]
[null,null,null,null,null,null,null,null,null,null,null,null,null,null,null,null,null,null,null,null,null,null,null,36,"N122"]
[null,null,null,null,null,null,null,null,null,null,null,null,null,null,null,null,null,null,null,null,null,null,null,36,"N123"]
[null,null,null,null,null,null,null,null,null,null,null,null,null,null,null,null,null,null,null,null,null,null,null,36,"N124"]
[null,null,null,null,null,null,null,null,null,null,null,null,null,null,null,null,null,null,null,null,null,null,null,36,"N125"]
[null,null,null,null,null,null,null,null,null,null,null,null,null,null,null,null,null,null,null,null,null,null,null,36,"N126"]
[null,null,null,null,null,null,null,null,null,null,null,null,null,null,null,null,null,null,null,null,null,null,null,36,"N127"]
[null,null,null,null,null,null,null,null,null,null,null,null,null,null,null,null,null,null,null,null,null,null,null,36,"N128"]
[null,null,null,null,null,null,null,null,null,null,null,null,null,null,null,null,null,null,null,null,null,null,null,36,"N129"]
[null,null,null,null,null,null,null,null,null,null,null,null,null,null,null,null,null,null,null,null,null,null,null,36,"N130"]
[null,null,null,null,null,null,null,null,null,null,null,null,null,null,null,null,null,null,null,null,null,null,null,36,"N131"]
[null,null,null,null,null,null,null,null,null,null,null,null,null,null,null,null,null,null,null,null,null,null,null,36,"N134"]
[null,null,null,null,null,null,null,null,null,null,null,null,null,null,null,null,null,null,null,null,null,null,null,36,"N135"]
[null,null,null,null,null,null,null,null,null,null,null,null,null,null,null,null,null,null,null,null,null,null,null,36,"N136"]
[null,null,null,null,null,null,null,null,null,null,null,null,null,null,null,null,null,null,null,null,null,null,null,36,"N137"]
[null,null,null,null,null,null,null,null,null,null,null,null,null,null,null,null,null,null,null,null,null,null,null,36,"N139"]
[null,null,null,null,null,null,null,null,null,null,null,null,null,null,null,null,null,null,null,null,null,null,null,36,"N140"]
[null,null,null,null,null,null,null,null,null,null,null,null,null,null,null,null,null,null,null,null,null,null,null,36,"N141"]
[null,null,null,null,null,null,null,null,null,null,null,null,null,null,null,null,null,null,null,null,null,null,null,36,"N142"]
[null,null,null,null,null,null,null,null,null,null,null,null,null,null,null,null,null,null,null,null,null,null,null,36,"N144"]
[null,null,null,null,null,null,null,null,null,null,null,null,null,null,null,null,null,null,null,null,null,null,null,36,"N145"]
[null,null,null,null,null,null,null,null,null,null,null,null,null,null,null,null,null,null,null,null,null,null,null,36,"N146"]
[null,null,null,null,null,null,null,null,null,null,null,null,null,null,null,null,null,null,null,null,null,null,null,36,"N147"]
[null,null,null,null,null,null,null,null,null,null,null,null,null,null,null,null,null,null,null,null,null,null,null,36,"N148"]
[null,null,null,null,null,null,null,null,null,null,null,null,null,null,null,null,null,null,null,null,null,null,null,36,"N149"]
[null,null,null,null,null,null,null,null,null,null,null,null,null,null,null,null,null,null,null,null,null,null,null,36,"N151"]
[null,null,null,null,null,null,null,null,null,null,null,null,null,null,null,null,null,null,null,null,null,null,null,36,"N153"]
[null,null,null,null,null,null,null,null,null,null,null,null,null,null,null,null,null,null,null,null,null,null,null,36,"N157"]
[null,null,null,null,null,null,null,null,null,null,null,null,null,null,null,null,null,null,null,null,null,null,null,36,"N159"]
[null,null,null,null,null,null,null,null,null,null,null,null,null,null,null,null,null,null,null,null,null,null,null,36,"N161"]
[null,null,null,null,null,null,null,null,null,null,null,null,null,null,null,null,null,null,null,null,null,null,null,36,"N162"]
[null,null,null,null,null,null,null,null,null,null,null,null,null,null,null,null,null,null,null,null,null,null,null,36,"N163"]
[null,null,null,null,null,null,null,null,null,null,null,null,null,null,null,null,null,null,null,null,null,null,null,36,"N164"]
[null,null,null,null,null,null,null,null,null,null,null,null,null,null,null,null,null,null,null,null,null,null,null,36,"N200"]
[null,null,null,null,null,null,null,null,null,null,null,null,null,null,null,null,null,null,null,null,null,null,null,36,"N201"]
[null,null,null,null,null,null,null,null,null,null,null,null,null,null,null,null,null,null,null,null,null,null,null,36,"N202"]
[null,null,null,null,null,null,null,null,null,null,null,null,null,null,null,null,null,null,null,null,null,null,null,36,"N203"]
[null,null,null,null,null,null,null,null,null,null,null,null,null,null,null,null,null,null,null,null,null,null,null,36,"N204"]
[null,null,null,null,null,null,null,null,null,null,null,null,null,null,null,null,null,null,null,null,null,null,null,36,"N205"]
[null,null,null,null,null,null,null,null,null,null,null,null,null,null,null,null,null,null,null,null,null,null,null,36,"N206"]
[null,null,null,null,null,null,null,null,null,null,null,null,null,null,null,null,null,null,null,null,null,null,null,36,"N207"]
[null,null,null,null,null,null,null,null,null,null,null,null,null,null,null,null,null,null,null,null,null,null,null,36,"N208"]
[null,null,null,null,null,null,null,null,null,null,null,null,null,null,null,null,null,null,null,null,null,null,null,36,"N209"]
[null,null,null,null,null,null,null,null,null,null,null,null,null,null,null,null,null,null,null,null,null,null,null,36,"N210"]
[null,null,null,null,null,null,null,null,null,null,null,null,null,null,null,null,null,null,null,null,null,null,null,36,"N211"]
[null,null,null,null,null,null,null,null,null,null,null,null,null,null,null,null,null,null,null,null,null,null,null,36,"N212"]
[null,null,null,null,null,null,null,null,null,null,null,null,null,null,null,null,null,null,null,null,null,null,null,36,"N213"]
[null,null,null,null,null,null,null,null,null,null,null,null,null,null,null,null,null,null,null,null,null,null,null,36,"N214"]
[null,null,null,null,null,null,null,null,null,null,null,null,null,null,null,null,null,null,null,null,null,null,null,36,"N215"]
[null,null,null,null,null,null,null,null,null,null,null,null,null,null,null,null,null,null,null,null,null,null,null,36,"N216"]
[null,null,null,null,null,null,null,null,null,null,null,null,null,null,null,null,null,null,null,null,null,null,null,36,"N217"]
[null,null,null,null,null,null,null,null,null,null,null,null,null,null,null,null,null,null,null,null,null,null,null,36,"N218"]
[null,null,null,null,null,null,null,null,null,null,null,null,null,null,null,null,null,null,null,null,null,null,null,36,"N219"]
[null,null,null,null,null,null,null,null,null,null,null,null,null,null,null,null,null,null,null,null,null,null,null,36,"N220"]
[null,null,null,null,null,null,null,null,null,null,null,null,null,null,null,null,null,null,null,null,null,null,null,36,"N221"]
[null,null,null,null,null,null,null,null,null,null,null,null,null,null,null,null,null,null,null,null,null,null,null,36,"N222"]
[null,null,null,null,null,null,null,null,null,null,null,null,null,null,null,null,null,null,null,null,null,null,null,36,"N223"]
[null,null,null,null,null,null,null,null,null,null,null,null,null,null,null,null,null,null,null,null,null,null,null,36,"N224"]
[null,null,null,null,null,null,null,null,null,null,null,null,null,null,null,null,null,null,null,null,null,null,null,36,"N225"]
[null,null,null,null,null,null,null,null,null,null,null,null,null,null,null,null,null,null,null,null,null,null,null,36,"N226"]
[null,null,null,null,null,null,null,null,null,null,null,null,null,null,null,null,null,null,null,null,null,null,null,36,"N227"]
[null,null,null,null,null,null,null,null,null,null,null,null,null,null,null,null,null,null,null,null,null,null,null,36,"N228"]
[null,null,null,null,null,null,null,null,null,null,null,null,null,null,null,null,null,null,null,null,null,null,null,36,"N229"]
[null,null,null,null,null,null,null,null,null,null,null,null,null,null,null,null,null,null,null,null,null,null,null,36,"N230"]
[null,null,null,null,null,null,null,null,null,null,null,null,null,null,null,null,null,null,null,null,null,null,null,36,"N231"]
[null,null,null,null,null,null,null,null,null,null,null,null,null,null,null,null,null,null,null,null,null,null,null,36,"N232"]
[null,null,null,null,null,null,null,null,null,null,null,null,null,null,null,null,null,null,null,null,null,null,null,36,"N233"]
[null,null,null,null,null,null,null,null,null,null,null,null,null,null,null,null,null,null,null,null,null,null,null,36,"N234"]
[null,null,null,null,null,null,null,null,null,null,null,null,null,null,null,null,null,null,null,null,null,null,null,36,"N235"]
[null,null,null,null,null,null,null,null,null,null,null,null,null,null,null,null,null,null,null,null,null,null,null,36,"N236"]
[null,null,null,null,null,null,null,null,null,null,null,null,null,null,null,null,null,null,null,null,null,null,null,36,"N237"]
[null,null,null,null,null,null,null,null,null,null,null,null,null,null,null,null,null,null,null,null,null,null,null,36,"N238"]
[null,null,null,null,null,null,null,null,null,null,null,null,null,null,null,null,null,null,null,null,null,null,null,36,"N239"]
[null,null,null,null,null,null,null,null,null,null,null,null,null,null,null,null,null,null,null,null,null,null,null,36,"N240"]
[null,null,null,null,null,null,null,null,null,null,null,null,null,null,null,null,null,null,null,null,null,null,null,36,"N241"]
[null,null,null,null,null,null,null,null,null,null,null,null,null,null,null,null,null,null,null,null,null,null,null,36,"N243"]
[null,null,null,null,null,null,null,null,null,null,null,null,null,null,null,null,null,null,null,null,null,null,null,36,"N245"]
[null,null,null,null,null,null,null,null,null,null,null,null,null,null,null,null,null,null,null,null,null,null,null,36,"N246"]
[null,null,null,null,null,null,null,null,null,null,null,null,null,null,null,null,null,null,null,null,null,null,null,36,"N247"]
[null,null,null,null,null,null,null,null,null,null,null,null,null,null,null,null,null,null,null,null,null,null,null,36,"N248"]
[null,null,null,null,null,null,null,null,null,null,null,null,null,null,null,null,null,null,null,null,null,null,null,36,"N249"]
[null,null,null,null,null,null,null,null,null,null,null,null,null,null,null,null,null,null,null,null,null,null,null,36,"N250"]
[null,null,null,null,null,null,null,null,null,null,null,null,null,null,null,null,null,null,null,null,null,null,null,36,"N255"]
[null,null,null,null,null,null,null,null,null,null,null,null,null,null,null,null,null,null,null,null,null,null,null,36,"N256"]
[null,null,null,null,null,null,null,null,null,null,null,null,null,null,null,null,null,null,null,null,null,null,null,36,"N257"]
[null,null,null,null,null,null,null,null,null,null,null,null,null,null,null,null,null,null,null,null,null,null,null,36,"N258"]
[null,null,null,null,null,null,null,null,null,null,null,null,null,null,null,null,null,null,null,null,null,null,null,36,"N259"]
[null,null,null,null,null,null,null,null,null,null,null,null,null,null,null,null,null,null,null,null,null,null,null,36,"N260"]
[null,null,null,null,null,null,null,null,null,null,null,null,null,null,null,null,null,null,null,null,null,null,null,36,"N261"]
[null,null,null,null,null,null,null,null,null,null,null,null,null,null,null,null,null,null,null,null,null,null,null,36,"N262"]
[null,null,null,null,null,null,null,null,null,null,null,null,null,null,null,null,null,null,null,null,null,null,null,36,"N263"]
[null,null,null,null,null,null,null,null,null,null,null,null,null,null,null,null,null,null,null,null,null,null,null,36,"N264"]
[null,null,null,null,null,null,null,null,null,null,null,null,null,null,null,null,null,null,null,null,null,null,null,36,"N265"]
[null,null,null,null,null,null,null,null,null,null,null,null,null,null,null,null,null,null,null,null,null,null,null,36,"N266"]
[null,null,null,null,null,null,null,null,null,null,null,null,null,null,null,null,null,null,null,null,null,null,null,36,"N267"]
[null,null,null,null,null,null,null,null,null,null,null,null,null,null,null,null,null,null,null,null,null,null,null,36,"N268"]
[null,null,null,null,null,null,null,null,null,null,null,null,null,null,null,null,null,null,null,null,null,null,null,36,"N269"]
[null,null,null,null,null,null,null,null,null,null,null,null,null,null,null,null,null,null,null,null,null,null,null,36,"N270"]
[null,null,null,null,null,null,null,null,null,null,null,null,null,null,null,null,null,null,null,null,null,null,null,36,"N271"]
[null,null,null,null,null,null,null,null,null,null,null,null,null,null,null,null,null,null,null,null,null,null,null,36,"N272"]
[null,null,null,null,null,null,null,null,null,null,null,null,null,null,null,null,null,null,null,null,null,null,null,36,"N273"]
[null,null,null,null,null,null,null,null,null,null,null,null,null,null,null,null,null,null,null,null,null,null,null,36,"N274"]
[null,null,null,null,null,null,null,null,null,null,null,null,null,null,null,null,null,null,null,null,null,null,null,36,"N275"]
[null,null,null,null,null,null,null,null,null,null,null,null,null,null,null,null,null,null,null,null,null,null,null,36,"N276"]
[null,null,null,null,null,null,null,null,null,null,null,null,null,null,null,null,null,null,null,null,null,null,null,36,"N277"]
[null,null,null,null,null,null,null,null,null,null,null,null,null,null,null,null,null,null,null,null,null,null,null,36,"N278"]
[null,null,null,null,null,null,null,null,null,null,null,null,null,null,null,null,null,null,null,null,null,null,null,36,"N279"]
[null,null,null,null,null,null,null,null,null,null,null,null,null,null,null,null,null,null,null,null,null,null,null,36,"N280"]
[null,null,null,null,null,null,null,null,null,null,null,null,null,null,null,null,null,null,null,null,null,null,null,36,"N281"]
[null,null,null,null,null,null,null,null,null,null,null,null,null,null,null,null,null,null,null,null,null,null,null,36,"N282"]
[null,null,null,null,null,null,null,null,null,null,null,null,null,null,null,null,null,null,null,null,null,null,null,36,"N283"]
[null,null,null,null,null,null,null,null,null,null,null,null,null,null,null,null,null,null,null,null,null,null,null,36,"N284"]
[null,null,null,null,null,null,null,null,null,null,null,null,null,null,null,null,null,null,null,null,null,null,null,36,"N285"]
[null,null,null,null,null,null,null,null,null,null,null,null,null,null,null,null,null,null,null,null,null,null,null,36,"N286"]
[null,null,null,null,null,null,null,null,null,null,null,null,null,null,null,null,null,null,null,null,null,null,null,36,"N287"]
[null,null,null,null,null,null,null,null,null,null,null,null,null,null,null,null,null,null,null,null,null,null,null,36,"N288"]
[null,null,null,null,null,null,null,null,null,null,null,null,null,null,null,null,null,null,null,null,null,null,null,36,"N289"]
[null,null,null,null,null,null,null,null,null,null,null,null,null,null,null,null,null,null,null,null,null,null,null,36,"N290"]
[null,null,null,null,null,null,null,null,null,null,null,null,null,null,null,null,null,null,null,null,null,null,null,36,"N291"]
[null,null,null,null,null,null,null,null,null,null,null,null,null,null,null,null,null,null,null,null,null,null,null,36,"N292"]
[null,null,null,null,null,null,null,null,null,null,null,null,null,null,null,null,null,null,null,null,null,null,null,36,"N293"]
[null,null,null,null,null,null,null,null,null,null,null,null,null,null,null,null,null,null,null,null,null,null,null,36,"N294"]
[null,null,null,null,null,null,null,null,null,null,null,null,null,null,null,null,null,null,null,null,null,null,null,36,"N295"]
[null,null,null,null,null,null,null,null,null,null,null,null,null,null,null,null,null,null,null,null,null,null,null,36,"N296"]
[null,null,null,null,null,null,null,null,null,null,null,null,null,null,null,null,null,null,null,null,null,null,null,36,"N297"]
[null,null,null,null,null,null,null,null,null,null,null,null,null,null,null,null,null,null,null,null,null,null,null,36,"N298"]
[null,null,null,null,null,null,null,null,null,null,null,null,null,null,null,null,null,null,null,null,null,null,null,36,"N299"]
[null,null,null,null,null,null,null,null,null,null,null,null,null,null,null,null,null,null,null,null,null,null,null,36,"N300"]
[null,null,null,null,null,null,null,null,null,null,null,null,null,null,null,null,null,null,null,null,null,null,null,36,"N301"]
[null,null,null,null,null,null,null,null,null,null,null,null,null,null,null,null,null,null,null,null,null,null,null,36,"N302"]
[null,null,null,null,null,null,null,null,null,null,null,null,null,null,null,null,null,null,null,null,null,null,null,36,"N303"]
[null,null,null,null,null,null,null,null,null,null,null,null,null,null,null,null,null,null,null,null,null,null,null,36,"N304"]
[null,null,null,null,null,null,null,null,null,null,null,null,null,null,null,null,null,null,null,null,null,null,null,36,"N305"]
[null,null,null,null,null,null,null,null,null,null,null,null,null,null,null,null,null,null,null,null,null,null,null,36,"N306"]
[null,null,null,null,null,null,null,null,null,null,null,null,null,null,null,null,null,null,null,null,null,null,null,36,"N307"]
[null,null,null,null,null,null,null,null,null,null,null,null,null,null,null,null,null,null,null,null,null,null,null,36,"N308"]
[null,null,null,null,null,null,null,null,null,null,null,null,null,null,null,null,null,null,null,null,null,null,null,36,"N309"]
[null,null,null,null,null,null,null,null,null,null,null,null,null,null,null,null,null,null,null,null,null,null,null,36,"N310"]
[null,null,null,null,null,null,null,null,null,null,null,null,null,null,null,null,null,null,null,null,null,null,null,36,"N311"]
[null,null,null,null,null,null,null,null,null,null,null,null,null,null,null,null,null,null,null,null,null,null,null,36,"N312"]
[null,null,null,null,null,null,null,null,null,null,null,null,null,null,null,null,null,null,null,null,null,null,null,36,"N313"]
[null,null,null,null,null,null,null,null,null,null,null,null,null,null,null,null,null,null,null,null,null,null,null,36,"N314"]
[null,null,null,null,null,null,null,null,null,null,null,null,null,null,null,null,null,null,null,null,null,null,null,36,"N315"]
[null,null,null,null,null,null,null,null,null,null,null,null,null,null,null,null,null,null,null,null,null,null,null,36,"N316"]
[null,null,null,null,null,null,null,null,null,null,null,null,null,null,null,null,null,null,null,null,null,null,null,36,"N317"]
[null,null,null,null,null,null,null,null,null,null,null,null,null,null,null,null,null,null,null,null,null,null,null,36,"N318"]
[null,null,null,null,null,null,null,null,null,null,null,null,null,null,null,null,null,null,null,null,null,null,null,36,"N319"]
[null,null,null,null,null,null,null,null,null,null,null,null,null,null,null,null,null,null,null,null,null,null,null,36,"N320"]
[null,null,null,null,null,null,null,null,null,null,null,null,null,null,null,null,null,null,null,null,null,null,null,36,"N321"]
[null,null,null,null,null,null,null,null,null,null,null,null,null,null,null,null,null,null,null,null,null,null,null,36,"N322"]
[null,null,null,null,null,null,null,null,null,null,null,null,null,null,null,null,null,null,null,null,null,null,null,36,"N323"]
[null,null,null,null,null,null,null,null,null,null,null,null,null,null,null,null,null,null,null,null,null,null,null,36,"N324"]
[null,null,null,null,null,null,null,null,null,null,null,null,null,null,null,null,null,null,null,null,null,null,null,36,"N325"]
[null,null,null,null,null,null,null,null,null,null,null,null,null,null,null,null,null,null,null,null,null,null,null,36,"N326"]
[null,null,null,null,null,null,null,null,null,null,null,null,null,null,null,null,null,null,null,null,null,null,null,36,"N327"]
[null,null,null,null,null,null,null,null,null,null,null,null,null,null,null,null,null,null,null,null,null,null,null,36,"N328"]
[null,null,null,null,null,null,null,null,null,null,null,null,null,null,null,null,null,null,null,null,null,null,null,36,"N329"]
[null,null,null,null,null,null,null,null,null,null,null,null,null,null,null,null,null,null,null,null,null,null,null,36,"N330"]
[null,null,null,null,null,null,null,null,null,null,null,null,null,null,null,null,null,null,null,null,null,null,null,36,"N331"]
[null,null,null,null,null,null,null,null,null,null,null,null,null,null,null,null,null,null,null,null,null,null,null,36,"N332"]
[null,null,null,null,null,null,null,null,null,null,null,null,null,null,null,null,null,null,null,null,null,null,null,36,"N333"]
[null,null,null,null,null,null,null,null,null,null,null,null,null,null,null,null,null,null,null,null,null,null,null,36,"N334"]
[null,null,null,null,null,null,null,null,null,null,null,null,null,null,null,null,null,null,null,null,null,null,null,36,"N335"]
[null,null,null,null,null,null,null,null,null,null,null,null,null,null,null,null,null,null,null,null,null,null,null,36,"N336"]
[null,null,null,null,null,null,null,null,null,null,null,null,null,null,null,null,null,null,null,null,null,null,null,36,"N337"]
[null,null,null,null,null,null,null,null,null,null,null,null,null,null,null,null,null,null,null,null,null,null,null,36,"N338"]
[null,null,null,null,null,null,null,null,null,null,null,null,null,null,null,null,null,null,null,null,null,null,null,36,"N339"]
[null,null,null,null,null,null,null,null,null,null,null,null,null,null,null,null,null,null,null,null,null,null,null,36,"N340"]
[null,null,null,null,null,null,null,null,null,null,null,null,null,null,null,null,null,null,null,null,null,null,null,36,"N341"]
[null,null,null,null,null,null,null,null,null,null,null,null,null,null,null,null,null,null,null,null,null,null,null,36,"N342"]
[null,null,null,null,null,null,null,null,null,null,null,null,null,null,null,null,null,null,null,null,null,null,null,36,"N343"]
[null,null,null,null,null,null,null,null,null,null,null,null,null,null,null,null,null,null,null,null,null,null,null,36,"N344"]
[null,null,null,null,null,null,null,null,null,null,null,null,null,null,null,null,null,null,null,null,null,null,null,36,"N345"]
[null,null,null,null,null,null,null,null,null,null,null,null,null,null,null,null,null,null,null,null,null,null,null,36,"N346"]
[null,null,null,null,null,null,null,null,null,null,null,null,null,null,null,null,null,null,null,null,null,null,null,36,"N347"]
[null,null,null,null,null,null,null,null,null,null,null,null,null,null,null,null,null,null,null,null,null,null,null,36,"N348"]
[null,null,null,null,null,null,null,null,null,null,null,null,null,null,null,null,null,null,null,null,null,null,null,36,"N349"]
[null,null,null,null,null,null,null,null,null,null,null,null,null,null,null,null,null,null,null,null,null,null,null,36,"N350"]
[null,null,null,null,null,null,null,null,null,null,null,null,null,null,null,null,null,null,null,null,null,null,null,36,"N351"]
[null,null,null,null,null,null,null,null,null,null,null,null,null,null,null,null,null,null,null,null,null,null,null,36,"N352"]
[null,null,null,null,null,null,null,null,null,null,null,null,null,null,null,null,null,null,null,null,null,null,null,36,"N353"]
[null,null,null,null,null,null,null,null,null,null,null,null,null,null,null,null,null,null,null,null,null,null,null,36,"N354"]
[null,null,null,null,null,null,null,null,null,null,null,null,null,null,null,null,null,null,null,null,null,null,null,36,"N355"]
[null,null,null,null,null,null,null,null,null,null,null,null,null,null,null,null,null,null,null,null,null,null,null,36,"N356"]
[null,null,null,null,null,null,null,null,null,null,null,null,null,null,null,null,null,null,null,null,null,null,null,36,"N357"]
[null,null,null,null,null,null,null,null,null,null,null,null,null,null,null,null,null,null,null,null,null,null,null,36,"N358"]
[null,null,null,null,null,null,null,null,null,null,null,null,null,null,null,null,null,null,null,null,null,null,null,36,"N359"]
[null,null,null,null,null,null,null,null,null,null,null,null,null,null,null,null,null,null,null,null,null,null,null,36,"N360"]
[null,null,null,null,null,null,null,null,null,null,null,null,null,null,null,null,null,null,null,null,null,null,null,36,"N361"]
[null,null,null,null,null,null,null,null,null,null,null,null,null,null,null,null,null,null,null,null,null,null,null,36,"N362"]
[null,null,null,null,null,null,null,null,null,null,null,null,null,null,null,null,null,null,null,null,null,null,null,36,"N363"]
[null,null,null,null,null,null,null,null,null,null,null,null,null,null,null,null,null,null,null,null,null,null,null,36,"N364"]
[null,null,null,null,null,null,null,null,null,null,null,null,null,null,null,null,null,null,null,null,null,null,null,36,"N365"]
[null,null,null,null,null,null,null,null,null,null,null,null,null,null,null,null,null,null,null,null,null,null,null,36,"N366"]
[null,null,null,null,null,null,null,null,null,null,null,null,null,null,null,null,null,null,null,null,null,null,null,36,"N367"]
[null,null,null,null,null,null,null,null,null,null,null,null,null,null,null,null,null,null,null,null,null,null,null,36,"N368"]
[null,null,null,null,null,null,null,null,null,null,null,null,null,null,null,null,null,null,null,null,null,null,null,36,"N369"]
[null,null,null,null,null,null,null,null,null,null,null,null,null,null,null,null,null,null,null,null,null,null,null,36,"N370"]
[null,null,null,null,null,null,null,null,null,null,null,null,null,null,null,null,null,null,null,null,null,null,null,36,"N371"]
[null,null,null,null,null,null,null,null,null,null,null,null,null,null,null,null,null,null,null,null,null,null,null,36,"N373"]
[null,null,null,null,null,null,null,null,null,null,null,null,null,null,null,null,null,null,null,null,null,null,null,36,"N374"]
[null,null,null,null,null,null,null,null,null,null,null,null,null,null,null,null,null,null,null,null,null,null,null,36,"N375"]
[null,null,null,null,null,null,null,null,null,null,null,null,null,null,null,null,null,null,null,null,null,null,null,36,"N376"]
[null,null,null,null,null,null,null,null,null,null,null,null,null,null,null,null,null,null,null,null,null,null,null,36,"N377"]
[null,null,null,null,null,null,null,null,null,null,null,null,null,null,null,null,null,null,null,null,null,null,null,36,"N378"]
[null,null,null,null,null,null,null,null,null,null,null,null,null,null,null,null,null,null,null,null,null,null,null,36,"N379"]
[null,null,null,null,null,null,null,null,null,null,null,null,null,null,null,null,null,null,null,null,null,null,null,36,"N380"]
[null,null,null,null,null,null,null,null,null,null,null,null,null,null,null,null,null,null,null,null,null,null,null,36,"N381"]
[null,null,null,null,null,null,null,null,null,null,null,null,null,null,null,null,null,null,null,null,null,null,null,36,"N382"]
[null,null,null,null,null,null,null,null,null,null,null,null,null,null,null,null,null,null,null,null,null,null,null,36,"N383"]
[null,null,null,null,null,null,null,null,null,null,null,null,null,null,null,null,null,null,null,null,null,null,null,36,"N384"]
[null,null,null,null,null,null,null,null,null,null,null,null,null,null,null,null,null,null,null,null,null,null,null,36,"N385"]
[null,null,null,null,null,null,null,null,null,null,null,null,null,null,null,null,null,null,null,null,null,null,null,36,"N386"]
[null,null,null,null,null,null,null,null,null,null,null,null,null,null,null,null,null,null,null,null,null,null,null,36,"N387"]
[null,null,null,null,null,null,null,null,null,null,null,null,null,null,null,null,null,null,null,null,null,null,null,36,"N388"]
[null,null,null,null,null,null,null,null,null,null,null,null,null,null,null,null,null,null,null,null,null,null,null,36,"N389"]
[null,null,null,null,null,null,null,null,null,null,null,null,null,null,null,null,null,null,null,null,null,null,null,36,"N390"]
[null,null,null,null,null,null,null,null,null,null,null,null,null,null,null,null,null,null,null,null,null,null,null,36,"N391"]
[null,null,null,null,null,null,null,null,null,null,null,null,null,null,null,null,null,null,null,null,null,null,null,36,"N392"]
[null,null,null,null,null,null,null,null,null,null,null,null,null,null,null,null,null,null,null,null,null,null,null,36,"N393"]
[null,null,null,null,null,null,null,null,null,null,null,null,null,null,null,null,null,null,null,null,null,null,null,36,"N394"]
[null,null,null,null,null,null,null,null,null,null,null,null,null,null,null,null,null,null,null,null,null,null,null,36,"N395"]
[null,null,null,null,null,null,null,null,null,null,null,null,null,null,null,null,null,null,null,null,null,null,null,36,"N396"]
[null,null,null,null,null,null,null,null,null,null,null,null,null,null,null,null,null,null,null,null,null,null,null,36,"N397"]
[null,null,null,null,null,null,null,null,null,null,null,null,null,null,null,null,null,null,null,null,null,null,null,36,"N398"]
[null,null,null,null,null,null,null,null,null,null,null,null,null,null,null,null,null,null,null,null,null,null,null,36,"N399"]
[null,null,null,null,null,null,null,null,null,null,null,null,null,null,null,null,null,null,null,null,null,null,null,36,"N400"]
[null,null,null,null,null,null,null,null,null,null,null,null,null,null,null,null,null,null,null,null,null,null,null,36,"N401"]
[null,null,null,null,null,null,null,null,null,null,null,null,null,null,null,null,null,null,null,null,null,null,null,36,"N402"]
[null,null,null,null,null,null,null,null,null,null,null,null,null,null,null,null,null,null,null,null,null,null,null,36,"N403"]
[null,null,null,null,null,null,null,null,null,null,null,null,null,null,null,null,null,null,null,null,null,null,null,36,"N404"]
[null,null,null,null,null,null,null,null,null,null,null,null,null,null,null,null,null,null,null,null,null,null,null,36,"N405"]
[null,null,null,null,null,null,null,null,null,null,null,null,null,null,null,null,null,null,null,null,null,null,null,36,"N406"]
[null,null,null,null,null,null,null,null,null,null,null,null,null,null,null,null,null,null,null,null,null,null,null,36,"N407"]
[null,null,null,null,null,null,null,null,null,null,null,null,null,null,null,null,null,null,null,null,null,null,null,36,"N408"]
[null,null,null,null,null,null,null,null,null,null,null,null,null,null,null,null,null,null,null,null,null,null,null,36,"N409"]
[null,null,null,null,null,null,null,null,null,null,null,null,null,null,null,null,null,null,null,null,null,null,null,36,"N410"]
[null,null,null,null,null,null,null,null,null,null,null,null,null,null,null,null,null,null,null,null,null,null,null,36,"N411"]
[null,null,null,null,null,null,null,null,null,null,null,null,null,null,null,null,null,null,null,null,null,null,null,36,"N412"]
[null,null,null,null,null,null,null,null,null,null,null,null,null,null,null,null,null,null,null,null,null,null,null,36,"N413"]
[null,null,null,null,null,null,null,null,null,null,null,null,null,null,null,null,null,null,null,null,null,null,null,36,"N414"]
[null,null,null,null,null,null,null,null,null,null,null,null,null,null,null,null,null,null,null,null,null,null,null,36,"N415"]
[null,null,null,null,null,null,null,null,null,null,null,null,null,null,null,null,null,null,null,null,null,null,null,36,"N416"]
[null,null,null,null,null,null,null,null,null,null,null,null,null,null,null,null,null,null,null,null,null,null,null,36,"N417"]
[null,null,null,null,null,null,null,null,null,null,null,null,null,null,null,null,null,null,null,null,null,null,null,36,"N418"]
[null,null,null,null,null,null,null,null,null,null,null,null,null,null,null,null,null,null,null,null,null,null,null,36,"N419"]
[null,null,null,null,null,null,null,null,null,null,null,null,null,null,null,null,null,null,null,null,null,null,null,36,"N420"]
[null,null,null,null,null,null,null,null,null,null,null,null,null,null,null,null,null,null,null,null,null,null,null,36,"N421"]
[null,null,null,null,null,null,null,null,null,null,null,null,null,null,null,null,null,null,null,null,null,null,null,36,"N422"]
[null,null,null,null,null,null,null,null,null,null,null,null,null,null,null,null,null,null,null,null,null,null,null,36,"N423"]
[null,null,null,null,null,null,null,null,null,null,null,null,null,null,null,null,null,null,null,null,null,null,null,36,"N424"]
[null,null,null,null,null,null,null,null,null,null,null,null,null,null,null,null,null,null,null,null,null,null,null,36,"N425"]
[null,null,null,null,null,null,null,null,null,null,null,null,null,null,null,null,null,null,null,null,null,null,null,36,"N426"]
[null,null,null,null,null,null,null,null,null,null,null,null,null,null,null,null,null,null,null,null,null,null,null,36,"N427"]
[null,null,null,null,null,null,null,null,null,null,null,null,null,null,null,null,null,null,null,null,null,null,null,36,"N428"]
[null,null,null,null,null,null,null,null,null,null,null,null,null,null,null,null,null,null,null,null,null,null,null,36,"N429"]
[null,null,null,null,null,null,null,null,null,null,null,null,null,null,null,null,null,null,null,null,null,null,null,36,"N430"]
[null,null,null,null,null,null,null,null,null,null,null,null,null,null,null,null,null,null,null,null,null,null,null,36,"N431"]
[null,null,null,null,null,null,null,null,null,null,null,null,null,null,null,null,null,null,null,null,null,null,null,36,"N432"]
[null,null,null,null,null,null,null,null,null,null,null,null,null,null,null,null,null,null,null,null,null,null,null,36,"N433"]
[null,null,null,null,null,null,null,null,null,null,null,null,null,null,null,null,null,null,null,null,null,null,null,36,"N434"]
[null,null,null,null,null,null,null,null,null,null,null,null,null,null,null,null,null,null,null,null,null,null,null,36,"N435"]
[null,null,null,null,null,null,null,null,null,null,null,null,null,null,null,null,null,null,null,null,null,null,null,36,"N436"]
[null,null,null,null,null,null,null,null,null,null,null,null,null,null,null,null,null,null,null,null,null,null,null,36,"N437"]
[null,null,null,null,null,null,null,null,null,null,null,null,null,null,null,null,null,null,null,null,null,null,null,36,"N438"]
[null,null,null,null,null,null,null,null,null,null,null,null,null,null,null,null,null,null,null,null,null,null,null,36,"N439"]
[null,null,null,null,null,null,null,null,null,null,null,null,null,null,null,null,null,null,null,null,null,null,null,36,"N440"]
[null,null,null,null,null,null,null,null,null,null,null,null,null,null,null,null,null,null,null,null,null,null,null,36,"N441"]
[null,null,null,null,null,null,null,null,null,null,null,null,null,null,null,null,null,null,null,null,null,null,null,36,"N442"]
[null,null,null,null,null,null,null,null,null,null,null,null,null,null,null,null,null,null,null,null,null,null,null,36,"N444"]
[null,null,null,null,null,null,null,null,null,null,null,null,null,null,null,null,null,null,null,null,null,null,null,36,"N446"]
[null,null,null,null,null,null,null,null,null,null,null,null,null,null,null,null,null,null,null,null,null,null,null,5177,"NCS كرتلة"]
[null,null,null,null,null,null,null,null,null,null,null,null,null,null,null,null,null,null,null,null,null,null,null,0,"N-D-NA16002-50ml"]
[null,null,null,null,null,null,null,null,null,null,null,null,null,null,null,null,null,null,null,null,null,null,null,108,"NP161 الندى إستنسل 2 قطعة"]
[null,null,null,null,null,null,null,null,null,null,null,null,null,null,null,null,null,null,null,null,null,null,null,108,"NP162 الندى إستنسل 2 قطعة"]
[null,null,null,null,null,null,null,null,null,null,null,null,null,null,null,null,null,null,null,null,null,null,null,126,"NP163 الندى إستنسل 3 قطعة"]
[null,null,null,null,null,null,null,null,null,null,null,null,null,null,null,null,null,null,null,null,null,null,null,126,"NP164 الندى إستنسل 3 قطعة"]
[null,null,null,null,null,null,null,null,null,null,null,null,null,null,null,null,null,null,null,null,null,null,null,108,"NP168 الندى إستنسل 2 قطعة"]
[null,null,null,null,null,null,null,null,null,null,null,null,null,null,null,null,null,null,null,null,null,null,null,108,"NP170 الندى إستنسل 2 قطعة"]
[null,null,null,null,null,null,null,null,null,null,null,null,null,null,null,null,null,null,null,null,null,null,null,108,"NP171 الندى إستنسل 2 قطعة"]
[null,null,null,null,null,null,null,null,null,null,null,null,null,null,null,null,null,null,null,null,null,null,null,126,"NP172 الندى إستنسل 3 قطعة"]
[null,null,null,null,null,null,null,null,null,null,null,null,null,null,null,null,null,null,null,null,null,null,null,108,"NP173 الندى إستنسل 2 قطعة"]
[null,null,null,null,null,null,null,null,null,null,null,null,null,null,null,null,null,null,null,null,null,null,null,126,"NP174 الندى إستنسل 3 قطعة"]
[null,null,null,null,null,null,null,null,null,null,null,null,null,null,null,null,null,null,null,null,null,null,null,126,"NP175 الندى إستنسل 3 قطعة"]
[null,null,null,null,null,null,null,null,null,null,null,null,null,null,null,null,null,null,null,null,null,null,null,108,"NP176 الندى إستنسل 2 قطعة"]
[null,null,null,null,null,null,null,null,null,null,null,null,null,null,null,null,null,null,null,null,null,null,null,108,"NP177 الندى إستنسل 2 قطعة"]
[null,null,null,null,null,null,null,null,null,null,null,null,null,null,null,null,null,null,null,null,null,null,null,126,"NP178 الندى إستنسل 3 قطعة"]
[null,null,null,null,null,null,null,null,null,null,null,null,null,null,null,null,null,null,null,null,null,null,null,108,"NP179 الندى إستنسل 2 قطعة"]
[null,null,null,null,null,null,null,null,null,null,null,null,null,null,null,null,null,null,null,null,null,null,null,126,"NP182 الندى إستنسل 3 قطعة"]
[null,null,null,null,null,null,null,null,null,null,null,null,null,null,null,null,null,null,null,null,null,null,null,180,"NP184 الندى إستنسل قطع كبيرة"]
[null,null,null,null,null,null,null,null,null,null,null,null,null,null,null,null,null,null,null,null,null,null,null,300,"NP186 الندى إستنسل 11 قطعة"]
[null,null,null,null,null,null,null,null,null,null,null,null,null,null,null,null,null,null,null,null,null,null,null,126,"NP187 الندى إستنسل 3 قطعة"]
[null,null,null,null,null,null,null,null,null,null,null,null,null,null,null,null,null,null,null,null,null,null,null,180,"NP195 الندى إستنسل قطع كبيرة"]
[null,null,null,null,null,null,null,null,null,null,null,null,null,null,null,null,null,null,null,null,null,null,null,126,"NP196 الندى إستنسل 3 قطعة"]
[null,null,null,null,null,null,null,null,null,null,null,null,null,null,null,null,null,null,null,null,null,null,null,126,"NP197 الندى إستنسل 3 قطعة"]
[null,null,null,null,null,null,null,null,null,null,null,null,null,null,null,null,null,null,null,null,null,null,null,108,"NP198 الندى إستنسل 2 قطعة"]
[null,null,null,null,null,null,null,null,null,null,null,null,null,null,null,null,null,null,null,null,null,null,null,126,"NP199 الندى إستنسل 3 قطعة"]
[null,null,null,null,null,null,null,null,null,null,null,null,null,null,null,null,null,null,null,null,null,null,null,126,"NP200 الندى إستنسل 3 قطعة"]
[null,null,null,null,null,null,null,null,null,null,null,null,null,null,null,null,null,null,null,null,null,null,null,108,"NP201 الندى إستنسل 2 قطعة"]
[null,null,null,null,null,null,null,null,null,null,null,null,null,null,null,null,null,null,null,null,null,null,null,126,"NP202 الندى إستنسل 3 قطعة"]
[null,null,null,null,null,null,null,null,null,null,null,null,null,null,null,null,null,null,null,null,null,null,null,126,"NP203 الندى إستنسل 3 قطعة"]
[null,null,null,null,null,null,null,null,null,null,null,null,null,null,null,null,null,null,null,null,null,null,null,108,"NP204 الندى إستنسل 2 قطعة"]
[null,null,null,null,null,null,null,null,null,null,null,null,null,null,null,null,null,null,null,null,null,null,null,126,"NP205 الندى إستنسل 3 قطعة"]
[null,null,null,null,null,null,null,null,null,null,null,null,null,null,null,null,null,null,null,null,null,null,null,126,"NP206 الندى إستنسل 3 قطعة"]
[null,null,null,null,null,null,null,null,null,null,null,null,null,null,null,null,null,null,null,null,null,null,null,126,"NP207 الندى إستنسل 3 قطعة"]
[null,null,null,null,null,null,null,null,null,null,null,null,null,null,null,null,null,null,null,null,null,null,null,108,"NP208 الندى إستنسل 2 قطعة"]
[null,null,null,null,null,null,null,null,null,null,null,null,null,null,null,null,null,null,null,null,null,null,null,180,"NP209 الندى إستنسل قطع كبيرة"]
[null,null,null,null,null,null,null,null,null,null,null,null,null,null,null,null,null,null,null,null,null,null,null,126,"NP210 الندى إستنسل 3 قطعة"]
[null,null,null,null,null,null,null,null,null,null,null,null,null,null,null,null,null,null,null,null,null,null,null,300,"NP211 الندى إستنسل 11 قطعة"]
[null,null,null,null,null,null,null,null,null,null,null,null,null,null,null,null,null,null,null,null,null,null,null,180,"NP212 الندى إستنسل قطع كبيرة"]
[null,null,null,null,null,null,null,null,null,null,null,null,null,null,null,null,null,null,null,null,null,null,null,108,"NP213 الندى إستنسل 2 قطعة"]
[null,null,null,null,null,null,null,null,null,null,null,null,null,null,null,null,null,null,null,null,null,null,null,108,"NP214 الندى إستنسل 2 قطعة"]
[null,null,null,null,null,null,null,null,null,null,null,null,null,null,null,null,null,null,null,null,null,null,null,126,"NP215 الندى إستنسل 3 قطعة"]
[null,null,null,null,null,null,null,null,null,null,null,null,null,null,null,null,null,null,null,null,null,null,null,300,"NP216 الندى إستنسل 11 قطعة"]
[null,null,null,null,null,null,null,null,null,null,null,null,null,null,null,null,null,null,null,null,null,null,null,126,"NP217 الندى إستنسل 3 قطعة"]
[null,null,null,null,null,null,null,null,null,null,null,null,null,null,null,null,null,null,null,null,null,null,null,180,"NP218 الندى إستنسل قطع كبيرة"]
[null,null,null,null,null,null,null,null,null,null,null,null,null,null,null,null,null,null,null,null,null,null,null,108,"NP219 الندى إستنسل 2 قطعة"]
[null,null,null,null,null,null,null,null,null,null,null,null,null,null,null,null,null,null,null,null,null,null,null,300,"NP220 الندى إستنسل 11 قطعة"]
[null,null,null,null,null,null,null,null,null,null,null,null,null,null,null,null,null,null,null,null,null,null,null,126,"NP221 الندى إستنسل 3 قطعة"]
[null,null,null,null,null,null,null,null,null,null,null,null,null,null,null,null,null,null,null,null,null,null,null,300,"NP222 الندى إستنسل 11 قطعة"]
[null,null,null,null,null,null,null,null,null,null,null,null,null,null,null,null,null,null,null,null,null,null,null,108,"NP223 الندى إستنسل 2 قطعة"]
[null,null,null,null,null,null,null,null,null,null,null,null,null,null,null,null,null,null,null,null,null,null,null,108,"NP224 الندى إستنسل 2 قطعة"]
[null,null,null,null,null,null,null,null,null,null,null,null,null,null,null,null,null,null,null,null,null,null,null,126,"NP225 الندى إستنسل 3 قطعة"]
[null,null,null,null,null,null,null,null,null,null,null,null,null,null,null,null,null,null,null,null,null,null,null,180,"NP226 الندى إستنسل قطع كبيرة"]
[null,null,null,null,null,null,null,null,null,null,null,null,null,null,null,null,null,null,null,null,null,null,null,126,"NP227 الندى إستنسل 3 قطعة"]
[null,null,null,null,null,null,null,null,null,null,null,null,null,null,null,null,null,null,null,null,null,null,null,180,"NP228 الندى إستنسل قطع كبيرة"]
[null,null,null,null,null,null,null,null,null,null,null,null,null,null,null,null,null,null,null,null,null,null,null,180,"NP229 الندى إستنسل قطع كبيرة"]
[null,null,null,null,null,null,null,null,null,null,null,null,null,null,null,null,null,null,null,null,null,null,null,126,"NP230 الندى إستنسل 3 قطعة"]
[null,null,null,null,null,null,null,null,null,null,null,null,null,null,null,null,null,null,null,null,null,null,null,126,"NP231 الندى إستنسل 3 قطعة"]
[null,null,null,null,null,null,null,null,null,null,null,null,null,null,null,null,null,null,null,null,null,null,null,108,"NP232 الندى إستنسل 2 قطعة"]
[null,null,null,null,null,null,null,null,null,null,null,null,null,null,null,null,null,null,null,null,null,null,null,180,"NP233 الندى إستنسل قطع كبيرة"]
[null,null,null,null,null,null,null,null,null,null,null,null,null,null,null,null,null,null,null,null,null,null,null,108,"NP234 الندى إستنسل 2 قطعة"]
[null,null,null,null,null,null,null,null,null,null,null,null,null,null,null,null,null,null,null,null,null,null,null,126,"NP235 الندى إستنسل 3 قطعة"]
[null,null,null,null,null,null,null,null,null,null,null,null,null,null,null,null,null,null,null,null,null,null,null,180,"NP236 الندى إستنسل قطع كبيرة"]
[null,null,null,null,null,null,null,null,null,null,null,null,null,null,null,null,null,null,null,null,null,null,null,180,"NP237 الندى إستنسل قطع كبيرة"]
[null,null,null,null,null,null,null,null,null,null,null,null,null,null,null,null,null,null,null,null,null,null,null,180,"NP238 الندى إستنسل قطع كبيرة"]
[null,null,null,null,null,null,null,null,null,null,null,null,null,null,null,null,null,null,null,null,null,null,null,126,"NP239 الندى إستنسل 3 قطعة"]
[null,null,null,null,null,null,null,null,null,null,null,null,null,null,null,null,null,null,null,null,null,null,null,300,"NP240 الندى إستنسل 11 قطعة"]
[null,null,null,null,null,null,null,null,null,null,null,null,null,null,null,null,null,null,null,null,null,null,null,108,"NP241 الندى إستنسل 2 قطعة"]
[null,null,null,null,null,null,null,null,null,null,null,null,null,null,null,null,null,null,null,null,null,null,null,300,"NP242 الندى إستنسل 11 قطعة"]
[null,null,null,null,null,null,null,null,null,null,null,null,null,null,null,null,null,null,null,null,null,null,null,108,"NP243 الندى إستنسل 2 قطعة"]
[null,null,null,null,null,null,null,null,null,null,null,null,null,null,null,null,null,null,null,null,null,null,null,300,"NP244 الندى إستنسل 11 قطعة"]
[null,null,null,null,null,null,null,null,null,null,null,null,null,null,null,null,null,null,null,null,null,null,null,126,"NP245 الندى إستنسل 3 قطعة"]
[null,null,null,null,null,null,null,null,null,null,null,null,null,null,null,null,null,null,null,null,null,null,null,108,"NP246 الندى إستنسل 2 قطعة"]
[null,null,null,null,null,null,null,null,null,null,null,null,null,null,null,null,null,null,null,null,null,null,null,108,"NP247 الندى إستنسل 2 قطعة"]
[null,null,null,null,null,null,null,null,null,null,null,null,null,null,null,null,null,null,null,null,null,null,null,180,"NP248 الندى استنسل قطع كبيرة"]
[null,null,null,null,null,null,null,null,null,null,null,null,null,null,null,null,null,null,null,null,null,null,null,108,"NP250 الندى إستنسل 2 قطعة"]
[null,null,null,null,null,null,null,null,null,null,null,null,null,null,null,null,null,null,null,null,null,null,null,108,"NP251 الندى إستنسل 2 قطعة"]
[null,null,null,null,null,null,null,null,null,null,null,null,null,null,null,null,null,null,null,null,null,null,null,180,"NP256 الندى إستنسل قطع كبيرة"]
[null,null,null,null,null,null,null,null,null,null,null,null,null,null,null,null,null,null,null,null,null,null,null,108,"NP257 الندى إستنسل 2 قطعة"]
[null,null,null,null,null,null,null,null,null,null,null,null,null,null,null,null,null,null,null,null,null,null,null,180,"NP258 الندى استنسل قطع كبيرة"]
[null,null,null,null,null,null,null,null,null,null,null,null,null,null,null,null,null,null,null,null,null,null,null,180,"NP260 الندى استنسل قطع كبيرة"]
[null,null,null,null,null,null,null,null,null,null,null,null,null,null,null,null,null,null,null,null,null,null,null,108,"NP261 الندى إستنسل 2 قطعة"]
[null,null,null,null,null,null,null,null,null,null,null,null,null,null,null,null,null,null,null,null,null,null,null,180,"NP262 الندى استنسل قطع كبيره"]
[null,null,null,null,null,null,null,null,null,null,null,null,null,null,null,null,null,null,null,null,null,null,null,180,"NP263 الندى استنسل قطع كبيرة"]
[null,null,null,null,null,null,null,null,null,null,null,null,null,null,null,null,null,null,null,null,null,null,null,300,"NP265 الندى استنسل 11 قطعه"]
[null,null,null,null,null,null,null,null,null,null,null,null,null,null,null,null,null,null,null,null,null,null,null,300,"NP267 الندى استنسل 11 قطعه"]
[null,null,null,null,null,null,null,null,null,null,null,null,null,null,null,null,null,null,null,null,null,null,null,180,"NP269 الندى استنسل قطع كبيرة"]
[null,null,null,null,null,null,null,null,null,null,null,null,null,null,null,null,null,null,null,null,null,null,null,126,"NP270 الندى إستنسل 3 قطعة"]
[null,null,null,null,null,null,null,null,null,null,null,null,null,null,null,null,null,null,null,null,null,null,null,180,"NP271 الندى استنسل قطع كبيرة"]
[null,null,null,null,null,null,null,null,null,null,null,null,null,null,null,null,null,null,null,null,null,null,null,126,"NP272 الندى إستنسل 3 قطعة"]
[null,null,null,null,null,null,null,null,null,null,null,null,null,null,null,null,null,null,null,null,null,null,null,108,"NP273 الندى إستنسل 2 قطعة"]
[null,null,null,null,null,null,null,null,null,null,null,null,null,null,null,null,null,null,null,null,null,null,null,300,"NP276 الندى استنسل 11 قطعه"]
[null,null,null,null,null,null,null,null,null,null,null,null,null,null,null,null,null,null,null,null,null,null,null,108,"NP277 الندى إستنسل 2 قطعة"]
[null,null,null,null,null,null,null,null,null,null,null,null,null,null,null,null,null,null,null,null,null,null,null,108,"NP278 الندى إستنسل 2 قطعة"]
[null,null,null,null,null,null,null,null,null,null,null,null,null,null,null,null,null,null,null,null,null,null,null,108,"NP279 الندى إستنسل 2 قطعة"]
[null,null,null,null,null,null,null,null,null,null,null,null,null,null,null,null,null,null,null,null,null,null,null,126,"NP280 الندى إستنسل 3 قطعة"]
[null,null,null,null,null,null,null,null,null,null,null,null,null,null,null,null,null,null,null,null,null,null,null,300,"NP281 الندى استنسل 11 قطعه"]
[null,null,null,null,null,null,null,null,null,null,null,null,null,null,null,null,null,null,null,null,null,null,null,108,"NP282 الندى إستنسل 2 قطعة"]
[null,null,null,null,null,null,null,null,null,null,null,null,null,null,null,null,null,null,null,null,null,null,null,300,"NP283 الندى استنسل 11 قطعه"]
[null,null,null,null,null,null,null,null,null,null,null,null,null,null,null,null,null,null,null,null,null,null,null,108,"NP288 الندى استنسل 2 قطعه"]
[null,null,null,null,null,null,null,null,null,null,null,null,null,null,null,null,null,null,null,null,null,null,null,180,"NP289 الندى استنسل قطع كبيرة"]
[null,null,null,null,null,null,null,null,null,null,null,null,null,null,null,null,null,null,null,null,null,null,null,108,"NP293 الندى استنسل 2 قطعه"]
[null,null,null,null,null,null,null,null,null,null,null,null,null,null,null,null,null,null,null,null,null,null,null,108,"NP294 الندى إستنسل 2 قطعة"]
[null,null,null,null,null,null,null,null,null,null,null,null,null,null,null,null,null,null,null,null,null,null,null,108,"NP295 الندى إستنسل 2 قطعة"]
[null,null,null,null,null,null,null,null,null,null,null,null,null,null,null,null,null,null,null,null,null,null,null,180,"NP296 الندى استنسل قطع كبيرة"]
[null,null,null,null,null,null,null,null,null,null,null,null,null,null,null,null,null,null,null,null,null,null,null,126,"NP297 الندى استنسل 3ق"]
[null,null,null,null,null,null,null,null,null,null,null,null,null,null,null,null,null,null,null,null,null,null,null,180,"NW001 الندى إستنسل قطع كبيرة"]
[null,null,null,null,null,null,null,null,null,null,null,null,null,null,null,null,null,null,null,null,null,null,null,126,"NW002 الندى إستنسل 3 قطعة"]
[null,null,null,null,null,null,null,null,null,null,null,null,null,null,null,null,null,null,null,null,null,null,null,180,"NW003 الندى إستنسل قطع كبيرة"]
[null,null,null,null,null,null,null,null,null,null,null,null,null,null,null,null,null,null,null,null,null,null,null,150,"Out-of-state sale, exempt from sales tax"]
[null,null,null,null,null,null,null,null,null,null,null,null,null,null,null,null,null,null,null,null,null,null,null,1308,"PT (orange)"]
[null,null,null,null,null,null,null,null,null,null,null,null,null,null,null,null,null,null,null,null,null,null,null,35,"PVA جلدة"]
[null,null,null,null,null,null,null,null,null,null,null,null,null,null,null,null,null,null,null,null,null,null,null,18,"Q144"]
[null,null,null,null,null,null,null,null,null,null,null,null,null,null,null,null,null,null,null,null,null,null,null,18,"QL001"]
[null,null,null,null,null,null,null,null,null,null,null,null,null,null,null,null,null,null,null,null,null,null,null,18,"QL003"]
[null,null,null,null,null,null,null,null,null,null,null,null,null,null,null,null,null,null,null,null,null,null,null,18,"QL007"]
[null,null,null,null,null,null,null,null,null,null,null,null,null,null,null,null,null,null,null,null,null,null,null,18,"QL023"]
[null,null,null,null,null,null,null,null,null,null,null,null,null,null,null,null,null,null,null,null,null,null,null,18,"QL024"]
[null,null,null,null,null,null,null,null,null,null,null,null,null,null,null,null,null,null,null,null,null,null,null,18,"QL028"]
[null,null,null,null,null,null,null,null,null,null,null,null,null,null,null,null,null,null,null,null,null,null,null,18,"QL029"]
[null,null,null,null,null,null,null,null,null,null,null,null,null,null,null,null,null,null,null,null,null,null,null,18,"QL030"]
[null,null,null,null,null,null,null,null,null,null,null,null,null,null,null,null,null,null,null,null,null,null,null,18,"QL035"]
[null,null,null,null,null,null,null,null,null,null,null,null,null,null,null,null,null,null,null,null,null,null,null,18,"QL036"]
[null,null,null,null,null,null,null,null,null,null,null,null,null,null,null,null,null,null,null,null,null,null,null,18,"QL037"]
[null,null,null,null,null,null,null,null,null,null,null,null,null,null,null,null,null,null,null,null,null,null,null,18,"QL038"]
[null,null,null,null,null,null,null,null,null,null,null,null,null,null,null,null,null,null,null,null,null,null,null,18,"QL041"]
[null,null,null,null,null,null,null,null,null,null,null,null,null,null,null,null,null,null,null,null,null,null,null,18,"QL045"]
[null,null,null,null,null,null,null,null,null,null,null,null,null,null,null,null,null,null,null,null,null,null,null,18,"QL046"]
[null,null,null,null,null,null,null,null,null,null,null,null,null,null,null,null,null,null,null,null,null,null,null,18,"QL047"]
[null,null,null,null,null,null,null,null,null,null,null,null,null,null,null,null,null,null,null,null,null,null,null,18,"QL049"]
[null,null,null,null,null,null,null,null,null,null,null,null,null,null,null,null,null,null,null,null,null,null,null,18,"QL052"]
[null,null,null,null,null,null,null,null,null,null,null,null,null,null,null,null,null,null,null,null,null,null,null,18,"QL054"]
[null,null,null,null,null,null,null,null,null,null,null,null,null,null,null,null,null,null,null,null,null,null,null,18,"QL057"]
[null,null,null,null,null,null,null,null,null,null,null,null,null,null,null,null,null,null,null,null,null,null,null,18,"QL060"]
[null,null,null,null,null,null,null,null,null,null,null,null,null,null,null,null,null,null,null,null,null,null,null,18,"QL062"]
[null,null,null,null,null,null,null,null,null,null,null,null,null,null,null,null,null,null,null,null,null,null,null,18,"QL063"]
[null,null,null,null,null,null,null,null,null,null,null,null,null,null,null,null,null,null,null,null,null,null,null,18,"QL065"]
[null,null,null,null,null,null,null,null,null,null,null,null,null,null,null,null,null,null,null,null,null,null,null,18,"QL069"]
[null,null,null,null,null,null,null,null,null,null,null,null,null,null,null,null,null,null,null,null,null,null,null,18,"QL072"]
[null,null,null,null,null,null,null,null,null,null,null,null,null,null,null,null,null,null,null,null,null,null,null,18,"QL077"]
[null,null,null,null,null,null,null,null,null,null,null,null,null,null,null,null,null,null,null,null,null,null,null,18,"QL080"]
[null,null,null,null,null,null,null,null,null,null,null,null,null,null,null,null,null,null,null,null,null,null,null,18,"QL081"]
[null,null,null,null,null,null,null,null,null,null,null,null,null,null,null,null,null,null,null,null,null,null,null,18,"QL082"]
[null,null,null,null,null,null,null,null,null,null,null,null,null,null,null,null,null,null,null,null,null,null,null,18,"QL085"]
[null,null,null,null,null,null,null,null,null,null,null,null,null,null,null,null,null,null,null,null,null,null,null,18,"QL086"]
[null,null,null,null,null,null,null,null,null,null,null,null,null,null,null,null,null,null,null,null,null,null,null,18,"QL088"]
[null,null,null,null,null,null,null,null,null,null,null,null,null,null,null,null,null,null,null,null,null,null,null,18,"QL089"]
[null,null,null,null,null,null,null,null,null,null,null,null,null,null,null,null,null,null,null,null,null,null,null,18,"QL090"]
[null,null,null,null,null,null,null,null,null,null,null,null,null,null,null,null,null,null,null,null,null,null,null,18,"QL091"]
[null,null,null,null,null,null,null,null,null,null,null,null,null,null,null,null,null,null,null,null,null,null,null,18,"QL092"]
[null,null,null,null,null,null,null,null,null,null,null,null,null,null,null,null,null,null,null,null,null,null,null,18,"QL093"]
[null,null,null,null,null,null,null,null,null,null,null,null,null,null,null,null,null,null,null,null,null,null,null,18,"QL094"]
[null,null,null,null,null,null,null,null,null,null,null,null,null,null,null,null,null,null,null,null,null,null,null,18,"QL095"]
[null,null,null,null,null,null,null,null,null,null,null,null,null,null,null,null,null,null,null,null,null,null,null,18,"QL096"]
[null,null,null,null,null,null,null,null,null,null,null,null,null,null,null,null,null,null,null,null,null,null,null,18,"QL097"]
[null,null,null,null,null,null,null,null,null,null,null,null,null,null,null,null,null,null,null,null,null,null,null,18,"QL098"]
[null,null,null,null,null,null,null,null,null,null,null,null,null,null,null,null,null,null,null,null,null,null,null,18,"QL099"]
[null,null,null,null,null,null,null,null,null,null,null,null,null,null,null,null,null,null,null,null,null,null,null,18,"QL100"]
[null,null,null,null,null,null,null,null,null,null,null,null,null,null,null,null,null,null,null,null,null,null,null,18,"QL101"]
[null,null,null,null,null,null,null,null,null,null,null,null,null,null,null,null,null,null,null,null,null,null,null,18,"QL102"]
[null,null,null,null,null,null,null,null,null,null,null,null,null,null,null,null,null,null,null,null,null,null,null,18,"QL103"]
[null,null,null,null,null,null,null,null,null,null,null,null,null,null,null,null,null,null,null,null,null,null,null,18,"QL104"]
[null,null,null,null,null,null,null,null,null,null,null,null,null,null,null,null,null,null,null,null,null,null,null,18,"QL105"]
[null,null,null,null,null,null,null,null,null,null,null,null,null,null,null,null,null,null,null,null,null,null,null,18,"QL106"]
[null,null,null,null,null,null,null,null,null,null,null,null,null,null,null,null,null,null,null,null,null,null,null,18,"QL107"]
[null,null,null,null,null,null,null,null,null,null,null,null,null,null,null,null,null,null,null,null,null,null,null,18,"QL108"]
[null,null,null,null,null,null,null,null,null,null,null,null,null,null,null,null,null,null,null,null,null,null,null,18,"QL109"]
[null,null,null,null,null,null,null,null,null,null,null,null,null,null,null,null,null,null,null,null,null,null,null,18,"QL110"]
[null,null,null,null,null,null,null,null,null,null,null,null,null,null,null,null,null,null,null,null,null,null,null,18,"QL111"]
[null,null,null,null,null,null,null,null,null,null,null,null,null,null,null,null,null,null,null,null,null,null,null,18,"QL112"]
[null,null,null,null,null,null,null,null,null,null,null,null,null,null,null,null,null,null,null,null,null,null,null,18,"QL113"]
[null,null,null,null,null,null,null,null,null,null,null,null,null,null,null,null,null,null,null,null,null,null,null,18,"QL114"]
[null,null,null,null,null,null,null,null,null,null,null,null,null,null,null,null,null,null,null,null,null,null,null,18,"QL115"]
[null,null,null,null,null,null,null,null,null,null,null,null,null,null,null,null,null,null,null,null,null,null,null,18,"QL116"]
[null,null,null,null,null,null,null,null,null,null,null,null,null,null,null,null,null,null,null,null,null,null,null,18,"QL117"]
[null,null,null,null,null,null,null,null,null,null,null,null,null,null,null,null,null,null,null,null,null,null,null,18,"QL118"]
[null,null,null,null,null,null,null,null,null,null,null,null,null,null,null,null,null,null,null,null,null,null,null,18,"QL119"]
[null,null,null,null,null,null,null,null,null,null,null,null,null,null,null,null,null,null,null,null,null,null,null,18,"QL120"]
[null,null,null,null,null,null,null,null,null,null,null,null,null,null,null,null,null,null,null,null,null,null,null,18,"QL121"]
[null,null,null,null,null,null,null,null,null,null,null,null,null,null,null,null,null,null,null,null,null,null,null,18,"QL122"]
[null,null,null,null,null,null,null,null,null,null,null,null,null,null,null,null,null,null,null,null,null,null,null,18,"QL123"]
[null,null,null,null,null,null,null,null,null,null,null,null,null,null,null,null,null,null,null,null,null,null,null,18,"QL124"]
[null,null,null,null,null,null,null,null,null,null,null,null,null,null,null,null,null,null,null,null,null,null,null,18,"QL125"]
[null,null,null,null,null,null,null,null,null,null,null,null,null,null,null,null,null,null,null,null,null,null,null,18,"QL126"]
[null,null,null,null,null,null,null,null,null,null,null,null,null,null,null,null,null,null,null,null,null,null,null,18,"QL127"]
[null,null,null,null,null,null,null,null,null,null,null,null,null,null,null,null,null,null,null,null,null,null,null,18,"QL128"]
[null,null,null,null,null,null,null,null,null,null,null,null,null,null,null,null,null,null,null,null,null,null,null,18,"QL129"]
[null,null,null,null,null,null,null,null,null,null,null,null,null,null,null,null,null,null,null,null,null,null,null,18,"QL130"]
[null,null,null,null,null,null,null,null,null,null,null,null,null,null,null,null,null,null,null,null,null,null,null,18,"QL131"]
[null,null,null,null,null,null,null,null,null,null,null,null,null,null,null,null,null,null,null,null,null,null,null,18,"QL132"]
[null,null,null,null,null,null,null,null,null,null,null,null,null,null,null,null,null,null,null,null,null,null,null,18,"QL133"]
[null,null,null,null,null,null,null,null,null,null,null,null,null,null,null,null,null,null,null,null,null,null,null,18,"QL136"]
[null,null,null,null,null,null,null,null,null,null,null,null,null,null,null,null,null,null,null,null,null,null,null,18,"QL137"]
[null,null,null,null,null,null,null,null,null,null,null,null,null,null,null,null,null,null,null,null,null,null,null,18,"QL138"]
[null,null,null,null,null,null,null,null,null,null,null,null,null,null,null,null,null,null,null,null,null,null,null,18,"QL139"]
[null,null,null,null,null,null,null,null,null,null,null,null,null,null,null,null,null,null,null,null,null,null,null,18,"QL140"]
[null,null,null,null,null,null,null,null,null,null,null,null,null,null,null,null,null,null,null,null,null,null,null,18,"QL141"]
[null,null,null,null,null,null,null,null,null,null,null,null,null,null,null,null,null,null,null,null,null,null,null,18,"QL142"]
[null,null,null,null,null,null,null,null,null,null,null,null,null,null,null,null,null,null,null,null,null,null,null,18,"QL143"]
[null,null,null,null,null,null,null,null,null,null,null,null,null,null,null,null,null,null,null,null,null,null,null,18,"QL145"]
[null,null,null,null,null,null,null,null,null,null,null,null,null,null,null,null,null,null,null,null,null,null,null,18,"QL146"]
[null,null,null,null,null,null,null,null,null,null,null,null,null,null,null,null,null,null,null,null,null,null,null,null,"Reimbursable Expenses Subtotal"]
[null,null,null,null,null,null,null,null,null,null,null,null,null,null,null,null,null,null,null,null,null,null,null,588,"RS (red)"]
[null,null,null,null,null,null,null,null,null,null,null,null,null,null,null,null,null,null,null,null,null,null,null,799,"RS-W71 مسدس رش"]
[null,null,null,null,null,null,null,null,null,null,null,null,null,null,null,null,null,null,null,null,null,null,null,290,"RT (yellow oxide)"]
[null,null,null,null,null,null,null,null,null,null,null,null,null,null,null,null,null,null,null,null,null,null,null,301,"ST (brown oxide)"]
[null,null,null,null,null,null,null,null,null,null,null,null,null,null,null,null,null,null,null,null,null,null,null,63,"STEP3 دهان جلود حيوانات = اسود"]
[null,null,null,null,null,null,null,null,null,null,null,null,null,null,null,null,null,null,null,null,null,null,null,null,"Total Reimbursable Expenses"]
[null,null,null,null,null,null,null,null,null,null,null,null,null,null,null,null,null,null,null,null,null,null,null,243,"TT (black)"]
[null,null,null,null,null,null,null,null,null,null,null,null,null,null,null,null,null,null,null,null,null,null,null,1058,"US (orange yellow)"]
[null,null,null,null,null,null,null,null,null,null,null,null,null,null,null,null,null,null,null,null,null,null,null,354,"VT (red oxide)"]
[null,null,null,null,null,null,null,null,null,null,null,null,null,null,null,null,null,null,null,null,null,null,null,49,"WT401 فرشة دهان"]
[null,null,null,null,null,null,null,null,null,null,null,null,null,null,null,null,null,null,null,null,null,null,null,89,"WT403 فرشة دهان"]
[null,null,null,null,null,null,null,null,null,null,null,null,null,null,null,null,null,null,null,null,null,null,null,119,"WT404 فرشة دهان"]
[null,null,null,null,null,null,null,null,null,null,null,null,null,null,null,null,null,null,null,null,null,null,null,295,"XL الندى سبونج"]
[null,null,null,null,null,null,null,null,null,null,null,null,null,null,null,null,null,null,null,null,null,null,null,295,"XL قميص يونى فورم"]
[null,null,null,null,null,null,null,null,null,null,null,null,null,null,null,null,null,null,null,null,null,null,null,395,"XT (whiDe)"]
[null,null,null,null,null,null,null,null,null,null,null,null,null,null,null,null,null,null,null,null,null,null,null,398,"XXL الندى سبونج"]
[null,null,null,null,null,null,null,null,null,null,null,null,null,null,null,null,null,null,null,null,null,null,null,832,"ZT (yellow ciDron)"]
[null,null,null,null,null,null,null,null,null,null,null,null,null,null,null,null,null,null,null,null,null,null,null,null,"اجمالي قيمة الفاتورة"]
[null,null,null,null,null,null,null,null,null,null,null,null,null,null,null,null,null,null,null,null,null,null,null,0,"اخري"]
[null,null,null,null,null,null,null,null,null,null,null,null,null,null,null,null,null,null,null,null,null,null,null,0,"اساس الكيدي"]
[null,null,null,null,null,null,null,null,null,null,null,null,null,null,null,null,null,null,null,null,null,null,null,5177,"استاند الوان نوفا 720"]
[null,null,null,null,null,null,null,null,null,null,null,null,null,null,null,null,null,null,null,null,null,null,null,36,"استنسل 50سم 2قطعة صينى"]
[null,null,null,null,null,null,null,null,null,null,null,null,null,null,null,null,null,null,null,null,null,null,null,18,"استنسل 50سم صينى"]
[null,null,null,null,null,null,null,null,null,null,null,null,null,null,null,null,null,null,null,null,null,null,null,48,"استنسل 60*120 صينى"]
[null,null,null,null,null,null,null,null,null,null,null,null,null,null,null,null,null,null,null,null,null,null,null,36,"استنسل 60*90 صينى"]
[null,null,null,null,null,null,null,null,null,null,null,null,null,null,null,null,null,null,null,null,null,null,null,0,"استنسل قطع"]
[null,null,null,null,null,null,null,null,null,null,null,null,null,null,null,null,null,null,null,null,null,null,null,108,"استنسل قطع 2 قطعة صينى"]
[null,null,null,null,null,null,null,null,null,null,null,null,null,null,null,null,null,null,null,null,null,null,null,126,"استنسل قطع 3 قطعة صينى"]
[null,null,null,null,null,null,null,null,null,null,null,null,null,null,null,null,null,null,null,null,null,null,null,180,"استنسل قطع كبيرة صينى"]
[null,null,null,null,null,null,null,null,null,null,null,null,null,null,null,null,null,null,null,null,null,null,null,22,"اسطوانة عدة"]
[null,null,null,null,null,null,null,null,null,null,null,null,null,null,null,null,null,null,null,null,null,null,null,0,"اشعار اضافة"]
[null,null,null,null,null,null,null,null,null,null,null,null,null,null,null,null,null,null,null,null,null,null,null,0,"اشعار خصم"]
[null,null,null,null,null,null,null,null,null,null,null,null,null,null,null,null,null,null,null,null,null,null,null,0,"الخصم"]
[null,null,null,null,null,null,null,null,null,null,null,null,null,null,null,null,null,null,null,null,null,null,null,26,"الندا باندا فيكس"]
[null,null,null,null,null,null,null,null,null,null,null,null,null,null,null,null,null,null,null,null,null,null,null,0,"الندى اخشاب"]
[null,null,null,null,null,null,null,null,null,null,null,null,null,null,null,null,null,null,null,null,null,null,null,0,"الندى اساس ديكورى"]
[null,null,null,null,null,null,null,null,null,null,null,null,null,null,null,null,null,null,null,null,null,null,null,63,"الندى اساس ديكورى ( A )"]
[null,null,null,null,null,null,null,null,null,null,null,null,null,null,null,null,null,null,null,null,null,null,null,63,"الندى اساس ديكورى ( C )"]
[null,null,null,null,null,null,null,null,null,null,null,null,null,null,null,null,null,null,null,null,null,null,null,36,"الندى استنسل 2قطعة 50*50"]
[null,null,null,null,null,null,null,null,null,null,null,null,null,null,null,null,null,null,null,null,null,null,null,54,"الندى استنسل 3قطعة 50*50"]
[null,null,null,null,null,null,null,null,null,null,null,null,null,null,null,null,null,null,null,null,null,null,null,126,"الندى استنسل جلود حيوانات 3 قطعه (جلد الثعبان)"]
[null,null,null,null,null,null,null,null,null,null,null,null,null,null,null,null,null,null,null,null,null,null,null,300,"الندى استنسل قطع 11قطعة"]
[null,null,null,null,null,null,null,null,null,null,null,null,null,null,null,null,null,null,null,null,null,null,null,126,"الندى استنسل قطع 3قطعة"]
[null,null,null,null,null,null,null,null,null,null,null,null,null,null,null,null,null,null,null,null,null,null,null,180,"الندى استنسل قطع كبير"]
[null,null,null,null,null,null,null,null,null,null,null,null,null,null,null,null,null,null,null,null,null,null,null,56,"الندى اكرى لكر"]
[null,null,null,null,null,null,null,null,null,null,null,null,null,null,null,null,null,null,null,null,null,null,null,186,"الندى اكرى لكر"]
[null,null,null,null,null,null,null,null,null,null,null,null,null,null,null,null,null,null,null,null,null,null,null,480,"الندى إسبيشيال ديزاين 11 قطعة"]
[null,null,null,null,null,null,null,null,null,null,null,null,null,null,null,null,null,null,null,null,null,null,null,216,"الندى إسبيشيال ديزاين 2 قطعة"]
[null,null,null,null,null,null,null,null,null,null,null,null,null,null,null,null,null,null,null,null,null,null,null,252,"الندى إسبيشيال ديزاين 3 قطع"]
[null,null,null,null,null,null,null,null,null,null,null,null,null,null,null,null,null,null,null,null,null,null,null,360,"الندى إسبيشيال ديزاين قطع كبيرة"]
[null,null,null,null,null,null,null,null,null,null,null,null,null,null,null,null,null,null,null,null,null,null,null,5.5,"الندى إستنسل (20) سم"]
[null,null,null,null,null,null,null,null,null,null,null,null,null,null,null,null,null,null,null,null,null,null,null,11,"الندى إستنسل (30) سم"]
[null,null,null,null,null,null,null,null,null,null,null,null,null,null,null,null,null,null,null,null,null,null,null,16,"الندى إستنسل (40) سم"]
[null,null,null,null,null,null,null,null,null,null,null,null,null,null,null,null,null,null,null,null,null,null,null,0,"الندى إستنسل (قطع) 50*50"]
[null,null,null,null,null,null,null,null,null,null,null,null,null,null,null,null,null,null,null,null,null,null,null,300,"الندى إستنسل 11 قطعة (فرعونى)"]
[null,null,null,null,null,null,null,null,null,null,null,null,null,null,null,null,null,null,null,null,null,null,null,108,"الندى إستنسل 2ق (( تمساح ))"]
[null,null,null,null,null,null,null,null,null,null,null,null,null,null,null,null,null,null,null,null,null,null,null,108,"الندى إستنسل 2ق (( حمار وحشى ))"]
[null,null,null,null,null,null,null,null,null,null,null,null,null,null,null,null,null,null,null,null,null,null,null,108,"الندى إستنسل 2ق (( زرافة ))"]
[null,null,null,null,null,null,null,null,null,null,null,null,null,null,null,null,null,null,null,null,null,null,null,108,"الندى إستنسل 2ق (( فيل ))"]
[null,null,null,null,null,null,null,null,null,null,null,null,null,null,null,null,null,null,null,null,null,null,null,108,"الندى إستنسل 2ق (( نمر مخطط ))"]
[null,null,null,null,null,null,null,null,null,null,null,null,null,null,null,null,null,null,null,null,null,null,null,108,"الندى إستنسل 2ق (( نمر منقط ))"]
[null,null,null,null,null,null,null,null,null,null,null,null,null,null,null,null,null,null,null,null,null,null,null,48,"الندى إستنسل 50 * 100"]
[null,null,null,null,null,null,null,null,null,null,null,null,null,null,null,null,null,null,null,null,null,null,null,96,"الندى إستنسل 50 سم 4 قطع"]
[null,null,null,null,null,null,null,null,null,null,null,null,null,null,null,null,null,null,null,null,null,null,null,34,"الندى إستنسل 60 سم"]
[null,null,null,null,null,null,null,null,null,null,null,null,null,null,null,null,null,null,null,null,null,null,null,252,"الندى إستنسل أطفال 210"]
[null,null,null,null,null,null,null,null,null,null,null,null,null,null,null,null,null,null,null,null,null,null,null,11,"الندى إستنسل بوردر 12"]
[null,null,null,null,null,null,null,null,null,null,null,null,null,null,null,null,null,null,null,null,null,null,null,13,"الندى إستنسل بوردر 15"]
[null,null,null,null,null,null,null,null,null,null,null,null,null,null,null,null,null,null,null,null,null,null,null,37,"الندى إيجشل ربع لمعة ( أبيض )"]
[null,null,null,null,null,null,null,null,null,null,null,null,null,null,null,null,null,null,null,null,null,null,null,138,"الندى إيجشل ربع لمعة ( أبيض )"]
[null,null,null,null,null,null,null,null,null,null,null,null,null,null,null,null,null,null,null,null,null,null,null,479,"الندى إيجشل ربع لمعة ( أبيض )"]
[null,null,null,null,null,null,null,null,null,null,null,null,null,null,null,null,null,null,null,null,null,null,null,60,"الندى أرتيكو برايمر"]
[null,null,null,null,null,null,null,null,null,null,null,null,null,null,null,null,null,null,null,null,null,null,null,96,"الندى أرتيكو فارنيش"]
[null,null,null,null,null,null,null,null,null,null,null,null,null,null,null,null,null,null,null,null,null,null,null,60,"الندى أساس بترا ستون"]
[null,null,null,null,null,null,null,null,null,null,null,null,null,null,null,null,null,null,null,null,null,null,null,60,"الندى أساس حجر فرعونى"]
[null,null,null,null,null,null,null,null,null,null,null,null,null,null,null,null,null,null,null,null,null,null,null,60,"الندى أساس رستون أنتيك"]
[null,null,null,null,null,null,null,null,null,null,null,null,null,null,null,null,null,null,null,null,null,null,null,24,"الندى أكرى لكر"]
[null,null,null,null,null,null,null,null,null,null,null,null,null,null,null,null,null,null,null,null,null,null,null,192,"الندى أورجينى ( فضى )"]
[null,null,null,null,null,null,null,null,null,null,null,null,null,null,null,null,null,null,null,null,null,null,null,0,"الندى أورجينى ( فضى ) جالون 3.75ك"]
[null,null,null,null,null,null,null,null,null,null,null,null,null,null,null,null,null,null,null,null,null,null,null,216,"الندى باندا فيكس"]
[null,null,null,null,null,null,null,null,null,null,null,null,null,null,null,null,null,null,null,null,null,null,null,86,"الندى باندا فيكس"]
[null,null,null,null,null,null,null,null,null,null,null,null,null,null,null,null,null,null,null,null,null,null,null,43,"الندى برايمر احمر اوكسيد"]
[null,null,null,null,null,null,null,null,null,null,null,null,null,null,null,null,null,null,null,null,null,null,null,17,"الندى برايمر احمر اوكسيد"]
[null,null,null,null,null,null,null,null,null,null,null,null,null,null,null,null,null,null,null,null,null,null,null,108,"الندى برايمر احمر اوكسيد"]
[null,null,null,null,null,null,null,null,null,null,null,null,null,null,null,null,null,null,null,null,null,null,null,137,"الندى برايمكس"]
[null,null,null,null,null,null,null,null,null,null,null,null,null,null,null,null,null,null,null,null,null,null,null,0,"الندى برايمكس"]
[null,null,null,null,null,null,null,null,null,null,null,null,null,null,null,null,null,null,null,null,null,null,null,43,"الندى برايمكس"]
[null,null,null,null,null,null,null,null,null,null,null,null,null,null,null,null,null,null,null,null,null,null,null,513,"الندى بروفكس ( ابيض)"]
[null,null,null,null,null,null,null,null,null,null,null,null,null,null,null,null,null,null,null,null,null,null,null,0,"الندى بروفكس(ابيض)"]
[null,null,null,null,null,null,null,null,null,null,null,null,null,null,null,null,null,null,null,null,null,null,null,0,"الندى بروفكس(ابيض)"]
[null,null,null,null,null,null,null,null,null,null,null,null,null,null,null,null,null,null,null,null,null,null,null,38,"الندى بلاست سوبر مط ( أبيض )"]
[null,null,null,null,null,null,null,null,null,null,null,null,null,null,null,null,null,null,null,null,null,null,null,131,"الندى بلاست سوبر مط ( أبيض )"]
[null,null,null,null,null,null,null,null,null,null,null,null,null,null,null,null,null,null,null,null,null,null,null,467,"الندى بلاست سوبر مط ( أبيض )"]
[null,null,null,null,null,null,null,null,null,null,null,null,null,null,null,null,null,null,null,null,null,null,null,0,"الندى بلاست سوبر مط (ابيض)"]
[null,null,null,null,null,null,null,null,null,null,null,null,null,null,null,null,null,null,null,null,null,null,null,0,"الندى بلاستيك (خاص بندى الخير)"]
[null,null,null,null,null,null,null,null,null,null,null,null,null,null,null,null,null,null,null,null,null,null,null,120,"الندى بلاستيك رمادى"]
[null,null,null,null,null,null,null,null,null,null,null,null,null,null,null,null,null,null,null,null,null,null,null,38,"الندى بلاستيك نصف لمعة ( أبيض )"]
[null,null,null,null,null,null,null,null,null,null,null,null,null,null,null,null,null,null,null,null,null,null,null,144,"الندى بلاستيك نصف لمعة ( أبيض )"]
[null,null,null,null,null,null,null,null,null,null,null,null,null,null,null,null,null,null,null,null,null,null,null,498,"الندى بلاستيك نصف لمعة ( أبيض )"]
[null,null,null,null,null,null,null,null,null,null,null,null,null,null,null,null,null,null,null,null,null,null,null,498,"الندى بلاستيك نصف لمعه (ابيض)"]
[null,null,null,null,null,null,null,null,null,null,null,null,null,null,null,null,null,null,null,null,null,null,null,0,"الندى بلاستيك نصف لمعه (ابيض)"]
[null,null,null,null,null,null,null,null,null,null,null,null,null,null,null,null,null,null,null,null,null,null,null,0,"الندى بوية مرور نصف لامع"]
[null,null,null,null,null,null,null,null,null,null,null,null,null,null,null,null,null,null,null,null,null,null,null,0,"الندى بوية مرور نصف لامع (اسود)"]
[null,null,null,null,null,null,null,null,null,null,null,null,null,null,null,null,null,null,null,null,null,null,null,0,"الندى بوية مرور نصف لامع (اصفر)"]
[null,null,null,null,null,null,null,null,null,null,null,null,null,null,null,null,null,null,null,null,null,null,null,222,"الندى بيست آرت رف"]
[null,null,null,null,null,null,null,null,null,null,null,null,null,null,null,null,null,null,null,null,null,null,null,84,"الندى بيست آرت رف - جالون"]
[null,null,null,null,null,null,null,null,null,null,null,null,null,null,null,null,null,null,null,null,null,null,null,222,"الندى بيست آرت سوفت"]
[null,null,null,null,null,null,null,null,null,null,null,null,null,null,null,null,null,null,null,null,null,null,null,84,"الندى بيست آرت سوفت - جالون"]
[null,null,null,null,null,null,null,null,null,null,null,null,null,null,null,null,null,null,null,null,null,null,null,156,"الندى تودى"]
[null,null,null,null,null,null,null,null,null,null,null,null,null,null,null,null,null,null,null,null,null,null,null,0,"الندى تودى"]
[null,null,null,null,null,null,null,null,null,null,null,null,null,null,null,null,null,null,null,null,null,null,null,60,"الندى جاسمين فلاور"]
[null,null,null,null,null,null,null,null,null,null,null,null,null,null,null,null,null,null,null,null,null,null,null,34,"الندى جاسمين فلاور"]
[null,null,null,null,null,null,null,null,null,null,null,null,null,null,null,null,null,null,null,null,null,null,null,171,"الندى جرافياتو ستون ( خشن )"]
[null,null,null,null,null,null,null,null,null,null,null,null,null,null,null,null,null,null,null,null,null,null,null,171,"الندى جرافياتو ستون ( ناعم )"]
[null,null,null,null,null,null,null,null,null,null,null,null,null,null,null,null,null,null,null,null,null,null,null,171,"الندى جرافياتو ستون ( وسط )"]
[null,null,null,null,null,null,null,null,null,null,null,null,null,null,null,null,null,null,null,null,null,null,null,42,"الندى جنجا شعر ( ذهبى )"]
[null,null,null,null,null,null,null,null,null,null,null,null,null,null,null,null,null,null,null,null,null,null,null,42,"الندى جنجا شعر ( فضى )"]
[null,null,null,null,null,null,null,null,null,null,null,null,null,null,null,null,null,null,null,null,null,null,null,60,"الندى جيولس ليجند كيس"]
[null,null,null,null,null,null,null,null,null,null,null,null,null,null,null,null,null,null,null,null,null,null,null,306,"الندى حجر فرعونى ( أبيض )"]
[null,null,null,null,null,null,null,null,null,null,null,null,null,null,null,null,null,null,null,null,null,null,null,108,"الندى حجر فرعونى ( أبيض ) جالون"]
[null,null,null,null,null,null,null,null,null,null,null,null,null,null,null,null,null,null,null,null,null,null,null,36,"الندى دايموند بودر ( نبيتى)"]
[null,null,null,null,null,null,null,null,null,null,null,null,null,null,null,null,null,null,null,null,null,null,null,36,"الندى دايموند بودر (اخضر)"]
[null,null,null,null,null,null,null,null,null,null,null,null,null,null,null,null,null,null,null,null,null,null,null,36,"الندى دايموند بودر (الوان مختلفة)"]
[null,null,null,null,null,null,null,null,null,null,null,null,null,null,null,null,null,null,null,null,null,null,null,36,"الندى دايموند بودر (ذهبى)"]
[null,null,null,null,null,null,null,null,null,null,null,null,null,null,null,null,null,null,null,null,null,null,null,36,"الندى دايموند بودر (فضى)"]
[null,null,null,null,null,null,null,null,null,null,null,null,null,null,null,null,null,null,null,null,null,null,null,36,"الندى دايموند بودر (نحاسى)"]
[null,null,null,null,null,null,null,null,null,null,null,null,null,null,null,null,null,null,null,null,null,null,null,138,"الندى دايموند كريم ( أحمر )"]
[null,null,null,null,null,null,null,null,null,null,null,null,null,null,null,null,null,null,null,null,null,null,null,138,"الندى دايموند كريم ( أخضر )"]
[null,null,null,null,null,null,null,null,null,null,null,null,null,null,null,null,null,null,null,null,null,null,null,138,"الندى دايموند كريم ( أزرق )"]
[null,null,null,null,null,null,null,null,null,null,null,null,null,null,null,null,null,null,null,null,null,null,null,138,"الندى دايموند كريم ( أسود )"]
[null,null,null,null,null,null,null,null,null,null,null,null,null,null,null,null,null,null,null,null,null,null,null,138,"الندى دايموند كريم ( برونز )"]
[null,null,null,null,null,null,null,null,null,null,null,null,null,null,null,null,null,null,null,null,null,null,null,138,"الندى دايموند كريم ( بنفسجي)"]
[null,null,null,null,null,null,null,null,null,null,null,null,null,null,null,null,null,null,null,null,null,null,null,138,"الندى دايموند كريم ( بنك )"]
[null,null,null,null,null,null,null,null,null,null,null,null,null,null,null,null,null,null,null,null,null,null,null,138,"الندى دايموند كريم ( بنى )"]
[null,null,null,null,null,null,null,null,null,null,null,null,null,null,null,null,null,null,null,null,null,null,null,138,"الندى دايموند كريم ( تركواز )"]
[null,null,null,null,null,null,null,null,null,null,null,null,null,null,null,null,null,null,null,null,null,null,null,138,"الندى دايموند كريم ( ذهبى )"]
[null,null,null,null,null,null,null,null,null,null,null,null,null,null,null,null,null,null,null,null,null,null,null,138,"الندى دايموند كريم ( ذهبى فاتح )"]
[null,null,null,null,null,null,null,null,null,null,null,null,null,null,null,null,null,null,null,null,null,null,null,138,"الندى دايموند كريم ( ذهبى فسفورى )"]
[null,null,null,null,null,null,null,null,null,null,null,null,null,null,null,null,null,null,null,null,null,null,null,138,"الندى دايموند كريم ( روز )"]
[null,null,null,null,null,null,null,null,null,null,null,null,null,null,null,null,null,null,null,null,null,null,null,138,"الندى دايموند كريم ( فسفورى )"]
[null,null,null,null,null,null,null,null,null,null,null,null,null,null,null,null,null,null,null,null,null,null,null,138,"الندى دايموند كريم ( فضى )"]
[null,null,null,null,null,null,null,null,null,null,null,null,null,null,null,null,null,null,null,null,null,null,null,138,"الندى دايموند كريم ( فوشيا )"]
[null,null,null,null,null,null,null,null,null,null,null,null,null,null,null,null,null,null,null,null,null,null,null,138,"الندى دايموند كريم ( لؤلؤى )"]
[null,null,null,null,null,null,null,null,null,null,null,null,null,null,null,null,null,null,null,null,null,null,null,395,"الندى دايموند كريم ( لؤلؤى )"]
[null,null,null,null,null,null,null,null,null,null,null,null,null,null,null,null,null,null,null,null,null,null,null,138,"الندى دايموند كريم ( موف )"]
[null,null,null,null,null,null,null,null,null,null,null,null,null,null,null,null,null,null,null,null,null,null,null,138,"الندى دايموند كريم ( موف غامق )"]
[null,null,null,null,null,null,null,null,null,null,null,null,null,null,null,null,null,null,null,null,null,null,null,138,"الندى دايموند كريم ( نبيتى )"]
[null,null,null,null,null,null,null,null,null,null,null,null,null,null,null,null,null,null,null,null,null,null,null,138,"الندى دايموند كريم ( نحاسى )"]
[null,null,null,null,null,null,null,null,null,null,null,null,null,null,null,null,null,null,null,null,null,null,null,73,"الندى دايموند كريم (احمر)"]
[null,null,null,null,null,null,null,null,null,null,null,null,null,null,null,null,null,null,null,null,null,null,null,73,"الندى دايموند كريم (اخضر)"]
[null,null,null,null,null,null,null,null,null,null,null,null,null,null,null,null,null,null,null,null,null,null,null,73,"الندى دايموند كريم (ازرق)"]
[null,null,null,null,null,null,null,null,null,null,null,null,null,null,null,null,null,null,null,null,null,null,null,73,"الندى دايموند كريم (اسود)"]
[null,null,null,null,null,null,null,null,null,null,null,null,null,null,null,null,null,null,null,null,null,null,null,73,"الندى دايموند كريم (بنفسجى)"]
[null,null,null,null,null,null,null,null,null,null,null,null,null,null,null,null,null,null,null,null,null,null,null,73,"الندى دايموند كريم (بنى)"]
[null,null,null,null,null,null,null,null,null,null,null,null,null,null,null,null,null,null,null,null,null,null,null,73,"الندى دايموند كريم (تركواز)"]
[null,null,null,null,null,null,null,null,null,null,null,null,null,null,null,null,null,null,null,null,null,null,null,73,"الندى دايموند كريم (دهبى فاتح)"]
[null,null,null,null,null,null,null,null,null,null,null,null,null,null,null,null,null,null,null,null,null,null,null,73,"الندى دايموند كريم (روز)"]
[null,null,null,null,null,null,null,null,null,null,null,null,null,null,null,null,null,null,null,null,null,null,null,73,"الندى دايموند كريم (فسفورى)"]
[null,null,null,null,null,null,null,null,null,null,null,null,null,null,null,null,null,null,null,null,null,null,null,395,"الندى دايموند كريم (فضى ) جالون"]
[null,null,null,null,null,null,null,null,null,null,null,null,null,null,null,null,null,null,null,null,null,null,null,73,"الندى دايموند كريم (فضى)"]
[null,null,null,null,null,null,null,null,null,null,null,null,null,null,null,null,null,null,null,null,null,null,null,73,"الندى دايموند كريم (فوشيا)"]
[null,null,null,null,null,null,null,null,null,null,null,null,null,null,null,null,null,null,null,null,null,null,null,73,"الندى دايموند كريم (لؤلؤى)"]
[null,null,null,null,null,null,null,null,null,null,null,null,null,null,null,null,null,null,null,null,null,null,null,73,"الندى دايموند كريم (موف غامق)"]
[null,null,null,null,null,null,null,null,null,null,null,null,null,null,null,null,null,null,null,null,null,null,null,73,"الندى دايموند كريم (موف)"]
[null,null,null,null,null,null,null,null,null,null,null,null,null,null,null,null,null,null,null,null,null,null,null,73,"الندى دايموند كريم (نبيتى)"]
[null,null,null,null,null,null,null,null,null,null,null,null,null,null,null,null,null,null,null,null,null,null,null,73,"الندى دايموند كريم (نحاسى)"]
[null,null,null,null,null,null,null,null,null,null,null,null,null,null,null,null,null,null,null,null,null,null,null,73,"الندى دايموند كريم(برونز)"]
[null,null,null,null,null,null,null,null,null,null,null,null,null,null,null,null,null,null,null,null,null,null,null,36,"الندى دايوند بودر ( اسود)"]
[null,null,null,null,null,null,null,null,null,null,null,null,null,null,null,null,null,null,null,null,null,null,null,73,"الندى دايوند كريم (بنك)"]
[null,null,null,null,null,null,null,null,null,null,null,null,null,null,null,null,null,null,null,null,null,null,null,73,"الندى دايوند كريم (دهبى فسفورى"]
[null,null,null,null,null,null,null,null,null,null,null,null,null,null,null,null,null,null,null,null,null,null,null,73,"الندى دايوند كريم (دهبى)"]
[null,null,null,null,null,null,null,null,null,null,null,null,null,null,null,null,null,null,null,null,null,null,null,36,"الندى ديكو فارنيش لامع"]
[null,null,null,null,null,null,null,null,null,null,null,null,null,null,null,null,null,null,null,null,null,null,null,36,"الندى ديكو فارنيش مط"]
[null,null,null,null,null,null,null,null,null,null,null,null,null,null,null,null,null,null,null,null,null,null,null,184,"الندى رايز (دهبى)"]
[null,null,null,null,null,null,null,null,null,null,null,null,null,null,null,null,null,null,null,null,null,null,null,184,"الندى رايز (فضى)"]
[null,null,null,null,null,null,null,null,null,null,null,null,null,null,null,null,null,null,null,null,null,null,null,222,"الندى رستون أنتيك ( اسود )"]
[null,null,null,null,null,null,null,null,null,null,null,null,null,null,null,null,null,null,null,null,null,null,null,534,"الندى رستون أنتيك ( اسود)"]
[null,null,null,null,null,null,null,null,null,null,null,null,null,null,null,null,null,null,null,null,null,null,null,222,"الندى رستون أنتيك ( أخضر )"]
[null,null,null,null,null,null,null,null,null,null,null,null,null,null,null,null,null,null,null,null,null,null,null,534,"الندى رستون أنتيك ( أخضر )"]
[null,null,null,null,null,null,null,null,null,null,null,null,null,null,null,null,null,null,null,null,null,null,null,222,"الندى رستون أنتيك ( أزرق )"]
[null,null,null,null,null,null,null,null,null,null,null,null,null,null,null,null,null,null,null,null,null,null,null,534,"الندى رستون أنتيك ( أزرق )"]
[null,null,null,null,null,null,null,null,null,null,null,null,null,null,null,null,null,null,null,null,null,null,null,222,"الندى رستون أنتيك ( بنى )"]
[null,null,null,null,null,null,null,null,null,null,null,null,null,null,null,null,null,null,null,null,null,null,null,534,"الندى رستون أنتيك ( بنى )"]
[null,null,null,null,null,null,null,null,null,null,null,null,null,null,null,null,null,null,null,null,null,null,null,534,"الندى رستون أنتيك ( بيس)"]
[null,null,null,null,null,null,null,null,null,null,null,null,null,null,null,null,null,null,null,null,null,null,null,222,"الندى رستون أنتيك ( ذهبى )"]
[null,null,null,null,null,null,null,null,null,null,null,null,null,null,null,null,null,null,null,null,null,null,null,534,"الندى رستون أنتيك ( ذهبى )"]
[null,null,null,null,null,null,null,null,null,null,null,null,null,null,null,null,null,null,null,null,null,null,null,534,"الندى رستون أنتيك ( فضى )"]
[null,null,null,null,null,null,null,null,null,null,null,null,null,null,null,null,null,null,null,null,null,null,null,222,"الندى رستون أنتيك ( موف )"]
[null,null,null,null,null,null,null,null,null,null,null,null,null,null,null,null,null,null,null,null,null,null,null,534,"الندى رستون أنتيك ( موف )"]
[null,null,null,null,null,null,null,null,null,null,null,null,null,null,null,null,null,null,null,null,null,null,null,222,"الندى رستون أنتيك ( نبيتى )"]
[null,null,null,null,null,null,null,null,null,null,null,null,null,null,null,null,null,null,null,null,null,null,null,534,"الندى رستون أنتيك ( نبيتى )"]
[null,null,null,null,null,null,null,null,null,null,null,null,null,null,null,null,null,null,null,null,null,null,null,222,"الندى رستون آنتيك ( فضى )"]
[null,null,null,null,null,null,null,null,null,null,null,null,null,null,null,null,null,null,null,null,null,null,null,222,"الندى رستون آنتيك ( نحاسى )"]
[null,null,null,null,null,null,null,null,null,null,null,null,null,null,null,null,null,null,null,null,null,null,null,534,"الندى رستون آنتيك ( نحاسى )"]
[null,null,null,null,null,null,null,null,null,null,null,null,null,null,null,null,null,null,null,null,null,null,null,354,"الندى روشن"]
[null,null,null,null,null,null,null,null,null,null,null,null,null,null,null,null,null,null,null,null,null,null,null,126,"الندى روشن - جالون"]
[null,null,null,null,null,null,null,null,null,null,null,null,null,null,null,null,null,null,null,null,null,null,null,190,"الندى سبلادور ( اسود )"]
[null,null,null,null,null,null,null,null,null,null,null,null,null,null,null,null,null,null,null,null,null,null,null,190,"الندى سبلادور ( برونز )"]
[null,null,null,null,null,null,null,null,null,null,null,null,null,null,null,null,null,null,null,null,null,null,null,461,"الندى سبلادور ( برونز )"]
[null,null,null,null,null,null,null,null,null,null,null,null,null,null,null,null,null,null,null,null,null,null,null,190,"الندى سبلادور ( بنى )"]
[null,null,null,null,null,null,null,null,null,null,null,null,null,null,null,null,null,null,null,null,null,null,null,190,"الندى سبلادور ( ذهبى )"]
[null,null,null,null,null,null,null,null,null,null,null,null,null,null,null,null,null,null,null,null,null,null,null,461,"الندى سبلادور ( ذهبى )"]
[null,null,null,null,null,null,null,null,null,null,null,null,null,null,null,null,null,null,null,null,null,null,null,190,"الندى سبلادور ( فضى )"]
[null,null,null,null,null,null,null,null,null,null,null,null,null,null,null,null,null,null,null,null,null,null,null,461,"الندى سبلادور ( فضى )"]
[null,null,null,null,null,null,null,null,null,null,null,null,null,null,null,null,null,null,null,null,null,null,null,190,"الندى سبلادور ( نبيتى )"]
[null,null,null,null,null,null,null,null,null,null,null,null,null,null,null,null,null,null,null,null,null,null,null,461,"الندى سبلادور ( نبيتى )"]
[null,null,null,null,null,null,null,null,null,null,null,null,null,null,null,null,null,null,null,null,null,null,null,190,"الندى سبلادور ( نحاسى )"]
[null,null,null,null,null,null,null,null,null,null,null,null,null,null,null,null,null,null,null,null,null,null,null,461,"الندى سبلادور ( نحاسى )"]
[null,null,null,null,null,null,null,null,null,null,null,null,null,null,null,null,null,null,null,null,null,null,null,48,"الندى ستار ( اسود )"]
[null,null,null,null,null,null,null,null,null,null,null,null,null,null,null,null,null,null,null,null,null,null,null,48,"الندى ستار ( ذهبى )"]
[null,null,null,null,null,null,null,null,null,null,null,null,null,null,null,null,null,null,null,null,null,null,null,14,"الندى ستار ( علبة )"]
[null,null,null,null,null,null,null,null,null,null,null,null,null,null,null,null,null,null,null,null,null,null,null,48,"الندى ستار ( فضى )"]
[null,null,null,null,null,null,null,null,null,null,null,null,null,null,null,null,null,null,null,null,null,null,null,48,"الندى ستار ( لؤلؤى )"]
[null,null,null,null,null,null,null,null,null,null,null,null,null,null,null,null,null,null,null,null,null,null,null,48,"الندى ستار ( نبيتي )"]
[null,null,null,null,null,null,null,null,null,null,null,null,null,null,null,null,null,null,null,null,null,null,null,48,"الندى ستار ( نحاسي )"]
[null,null,null,null,null,null,null,null,null,null,null,null,null,null,null,null,null,null,null,null,null,null,null,162,"الندى ستون فينش ( دهبى )"]
[null,null,null,null,null,null,null,null,null,null,null,null,null,null,null,null,null,null,null,null,null,null,null,162,"الندى ستون فينش ( فضى )"]
[null,null,null,null,null,null,null,null,null,null,null,null,null,null,null,null,null,null,null,null,null,null,null,34,"الندى ستونيك"]
[null,null,null,null,null,null,null,null,null,null,null,null,null,null,null,null,null,null,null,null,null,null,null,96,"الندى ستونيك"]
[null,null,null,null,null,null,null,null,null,null,null,null,null,null,null,null,null,null,null,null,null,null,null,276,"الندى سكاى لايت بودر ( اكوا )"]
[null,null,null,null,null,null,null,null,null,null,null,null,null,null,null,null,null,null,null,null,null,null,null,174,"الندى سكاي لايت ( أحمر )"]
[null,null,null,null,null,null,null,null,null,null,null,null,null,null,null,null,null,null,null,null,null,null,null,174,"الندى سكاي لايت ( أخضر )"]
[null,null,null,null,null,null,null,null,null,null,null,null,null,null,null,null,null,null,null,null,null,null,null,174,"الندى سكاي لايت ( أزرق )"]
[null,null,null,null,null,null,null,null,null,null,null,null,null,null,null,null,null,null,null,null,null,null,null,174,"الندى سكاي لايت ( أصفر )"]
[null,null,null,null,null,null,null,null,null,null,null,null,null,null,null,null,null,null,null,null,null,null,null,174,"الندى سكاي لايت ( أصفر × أخضر )"]
[null,null,null,null,null,null,null,null,null,null,null,null,null,null,null,null,null,null,null,null,null,null,null,174,"الندى سكاي لايت ( أكوا )"]
[null,null,null,null,null,null,null,null,null,null,null,null,null,null,null,null,null,null,null,null,null,null,null,174,"الندى سكاي لايت ( أورانج )"]
[null,null,null,null,null,null,null,null,null,null,null,null,null,null,null,null,null,null,null,null,null,null,null,174,"الندى سكاي لايت ( بنك )"]
[null,null,null,null,null,null,null,null,null,null,null,null,null,null,null,null,null,null,null,null,null,null,null,276,"الندى سكاي لايت بودر ( أحمر )"]
[null,null,null,null,null,null,null,null,null,null,null,null,null,null,null,null,null,null,null,null,null,null,null,276,"الندى سكاي لايت بودر ( أخضر )"]
[null,null,null,null,null,null,null,null,null,null,null,null,null,null,null,null,null,null,null,null,null,null,null,276,"الندى سكاي لايت بودر ( أزرق )"]
[null,null,null,null,null,null,null,null,null,null,null,null,null,null,null,null,null,null,null,null,null,null,null,276,"الندى سكاي لايت بودر ( أصفر )"]
[null,null,null,null,null,null,null,null,null,null,null,null,null,null,null,null,null,null,null,null,null,null,null,276,"الندى سكاي لايت بودر ( أورانج )"]
[null,null,null,null,null,null,null,null,null,null,null,null,null,null,null,null,null,null,null,null,null,null,null,276,"الندى سكاي لايت بودر ( بنك )"]
[null,null,null,null,null,null,null,null,null,null,null,null,null,null,null,null,null,null,null,null,null,null,null,276,"الندى سكاي لايت بودر ( فسفورى )"]
[null,null,null,null,null,null,null,null,null,null,null,null,null,null,null,null,null,null,null,null,null,null,null,198,"الندى سوفتكس - تكشتر"]
[null,null,null,null,null,null,null,null,null,null,null,null,null,null,null,null,null,null,null,null,null,null,null,38,"الندى سيلر اخشاب"]
[null,null,null,null,null,null,null,null,null,null,null,null,null,null,null,null,null,null,null,null,null,null,null,478,"الندى شيت 135 * 200"]
[null,null,null,null,null,null,null,null,null,null,null,null,null,null,null,null,null,null,null,null,null,null,null,56,"الندى شيت 50 سم"]
[null,null,null,null,null,null,null,null,null,null,null,null,null,null,null,null,null,null,null,null,null,null,null,119,"الندى شيت 70 * 100"]
[null,null,null,null,null,null,null,null,null,null,null,null,null,null,null,null,null,null,null,null,null,null,null,82,"الندى شيت بوردر"]
[null,null,null,null,null,null,null,null,null,null,null,null,null,null,null,null,null,null,null,null,null,null,null,82,"الندى شيت مجمع"]
[null,null,null,null,null,null,null,null,null,null,null,null,null,null,null,null,null,null,null,null,null,null,null,222,"الندى صن فلاور"]
[null,null,null,null,null,null,null,null,null,null,null,null,null,null,null,null,null,null,null,null,null,null,null,68,"الندى صن فلاور"]
[null,null,null,null,null,null,null,null,null,null,null,null,null,null,null,null,null,null,null,null,null,null,null,0,"الندى صن فلاور"]
[null,null,null,null,null,null,null,null,null,null,null,null,null,null,null,null,null,null,null,null,null,null,null,105,"الندى فانتازى بريق ( ذهبى )"]
[null,null,null,null,null,null,null,null,null,null,null,null,null,null,null,null,null,null,null,null,null,null,null,105,"الندى فانتازى بريق ( فضى )"]
[null,null,null,null,null,null,null,null,null,null,null,null,null,null,null,null,null,null,null,null,null,null,null,105,"الندى فانتازى بريق ( نبيتى )"]
[null,null,null,null,null,null,null,null,null,null,null,null,null,null,null,null,null,null,null,null,null,null,null,60,"الندى فانتازى بيز ( شفاف )"]
[null,null,null,null,null,null,null,null,null,null,null,null,null,null,null,null,null,null,null,null,null,null,null,50,"الندى فاين تاتش"]
[null,null,null,null,null,null,null,null,null,null,null,null,null,null,null,null,null,null,null,null,null,null,null,166,"الندى فاين تاتش"]
[null,null,null,null,null,null,null,null,null,null,null,null,null,null,null,null,null,null,null,null,null,null,null,60,"الندى فلاور ( الأوركيد )"]
[null,null,null,null,null,null,null,null,null,null,null,null,null,null,null,null,null,null,null,null,null,null,null,60,"الندى فلاور ( البنفسج )"]
[null,null,null,null,null,null,null,null,null,null,null,null,null,null,null,null,null,null,null,null,null,null,null,60,"الندى فلاور ( التوليب )"]
[null,null,null,null,null,null,null,null,null,null,null,null,null,null,null,null,null,null,null,null,null,null,null,60,"الندى فلاور ( الجورى )"]
[null,null,null,null,null,null,null,null,null,null,null,null,null,null,null,null,null,null,null,null,null,null,null,60,"الندى فلاور ( الذهب )"]
[null,null,null,null,null,null,null,null,null,null,null,null,null,null,null,null,null,null,null,null,null,null,null,60,"الندى فلاور ( السوسن الزرقاء )"]
[null,null,null,null,null,null,null,null,null,null,null,null,null,null,null,null,null,null,null,null,null,null,null,60,"الندى فلاور ( الفل )"]
[null,null,null,null,null,null,null,null,null,null,null,null,null,null,null,null,null,null,null,null,null,null,null,60,"الندى فلاور ( الكالونيا )"]
[null,null,null,null,null,null,null,null,null,null,null,null,null,null,null,null,null,null,null,null,null,null,null,60,"الندى فلاور ( الكامليا )"]
[null,null,null,null,null,null,null,null,null,null,null,null,null,null,null,null,null,null,null,null,null,null,null,60,"الندى فلاور ( النرجس )"]
[null,null,null,null,null,null,null,null,null,null,null,null,null,null,null,null,null,null,null,null,null,null,null,60,"الندى فلاور ( النيفنا )"]
[null,null,null,null,null,null,null,null,null,null,null,null,null,null,null,null,null,null,null,null,null,null,null,60,"الندى فلاور ( الهيام )"]
[null,null,null,null,null,null,null,null,null,null,null,null,null,null,null,null,null,null,null,null,null,null,null,60,"الندى فلاور ( أبيض × أسود )"]
[null,null,null,null,null,null,null,null,null,null,null,null,null,null,null,null,null,null,null,null,null,null,null,60,"الندى فلاور ( فلورا )"]
[null,null,null,null,null,null,null,null,null,null,null,null,null,null,null,null,null,null,null,null,null,null,null,60,"الندى فلاور ( لافندر )"]
[null,null,null,null,null,null,null,null,null,null,null,null,null,null,null,null,null,null,null,null,null,null,null,60,"الندى فلاور ( ورود ملكية )"]
[null,null,null,null,null,null,null,null,null,null,null,null,null,null,null,null,null,null,null,null,null,null,null,34,"الندى فلاور (الاوركيد)"]
[null,null,null,null,null,null,null,null,null,null,null,null,null,null,null,null,null,null,null,null,null,null,null,34,"الندى فلاور (البنفسج)"]
[null,null,null,null,null,null,null,null,null,null,null,null,null,null,null,null,null,null,null,null,null,null,null,34,"الندى فلاور (الجورى)"]
[null,null,null,null,null,null,null,null,null,null,null,null,null,null,null,null,null,null,null,null,null,null,null,34,"الندى فلاور (الدهب)"]
[null,null,null,null,null,null,null,null,null,null,null,null,null,null,null,null,null,null,null,null,null,null,null,34,"الندى فلاور (الكالونيا)"]
[null,null,null,null,null,null,null,null,null,null,null,null,null,null,null,null,null,null,null,null,null,null,null,34,"الندى فلاور (النرجس)"]
[null,null,null,null,null,null,null,null,null,null,null,null,null,null,null,null,null,null,null,null,null,null,null,34,"الندى فلاور (النيفنا)"]
[null,null,null,null,null,null,null,null,null,null,null,null,null,null,null,null,null,null,null,null,null,null,null,34,"الندى فلاور (الهيام)"]
[null,null,null,null,null,null,null,null,null,null,null,null,null,null,null,null,null,null,null,null,null,null,null,34,"الندى فلاور (لافندر)"]
[null,null,null,null,null,null,null,null,null,null,null,null,null,null,null,null,null,null,null,null,null,null,null,34,"الندى فلاور(ابيض×اسود)"]
[null,null,null,null,null,null,null,null,null,null,null,null,null,null,null,null,null,null,null,null,null,null,null,34,"الندى فلاور(التوليب)"]
[null,null,null,null,null,null,null,null,null,null,null,null,null,null,null,null,null,null,null,null,null,null,null,34,"الندى فلاور(السوسن الزرقاء)"]
[null,null,null,null,null,null,null,null,null,null,null,null,null,null,null,null,null,null,null,null,null,null,null,34,"الندى فلاور(الفل)"]
[null,null,null,null,null,null,null,null,null,null,null,null,null,null,null,null,null,null,null,null,null,null,null,34,"الندى فلاور(الكاميليا)"]
[null,null,null,null,null,null,null,null,null,null,null,null,null,null,null,null,null,null,null,null,null,null,null,34,"الندى فلاور(فلورا)"]
[null,null,null,null,null,null,null,null,null,null,null,null,null,null,null,null,null,null,null,null,null,null,null,34,"الندى فلاور(ورود ملكية)"]
[null,null,null,null,null,null,null,null,null,null,null,null,null,null,null,null,null,null,null,null,null,null,null,136,"الندى فلفت ( دهبى )"]
[null,null,"2018-12-17",null,null,null,null,null,null,null,null,null,null,null,null,null,null,null,null,null,null,null,null,136,"الندى فلفيت ( برونز )"]
[null,null,null,null,null,null,null,null,null,null,null,null,null,null,null,null,null,null,null,null,null,null,null,136,"الندى فلفيت ( بني)"]
[null,null,"2018-12-17",null,null,null,null,null,null,null,null,null,null,null,null,null,null,null,null,null,null,null,null,136,"الندى فلفيت ( روز )"]
[null,null,null,null,null,null,null,null,null,null,null,null,null,null,null,null,null,null,null,null,null,null,null,136,"الندى فلفيت ( فضى )"]
[null,null,null,null,null,null,null,null,null,null,null,null,null,null,null,null,null,null,null,null,null,null,null,480,"الندى فلفيت ( فضى ) جالون 3.75ك"]
[null,null,null,null,null,null,null,null,null,null,null,null,null,null,null,null,null,null,null,null,null,null,null,0,"الندى فلفيت ( فضى ) جالون 3ك"]
[null,null,null,null,null,null,null,null,null,null,null,null,null,null,null,null,null,null,null,null,null,null,null,136,"الندى فلفيت ( فضي غامق)"]
[null,null,null,null,null,null,null,null,null,null,null,null,null,null,null,null,null,null,null,null,null,null,null,136,"الندى فلفيت ( نبيتي)"]
[null,null,null,null,null,null,null,null,null,null,null,null,null,null,null,null,null,null,null,null,null,null,null,136,"الندى فلفيت ( نحاسى )"]
[null,null,null,null,null,null,null,null,null,null,null,null,null,null,null,null,null,null,null,null,null,null,null,136,"الندى فلفيت (موف)"]
[null,null,null,null,null,null,null,null,null,null,null,null,null,null,null,null,null,null,null,null,null,null,null,40,"الندى فلورال فارنيش"]
[null,null,null,null,null,null,null,null,null,null,null,null,null,null,null,null,null,null,null,null,null,null,null,126,"الندى فلورال فارنيش"]
[null,null,null,null,null,null,null,null,null,null,null,null,null,null,null,null,null,null,null,null,null,null,null,53,"الندى فلورال لامع ( أبيض )"]
[null,null,null,null,null,null,null,null,null,null,null,null,null,null,null,null,null,null,null,null,null,null,null,142,"الندى فلورال لامع ( أبيض )"]
[null,null,null,null,null,null,null,null,null,null,null,null,null,null,null,null,null,null,null,null,null,null,null,402,"الندى فلورال لامع (ابيض)"]
[null,null,null,null,null,null,null,null,null,null,null,null,null,null,null,null,null,null,null,null,null,null,null,47,"الندى فلورال مطفى ( أبيض )"]
[null,null,null,null,null,null,null,null,null,null,null,null,null,null,null,null,null,null,null,null,null,null,null,342,"الندى فلورال مطفى ( أبيض )"]
[null,null,null,null,null,null,null,null,null,null,null,null,null,null,null,null,null,null,null,null,null,null,null,121,"الندى فلورال مطفى ( أبيض )"]
[null,null,null,null,null,null,null,null,null,null,null,null,null,null,null,null,null,null,null,null,null,null,null,0,"الندى فلورال مطفى مرور"]
[null,null,null,null,null,null,null,null,null,null,null,null,null,null,null,null,null,null,null,null,null,null,null,0,"الندى فلورال مطفى مرور (اسود)"]
[null,null,null,null,null,null,null,null,null,null,null,null,null,null,null,null,null,null,null,null,null,null,null,0,"الندى فلورال مطفى مرور(اصفر)"]
[null,null,null,null,null,null,null,null,null,null,null,null,null,null,null,null,null,null,null,null,null,null,null,48,"الندى فلورال ورنيش لامع"]
[null,null,null,null,null,null,null,null,null,null,null,null,null,null,null,null,null,null,null,null,null,null,null,122,"الندى فلورال ورنيش لامع"]
[null,null,null,null,null,null,null,null,null,null,null,null,null,null,null,null,null,null,null,null,null,null,null,47,"الندى فلورست فارنيش"]
[null,null,null,null,null,null,null,null,null,null,null,null,null,null,null,null,null,null,null,null,null,null,null,168,"الندى فلورست فارنيش"]
[null,null,null,null,null,null,null,null,null,null,null,null,null,null,null,null,null,null,null,null,null,null,null,190,"الندى فيلفتو أورو ( برونز )"]
[null,null,null,null,null,null,null,null,null,null,null,null,null,null,null,null,null,null,null,null,null,null,null,684,"الندى فيلفتو أورو ( برونز ) جالون3.75ك"]
[null,null,null,null,null,null,null,null,null,null,null,null,null,null,null,null,null,null,null,null,null,null,null,190,"الندى فيلفتو أورو ( ذهبى )"]
[null,null,null,null,null,null,null,null,null,null,null,null,null,null,null,null,null,null,null,null,null,null,null,684,"الندى فيلفتو أورو ( ذهبى ) جالون3.75ك"]
[null,null,null,null,null,null,null,null,null,null,null,null,null,null,null,null,null,null,null,null,null,null,null,190,"الندى فيلفتو أورو ( فضى )"]
[null,null,null,null,null,null,null,null,null,null,null,null,null,null,null,null,null,null,null,null,null,null,null,0,"الندى فيلفتو أورو ( فضى ) جالون 3ك"]
[null,null,null,null,null,null,null,null,null,null,null,null,null,null,null,null,null,null,null,null,null,null,null,684,"الندى فيلفتو أورو ( فضى ) جالون3.75ك"]
[null,null,null,null,null,null,null,null,null,null,null,null,null,null,null,null,null,null,null,null,null,null,null,190,"الندى فيلفتو أورو ( نبيتى )"]
[null,null,null,null,null,null,null,null,null,null,null,null,null,null,null,null,null,null,null,null,null,null,null,684,"الندى فيلفتو أورو ( نبيتى ) جالون3.75ك"]
[null,null,null,null,null,null,null,null,null,null,null,null,null,null,null,null,null,null,null,null,null,null,null,190,"الندى فيلفتو أورو ( نحاسى )"]
[null,null,null,null,null,null,null,null,null,null,null,null,null,null,null,null,null,null,null,null,null,null,null,684,"الندى فيلفتو أورو ( نحاسى ) جالون3.75ك"]
[null,null,null,null,null,null,null,null,null,null,null,null,null,null,null,null,null,null,null,null,null,null,null,131,"الندى قوس قزح بريق"]
[null,null,null,null,null,null,null,null,null,null,null,null,null,null,null,null,null,null,null,null,null,null,null,52,"الندى قوس قزح بريق"]
[null,null,null,null,null,null,null,null,null,null,null,null,null,null,null,null,null,null,null,null,null,null,null,25,"الندى قوس قزح بيز ( شفاف )"]
[null,null,null,null,null,null,null,null,null,null,null,null,null,null,null,null,null,null,null,null,null,null,null,48,"الندى قوس قزح بيز ( شفاف )"]
[null,null,null,null,null,null,null,null,null,null,null,null,null,null,null,null,null,null,null,null,null,null,null,0,"الندى كراك فيلر (معجون شروخ )"]
[null,null,null,null,null,null,null,null,null,null,null,null,null,null,null,null,null,null,null,null,null,null,null,82,"الندى كراكليه"]
[null,null,null,null,null,null,null,null,null,null,null,null,null,null,null,null,null,null,null,null,null,null,null,136,"الندى لازوردى جولد ( دهب 14 )"]
[null,null,null,null,null,null,null,null,null,null,null,null,null,null,null,null,null,null,null,null,null,null,null,136,"الندى لازوردى جولد ( دهب 18 )"]
[null,null,null,null,null,null,null,null,null,null,null,null,null,null,null,null,null,null,null,null,null,null,null,136,"الندى لازوردى جولد ( دهب 21 )"]
[null,null,null,null,null,null,null,null,null,null,null,null,null,null,null,null,null,null,null,null,null,null,null,136,"الندى لازوردى جولد ( دهب 24 )"]
[null,null,null,null,null,null,null,null,null,null,null,null,null,null,null,null,null,null,null,null,null,null,null,136,"الندى لازوردى جولد ( دهب 26 )"]
[null,null,null,null,null,null,null,null,null,null,null,null,null,null,null,null,null,null,null,null,null,null,null,136,"الندى لازوردى جولد ( دهب 28 )"]
[null,null,null,null,null,null,null,null,null,null,null,null,null,null,null,null,null,null,null,null,null,null,null,25,"الندى ليفز ( أبيض )"]
[null,null,null,null,null,null,null,null,null,null,null,null,null,null,null,null,null,null,null,null,null,null,null,95,"الندى ليفز ( أبيض )"]
[null,null,null,null,null,null,null,null,null,null,null,null,null,null,null,null,null,null,null,null,null,null,null,318,"الندى ليفز ( أبيض )"]
[null,null,null,null,null,null,null,null,null,null,null,null,null,null,null,null,null,null,null,null,null,null,null,53,"الندى ماكس جلوس أكريليك ( أبيض )"]
[null,null,null,null,null,null,null,null,null,null,null,null,null,null,null,null,null,null,null,null,null,null,null,151,"الندى ماكس جلوس أكريليك ( أبيض )"]
[null,null,null,null,null,null,null,null,null,null,null,null,null,null,null,null,null,null,null,null,null,null,null,522,"الندى ماكس جلوس أكريليك ( أبيض )"]
[null,null,null,null,null,null,null,null,null,null,null,null,null,null,null,null,null,null,null,null,null,null,null,138,"الندى معجون ساس"]
[null,null,null,null,null,null,null,null,null,null,null,null,null,null,null,null,null,null,null,null,null,null,null,0,"الندى معجون ساس"]
[null,null,null,null,null,null,null,null,null,null,null,null,null,null,null,null,null,null,null,null,null,null,null,124,"الندى معجون ساس"]
[null,null,null,null,null,null,null,null,null,null,null,null,null,null,null,null,null,null,null,null,null,null,null,44,"الندى معجون ساس"]
[null,null,null,null,null,null,null,null,null,null,null,null,null,null,null,null,null,null,null,null,null,null,null,110,"الندى معجون ساف"]
[null,null,null,null,null,null,null,null,null,null,null,null,null,null,null,null,null,null,null,null,null,null,null,0,"الندى معجون ساف"]
[null,null,null,null,null,null,null,null,null,null,null,null,null,null,null,null,null,null,null,null,null,null,null,96,"الندى معجون ساف"]
[null,null,null,null,null,null,null,null,null,null,null,null,null,null,null,null,null,null,null,null,null,null,null,37,"الندى معجون ساف"]
[null,null,null,null,null,null,null,null,null,null,null,null,null,null,null,null,null,null,null,null,null,null,null,0,"الندى نانو ( مركزات ألوان )"]
[null,null,null,null,null,null,null,null,null,null,null,null,null,null,null,null,null,null,null,null,null,null,null,2.5,"الندى نانو استنسل"]
[null,null,null,null,null,null,null,null,null,null,null,null,null,null,null,null,null,null,null,null,null,null,null,54,"الندى نانو أرتز فلاور"]
[null,null,null,null,null,null,null,null,null,null,null,null,null,null,null,null,null,null,null,null,null,null,null,0,"الندى نانو أوكسيدية"]
[null,null,null,null,null,null,null,null,null,null,null,null,null,null,null,null,null,null,null,null,null,null,null,67,"الندى نانو أوكسيدية(برونز أوكسيدية)"]
[null,null,null,null,null,null,null,null,null,null,null,null,null,null,null,null,null,null,null,null,null,null,null,67,"الندى نانو أوكسيدية(دهبى أوكسيدية)"]
[null,null,null,null,null,null,null,null,null,null,null,null,null,null,null,null,null,null,null,null,null,null,null,67,"الندى نانو أوكسيدية(فضى أوكسيدية)"]
[null,null,null,null,null,null,null,null,null,null,null,null,null,null,null,null,null,null,null,null,null,null,null,0,"الندى نانو برل سنت بودر"]
[null,null,null,null,null,null,null,null,null,null,null,null,null,null,null,null,null,null,null,null,null,null,null,96,"الندى نانو برل سنت بودر ( احمر 003)"]
[null,null,null,null,null,null,null,null,null,null,null,null,null,null,null,null,null,null,null,null,null,null,null,96,"الندى نانو برل سنت بودر ( اخضر 006 )"]
[null,null,null,null,null,null,null,null,null,null,null,null,null,null,null,null,null,null,null,null,null,null,null,96,"الندى نانو برل سنت بودر ( ازرق 005 )"]
[null,null,null,null,null,null,null,null,null,null,null,null,null,null,null,null,null,null,null,null,null,null,null,96,"الندى نانو برل سنت بودر ( دهبى 002)"]
[null,null,null,null,null,null,null,null,null,null,null,null,null,null,null,null,null,null,null,null,null,null,null,96,"الندى نانو برل سنت بودر ( فضى 001)"]
[null,null,null,null,null,null,null,null,null,null,null,null,null,null,null,null,null,null,null,null,null,null,null,96,"الندى نانو برل سنت بودر ( موف 004)"]
[null,null,null,null,null,null,null,null,null,null,null,null,null,null,null,null,null,null,null,null,null,null,null,0,"الندى نانو برلانت بودر"]
[null,null,null,null,null,null,null,null,null,null,null,null,null,null,null,null,null,null,null,null,null,null,null,54,"الندى نانو برلانت بودر ( احمر )"]
[null,null,null,null,null,null,null,null,null,null,null,null,null,null,null,null,null,null,null,null,null,null,null,54,"الندى نانو برلانت بودر ( أخضر )"]
[null,null,null,null,null,null,null,null,null,null,null,null,null,null,null,null,null,null,null,null,null,null,null,54,"الندى نانو برلانت بودر ( أزرق )"]
[null,null,null,null,null,null,null,null,null,null,null,null,null,null,null,null,null,null,null,null,null,null,null,54,"الندى نانو برلانت بودر ( دهبى )"]
[null,null,null,null,null,null,null,null,null,null,null,null,null,null,null,null,null,null,null,null,null,null,null,54,"الندى نانو برلانت بودر ( فضى )"]
[null,null,null,null,null,null,null,null,null,null,null,null,null,null,null,null,null,null,null,null,null,null,null,54,"الندى نانو برلانت بودر ( موف )"]
[null,null,null,null,null,null,null,null,null,null,null,null,null,null,null,null,null,null,null,null,null,null,null,36,"الندى نانو سباركل"]
[null,null,null,null,null,null,null,null,null,null,null,null,null,null,null,null,null,null,null,null,null,null,null,7,"الندى نانو غراء أبيض"]
[null,null,null,null,null,null,null,null,null,null,null,null,null,null,null,null,null,null,null,null,null,null,null,14,"الندى نانو غراء أبيض"]
[null,null,null,null,null,null,null,null,null,null,null,null,null,null,null,null,null,null,null,null,null,null,null,0,"الندى نانو فلاور نت"]
[null,null,null,null,null,null,null,null,null,null,null,null,null,null,null,null,null,null,null,null,null,null,null,38,"الندى نانو فلاور نت ( الاوركيد)"]
[null,null,null,null,null,null,null,null,null,null,null,null,null,null,null,null,null,null,null,null,null,null,null,38,"الندى نانو فلاور نت ( التوليب )"]
[null,null,null,null,null,null,null,null,null,null,null,null,null,null,null,null,null,null,null,null,null,null,null,38,"الندى نانو فلاور نت ( الجورى)"]
[null,null,null,null,null,null,null,null,null,null,null,null,null,null,null,null,null,null,null,null,null,null,null,38,"الندى نانو فلاور نت ( الفل)"]
[null,null,null,null,null,null,null,null,null,null,null,null,null,null,null,null,null,null,null,null,null,null,null,38,"الندى نانو فلاور نت ( الكالونيا)"]
[null,null,null,null,null,null,null,null,null,null,null,null,null,null,null,null,null,null,null,null,null,null,null,38,"الندى نانو فلاور نت ( النيفنا)"]
[null,null,null,null,null,null,null,null,null,null,null,null,null,null,null,null,null,null,null,null,null,null,null,38,"الندى نانو فلاور نت ( جاسمين فلاور )"]
[null,null,null,null,null,null,null,null,null,null,null,null,null,null,null,null,null,null,null,null,null,null,null,38,"الندى نانو فلاور نت ( زهرة البنفسج)"]
[null,null,null,null,null,null,null,null,null,null,null,null,null,null,null,null,null,null,null,null,null,null,null,38,"الندى نانو فلاور نت (الفلورا)"]
[null,null,null,null,null,null,null,null,null,null,null,null,null,null,null,null,null,null,null,null,null,null,null,240,"الندى نصف شيت"]
[null,null,null,null,null,null,null,null,null,null,null,null,null,null,null,null,null,null,null,null,null,null,null,54,"الندى واكس"]
[null,null,null,null,null,null,null,null,null,null,null,null,null,null,null,null,null,null,null,null,null,null,null,108,"الندى ويفز"]
[null,null,null,null,null,null,null,null,null,null,null,null,null,null,null,null,null,null,null,null,null,null,null,192,"الندي استوكو (ابيض )"]
[null,null,null,null,null,null,null,null,null,null,null,null,null,null,null,null,null,null,null,null,null,null,null,70,"الندي استوكو (ابيض)"]
[null,null,null,null,null,null,null,null,null,null,null,null,null,null,null,null,null,null,null,null,null,null,null,140,"ايزى  اكشل (ابيض )"]
[null,null,null,null,null,null,null,null,null,null,null,null,null,null,null,null,null,null,null,null,null,null,null,0,"ايزى  رويال (ابيض)"]
[null,null,null,null,null,null,null,null,null,null,null,null,null,null,null,null,null,null,null,null,null,null,null,108,"ايزى  ريفال (ابيض)"]
[null,null,null,null,null,null,null,null,null,null,null,null,null,null,null,null,null,null,null,null,null,null,null,377,"ايزى  ريفال (ابيض)"]
[null,null,null,null,null,null,null,null,null,null,null,null,null,null,null,null,null,null,null,null,null,null,null,300,"ايزى  شامواه (فضى )"]
[null,null,null,null,null,null,null,null,null,null,null,null,null,null,null,null,null,null,null,null,null,null,null,188,"ايزى  شاين (فضى )"]
[null,null,null,null,null,null,null,null,null,null,null,null,null,null,null,null,null,null,null,null,null,null,null,105,"ايزى  فيستفال ( بنى )"]
[null,null,null,null,null,null,null,null,null,null,null,null,null,null,null,null,null,null,null,null,null,null,null,105,"ايزى  فيستفال (اسود)"]
[null,null,null,null,null,null,null,null,null,null,null,null,null,null,null,null,null,null,null,null,null,null,null,263,"ايزى  فيستفال(فضى )"]
[null,null,null,null,null,null,null,null,null,null,null,null,null,null,null,null,null,null,null,null,null,null,null,46,"ايزى  فينيل سلك (ابيض )"]
[null,null,null,null,null,null,null,null,null,null,null,null,null,null,null,null,null,null,null,null,null,null,null,188,"ايزى  كريستال (فضى)"]
[null,null,null,null,null,null,null,null,null,null,null,null,null,null,null,null,null,null,null,null,null,null,null,0,"ايزى  مارمورينو"]
[null,null,null,null,null,null,null,null,null,null,null,null,null,null,null,null,null,null,null,null,null,null,null,117,"ايزى  نوفال (ابيض )"]
[null,null,null,null,null,null,null,null,null,null,null,null,null,null,null,null,null,null,null,null,null,null,null,44,"ايزى  نوفال (ابيض )"]
[null,null,null,null,null,null,null,null,null,null,null,null,null,null,null,null,null,null,null,null,null,null,null,45,"ايزى اكشل (ابيض )"]
[null,null,null,null,null,null,null,null,null,null,null,null,null,null,null,null,null,null,null,null,null,null,null,91,"ايزى بيتو بلاست (اسود )"]
[null,null,null,null,null,null,null,null,null,null,null,null,null,null,null,null,null,null,null,null,null,null,null,180,"ايزى رويال (ابيض)"]
[null,null,null,null,null,null,null,null,null,null,null,null,null,null,null,null,null,null,null,null,null,null,null,53,"ايزى رويال (ابيض)"]
[null,null,null,null,null,null,null,null,null,null,null,null,null,null,null,null,null,null,null,null,null,null,null,311,"ايزى رويال (ابيض)"]
[null,null,null,null,null,null,null,null,null,null,null,null,null,null,null,null,null,null,null,null,null,null,null,29,"ايزى ريفال (ابيض)"]
[null,null,null,null,null,null,null,null,null,null,null,null,null,null,null,null,null,null,null,null,null,null,null,93,"ايزى ستان (ابيض )"]
[null,null,null,null,null,null,null,null,null,null,null,null,null,null,null,null,null,null,null,null,null,null,null,93,"ايزى شامواة (برونز)"]
[null,null,null,null,null,null,null,null,null,null,null,null,null,null,null,null,null,null,null,null,null,null,null,48,"ايزى شامواة (برونز)"]
[null,null,null,null,null,null,null,null,null,null,null,null,null,null,null,null,null,null,null,null,null,null,null,93,"ايزى شامواة (دهبى)"]
[null,null,null,null,null,null,null,null,null,null,null,null,null,null,null,null,null,null,null,null,null,null,null,48,"ايزى شامواة (دهبى)"]
[null,null,null,null,null,null,null,null,null,null,null,null,null,null,null,null,null,null,null,null,null,null,null,93,"ايزى شامواة (فضى)"]
[null,null,null,null,null,null,null,null,null,null,null,null,null,null,null,null,null,null,null,null,null,null,null,48,"ايزى شامواة (فضى)"]
[null,null,null,null,null,null,null,null,null,null,null,null,null,null,null,null,null,null,null,null,null,null,null,93,"ايزى شامواة (نبيتى)"]
[null,null,null,null,null,null,null,null,null,null,null,null,null,null,null,null,null,null,null,null,null,null,null,48,"ايزى شامواة (نبيتى)"]
[null,null,null,null,null,null,null,null,null,null,null,null,null,null,null,null,null,null,null,null,null,null,null,93,"ايزى شامواة (نحاسى)"]
[null,null,null,null,null,null,null,null,null,null,null,null,null,null,null,null,null,null,null,null,null,null,null,48,"ايزى شامواة (نحاسى)"]
[null,null,null,null,null,null,null,null,null,null,null,null,null,null,null,null,null,null,null,null,null,null,null,60,"ايزى شاين (برونز)"]
[null,null,null,null,null,null,null,null,null,null,null,null,null,null,null,null,null,null,null,null,null,null,null,33,"ايزى شاين (برونز)"]
[null,null,null,null,null,null,null,null,null,null,null,null,null,null,null,null,null,null,null,null,null,null,null,60,"ايزى شاين (بنى)"]
[null,null,null,null,null,null,null,null,null,null,null,null,null,null,null,null,null,null,null,null,null,null,null,33,"ايزى شاين (بنى)"]
[null,null,null,null,null,null,null,null,null,null,null,null,null,null,null,null,null,null,null,null,null,null,null,60,"ايزى شاين (دهبى)"]
[null,null,null,null,null,null,null,null,null,null,null,null,null,null,null,null,null,null,null,null,null,null,null,33,"ايزى شاين (دهبى)"]
[null,null,null,null,null,null,null,null,null,null,null,null,null,null,null,null,null,null,null,null,null,null,null,60,"ايزى شاين (فضى)"]
[null,null,null,null,null,null,null,null,null,null,null,null,null,null,null,null,null,null,null,null,null,null,null,33,"ايزى شاين (فضى)"]
[null,null,null,null,null,null,null,null,null,null,null,null,null,null,null,null,null,null,null,null,null,null,null,60,"ايزى شاين (نبيتى)"]
[null,null,null,null,null,null,null,null,null,null,null,null,null,null,null,null,null,null,null,null,null,null,null,33,"ايزى شاين (نبيتى)"]
[null,null,null,null,null,null,null,null,null,null,null,null,null,null,null,null,null,null,null,null,null,null,null,60,"ايزى شاين (نحاسى)"]
[null,null,null,null,null,null,null,null,null,null,null,null,null,null,null,null,null,null,null,null,null,null,null,33,"ايزى شاين (نحاسى)"]
[null,null,null,null,null,null,null,null,null,null,null,null,null,null,null,null,null,null,null,null,null,null,null,84,"ايزى فيستفال (اسود)"]
[null,null,null,null,null,null,null,null,null,null,null,null,null,null,null,null,null,null,null,null,null,null,null,45,"ايزى فيستفال (اسود)"]
[null,null,null,null,null,null,null,null,null,null,null,null,null,null,null,null,null,null,null,null,null,null,null,84,"ايزى فيستفال (برونز)"]
[null,null,null,null,null,null,null,null,null,null,null,null,null,null,null,null,null,null,null,null,null,null,null,45,"ايزى فيستفال (برونز)"]
[null,null,null,null,null,null,null,null,null,null,null,null,null,null,null,null,null,null,null,null,null,null,null,84,"ايزى فيستفال (بنى)"]
[null,null,null,null,null,null,null,null,null,null,null,null,null,null,null,null,null,null,null,null,null,null,null,45,"ايزى فيستفال (بنى)"]
[null,null,null,null,null,null,null,null,null,null,null,null,null,null,null,null,null,null,null,null,null,null,null,45,"ايزى فيستفال (دهبى)"]
[null,null,null,null,null,null,null,null,null,null,null,null,null,null,null,null,null,null,null,null,null,null,null,84,"ايزى فيستفال (فضى)"]
[null,null,null,null,null,null,null,null,null,null,null,null,null,null,null,null,null,null,null,null,null,null,null,45,"ايزى فيستفال (فضى)"]
[null,null,null,null,null,null,null,null,null,null,null,null,null,null,null,null,null,null,null,null,null,null,null,84,"ايزى فيستفال (نبيتى)"]
[null,null,null,null,null,null,null,null,null,null,null,null,null,null,null,null,null,null,null,null,null,null,null,45,"ايزى فيستفال (نبيتى)"]
[null,null,null,null,null,null,null,null,null,null,null,null,null,null,null,null,null,null,null,null,null,null,null,84,"ايزى فيستفال (نحاسى)"]
[null,null,null,null,null,null,null,null,null,null,null,null,null,null,null,null,null,null,null,null,null,null,null,84,"ايزى فيستفال(دهبى)"]
[null,null,null,null,null,null,null,null,null,null,null,null,null,null,null,null,null,null,null,null,null,null,null,45,"ايزى فيستفال(نحاسى)"]
[null,null,null,null,null,null,null,null,null,null,null,null,null,null,null,null,null,null,null,null,null,null,null,143,"ايزى فينيل سلك (ابيض )"]
[null,null,null,null,null,null,null,null,null,null,null,null,null,null,null,null,null,null,null,null,null,null,null,60,"ايزى كريستال (اسود)"]
[null,null,null,null,null,null,null,null,null,null,null,null,null,null,null,null,null,null,null,null,null,null,null,33,"ايزى كريستال (اسود)"]
[null,null,null,null,null,null,null,null,null,null,null,null,null,null,null,null,null,null,null,null,null,null,null,60,"ايزى كريستال (بنى)"]
[null,null,null,null,null,null,null,null,null,null,null,null,null,null,null,null,null,null,null,null,null,null,null,33,"ايزى كريستال (بنى)"]
[null,null,null,null,null,null,null,null,null,null,null,null,null,null,null,null,null,null,null,null,null,null,null,60,"ايزى كريستال (دهبى)"]
[null,null,null,null,null,null,null,null,null,null,null,null,null,null,null,null,null,null,null,null,null,null,null,33,"ايزى كريستال (دهبى)"]
[null,null,null,null,null,null,null,null,null,null,null,null,null,null,null,null,null,null,null,null,null,null,null,60,"ايزى كريستال (فضى)"]
[null,null,null,null,null,null,null,null,null,null,null,null,null,null,null,null,null,null,null,null,null,null,null,33,"ايزى كريستال (فضى)"]
[null,null,null,null,null,null,null,null,null,null,null,null,null,null,null,null,null,null,null,null,null,null,null,60,"ايزى كريستال (نبيتى)"]
[null,null,null,null,null,null,null,null,null,null,null,null,null,null,null,null,null,null,null,null,null,null,null,33,"ايزى كريستال (نبيتى)"]
[null,null,null,null,null,null,null,null,null,null,null,null,null,null,null,null,null,null,null,null,null,null,null,60,"ايزى كريستال (نحاسى)"]
[null,null,null,null,null,null,null,null,null,null,null,null,null,null,null,null,null,null,null,null,null,null,null,33,"ايزى كريستال (نحاسى)"]
[null,null,null,null,null,null,null,null,null,null,null,null,null,null,null,null,null,null,null,null,null,null,null,323,"ايزى نوفال (ابيض)"]
[null,null,null,null,null,null,null,null,null,null,null,null,null,null,null,null,null,null,null,null,null,null,null,44,"ايزى ورود (ابيض)"]
[null,null,null,null,null,null,null,null,null,null,null,null,null,null,null,null,null,null,null,null,null,null,null,44,"ايزى ورود (بنى)"]
[null,null,null,null,null,null,null,null,null,null,null,null,null,null,null,null,null,null,null,null,null,null,null,27,"ايزى ورود (بنى)"]
[null,null,null,null,null,null,null,null,null,null,null,null,null,null,null,null,null,null,null,null,null,null,null,44,"ايزى ورود (دهبى)"]
[null,null,null,null,null,null,null,null,null,null,null,null,null,null,null,null,null,null,null,null,null,null,null,27,"ايزى ورود (دهبى)"]
[null,null,null,null,null,null,null,null,null,null,null,null,null,null,null,null,null,null,null,null,null,null,null,44,"ايزى ورود (نبيتى)"]
[null,null,null,null,null,null,null,null,null,null,null,null,null,null,null,null,null,null,null,null,null,null,null,27,"ايزى ورود (نبيتى)"]
[null,null,null,null,null,null,null,null,null,null,null,null,null,null,null,null,null,null,null,null,null,null,null,44,"ايزى ورود (نحاسى)"]
[null,null,null,null,null,null,null,null,null,null,null,null,null,null,null,null,null,null,null,null,null,null,null,27,"ايزى ورود(ابيض)"]
[null,null,null,null,null,null,null,null,null,null,null,null,null,null,null,null,null,null,null,null,null,null,null,44,"ايزى ورود(ابيض×اسود)"]
[null,null,null,null,null,null,null,null,null,null,null,null,null,null,null,null,null,null,null,null,null,null,null,27,"ايزى ورود(ابيض×اسود)"]
[null,null,null,null,null,null,null,null,null,null,null,null,null,null,null,null,null,null,null,null,null,null,null,27,"ايزى ورود(نحاسى)"]
[null,null,null,null,null,null,null,null,null,null,null,null,null,null,null,null,null,null,null,null,null,null,null,0,"ايكو معجون (ابيض)"]
[null,null,null,null,null,null,null,null,null,null,null,null,null,null,null,null,null,null,null,null,null,null,null,56,"ايكو معجون(ابيض)"]
[null,null,null,null,null,null,null,null,null,null,null,null,null,null,null,null,null,null,null,null,null,null,null,64,"ايكو معجون(ابيض)"]
[null,null,null,null,null,null,null,null,null,null,null,null,null,null,null,null,null,null,null,null,null,null,null,76,"ايكو معجون(ابيض)"]
[null,null,null,null,null,null,null,null,null,null,null,null,null,null,null,null,null,null,null,null,null,null,null,115,"ايكو معجون(ابيض)"]
[null,null,null,null,null,null,null,null,null,null,null,null,null,null,null,null,null,null,null,null,null,null,null,1973,"إستاند عدة"]
[null,null,null,null,null,null,null,null,null,null,null,null,null,null,null,null,null,null,null,null,null,null,null,0,"إستنسل متنوع وعروض"]
[null,null,null,null,null,null,null,null,null,null,null,null,null,null,null,null,null,null,null,null,null,null,null,22,"إسطوانة الدعم الفنى"]
[null,null,null,null,null,null,null,null,null,null,null,null,null,null,null,null,null,null,null,null,null,null,null,22,"إسطوانة كتالوج إليكترونى"]
[null,null,null,null,null,null,null,null,null,null,null,null,null,null,null,null,null,null,null,null,null,null,null,0,"إيزى  أورجينتو"]
[null,null,null,null,null,null,null,null,null,null,null,null,null,null,null,null,null,null,null,null,null,null,null,0,"إيزى  آرابيسك"]
[null,null,null,null,null,null,null,null,null,null,null,null,null,null,null,null,null,null,null,null,null,null,null,104,"إيزى  آرابيسك ( أبيض )"]
[null,null,null,null,null,null,null,null,null,null,null,null,null,null,null,null,null,null,null,null,null,null,null,98,"إيزى  بوتى (أبيض)"]
[null,null,null,null,null,null,null,null,null,null,null,null,null,null,null,null,null,null,null,null,null,null,null,149,"إيزى  بوتى (أبيض)"]
[null,null,null,null,null,null,null,null,null,null,null,null,null,null,null,null,null,null,null,null,null,null,null,0,"إيزى  بوتى (أبيض)"]
[null,null,null,null,null,null,null,null,null,null,null,null,null,null,null,null,null,null,null,null,null,null,null,0,"إيزى  بوتى (أبيض)"]
[null,null,null,null,null,null,null,null,null,null,null,null,null,null,null,null,null,null,null,null,null,null,null,84,"إيزى  بوتى (أبيض)"]
[null,null,null,null,null,null,null,null,null,null,null,null,null,null,null,null,null,null,null,null,null,null,null,28,"إيزى  بوتى (أبيض)"]
[null,null,null,null,null,null,null,null,null,null,null,null,null,null,null,null,null,null,null,null,null,null,null,153,"إيزى  رويال ( أبيض )"]
[null,null,null,null,null,null,null,null,null,null,null,null,null,null,null,null,null,null,null,null,null,null,null,0,"إيزى  ستار & جلاكسى"]
[null,null,null,null,null,null,null,null,null,null,null,null,null,null,null,null,null,null,null,null,null,null,null,252,"إيزى  ستان (أبيض)"]
[null,null,null,null,null,null,null,null,null,null,null,null,null,null,null,null,null,null,null,null,null,null,null,0,"إيزى  شامواه"]
[null,null,null,null,null,null,null,null,null,null,null,null,null,null,null,null,null,null,null,null,null,null,null,120,"إيزى  شامواه ( برونز )"]
[null,null,null,null,null,null,null,null,null,null,null,null,null,null,null,null,null,null,null,null,null,null,null,120,"إيزى  شامواه ( ذهبى )"]
[null,null,null,null,null,null,null,null,null,null,null,null,null,null,null,null,null,null,null,null,null,null,null,120,"إيزى  شامواه ( نبيتى )"]
[null,null,null,null,null,null,null,null,null,null,null,null,null,null,null,null,null,null,null,null,null,null,null,0,"إيزى  شاين"]
[null,null,null,null,null,null,null,null,null,null,null,null,null,null,null,null,null,null,null,null,null,null,null,75,"إيزى  شاين ( برونز )"]
[null,null,null,null,null,null,null,null,null,null,null,null,null,null,null,null,null,null,null,null,null,null,null,75,"إيزى  شاين ( بنى )"]
[null,null,null,null,null,null,null,null,null,null,null,null,null,null,null,null,null,null,null,null,null,null,null,75,"إيزى  شاين ( ذهبى )"]
[null,null,null,null,null,null,null,null,null,null,null,null,null,null,null,null,null,null,null,null,null,null,null,75,"إيزى  شاين ( فضى )"]
[null,null,null,null,null,null,null,null,null,null,null,null,null,null,null,null,null,null,null,null,null,null,null,75,"إيزى  شاين ( فضى غامق )"]
[null,null,null,null,null,null,null,null,null,null,null,null,null,null,null,null,null,null,null,null,null,null,null,75,"إيزى  شاين ( موف )"]
[null,null,null,null,null,null,null,null,null,null,null,null,null,null,null,null,null,null,null,null,null,null,null,75,"إيزى  شاين ( نبيتى )"]
[null,null,null,null,null,null,null,null,null,null,null,null,null,null,null,null,null,null,null,null,null,null,null,0,"إيزى  فوندشن"]
[null,null,null,null,null,null,null,null,null,null,null,null,null,null,null,null,null,null,null,null,null,null,null,216,"إيزى  فوندشن ( أبيض )"]
[null,null,null,null,null,null,null,null,null,null,null,null,null,null,null,null,null,null,null,null,null,null,null,77,"إيزى  فوندشن ( أبيض )"]
[null,null,null,null,null,null,null,null,null,null,null,null,null,null,null,null,null,null,null,null,null,null,null,0,"إيزى  فيستفال"]
[null,null,null,null,null,null,null,null,null,null,null,null,null,null,null,null,null,null,null,null,null,null,null,105,"إيزى  فيستفال ( برونز )"]
[null,null,null,null,null,null,null,null,null,null,null,null,null,null,null,null,null,null,null,null,null,null,null,105,"إيزى  فيستفال ( فضى )"]
[null,null,null,null,null,null,null,null,null,null,null,null,null,null,null,null,null,null,null,null,null,null,null,105,"إيزى  فيستفال ( نبيتى )"]
[null,null,null,null,null,null,null,null,null,null,null,null,null,null,null,null,null,null,null,null,null,null,null,387,"إيزى  فينيل سلك (أبيض)"]
[null,null,null,null,null,null,null,null,null,null,null,null,null,null,null,null,null,null,null,null,null,null,null,0,"إيزى  كريستال"]
[null,null,null,null,null,null,null,null,null,null,null,null,null,null,null,null,null,null,null,null,null,null,null,75,"إيزى  كريستال ( أحمر )"]
[null,null,null,null,null,null,null,null,null,null,null,null,null,null,null,null,null,null,null,null,null,null,null,75,"إيزى  كريستال ( بنى)"]
[null,null,null,null,null,null,null,null,null,null,null,null,null,null,null,null,null,null,null,null,null,null,null,75,"إيزى  كريستال ( ذهبى )"]
[null,null,null,null,null,null,null,null,null,null,null,null,null,null,null,null,null,null,null,null,null,null,null,75,"إيزى  كريستال ( روز )"]
[null,null,null,null,null,null,null,null,null,null,null,null,null,null,null,null,null,null,null,null,null,null,null,75,"إيزى  كريستال ( فضى )"]
[null,null,null,null,null,null,null,null,null,null,null,null,null,null,null,null,null,null,null,null,null,null,null,75,"إيزى  كريستال ( فوشيا )"]
[null,null,null,null,null,null,null,null,null,null,null,null,null,null,null,null,null,null,null,null,null,null,null,75,"إيزى  كريستال ( موف غامق )"]
[null,null,null,null,null,null,null,null,null,null,null,null,null,null,null,null,null,null,null,null,null,null,null,75,"إيزى  كريستال ( موف فاتح )"]
[null,null,null,null,null,null,null,null,null,null,null,null,null,null,null,null,null,null,null,null,null,null,null,60,"إيزى  مارمرينو (أبيض)"]
[null,null,null,null,null,null,null,null,null,null,null,null,null,null,null,null,null,null,null,null,null,null,null,0,"إيزى  ورود"]
[null,null,null,null,null,null,null,null,null,null,null,null,null,null,null,null,null,null,null,null,null,null,null,53,"إيزى  ورود ( أبيض )"]
[null,null,null,null,null,null,null,null,null,null,null,null,null,null,null,null,null,null,null,null,null,null,null,53,"إيزى  ورود ( أبيض × أسود )"]
[null,null,null,null,null,null,null,null,null,null,null,null,null,null,null,null,null,null,null,null,null,null,null,53,"إيزى  ورود ( أحمر )"]
[null,null,null,null,null,null,null,null,null,null,null,null,null,null,null,null,null,null,null,null,null,null,null,53,"إيزى  ورود ( أخضر )"]
[null,null,null,null,null,null,null,null,null,null,null,null,null,null,null,null,null,null,null,null,null,null,null,53,"إيزى  ورود ( أسود )"]
[null,null,null,null,null,null,null,null,null,null,null,null,null,null,null,null,null,null,null,null,null,null,null,53,"إيزى  ورود ( بنى )"]
[null,null,null,null,null,null,null,null,null,null,null,null,null,null,null,null,null,null,null,null,null,null,null,53,"إيزى  ورود ( ذهبى )"]
[null,null,null,null,null,null,null,null,null,null,null,null,null,null,null,null,null,null,null,null,null,null,null,53,"إيزى  ورود ( زهرى )"]
[null,null,null,null,null,null,null,null,null,null,null,null,null,null,null,null,null,null,null,null,null,null,null,53,"إيزى  ورود ( عسلى )"]
[null,null,null,null,null,null,null,null,null,null,null,null,null,null,null,null,null,null,null,null,null,null,null,53,"إيزى  ورود ( عفنى )"]
[null,null,null,null,null,null,null,null,null,null,null,null,null,null,null,null,null,null,null,null,null,null,null,53,"إيزى  ورود ( فضى )"]
[null,null,null,null,null,null,null,null,null,null,null,null,null,null,null,null,null,null,null,null,null,null,null,53,"إيزى  ورود ( ميكس أحمر )"]
[null,null,null,null,null,null,null,null,null,null,null,null,null,null,null,null,null,null,null,null,null,null,null,53,"إيزى  ورود ( ميكس أزرق )"]
[null,null,null,null,null,null,null,null,null,null,null,null,null,null,null,null,null,null,null,null,null,null,null,53,"إيزى  ورود ( ميكس أسود )"]
[null,null,null,null,null,null,null,null,null,null,null,null,null,null,null,null,null,null,null,null,null,null,null,53,"إيزى  ورود ( ميكس روز )"]
[null,null,null,null,null,null,null,null,null,null,null,null,null,null,null,null,null,null,null,null,null,null,null,53,"إيزى  ورود ( ميكس موف )"]
[null,null,null,null,null,null,null,null,null,null,null,null,null,null,null,null,null,null,null,null,null,null,null,53,"إيزى  ورود ( نحاسى )"]
[null,null,null,null,null,null,null,null,null,null,null,null,null,null,null,null,null,null,null,null,null,null,null,0,"إيزى  وهاج"]
[null,null,null,null,null,null,null,null,null,null,null,null,null,null,null,null,null,null,null,null,null,null,null,375,"إيزى إكشل (أبيض)"]
[null,null,null,null,null,null,null,null,null,null,null,null,null,null,null,null,null,null,null,null,null,null,null,176,"إيزى أورجينتو ( فضى )"]
[null,null,null,null,null,null,null,null,null,null,null,null,null,null,null,null,null,null,null,null,null,null,null,115,"إيزى سيلر (شفاف)"]
[null,null,null,null,null,null,null,null,null,null,null,null,null,null,null,null,null,null,null,null,null,null,null,0,"إيزى سيلر (شفاف)"]
[null,null,null,null,null,null,null,null,null,null,null,null,null,null,null,null,null,null,null,null,null,null,null,41,"إيزى سيلر (شفاف)"]
[null,null,null,null,null,null,null,null,null,null,null,null,null,null,null,null,null,null,null,null,null,null,null,120,"إيزى شامواه ( فضى )"]
[null,null,null,null,null,null,null,null,null,null,null,null,null,null,null,null,null,null,null,null,null,null,null,120,"إيزى شامواه ( نحاسى )"]
[null,null,null,null,null,null,null,null,null,null,null,null,null,null,null,null,null,null,null,null,null,null,null,75,"إيزى شاين ( نحاسى )"]
[null,null,null,null,null,null,null,null,null,null,null,null,null,null,null,null,null,null,null,null,null,null,null,105,"إيزى فيستفال ( ذهبى )"]
[null,null,null,null,null,null,null,null,null,null,null,null,null,null,null,null,null,null,null,null,null,null,null,105,"إيزى فيستفال ( نحاسى )"]
[null,null,null,null,null,null,null,null,null,null,null,null,null,null,null,null,null,null,null,null,null,null,null,75,"إيزى كريستال ( أخضر )"]
[null,null,null,null,null,null,null,null,null,null,null,null,null,null,null,null,null,null,null,null,null,null,null,75,"إيزى كريستال ( أزرق )"]
[null,null,null,null,null,null,null,null,null,null,null,null,null,null,null,null,null,null,null,null,null,null,null,75,"إيزى كريستال ( أسود )"]
[null,null,null,null,null,null,null,null,null,null,null,null,null,null,null,null,null,null,null,null,null,null,null,75,"إيزى كريستال ( تركواز )"]
[null,null,null,null,null,null,null,null,null,null,null,null,null,null,null,null,null,null,null,null,null,null,null,75,"إيزى كريستال ( نبيتى )"]
[null,null,null,null,null,null,null,null,null,null,null,null,null,null,null,null,null,null,null,null,null,null,null,75,"إيزى كريستال ( نحاسى )"]
[null,null,null,null,null,null,null,null,null,null,null,null,null,null,null,null,null,null,null,null,null,null,null,53,"إيزى ورود ( أزرق )"]
[null,null,null,null,null,null,null,null,null,null,null,null,null,null,null,null,null,null,null,null,null,null,null,53,"إيزى ورود ( تركواز )"]
[null,null,null,null,null,null,null,null,null,null,null,null,null,null,null,null,null,null,null,null,null,null,null,53,"إيزى ورود ( طوبى )"]
[null,null,null,null,null,null,null,null,null,null,null,null,null,null,null,null,null,null,null,null,null,null,null,53,"إيزى ورود ( ميكس نحاسى )"]
[null,null,null,null,null,null,null,null,null,null,null,null,null,null,null,null,null,null,null,null,null,null,null,53,"إيزى ورود ( نبيتى )"]
[null,null,null,null,null,null,null,null,null,null,null,null,null,null,null,null,null,null,null,null,null,null,null,53,"إيزى ورود ( نهدى )"]
[null,null,null,null,null,null,null,null,null,null,null,null,null,null,null,null,null,null,null,null,null,null,null,108,"إيزى وهاج ( ذهبى )"]
[null,null,null,null,null,null,null,null,null,null,null,null,null,null,null,null,null,null,null,null,null,null,null,108,"إيزى وهاج ( فضى )"]
[null,null,null,null,null,null,null,null,null,null,null,null,null,null,null,null,null,null,null,null,null,null,null,60,"أسفنج تعتيق بحرى 2"]
[null,null,null,null,null,null,null,null,null,null,null,null,null,null,null,null,null,null,null,null,null,null,null,14,"باكت غيار أسفنج (2 قطعة)"]
[null,null,null,null,null,null,null,null,null,null,null,null,null,null,null,null,null,null,null,null,null,null,null,10,"باكت غيار عادى (2 قطعة)"]
[null,null,null,null,null,null,null,null,null,null,null,null,null,null,null,null,null,null,null,null,null,null,null,22,"باكت نوت مطبوع 9*9"]
[null,null,null,null,null,null,null,null,null,null,null,null,null,null,null,null,null,null,null,null,null,null,null,98,"بالطو أبيض مطبوع"]
[null,null,null,null,null,null,null,null,null,null,null,null,null,null,null,null,null,null,null,null,null,null,null,60,"بروة تلبيس بيد أحمر × أسود"]
[null,null,null,null,null,null,null,null,null,null,null,null,null,null,null,null,null,null,null,null,null,null,null,76,"بروة جرافياتو"]
[null,null,null,null,null,null,null,null,null,null,null,null,null,null,null,null,null,null,null,null,null,null,null,40,"بروش 170 × 70"]
[null,null,null,null,null,null,null,null,null,null,null,null,null,null,null,null,null,null,null,null,null,null,null,49,"بروش بيد بلاستيك أسود (4 بوصة)"]
[null,null,null,null,null,null,null,null,null,null,null,null,null,null,null,null,null,null,null,null,null,null,null,71,"بروش بيد بلاستيك أسود (5 بوصة)"]
[null,null,null,null,null,null,null,null,null,null,null,null,null,null,null,null,null,null,null,null,null,null,null,80,"بروش بيد بلاستيك أسود (6 بوصة)"]
[null,null,null,null,null,null,null,null,null,null,null,null,null,null,null,null,null,null,null,null,null,null,null,89,"بروش بيد بلاستيك أسود (7 بوصة)"]
[null,null,null,null,null,null,null,null,null,null,null,null,null,null,null,null,null,null,null,null,null,null,null,98,"بروش بيد بلاستيك أسود (8 بوصة)"]
[null,null,null,null,null,null,null,null,null,null,null,null,null,null,null,null,null,null,null,null,null,null,null,139,"بروش بيضاوى"]
[null,null,null,null,null,null,null,null,null,null,null,null,null,null,null,null,null,null,null,null,null,null,null,60,"بروش شبه مستطيل 3 × 10"]
[null,null,null,null,null,null,null,null,null,null,null,null,null,null,null,null,null,null,null,null,null,null,null,40,"بروش شبه مستطيل 3 × 7"]
[null,null,null,null,null,null,null,null,null,null,null,null,null,null,null,null,null,null,null,null,null,null,null,101,"بروش شبه مستطيل 5 × 15"]
[null,null,null,null,null,null,null,null,null,null,null,null,null,null,null,null,null,null,null,null,null,null,null,80,"بروش مدور"]
[null,null,null,null,null,null,null,null,null,null,null,null,null,null,null,null,null,null,null,null,null,null,null,70,"بروش مستطيل 30 × 100"]
[null,null,null,null,null,null,null,null,null,null,null,null,null,null,null,null,null,null,null,null,null,null,null,80,"بروش مستطيل 30 × 120"]
[null,null,null,null,null,null,null,null,null,null,null,null,null,null,null,null,null,null,null,null,null,null,null,40,"بروش مستطيل 30 × 70"]
[null,null,null,null,null,null,null,null,null,null,null,null,null,null,null,null,null,null,null,null,null,null,null,89,"بروش مستطيل 40 × 140"]
[null,null,null,null,null,null,null,null,null,null,null,null,null,null,null,null,null,null,null,null,null,null,null,98,"بروش مستطيل 50 × 150"]
[null,null,null,null,null,null,null,null,null,null,null,null,null,null,null,null,null,null,null,null,null,null,null,40,"بروش مستطيل للسقف"]
[null,null,null,null,null,null,null,null,null,null,null,null,null,null,null,null,null,null,null,null,null,null,null,155,"بكرة إستراتز"]
[null,null,null,null,null,null,null,null,null,null,null,null,null,null,null,null,null,null,null,null,null,null,null,18,"بكرة إستراتز (1متر)"]
[null,null,null,null,null,null,null,null,null,null,null,null,null,null,null,null,null,null,null,null,null,null,null,72,"بكرة صنفرة (10م)"]
[null,null,null,null,null,null,null,null,null,null,null,null,null,null,null,null,null,null,null,null,null,null,null,0,"بلاستيك ربع لامع"]
[null,null,null,null,null,null,null,null,null,null,null,null,null,null,null,null,null,null,null,null,null,null,null,0,"بلاستيك لامع"]
[null,null,null,null,null,null,null,null,null,null,null,null,null,null,null,null,null,null,null,null,null,null,null,0,"بلاستيك مطفى خارجى"]
[null,null,null,null,null,null,null,null,null,null,null,null,null,null,null,null,null,null,null,null,null,null,null,0,"بلاستيك مطفي"]
[null,null,null,null,null,null,null,null,null,null,null,null,null,null,null,null,null,null,null,null,null,null,null,0,"بلاستيك مطفي"]
[null,null,null,null,null,null,null,null,null,null,null,null,null,null,null,null,null,null,null,null,null,null,null,0,"بلاستيك مطفي"]
[null,null,null,null,null,null,null,null,null,null,null,null,null,null,null,null,null,null,null,null,null,null,null,0,"بلاستيك نصف لامع"]
[null,null,null,null,null,null,null,null,null,null,null,null,null,null,null,null,null,null,null,null,null,null,null,98,"تى شيرت الندى"]
[null,null,null,null,null,null,null,null,null,null,null,null,null,null,null,null,null,null,null,null,null,null,null,470,"جالون 2.5ك( Silver 900 ) الندى شيدز"]
[null,null,null,null,null,null,null,null,null,null,null,null,null,null,null,null,null,null,null,null,null,null,null,30,"جردل دهان صغير"]
[null,null,null,null,null,null,null,null,null,null,null,null,null,null,null,null,null,null,null,null,null,null,null,40,"جردل دهان كبير"]
[null,null,null,null,null,null,null,null,null,null,null,null,null,null,null,null,null,null,null,null,null,null,null,46,"جلدة تعتيق خشب رفيع 2 قطعة"]
[null,null,null,null,null,null,null,null,null,null,null,null,null,null,null,null,null,null,null,null,null,null,null,46,"جلدة تعتيق خشب عريض 2 قطعة"]
[null,null,null,null,null,null,null,null,null,null,null,null,null,null,null,null,null,null,null,null,null,null,null,7,"جيولس ليجند بيضاوى"]
[null,null,null,null,null,null,null,null,null,null,null,null,null,null,null,null,null,null,null,null,null,null,null,5,"جيولس ليجند مدور"]
[null,null,null,null,null,null,null,null,null,null,null,null,null,null,null,null,null,null,null,null,null,null,null,6,"جيولس ليجند مربع"]
[null,null,null,null,null,null,null,null,null,null,null,null,null,null,null,null,null,null,null,null,null,null,null,18,"حزام ديكورى (13 سم) 10م"]
[null,null,null,null,null,null,null,null,null,null,null,null,null,null,null,null,null,null,null,null,null,null,null,10,"حزام ديكورى (13 سم) 5م"]
[null,null,null,null,null,null,null,null,null,null,null,null,null,null,null,null,null,null,null,null,null,null,null,98,"دبوس الندى"]
[null,null,null,null,null,null,null,null,null,null,null,null,null,null,null,null,null,null,null,null,null,null,null,120,"دهان إستنسل مجسم CH"]
[null,null,null,null,null,null,null,null,null,null,null,null,null,null,null,null,null,null,null,null,null,null,null,0,"دهان إستنسل مجسم CH جالون 3.75"]
[null,null,null,null,null,null,null,null,null,null,null,null,null,null,null,null,null,null,null,null,null,null,null,483,"دهان جلود حيوانات ( التمساح )"]
[null,null,null,null,null,null,null,null,null,null,null,null,null,null,null,null,null,null,null,null,null,null,null,483,"دهان جلود حيوانات ( الثعبان اخضر)"]
[null,null,null,null,null,null,null,null,null,null,null,null,null,null,null,null,null,null,null,null,null,null,null,483,"دهان جلود حيوانات ( الثعبان ازرق)"]
[null,null,null,null,null,null,null,null,null,null,null,null,null,null,null,null,null,null,null,null,null,null,null,483,"دهان جلود حيوانات ( الثعبان نبيتى)"]
[null,null,null,null,null,null,null,null,null,null,null,null,null,null,null,null,null,null,null,null,null,null,null,483,"دهان جلود حيوانات ( الحمار الوحشى )"]
[null,null,null,null,null,null,null,null,null,null,null,null,null,null,null,null,null,null,null,null,null,null,null,483,"دهان جلود حيوانات ( الفيل )"]
[null,null,null,null,null,null,null,null,null,null,null,null,null,null,null,null,null,null,null,null,null,null,null,483,"دهان جلود حيوانات ( النمر الأبيض )"]
[null,null,null,null,null,null,null,null,null,null,null,null,null,null,null,null,null,null,null,null,null,null,null,483,"دهان جلود حيوانات ( النمر المخطط )"]
[null,null,null,null,null,null,null,null,null,null,null,null,null,null,null,null,null,null,null,null,null,null,null,483,"دهان جلود حيوانات ( النمر المنقط )"]
[null,null,null,null,null,null,null,null,null,null,null,null,null,null,null,null,null,null,null,null,null,null,null,483,"دهان جلود حيوانات (الثعبان نحاسى)"]
[null,null,null,null,null,null,null,null,null,null,null,null,null,null,null,null,null,null,null,null,null,null,null,29,"ربل تعتيق أبيض بيد بلاستيك"]
[null,null,null,null,null,null,null,null,null,null,null,null,null,null,null,null,null,null,null,null,null,null,null,30,"ربل تعتيق أخضر شبه مربع"]
[null,null,null,null,null,null,null,null,null,null,null,null,null,null,null,null,null,null,null,null,null,null,null,40,"ربل تعتيق أخضر مثلث"]
[null,null,null,null,null,null,null,null,null,null,null,null,null,null,null,null,null,null,null,null,null,null,null,22,"ربل تعتيق خشبى صغير"]
[null,null,null,null,null,null,null,null,null,null,null,null,null,null,null,null,null,null,null,null,null,null,null,30,"ربل تعتيق خشبى كبير"]
[null,null,null,null,null,null,null,null,null,null,null,null,null,null,null,null,null,null,null,null,null,null,null,24,"ربل تعتيق خشبى وسط"]
[null,null,null,null,null,null,null,null,null,null,null,null,null,null,null,null,null,null,null,null,null,null,null,60,"رولة إيطالى (10 بوصة)"]
[null,null,null,null,null,null,null,null,null,null,null,null,null,null,null,null,null,null,null,null,null,null,null,40,"رولة إيطالى (7 بوصة)"]
[null,null,null,null,null,null,null,null,null,null,null,null,null,null,null,null,null,null,null,null,null,null,null,24,"رولة بلاستيك بيد حمراء"]
[null,null,null,null,null,null,null,null,null,null,null,null,null,null,null,null,null,null,null,null,null,null,null,49,"رولة تعتيق أسفنج (7 بوصة)"]
[null,null,null,null,null,null,null,null,null,null,null,null,null,null,null,null,null,null,null,null,null,null,null,60,"رولة تعتيق أسفنج (8 بوصة)"]
[null,null,null,null,null,null,null,null,null,null,null,null,null,null,null,null,null,null,null,null,null,null,null,49,"رولة جلد باليد"]
[null,null,null,null,null,null,null,null,null,null,null,null,null,null,null,null,null,null,null,null,null,null,null,49,"رولة ربل نقشات بالأيدى"]
[null,null,null,null,null,null,null,null,null,null,null,null,null,null,null,null,null,null,null,null,null,null,null,49,"رولة فيونكة باليد"]
[null,null,null,null,null,null,null,null,null,null,null,null,null,null,null,null,null,null,null,null,null,null,null,30,"رولة موهير (9 بوصة)"]
[null,null,null,null,null,null,null,null,null,null,null,null,null,null,null,null,null,null,null,null,null,null,null,49,"رولة ورق حائط (7 بوصة)"]
[null,null,null,null,null,null,null,null,null,null,null,null,null,null,null,null,null,null,null,null,null,null,null,395,"ستاند بانر"]
[null,null,null,null,null,null,null,null,null,null,null,null,null,null,null,null,null,null,null,null,null,null,null,30,"سكين بلاستيك بشكل مثلث"]
[null,null,null,null,null,null,null,null,null,null,null,null,null,null,null,null,null,null,null,null,null,null,null,7,"سكين بيد أحمر × أسود ( 1 بوصة )"]
[null,null,null,null,null,null,null,null,null,null,null,null,null,null,null,null,null,null,null,null,null,null,null,10,"سكين بيد أحمر × أسود ( 1.5 بوصة )"]
[null,null,null,null,null,null,null,null,null,null,null,null,null,null,null,null,null,null,null,null,null,null,null,11,"سكين بيد أحمر × أسود ( 2 بوصة )"]
[null,null,null,null,null,null,null,null,null,null,null,null,null,null,null,null,null,null,null,null,null,null,null,13,"سكين بيد أحمر × أسود ( 2.5 بوصة )"]
[null,null,null,null,null,null,null,null,null,null,null,null,null,null,null,null,null,null,null,null,null,null,null,14,"سكين بيد أحمر × أسود ( 3 بوصة )"]
[null,null,null,null,null,null,null,null,null,null,null,null,null,null,null,null,null,null,null,null,null,null,null,16,"سكين بيد أحمر × أسود ( 4 بوصة )"]
[null,null,null,null,null,null,null,null,null,null,null,null,null,null,null,null,null,null,null,null,null,null,null,13,"سكين بيد بلاستيك صفراء ( 3 بوصة )"]
[null,null,null,null,null,null,null,null,null,null,null,null,null,null,null,null,null,null,null,null,null,null,null,16,"سكين بيد بلاستيك صفراء ( 4 بوصة )"]
[null,null,null,null,null,null,null,null,null,null,null,null,null,null,null,null,null,null,null,null,null,null,null,22,"سكين بيد بلاستيك صفراء ( 5 بوصة )"]
[null,null,null,null,null,null,null,null,null,null,null,null,null,null,null,null,null,null,null,null,null,null,null,24,"سكين بيد بلاستيك صفراء ( 6 بوصة )"]
[null,null,null,null,null,null,null,null,null,null,null,null,null,null,null,null,null,null,null,null,null,null,null,29,"سكين بيد بلاستيك صفراء ( 8 بوصة )"]
[null,null,null,null,null,null,null,null,null,null,null,null,null,null,null,null,null,null,null,null,null,null,null,11,"سكين بيد سوداء طرف حديد ( 1 بوصة )"]
[null,null,null,null,null,null,null,null,null,null,null,null,null,null,null,null,null,null,null,null,null,null,null,13,"سكين بيد سوداء طرف حديد ( 1.5 بوصة )"]
[null,null,null,null,null,null,null,null,null,null,null,null,null,null,null,null,null,null,null,null,null,null,null,14,"سكين بيد سوداء طرف حديد ( 2 بوصة )"]
[null,null,null,null,null,null,null,null,null,null,null,null,null,null,null,null,null,null,null,null,null,null,null,16,"سكين بيد سوداء طرف حديد ( 2.5 بوصة )"]
[null,null,null,null,null,null,null,null,null,null,null,null,null,null,null,null,null,null,null,null,null,null,null,19,"سكين بيد سوداء طرف حديد ( 3 بوصة )"]
[null,null,null,null,null,null,null,null,null,null,null,null,null,null,null,null,null,null,null,null,null,null,null,22,"سكين بيد سوداء طرف حديد ( 4 بوصة )"]
[null,null,null,null,null,null,null,null,null,null,null,null,null,null,null,null,null,null,null,null,null,null,null,30,"سكين تطبيق الأنتيكا"]
[null,null,null,null,null,null,null,null,null,null,null,null,null,null,null,null,null,null,null,null,null,null,null,35,"سكين تقطيع وتنظيف"]
[null,null,null,null,null,null,null,null,null,null,null,null,null,null,null,null,null,null,null,null,null,null,null,56,"سكين تقطيع ورق حائط"]
[null,null,null,null,null,null,null,null,null,null,null,null,null,null,null,null,null,null,null,null,null,null,null,76,"سكين عريض بيد حمراء ( 12 بوصة )"]
[null,null,null,null,null,null,null,null,null,null,null,null,null,null,null,null,null,null,null,null,null,null,null,60,"سكين عريض بيد حمراء ( 8 بوصة )"]
[null,null,null,null,null,null,null,null,null,null,null,null,null,null,null,null,null,null,null,null,null,null,null,10,"سكين كندا ( 1 بوصة )"]
[null,null,null,null,null,null,null,null,null,null,null,null,null,null,null,null,null,null,null,null,null,null,null,11,"سكين كندا ( 1.5 بوصة )"]
[null,null,null,null,null,null,null,null,null,null,null,null,null,null,null,null,null,null,null,null,null,null,null,13,"سكين كندا ( 2 بوصة )"]
[null,null,null,null,null,null,null,null,null,null,null,null,null,null,null,null,null,null,null,null,null,null,null,14,"سكين كندا ( 2.5 بوصة )"]
[null,null,null,null,null,null,null,null,null,null,null,null,null,null,null,null,null,null,null,null,null,null,null,16,"سكين كندا ( 3 بوصة )"]
[null,null,null,null,null,null,null,null,null,null,null,null,null,null,null,null,null,null,null,null,null,null,null,19,"سكين كندا ( 4 بوصة )"]
[null,null,null,null,null,null,null,null,null,null,null,null,null,null,null,null,null,null,null,null,null,null,null,22,"سكين كندا ( 5 بوصة )"]
[null,null,null,null,null,null,null,null,null,null,null,null,null,null,null,null,null,null,null,null,null,null,null,23,"سكين كندا ( 6 بوصة )"]
[null,null,null,null,null,null,null,null,null,null,null,null,null,null,null,null,null,null,null,null,null,null,null,11,"سكين كندا أخضر ( 1 بوصة )"]
[null,null,null,null,null,null,null,null,null,null,null,null,null,null,null,null,null,null,null,null,null,null,null,13,"سكين كندا أخضر ( 1.5 بوصة )"]
[null,null,null,null,null,null,null,null,null,null,null,null,null,null,null,null,null,null,null,null,null,null,null,14,"سكين كندا أخضر ( 2 بوصة )"]
[null,null,null,null,null,null,null,null,null,null,null,null,null,null,null,null,null,null,null,null,null,null,null,16,"سكين كندا أخضر ( 2.5 بوصة )"]
[null,null,null,null,null,null,null,null,null,null,null,null,null,null,null,null,null,null,null,null,null,null,null,19,"سكين كندا أخضر ( 3 بوصة )"]
[null,null,null,null,null,null,null,null,null,null,null,null,null,null,null,null,null,null,null,null,null,null,null,22,"سكين كندا أخضر ( 4 بوصة )"]
[null,null,null,null,null,null,null,null,null,null,null,null,null,null,null,null,null,null,null,null,null,null,null,23,"سكين كندا أخضر ( 5 بوصة )"]
[null,null,null,null,null,null,null,null,null,null,null,null,null,null,null,null,null,null,null,null,null,null,null,24,"سكين كندا أخضر ( 6 بوصة )"]
[null,null,null,null,null,null,null,null,null,null,null,null,null,null,null,null,null,null,null,null,null,null,null,6,"سكين كندا أسود ( 1 بوصة )"]
[null,null,null,null,null,null,null,null,null,null,null,null,null,null,null,null,null,null,null,null,null,null,null,7,"سكين كندا أسود ( 1.5 بوصة )"]
[null,null,null,null,null,null,null,null,null,null,null,null,null,null,null,null,null,null,null,null,null,null,null,10,"سكين كندا أسود ( 2 بوصة )"]
[null,null,null,null,null,null,null,null,null,null,null,null,null,null,null,null,null,null,null,null,null,null,null,11,"سكين كندا أسود ( 2.5 بوصة )"]
[null,null,null,null,null,null,null,null,null,null,null,null,null,null,null,null,null,null,null,null,null,null,null,13,"سكين كندا أسود ( 3 بوصة )"]
[null,null,null,null,null,null,null,null,null,null,null,null,null,null,null,null,null,null,null,null,null,null,null,14,"سكين كندا أسود ( 4 بوصة )"]
[null,null,null,null,null,null,null,null,null,null,null,null,null,null,null,null,null,null,null,null,null,null,null,16,"سكين كندا أسود ( 5 بوصة )"]
[null,null,null,null,null,null,null,null,null,null,null,null,null,null,null,null,null,null,null,null,null,null,null,19,"سكين كندا أسود ( 6 بوصة )"]
[null,null,null,null,null,null,null,null,null,null,null,null,null,null,null,null,null,null,null,null,null,null,null,11,"سكين كندا أسود × أصفر ( 1 بوصة )"]
[null,null,null,null,null,null,null,null,null,null,null,null,null,null,null,null,null,null,null,null,null,null,null,13,"سكين كندا أسود × أصفر ( 1.5 بوصة )"]
[null,null,null,null,null,null,null,null,null,null,null,null,null,null,null,null,null,null,null,null,null,null,null,14,"سكين كندا أسود × أصفر ( 2 بوصة )"]
[null,null,null,null,null,null,null,null,null,null,null,null,null,null,null,null,null,null,null,null,null,null,null,16,"سكين كندا أسود × أصفر ( 2.5 بوصة )"]
[null,null,null,null,null,null,null,null,null,null,null,null,null,null,null,null,null,null,null,null,null,null,null,19,"سكين كندا أسود × أصفر ( 3 بوصة )"]
[null,null,null,null,null,null,null,null,null,null,null,null,null,null,null,null,null,null,null,null,null,null,null,22,"سكين كندا أسود × أصفر ( 4 بوصة )"]
[null,null,null,null,null,null,null,null,null,null,null,null,null,null,null,null,null,null,null,null,null,null,null,23,"سكين كندا أسود × أصفر ( 5 بوصة )"]
[null,null,null,null,null,null,null,null,null,null,null,null,null,null,null,null,null,null,null,null,null,null,null,24,"سكين كندا أسود × أصفر ( 6 بوصة )"]
[null,null,null,null,null,null,null,null,null,null,null,null,null,null,null,null,null,null,null,null,null,null,null,11,"سكين كندا أسود × برتقالى ( 1 بوصة )"]
[null,null,null,null,null,null,null,null,null,null,null,null,null,null,null,null,null,null,null,null,null,null,null,13,"سكين كندا أسود × برتقالى ( 1.5 بوصة )"]
[null,null,null,null,null,null,null,null,null,null,null,null,null,null,null,null,null,null,null,null,null,null,null,14,"سكين كندا أسود × برتقالى ( 2 بوصة )"]
[null,null,null,null,null,null,null,null,null,null,null,null,null,null,null,null,null,null,null,null,null,null,null,16,"سكين كندا أسود × برتقالى ( 2.5 بوصة )"]
[null,null,null,null,null,null,null,null,null,null,null,null,null,null,null,null,null,null,null,null,null,null,null,19,"سكين كندا أسود × برتقالى ( 3 بوصة )"]
[null,null,null,null,null,null,null,null,null,null,null,null,null,null,null,null,null,null,null,null,null,null,null,22,"سكين كندا أسود × برتقالى ( 4 بوصة )"]
[null,null,null,null,null,null,null,null,null,null,null,null,null,null,null,null,null,null,null,null,null,null,null,23,"سكين كندا أسود × برتقالى ( 5 بوصة )"]
[null,null,null,null,null,null,null,null,null,null,null,null,null,null,null,null,null,null,null,null,null,null,null,7,"سكين كندا أصفر ( 1 بوصة )"]
[null,null,null,null,null,null,null,null,null,null,null,null,null,null,null,null,null,null,null,null,null,null,null,10,"سكين كندا أصفر ( 1.5 بوصة )"]
[null,null,null,null,null,null,null,null,null,null,null,null,null,null,null,null,null,null,null,null,null,null,null,11,"سكين كندا أصفر ( 2 بوصة )"]
[null,null,null,null,null,null,null,null,null,null,null,null,null,null,null,null,null,null,null,null,null,null,null,13,"سكين كندا أصفر ( 2.5 بوصة )"]
[null,null,null,null,null,null,null,null,null,null,null,null,null,null,null,null,null,null,null,null,null,null,null,14,"سكين كندا أصفر ( 3 بوصة )"]
[null,null,null,null,null,null,null,null,null,null,null,null,null,null,null,null,null,null,null,null,null,null,null,16,"سكين كندا أصفر ( 4 بوصة )"]
[null,null,null,null,null,null,null,null,null,null,null,null,null,null,null,null,null,null,null,null,null,null,null,19,"سكين كندا أصفر ( 5 بوصة )"]
[null,null,null,null,null,null,null,null,null,null,null,null,null,null,null,null,null,null,null,null,null,null,null,22,"سكين كندا أصفر ( 6 بوصة )"]
[null,null,null,null,null,null,null,null,null,null,null,null,null,null,null,null,null,null,null,null,null,null,null,14,"سكين كندا بيد خشب ( 1 بوصة )"]
[null,null,null,null,null,null,null,null,null,null,null,null,null,null,null,null,null,null,null,null,null,null,null,16,"سكين كندا بيد خشب ( 1.5 بوصة )"]
[null,null,null,null,null,null,null,null,null,null,null,null,null,null,null,null,null,null,null,null,null,null,null,19,"سكين كندا بيد خشب ( 2 بوصة )"]
[null,null,null,null,null,null,null,null,null,null,null,null,null,null,null,null,null,null,null,null,null,null,null,22,"سكين كندا بيد خشب ( 2.5 بوصة )"]
[null,null,null,null,null,null,null,null,null,null,null,null,null,null,null,null,null,null,null,null,null,null,null,23,"سكين كندا بيد خشب ( 3 بوصة )"]
[null,null,null,null,null,null,null,null,null,null,null,null,null,null,null,null,null,null,null,null,null,null,null,24,"سكين كندا بيد خشب ( 4 بوصة )"]
[null,null,null,null,null,null,null,null,null,null,null,null,null,null,null,null,null,null,null,null,null,null,null,26,"سكين كندا بيد خشب ( 5 بوصة )"]
[null,null,null,null,null,null,null,null,null,null,null,null,null,null,null,null,null,null,null,null,null,null,null,29,"سكين كندا بيد خشب ( 6 بوصة )"]
[null,null,null,null,null,null,null,null,null,null,null,null,null,null,null,null,null,null,null,null,null,null,null,24,"سكين كندا عريض ( 10 بوصة )"]
[null,null,null,null,null,null,null,null,null,null,null,null,null,null,null,null,null,null,null,null,null,null,null,30,"سكين كندا عريض ( 12 بوصة )"]
[null,null,null,null,null,null,null,null,null,null,null,null,null,null,null,null,null,null,null,null,null,null,null,30,"سكين كندا عريض ( 8 بوصة )"]
[null,null,null,null,null,null,null,null,null,null,null,null,null,null,null,null,null,null,null,null,null,null,null,24,"سكين كندا مربع ( 10 بوصة )"]
[null,null,null,null,null,null,null,null,null,null,null,null,null,null,null,null,null,null,null,null,null,null,null,29,"سكين كندا مربع ( 12 بوصة )"]
[null,null,null,null,null,null,null,null,null,null,null,null,null,null,null,null,null,null,null,null,null,null,null,22,"سكين كندا مربع ( 8 بوصة )"]
[null,null,null,null,null,null,null,null,null,null,null,null,null,null,null,null,null,null,null,null,null,null,null,80,"سكين لزق ورق حائط"]
[null,null,null,null,null,null,null,null,null,null,null,null,null,null,null,null,null,null,null,null,null,null,null,35,"سكين مثلث بيد بلاستيك ( 6 بوصة )"]
[null,null,null,null,null,null,null,null,null,null,null,null,null,null,null,null,null,null,null,null,null,null,null,44,"سكين مثلث بيد بلاستيك ( 8 بوصة )"]
[null,null,null,null,null,null,null,null,null,null,null,null,null,null,null,null,null,null,null,null,null,null,null,16,"سكين معجون بيد حمراء ( 1 بوصة )"]
[null,null,null,null,null,null,null,null,null,null,null,null,null,null,null,null,null,null,null,null,null,null,null,22,"سكين معجون بيد حمراء ( 2 بوصة )"]
[null,null,null,null,null,null,null,null,null,null,null,null,null,null,null,null,null,null,null,null,null,null,null,24,"سكين معجون بيد حمراء ( 3 بوصة )"]
[null,null,null,null,null,null,null,null,null,null,null,null,null,null,null,null,null,null,null,null,null,null,null,29,"سكين معجون بيد حمراء ( 4 بوصة )"]
[null,null,null,null,null,null,null,null,null,null,null,null,null,null,null,null,null,null,null,null,null,null,null,14,"سكين معجون عريض ( 10 بوصة )"]
[null,null,null,null,null,null,null,null,null,null,null,null,null,null,null,null,null,null,null,null,null,null,null,11,"سكين معجون عريض ( 6 بوصة )"]
[null,null,null,null,null,null,null,null,null,null,null,null,null,null,null,null,null,null,null,null,null,null,null,13,"سكين معجون عريض ( 8 بوصة )"]
[null,null,null,null,null,null,null,null,null,null,null,null,null,null,null,null,null,null,null,null,null,null,null,40,"شنط بلاستيك"]
[null,null,null,null,null,null,null,null,null,null,null,null,null,null,null,null,null,null,null,null,null,null,null,398,"شنطة دهانات جلد"]
[null,null,null,null,null,null,null,null,null,null,null,null,null,null,null,null,null,null,null,null,null,null,null,295,"شنطة عدة"]
[null,null,null,null,null,null,null,null,null,null,null,null,null,null,null,null,null,null,null,null,null,null,null,119,"شنطة كندا صغير"]
[null,null,null,null,null,null,null,null,null,null,null,null,null,null,null,null,null,null,null,null,null,null,null,590,"شنطة كندا صغير (هدية)"]
[null,null,null,null,null,null,null,null,null,null,null,null,null,null,null,null,null,null,null,null,null,null,null,197,"شنطة كندا كبيرة"]
[null,null,null,null,null,null,null,null,null,null,null,null,null,null,null,null,null,null,null,null,null,null,null,1376,"شنطة كندا كبيرة (هدية)"]
[null,null,null,null,null,null,null,null,null,null,null,null,null,null,null,null,null,null,null,null,null,null,null,158,"شنطة كندا وسط"]
[null,null,null,null,null,null,null,null,null,null,null,null,null,null,null,null,null,null,null,null,null,null,null,984,"شنطة كندا وسط (هدية)"]
[null,null,null,null,null,null,null,null,null,null,null,null,null,null,null,null,null,null,null,null,null,null,null,10,"شنطه هدايا فايبر مطبوعه"]
[null,null,null,null,null,null,null,null,null,null,null,null,null,null,null,null,null,null,null,null,null,null,null,22,"طبعة فالفيت"]
[null,null,null,null,null,null,null,null,null,null,null,null,null,null,null,null,null,null,null,null,null,null,null,13,"طقم باغة ( 4 قطع ) بلاستيك"]
[null,null,null,null,null,null,null,null,null,null,null,null,null,null,null,null,null,null,null,null,null,null,null,14,"طقم سكين بلاستيك ( 3 قطع )"]
[null,null,null,null,null,null,null,null,null,null,null,null,null,null,null,null,null,null,null,null,null,null,null,24,"طقم سكين صلب ( 4 قطع )"]
[null,null,null,null,null,null,null,null,null,null,null,null,null,null,null,null,null,null,null,null,null,null,null,49,"طقم سكين كندا أخضر ( 3 قطع )"]
[null,null,null,null,null,null,null,null,null,null,null,null,null,null,null,null,null,null,null,null,null,null,null,60,"طقم سكين كندا أسود × أصفر ( 4 قطع )"]
[null,null,null,null,null,null,null,null,null,null,null,null,null,null,null,null,null,null,null,null,null,null,null,40,"طقم سكين كندا أصفر ( 4 قطع )"]
[null,null,null,null,null,null,null,null,null,null,null,null,null,null,null,null,null,null,null,null,null,null,null,22,"طقم سكين معجون بلاستيك ( 4 قطع )"]
[null,null,null,null,null,null,null,null,null,null,null,null,null,null,null,null,null,null,null,null,null,null,null,30,"طقم فرش ( 3 قطع )"]
[null,null,null,null,null,null,null,null,null,null,null,null,null,null,null,null,null,null,null,null,null,null,null,14,"طقم فرش رسم صغير ملون"]
[null,null,null,null,null,null,null,null,null,null,null,null,null,null,null,null,null,null,null,null,null,null,null,5,"ظرف الندى صغير مطبوع"]
[null,null,null,null,null,null,null,null,null,null,null,null,null,null,null,null,null,null,null,null,null,null,null,35,"عرض خاص طبعة فالفيت"]
[null,null,null,null,null,null,null,null,null,null,null,null,null,null,null,null,null,null,null,null,null,null,null,22,"عرض خاص عدة صغيرة"]
[null,null,null,null,null,null,null,null,null,null,null,null,null,null,null,null,null,null,null,null,null,null,null,40,"عرض خاص عدة كبيرة"]
[null,null,null,null,null,null,null,null,null,null,null,null,null,null,null,null,null,null,null,null,null,null,null,0,"عروض"]
[null,null,null,null,null,null,null,null,null,null,null,null,null,null,null,null,null,null,null,null,null,null,null,32,"عصا رول (2م)"]
[null,null,null,null,null,null,null,null,null,null,null,null,null,null,null,null,null,null,null,null,null,null,null,40,"عصا رول (3م)"]
[null,null,null,null,null,null,null,null,null,null,null,null,null,null,null,null,null,null,null,null,null,null,null,62,"عصا رول ألومونيوم (2 م)"]
[null,null,null,null,null,null,null,null,null,null,null,null,null,null,null,null,null,null,null,null,null,null,null,98,"عصا رول ألومونيوم (4 م)"]
[null,null,null,null,null,null,null,null,null,null,null,null,null,null,null,null,null,null,null,null,null,null,null,11,"عينات خشبية"]
[null,null,null,null,null,null,null,null,null,null,null,null,null,null,null,null,null,null,null,null,null,null,null,7,"غيار ابيض 4بوصة"]
[null,null,null,null,null,null,null,null,null,null,null,null,null,null,null,null,null,null,null,null,null,null,null,14,"غيار أبيض × أصفر (9 بوصة)"]
[null,null,null,null,null,null,null,null,null,null,null,null,null,null,null,null,null,null,null,null,null,null,null,13,"غيار أبيض إيبوكسى (9 بوصة)"]
[null,null,null,null,null,null,null,null,null,null,null,null,null,null,null,null,null,null,null,null,null,null,null,5,"غيار أسفنج (4 بوصة)"]
[null,null,null,null,null,null,null,null,null,null,null,null,null,null,null,null,null,null,null,null,null,null,null,5,"غيار أسفنج برتقالى (4 بوصة)"]
[null,null,null,null,null,null,null,null,null,null,null,null,null,null,null,null,null,null,null,null,null,null,null,4,"غيار تايجر (2 بوصة)"]
[null,null,null,null,null,null,null,null,null,null,null,null,null,null,null,null,null,null,null,null,null,null,null,13,"غيار رولة أبيض (9 بوصة)"]
[null,null,null,null,null,null,null,null,null,null,null,null,null,null,null,null,null,null,null,null,null,null,null,7,"غيار رولة أصفر (4 بوصة)"]
[null,null,null,null,null,null,null,null,null,null,null,null,null,null,null,null,null,null,null,null,null,null,null,16,"غيار رولة أصفر (9 بوصة)"]
[null,null,null,null,null,null,null,null,null,null,null,null,null,null,null,null,null,null,null,null,null,null,null,4,"غيار رولة تايجر (4 بوصة)  قطعة"]
[null,null,null,null,null,null,null,null,null,null,null,null,null,null,null,null,null,null,null,null,null,null,null,13,"غيار رولة تايجر (9 بوصة)"]
[null,null,null,null,null,null,null,null,null,null,null,null,null,null,null,null,null,null,null,null,null,null,null,49,"غيار رولة ربل طرى"]
[null,null,null,null,null,null,null,null,null,null,null,null,null,null,null,null,null,null,null,null,null,null,null,49,"غيار رولة ربل نقشات"]
[null,null,null,null,null,null,null,null,null,null,null,null,null,null,null,null,null,null,null,null,null,null,null,14,"غيار رولة شعر ملون (9 بوصة)"]
[null,null,null,null,null,null,null,null,null,null,null,null,null,null,null,null,null,null,null,null,null,null,null,22,"غيار رولة موهير (10 بوصة)"]
[null,null,null,null,null,null,null,null,null,null,null,null,null,null,null,null,null,null,null,null,null,null,null,6,"غيار رولة موهير (10 سم)"]
[null,null,null,null,null,null,null,null,null,null,null,null,null,null,null,null,null,null,null,null,null,null,null,30,"غيار طبعة فالفيت"]
[null,null,null,null,null,null,null,null,null,null,null,null,null,null,null,null,null,null,null,null,null,null,null,13,"غيار فتلة خضراء"]
[null,null,null,null,null,null,null,null,null,null,null,null,null,null,null,null,null,null,null,null,null,null,null,119,"فرشاه أورجينى ( ثنائية)"]
[null,null,null,null,null,null,null,null,null,null,null,null,null,null,null,null,null,null,null,null,null,null,null,40,"فرشة الندى يد اسود 2 بوصه"]
[null,null,null,null,null,null,null,null,null,null,null,null,null,null,null,null,null,null,null,null,null,null,null,32,"فرشة الندى يد خشب 2 بوصه"]
[null,null,null,null,null,null,null,null,null,null,null,null,null,null,null,null,null,null,null,null,null,null,null,42,"فرشة الندى يد خشب 3 بوصه"]
[null,null,null,null,null,null,null,null,null,null,null,null,null,null,null,null,null,null,null,null,null,null,null,13,"فرشة إيطالى 1 بوصة"]
[null,null,null,null,null,null,null,null,null,null,null,null,null,null,null,null,null,null,null,null,null,null,null,13,"فرشة بيد أسود × أصفر 1 بوصة"]
[null,null,null,null,null,null,null,null,null,null,null,null,null,null,null,null,null,null,null,null,null,null,null,14,"فرشة بيد خشب 1 بوصة"]
[null,null,null,null,null,null,null,null,null,null,null,null,null,null,null,null,null,null,null,null,null,null,null,76,"فرشة بيد خشب 4 بوصة"]
[null,null,null,null,null,null,null,null,null,null,null,null,null,null,null,null,null,null,null,null,null,null,null,14,"فرشة بيد زرقاء 1 بوصة"]
[null,null,null,null,null,null,null,null,null,null,null,null,null,null,null,null,null,null,null,null,null,null,null,40,"فرشة بيد زرقاء 4 بوصة"]
[null,null,null,null,null,null,null,null,null,null,null,null,null,null,null,null,null,null,null,null,null,null,null,89,"فرشة تطبيق البولو"]
[null,null,null,null,null,null,null,null,null,null,null,null,null,null,null,null,null,null,null,null,null,null,null,40,"فرشة تطبيق الخيال رقم (3) صينى"]
[null,null,null,null,null,null,null,null,null,null,null,null,null,null,null,null,null,null,null,null,null,null,null,49,"فرشة تطبيق الخيال رقم (4) صينى"]
[null,null,null,null,null,null,null,null,null,null,null,null,null,null,null,null,null,null,null,null,null,null,null,76,"فرشة تطبيق السبلادور 4 بوصة"]
[null,null,null,null,null,null,null,null,null,null,null,null,null,null,null,null,null,null,null,null,null,null,null,109,"فرشة تطبيق السبلادور 5 بوصة"]
[null,null,null,null,null,null,null,null,null,null,null,null,null,null,null,null,null,null,null,null,null,null,null,60,"فرشة تعتيق وهاج"]
[null,null,null,null,null,null,null,null,null,null,null,null,null,null,null,null,null,null,null,null,null,null,null,22,"فرشة شعر أبيض بيد سوداء صغيرة"]
[null,null,null,null,null,null,null,null,null,null,null,null,null,null,null,null,null,null,null,null,null,null,null,11,"فرشة شعر بوليستر 1 بوصة"]
[null,null,null,null,null,null,null,null,null,null,null,null,null,null,null,null,null,null,null,null,null,null,null,14,"فرشة شعر بوليستر 1.5بوصة"]
[null,null,null,null,null,null,null,null,null,null,null,null,null,null,null,null,null,null,null,null,null,null,null,18,"فرشة شعر بوليستر 2 بوصة"]
[null,null,null,null,null,null,null,null,null,null,null,null,null,null,null,null,null,null,null,null,null,null,null,29,"فرشة شعر بوليستر 3 بوصة"]
[null,null,null,null,null,null,null,null,null,null,null,null,null,null,null,null,null,null,null,null,null,null,null,32,"فرشة شعر بوليستر 4 بوصة"]
[null,null,null,null,null,null,null,null,null,null,null,null,null,null,null,null,null,null,null,null,null,null,null,16,"فرشة شعر نقى 1 بوصة"]
[null,null,null,null,null,null,null,null,null,null,null,null,null,null,null,null,null,null,null,null,null,null,null,24,"فرشة شعر نقى 2 بوصة"]
[null,null,null,null,null,null,null,null,null,null,null,null,null,null,null,null,null,null,null,null,null,null,null,44,"فرشة شعر نقى 3 بوصة"]
[null,null,null,null,null,null,null,null,null,null,null,null,null,null,null,null,null,null,null,null,null,null,null,60,"فرشة شعر نقى 4 بوصة"]
[null,null,null,null,null,null,null,null,null,null,null,null,null,null,null,null,null,null,null,null,null,null,null,139,"فرشة شكل بيضاوى صغيرة"]
[null,null,null,null,null,null,null,null,null,null,null,null,null,null,null,null,null,null,null,null,null,null,null,178,"فرشة شكل بيضاوى كبيرة"]
[null,null,null,null,null,null,null,null,null,null,null,null,null,null,null,null,null,null,null,null,null,null,null,49,"فرشة فوندشن خشنة"]
[null,null,null,null,null,null,null,null,null,null,null,null,null,null,null,null,null,null,null,null,null,null,null,49,"فرشة فوندشن ناعمة صغيرة"]
[null,null,null,null,null,null,null,null,null,null,null,null,null,null,null,null,null,null,null,null,null,null,null,61,"فرشة فوندشن ناعمة كبيرة"]
[null,null,null,null,null,null,null,null,null,null,null,null,null,null,null,null,null,null,null,null,null,null,null,16,"فرشة مرسام 12 بوصة"]
[null,null,null,null,null,null,null,null,null,null,null,null,null,null,null,null,null,null,null,null,null,null,null,35,"فرشة معكوفة  3"]
[null,null,null,null,null,null,null,null,null,null,null,null,null,null,null,null,null,null,null,null,null,null,null,40,"فرشة معكوفة  4"]
[null,null,null,null,null,null,null,null,null,null,null,null,null,null,null,null,null,null,null,null,null,null,null,44,"فرشة معكوفة  5"]
[null,null,null,null,null,null,null,null,null,null,null,null,null,null,null,null,null,null,null,null,null,null,null,49,"فرشة معكوفة  6"]
[null,null,null,null,null,null,null,null,null,null,null,null,null,null,null,null,null,null,null,null,null,null,null,30,"فرشة معكوفة 2"]
[null,null,null,null,null,null,null,null,null,null,null,null,null,null,null,null,null,null,null,null,null,null,null,16,"فرشة يد خشب شعر بوليستر 2 بوصة"]
[null,null,null,null,null,null,null,null,null,null,null,null,null,null,null,null,null,null,null,null,null,null,null,24,"فرشة يد خشب شعر بوليستر 3 بوصة"]
[null,null,null,null,null,null,null,null,null,null,null,null,null,null,null,null,null,null,null,null,null,null,null,10,"قرص كاوتش صنفرة"]
[null,null,null,null,null,null,null,null,null,null,null,null,null,null,null,null,null,null,null,null,null,null,null,0,"قسم الرولات"]
[null,null,null,null,null,null,null,null,null,null,null,null,null,null,null,null,null,null,null,null,null,null,null,0,"قسم الفرش"]
[null,null,null,null,null,null,null,null,null,null,null,null,null,null,null,null,null,null,null,null,null,null,null,60,"قطعة فينوس"]
[null,null,null,null,null,null,null,null,null,null,null,null,null,null,null,null,null,null,null,null,null,null,null,7,"قلابة بلاستيك"]
[null,null,null,null,null,null,null,null,null,null,null,null,null,null,null,null,null,null,null,null,null,null,null,197,"قلم الندى"]
[null,null,null,null,null,null,null,null,null,null,null,null,null,null,null,null,null,null,null,null,null,null,null,18,"قلم الندى عادى"]
[null,null,null,null,null,null,null,null,null,null,null,null,null,null,null,null,null,null,null,null,null,null,null,148,"قماش تعتيق باكستانى (10م)"]
[null,null,null,null,null,null,null,null,null,null,null,null,null,null,null,null,null,null,null,null,null,null,null,16,"قماش تعتيق باكستانى (1م)"]
[null,null,null,null,null,null,null,null,null,null,null,null,null,null,null,null,null,null,null,null,null,null,null,32,"قماش تعتيق باكستانى (2م)"]
[null,null,null,null,null,null,null,null,null,null,null,null,null,null,null,null,null,null,null,null,null,null,null,76,"قماش تعتيق باكستانى (5م)"]
[null,null,null,null,null,null,null,null,null,null,null,null,null,null,null,null,null,null,null,null,null,null,null,60,"كاب الندى مطبوع مطرز"]
[null,null,null,null,null,null,null,null,null,null,null,null,null,null,null,null,null,null,null,null,null,null,null,1582,"كارتلة QC"]
[null,null,null,null,null,null,null,null,null,null,null,null,null,null,null,null,null,null,null,null,null,null,null,2588,"كارتلة نوفا كلر"]
[null,null,null,null,null,null,null,null,null,null,null,null,null,null,null,null,null,null,null,null,null,null,null,1295,"كارتلة نوفا كلر صغيرة"]
[null,null,null,null,null,null,null,null,null,null,null,null,null,null,null,null,null,null,null,null,null,null,null,98,"كتاب المواصفات الفنيه"]
[null,null,null,null,null,null,null,null,null,null,null,null,null,null,null,null,null,null,null,null,null,null,null,40,"كتالوج الندى استنسل"]
[null,null,null,null,null,null,null,null,null,null,null,null,null,null,null,null,null,null,null,null,null,null,null,40,"كتالوج الندى بروفكس"]
[null,null,null,null,null,null,null,null,null,null,null,null,null,null,null,null,null,null,null,null,null,null,null,197,"كتالوج الندى خيال"]
[null,null,null,null,null,null,null,null,null,null,null,null,null,null,null,null,null,null,null,null,null,null,null,40,"كتالوج الندى فيلفيت ميتاليك"]
[null,null,null,null,null,null,null,null,null,null,null,null,null,null,null,null,null,null,null,null,null,null,null,40,"كتالوج الندى لازوردى جولد"]
[null,null,null,null,null,null,null,null,null,null,null,null,null,null,null,null,null,null,null,null,null,null,null,61,"كتالوج الندى مجلد"]
[null,null,null,null,null,null,null,null,null,null,null,null,null,null,null,null,null,null,null,null,null,null,null,40,"كتالوج الندى مجلد صغير"]
[null,null,null,null,null,null,null,null,null,null,null,null,null,null,null,null,null,null,null,null,null,null,null,40,"كتالوج الندى ورقى بولو"]
[null,null,null,null,null,null,null,null,null,null,null,null,null,null,null,null,null,null,null,null,null,null,null,40,"كتالوج الندى ورقى بيكانتو"]
[null,null,null,null,null,null,null,null,null,null,null,null,null,null,null,null,null,null,null,null,null,null,null,40,"كتالوج الندى ورقى سبلادور"]
[null,null,null,null,null,null,null,null,null,null,null,null,null,null,null,null,null,null,null,null,null,null,null,40,"كتالوج الندى ورقى فلاور"]
[null,null,null,null,null,null,null,null,null,null,null,null,null,null,null,null,null,null,null,null,null,null,null,40,"كتالوج الندى ورقى فلفيتو أورو"]
[null,null,null,null,null,null,null,null,null,null,null,null,null,null,null,null,null,null,null,null,null,null,null,40,"كتالوج دايموند كريم"]
[null,null,null,null,null,null,null,null,null,null,null,null,null,null,null,null,null,null,null,null,null,null,null,98,"كتالوج دليل المنتجات"]
[null,null,null,null,null,null,null,null,null,null,null,null,null,null,null,null,null,null,null,null,null,null,null,40,"كتالوج قطرات الندى"]
[null,null,null,null,null,null,null,null,null,null,null,null,null,null,null,null,null,null,null,null,null,null,null,194,"كرتلة الون الندى 215لون"]
[null,null,null,null,null,null,null,null,null,null,null,null,null,null,null,null,null,null,null,null,null,null,null,30,"كف تعتيق صينى"]
[null,null,null,null,null,null,null,null,null,null,null,null,null,null,null,null,null,null,null,null,null,null,null,119,"كف تعتيق قطن"]
[null,null,null,null,null,null,null,null,null,null,null,null,null,null,null,null,null,null,null,null,null,null,null,18,"كنار (8 سم) 10م"]
[null,null,null,null,null,null,null,null,null,null,null,null,null,null,null,null,null,null,null,null,null,null,null,18,"كنار أطفال"]
[null,null,null,null,null,null,null,null,null,null,null,null,null,null,null,null,null,null,null,null,null,null,null,13,"كنار أطفال تركى"]
[null,null,null,null,null,null,null,null,null,null,null,null,null,null,null,null,null,null,null,null,null,null,null,13,"كنار مذهب"]
[null,null,null,null,null,null,null,null,null,null,null,null,null,null,null,null,null,null,null,null,null,null,null,13,"كنار مذهب ريشة"]
[null,null,null,null,null,null,null,null,null,null,null,null,null,null,null,null,null,null,null,null,null,null,null,14,"كوب أحمر دهان"]
[null,null,null,null,null,null,null,null,null,null,null,null,null,null,null,null,null,null,null,null,null,null,null,30,"كوب شفاف مدرج للدهان"]
[null,null,null,null,null,null,null,null,null,null,null,null,null,null,null,null,null,null,null,null,null,null,null,44,"كيس الندى جيولس ستار"]
[null,null,null,null,null,null,null,null,null,null,null,null,null,null,null,null,null,null,null,null,null,null,null,11,"كيس غراء كبير"]
[null,null,null,null,null,null,null,null,null,null,null,null,null,null,null,null,null,null,null,null,null,null,null,0,"لاكيه لامع"]
[null,null,null,null,null,null,null,null,null,null,null,null,null,null,null,null,null,null,null,null,null,null,null,0,"لاكيه مط"]
[null,null,null,null,null,null,null,null,null,null,null,null,null,null,null,null,null,null,null,null,null,null,null,7,"لصق (1 سم) دوبل"]
[null,null,null,null,null,null,null,null,null,null,null,null,null,null,null,null,null,null,null,null,null,null,null,10,"لصق (2 سم) عريض"]
[null,null,null,null,null,null,null,null,null,null,null,null,null,null,null,null,null,null,null,null,null,null,null,18,"لصق (5 سم) دوبل"]
[null,null,null,null,null,null,null,null,null,null,null,null,null,null,null,null,null,null,null,null,null,null,null,22,"لصق (5 سم) كورشيه"]
[null,null,null,null,null,null,null,null,null,null,null,null,null,null,null,null,null,null,null,null,null,null,null,32,"لصق دبل فيس (5 سم)"]
[null,null,null,null,null,null,null,null,null,null,null,null,null,null,null,null,null,null,null,null,null,null,null,30,"لصق شروخ (45 متر)"]
[null,null,null,null,null,null,null,null,null,null,null,null,null,null,null,null,null,null,null,null,null,null,null,49,"لصق شروخ (90 متر)"]
[null,null,null,null,null,null,null,null,null,null,null,null,null,null,null,null,null,null,null,null,null,null,null,197,"لوحة فنية"]
[null,null,null,null,null,null,null,null,null,null,null,null,null,null,null,null,null,null,null,null,null,null,null,35,"ماسك صنفرة يد متحرك"]
[null,null,null,null,null,null,null,null,null,null,null,null,null,null,null,null,null,null,null,null,null,null,null,139,"ماكينة ايطالي بالخزان"]
[null,null,null,null,null,null,null,null,null,null,null,null,null,null,null,null,null,null,null,null,null,null,null,139,"ماكينة بالخزان 2لون(5بوصة)"]
[null,null,null,null,null,null,null,null,null,null,null,null,null,null,null,null,null,null,null,null,null,null,null,220002,"ماكينة تلوين إيطالى كورب 24 لون (COROB)"]
[null,null,null,null,null,null,null,null,null,null,null,null,null,null,null,null,null,null,null,null,null,null,null,194120,"ماكينة تلوين كورب 16 لون  (COROB)"]
[null,null,null,null,null,null,null,null,null,null,null,null,null,null,null,null,null,null,null,null,null,null,null,207061,"ماكينة تلوين هيرو 16 لون (HERO)"]
[null,null,null,null,null,null,null,null,null,null,null,null,null,null,null,null,null,null,null,null,null,null,null,158,"مالج إستالس"]
[null,null,null,null,null,null,null,null,null,null,null,null,null,null,null,null,null,null,null,null,null,null,null,398,"مالج إستالس إيطالى"]
[null,null,null,null,null,null,null,null,null,null,null,null,null,null,null,null,null,null,null,null,null,null,null,109,"مالج إستالس بيد خشب"]
[null,null,null,null,null,null,null,null,null,null,null,null,null,null,null,null,null,null,null,null,null,null,null,60,"مالج صغير"]
[null,null,null,null,null,null,null,null,null,null,null,null,null,null,null,null,null,null,null,null,null,null,null,40,"مالج قطيفة بلاستيك"]
[null,null,null,null,null,null,null,null,null,null,null,null,null,null,null,null,null,null,null,null,null,null,null,28,"مالك بلاستيك اقتصادى"]
[null,null,null,null,null,null,null,null,null,null,null,null,null,null,null,null,null,null,null,null,null,null,null,0,"مخزن العدد والادوات"]
[null,null,null,null,null,null,null,null,null,null,null,null,null,null,null,null,null,null,null,null,null,null,null,0,"مخزن المنتجات تامة الصنع"]
[null,null,null,null,null,null,null,null,null,null,null,null,null,null,null,null,null,null,null,null,null,null,null,0,"مذيبات"]
[null,null,null,null,null,null,null,null,null,null,null,null,null,null,null,null,null,null,null,null,null,null,null,7,"مركز ألوان ( أحمر )"]
[null,null,null,null,null,null,null,null,null,null,null,null,null,null,null,null,null,null,null,null,null,null,null,8,"مركز ألوان ( أحمر )"]
[null,null,null,null,null,null,null,null,null,null,null,null,null,null,null,null,null,null,null,null,null,null,null,7,"مركز ألوان ( أخضر غامق )"]
[null,null,null,null,null,null,null,null,null,null,null,null,null,null,null,null,null,null,null,null,null,null,null,8,"مركز ألوان ( أخضر غامق )"]
[null,null,null,null,null,null,null,null,null,null,null,null,null,null,null,null,null,null,null,null,null,null,null,7,"مركز ألوان ( أخضر فاتح )"]
[null,null,null,null,null,null,null,null,null,null,null,null,null,null,null,null,null,null,null,null,null,null,null,8,"مركز ألوان ( أخضر فاتح )"]
[null,null,null,null,null,null,null,null,null,null,null,null,null,null,null,null,null,null,null,null,null,null,null,7,"مركز ألوان ( أزرق )"]
[null,null,null,null,null,null,null,null,null,null,null,null,null,null,null,null,null,null,null,null,null,null,null,8,"مركز ألوان ( أزرق )"]
[null,null,null,null,null,null,null,null,null,null,null,null,null,null,null,null,null,null,null,null,null,null,null,7,"مركز ألوان ( أسود )"]
[null,null,null,null,null,null,null,null,null,null,null,null,null,null,null,null,null,null,null,null,null,null,null,8,"مركز ألوان ( أسود )"]
[null,null,null,null,null,null,null,null,null,null,null,null,null,null,null,null,null,null,null,null,null,null,null,7,"مركز ألوان ( أصفر )"]
[null,null,null,null,null,null,null,null,null,null,null,null,null,null,null,null,null,null,null,null,null,null,null,8,"مركز ألوان ( أصفر )"]
[null,null,null,null,null,null,null,null,null,null,null,null,null,null,null,null,null,null,null,null,null,null,null,7,"مركز ألوان ( أصفر أوكسيد )"]
[null,null,null,null,null,null,null,null,null,null,null,null,null,null,null,null,null,null,null,null,null,null,null,8,"مركز ألوان ( أصفر أوكسيد )"]
[null,null,null,null,null,null,null,null,null,null,null,null,null,null,null,null,null,null,null,null,null,null,null,7,"مركز ألوان ( برتقالى )"]
[null,null,null,null,null,null,null,null,null,null,null,null,null,null,null,null,null,null,null,null,null,null,null,8,"مركز ألوان ( برتقالى )"]
[null,null,null,null,null,null,null,null,null,null,null,null,null,null,null,null,null,null,null,null,null,null,null,7,"مركز ألوان ( بنى )"]
[null,null,null,null,null,null,null,null,null,null,null,null,null,null,null,null,null,null,null,null,null,null,null,8,"مركز ألوان ( بنى )"]
[null,null,null,null,null,null,null,null,null,null,null,null,null,null,null,null,null,null,null,null,null,null,null,7,"مركز ألوان ( موف )"]
[null,null,null,null,null,null,null,null,null,null,null,null,null,null,null,null,null,null,null,null,null,null,null,8,"مركز ألوان ( موف )"]
[null,null,null,null,null,null,null,null,null,null,null,null,null,null,null,null,null,null,null,null,null,null,null,7,"مركز ألوان ( نبيتى )"]
[null,null,null,null,null,null,null,null,null,null,null,null,null,null,null,null,null,null,null,null,null,null,null,8,"مركز ألوان ( نبيتى )"]
[null,null,null,null,null,null,null,null,null,null,null,null,null,null,null,null,null,null,null,null,null,null,null,0,"معجون ايكو"]
[null,null,null,null,null,null,null,null,null,null,null,null,null,null,null,null,null,null,null,null,null,null,null,0,"معجون بوتي"]
[null,null,null,null,null,null,null,null,null,null,null,null,null,null,null,null,null,null,null,null,null,null,null,0,"معجون ساس"]
[null,null,null,null,null,null,null,null,null,null,null,null,null,null,null,null,null,null,null,null,null,null,null,0,"معجون ساف"]
[null,null,null,null,null,null,null,null,null,null,null,null,null,null,null,null,null,null,null,null,null,null,null,0,"معجون شروخ"]
[null,null,null,null,null,null,null,null,null,null,null,null,null,null,null,null,null,null,null,null,null,null,null,0,"ملونات"]
[null,null,null,null,null,null,null,null,null,null,null,null,null,null,null,null,null,null,null,null,null,null,null,0,"ملونات الماكينات"]
[null,null,null,null,null,null,null,null,null,null,null,null,null,null,null,null,null,null,null,null,null,null,null,0,"منتجات الاساس"]
[null,null,null,null,null,null,null,null,null,null,null,null,null,null,null,null,null,null,null,null,null,null,null,0,"منتجات الاستنسل"]
[null,null,null,null,null,null,null,null,null,null,null,null,null,null,null,null,null,null,null,null,null,null,null,0,"منتجات الايزى"]
[null,null,null,null,null,null,null,null,null,null,null,null,null,null,null,null,null,null,null,null,null,null,null,0,"منتجات الإستنسل"]
[null,null,null,null,null,null,null,null,null,null,null,null,null,null,null,null,null,null,null,null,null,null,null,0,"منتجات الأساس"]
[null,null,null,null,null,null,null,null,null,null,null,null,null,null,null,null,null,null,null,null,null,null,null,0,"منتجات الأساس"]
[null,null,null,null,null,null,null,null,null,null,null,null,null,null,null,null,null,null,null,null,null,null,null,0,"منتجات البذور"]
[null,null,null,null,null,null,null,null,null,null,null,null,null,null,null,null,null,null,null,null,null,null,null,0,"منتجات البلاستيك"]
[null,null,null,null,null,null,null,null,null,null,null,null,null,null,null,null,null,null,null,null,null,null,null,0,"منتجات البلاستيكات"]
[null,null,null,null,null,null,null,null,null,null,null,null,null,null,null,null,null,null,null,null,null,null,null,0,"منتجات البلاستيكات"]
[null,null,null,null,null,null,null,null,null,null,null,null,null,null,null,null,null,null,null,null,null,null,null,0,"منتجات الرمليات"]
[null,null,null,null,null,null,null,null,null,null,null,null,null,null,null,null,null,null,null,null,null,null,null,0,"منتجات الشامواه"]
[null,null,null,null,null,null,null,null,null,null,null,null,null,null,null,null,null,null,null,null,null,null,null,0,"منتجات اللاكيهات"]
[null,null,null,null,null,null,null,null,null,null,null,null,null,null,null,null,null,null,null,null,null,null,null,0,"منتجات المعاجين"]
[null,null,null,null,null,null,null,null,null,null,null,null,null,null,null,null,null,null,null,null,null,null,null,0,"منتجات المعاجين"]
[null,null,null,null,null,null,null,null,null,null,null,null,null,null,null,null,null,null,null,null,null,null,null,0,"منتجات المعاجين"]
[null,null,null,null,null,null,null,null,null,null,null,null,null,null,null,null,null,null,null,null,null,null,null,0,"منتجات المعاجين"]
[null,null,null,null,null,null,null,null,null,null,null,null,null,null,null,null,null,null,null,null,null,null,null,0,"منتجات النانو"]
[null,null,null,null,null,null,null,null,null,null,null,null,null,null,null,null,null,null,null,null,null,null,null,0,"منتجات الندى"]
[null,null,null,null,null,null,null,null,null,null,null,null,null,null,null,null,null,null,null,null,null,null,null,0,"منتجات الواجهات"]
[null,null,null,null,null,null,null,null,null,null,null,null,null,null,null,null,null,null,null,null,null,null,null,0,"منتجات الواجهات"]
[null,null,null,null,null,null,null,null,null,null,null,null,null,null,null,null,null,null,null,null,null,null,null,0,"منتجات ايكو"]
[null,null,null,null,null,null,null,null,null,null,null,null,null,null,null,null,null,null,null,null,null,null,null,0,"منتجات أخرى"]
[null,null,null,null,null,null,null,null,null,null,null,null,null,null,null,null,null,null,null,null,null,null,null,0,"منتجات تعتيق"]
[null,null,null,null,null,null,null,null,null,null,null,null,null,null,null,null,null,null,null,null,null,null,null,0,"منتجات ديكورية"]
[null,null,null,null,null,null,null,null,null,null,null,null,null,null,null,null,null,null,null,null,null,null,null,0,"منتجات ديكورية"]
[null,null,null,null,null,null,null,null,null,null,null,null,null,null,null,null,null,null,null,null,null,null,null,98,"ميدالية الندى"]
[null,null,null,null,null,null,null,null,null,null,null,null,null,null,null,null,null,null,null,null,null,null,null,395,"ميدالية الندى ( فضة )"]
[null,null,null,null,null,null,null,null,null,null,null,null,null,null,null,null,null,null,null,null,null,null,null,98,"ميدالية الندى ( نحاس )"]
[null,null,null,null,null,null,null,null,null,null,null,null,null,null,null,null,null,null,null,null,null,null,null,5,"ميدالية الندى خشبية"]
[null,null,null,null,null,null,null,null,null,null,null,null,null,null,null,null,null,null,null,null,null,null,null,26,"نفط"]
[null,null,null,null,null,null,null,null,null,null,null,null,null,null,null,null,null,null,null,null,null,null,null,30,"نوت بوك مطبوع A5"]
[null,null,null,null,null,null,null,null,null,null,null,null,null,null,null,null,null,null,null,null,null,null,null,474,"هيتر تسخين كهربائي"]
[null,null,null,null,null,null,null,null,null,null,null,null,null,null,null,null,null,null,null,null,null,null,null,0,"ورنيش الكيدى"]
[null,null,null,null,null,null,null,null,null,null,null,null,null,null,null,null,null,null,null,null,null,null,null,7,"يد رولة (10 سم)"]
[null,null,null,null,null,null,null,null,null,null,null,null,null,null,null,null,null,null,null,null,null,null,null,13,"يد رولة شبك (9 بوصة)"]
[null,null,null,null,null,null,null,null,null,null,null,null,null,null,null,null,null,null,null,null,null,null,null,24,"يد رولة نقشات"]
[null,null,null,null,null,null,null,null,null,null,null,null,null,null,null,null,null,null,null,null,null,null,null,19,"يد سيخ (9 بوصة)"]
[null,null,null,null,null,null,null,null,null,null,null,null,null,null,null,null,null,null,null,null,null,null,null,32,"يد ماكينة بدون غيار"]
[null,null,null,null,null,null,null,null,null,null,null,null,null,null,null,null,null,null,null,null,null,null,null,46,"يد ماكينة للتعتيق"]
[]
[]
[]
[]
[]
[]
[]
[]
[]
[]
[]
[]
[]
[]
[]
[]
[]
[]
[]
[]
[]
[]
[]
[]
[]
[]
[]
[]
[]
[]
[]
[]
[]
[]
[]
[]
[]
[]
[]
[]
[]
[]
[]
[]
[]
[]
[]
[]
[]
[]
[]
[]
[]
[]
[]
[]
[]
[]
[]
[]
[]
[]
[]
[]
[]
[]
[]
[]
[]
[]
[]
[]
[]
[]
[]
[]
[]
[]
[]
[]
[]
[]
[]
[]
[]
[]
[]
[]
[]
[]
[]
[]
[]
[]
[]
[]
[]
[]
[]
[]
[]
[]
[]
[]
[]
[]
[]
[]
[]
[]
[]
[]
[]
[]
[]
[]
[]
[]
[]
[]
[]
[]
[]
[]
[]
[]
[]
[]
[]
[]
[]
[]
[]
[]
[]
[]
[]
[]
[]
[]
[]
[]
[]
[]
[]
[]
[]
[]
[]
[]
[]
[]
[]
[]
[]
[]
[]
[]
[]
[]
[]
[]
[]
[]
[]
[]
[]
[]
[]
[]
[]
[]
[]
[]
[]
[]
[]
[]
[]
[]
[]
[]
[]
[]
[]
[]
[]
[]
[]
[]
[]
[]
[]
[]
[]
[]
[]
[]
[]
[]
[]
[]
[]
[]
[]
[]
[]
[]
[]
[]
[]
[]
[]
[]
[]
[]
[]
[]
[]
[]
[]
[]
[]
[]
[]
[]
[]
[]
[]
[]
[]
[]
[]
[]
[]
[]
[]
[]
[]
[]
[]
[]
[]
[]
[]
[]
[]
[]
[]
[]
[]
[]
[]
[]
[]
[]
[]
[]
[]
[]
[]
[]
[]
[]
[]
[]
[]
[]
[]
[]
[]
[]
[]
[]
[]
[]
[]
[]
[]
[]
[]
[]
[]
[]
[]
[]
[]
[]
[]
[]
[]
[]
[]
[]
[]
[]
[]
[]
[]
[]
[]
[]
[]
[]
[]
[]
[]
[]
[]
[]
[]
[]
[]
[]
[]
[]
[]
[]
[]
[]
[]
[]
[]
[]
[]
[]
[]
[]
[]
[]
[]
[]
[]
[]
[]
[]
[]
[]
[]
[]
[]
[]
[]
[]
[]
[]
[]
[]
[]
[]
[]
[]
[]
[]
[]
[]
[]
[]
[]
[]
[]
[]
[]
[]
[]
[]
[]
[]
[]
[]
[]
[]
[]
[]
[]
[]
[]
[]
[]
[]
[]
[]
[]
[]
[]
[]
[]
[]
[]
[]
[]
[]
[]
[]
[]
[]
[]
[]
[]
[]
[]
[]
[]
[]
[]
[]
[]
[]
[]
[]
[]
[]
[]
[]
[]
[]
[]
[]
[]
[]
[]
[]
[]
[]
[]
[]
[]
[]
[]
[]
[]
[]
[]
[]
[]
[]
[]
[]
[]
[]
[]
[]
[]
[]
[]
[]
[]
[]
[]
[]
[]
[]
[]
[]
[]
[]
[]
[]
[]
[]
[]
[]
[]
[]
[]
[]
[]
[]
[]
[]
[]
[]
[]
[]
[]
[]
[]
[]
[]
[]
[]
[]
[]
[]
[]
[]
[]
[]
[]
[]
[]
[]
[]
[]
[]
[]
[]
[]
[]
[]
[]
[]
[]
[]
[]
[]
[]
[]
[]
[]
[]
[]
[]
[]
[]
[]
[]
[]
[]
[]
[]
[]
[]
[]
[]
[]
[]
[]
[]
[]
[]
[]
[]
[]
[]
[]
[]
[]
[]
[]
[]
[]
[]
[]
[]
[]
[]
[]
[]
[]
[]
[]
[]
[]
[]
[]
[]
[]
[]
[]
[]
[]
[]
[]
[]
[]
[]
[]
[]
[]
[]
[]
[]
[]
[]
[]
[]
[]
[]
[]
[]
[]
[]
[]
[]
[]
[]
[]
[]
[]
[]
[]
[]
[]
[]
[]
[]
[]
[]
[]
[]
[]
[]
[]
[]
[]
[]
[]
[]
[]
[]
[]
[]
[]
[]
[]
[]
[]
[]
[]
[]
[]
[]
[]
[]
[]
[]
[]
[]
[]
[]
[]
[]
[]
[]
[]
[]
[]
[]
[]
[]
[]
[]
[]
[]
[]
[]
[]
[]
[]
[]
[]
[]
[]
[]
[]
[]
[]
[]
[]
[]
[]
[]
[]
[]
[]
[]
[]
[]
[]
[]
[]
[]
[]
[]
[]
[]
[]
[]
[]
[]
[]
[]
[]
[]
[]
[]
[]
[]
[]
[]
[]
[]
[]
[]
[]
[]
[]
[]
[]
[]
[]
[]
[]
[]
[]
[]
[]
[]
[]
[]
[]
[]
[]
[]
[]
[]
[]
[]
[]
[]
[]
[]
[]
[]
[]
[]
[]
[]
[]
[]
[]
[]
[]
[]
[]
[]
[]
[]
[]
[]
[]
[]
[]
[]
[]
[]
[]
[]
[]
[]
[]
[]
[]
[]
[]
[]
[]
[]
[]
[]
[]
[]
[]
[]
[]
[]
[]
[]
[]
[]
[]
[]
[]
[]
[]
[]
[]
[]
[]
[]
[]
[]
[]
[]
[]
[]
[]
[]
[]
[]
[]
[]
[]
[]
[]
[]
[]
[]
[]
[]
[]
[]
[]
[]
[]
[]
[]
[]
[]
[]
[]
[]
[]
[]
[]
[]
[]
[]
[]
[]
[]
[]
[]
[]
[]
[]
[]
[]
[]
[]
[]
[]
[]
[]
[]
[]
[]
[]
[]
[]
[]
[]
[]
[]
[]
[]
[]
[]
[]
[]
[]
[]
[]
[]
[]
[]
[]
[]
[]
[]
[]
[]
[]
[]
[]
[]
[]
[]
[]
[]
[]
[]
[]
[]
[]
[]
[]
[]
[]
[]
[]
[]
[]
[]
[]
[]
[]
[]
[]
[]
[]
[]
[]
[]
[]
[]
[]
[]
[]
[]
[]
[]
[]
[]
[]
[]
[]
[]
[]
[]
[]
[]
[]
[]
[]
[]
[]
[]
[]
[]
[]
[]
[]
[]
[]
[]
[]
[]
[]
[]
[]
[]
[]
[]
[]
[]
[]
[]
[]
[]
[]
[]
[]
[]
[]
[]
[]
[]
[]
[]
[]
[]
[]
[]
[]
[]
[]
[]
[]
[]
[]
[]
[]
[]
[]
[]
[]
[]
[]
[]
[]
[]
[]
[]
[]
[]
[]
[]
[]
[]
[]
[]
[]
[]
[]
[]
[]
[]
[]
[]
[]
[]
[]
[]
[]
[]
[]
[]
[]
[]
[]
[]
[]
[]
[]
[]
[]
[]
[]
[]
[]
[]
[]
[]
[]
[]
[]
[]
[]
[]
[]
[]
[]
[]
[]
[]
[]
[]
[]
[]
[]
[]
[]
[]
[]
[]
[]
[]
[]
[]
[]
[]
[]
[]
[]
[]
[]
[]
[]
[]
[]
[]
[]
[]
[]
[]
[]
[]
[]
[]
[]
[]
[]
[]
[]
[]
[]
[]
[]
[]
[]
[]
[]
[]
[]
[]
[]
[]
[]
[]
[]
[]
[]
[]
[]
[]
[]
[]
[]
[]
[]
[]
[]
[]
[]
[]
[]
[]
[]
[]
[]
[]
[]
[]
[]
[]
[]
[]
[]
[]
[]
[]
[]
[]
[]
[]
[]
[]
[]
[]
[]
[]
[]
[]
[]
[]
[]
[]
[]
[]
[]
[]
[]
[]
[]
[]
[]
[]
[]
[]
[]
[]
[]
[]
[]
[]
[]
[]
[]
[]
[]
[]
[]
[]
[]
[]
[]
[]
[]
[]
[]
[]
[]
[]
[]
[]
[]
[]
[]
[]
[]
[]
[]
[]
[]
[]
[]
[]
[]
[]
[]
[]
[]
[]
[]
[]
[]
[]
[]
[]
[]
[]
[]
[]
[]
[]
[]
[]
[]
[]
[]
[]
[]
[]
[]
[]
[]
[]
[]
[]
[]
[]
[]
[]
[]
[]
[]
[]
[]
[]
[]
[]
[]
[]
[]
[]
[]
[]
[]
[]
[]
[]
[]
[]
[]
[]
[]
[]
[]
[]
[]
[]
[]
[]
[]
[]
[]
[]
[]
[]
[]
[]
[]
[]
[]
[]
[]
[]
[]
[]
[]
[]
[]
[]
[]
[]
[]
[]
[]
[]
[]
[]
[]
[]
[]
[]
[]
[]
[]
[]
[]
[]
[]
[]
[]
[]
[]
[]
[]
[]
[]
[]
[]
[]
[]
[]
[]
[]
[]
[]
[]
[]
[]
[]
[]
[]
[]
[]
[]
[]
[]
[]
[]
[]
[]
[]
[]
[]
[]
[]
[]
[]
[]
[]
[]
[]
[]
[]
[]
[]
[]
[]
[]
[]
[]
[]
[]
[]
[]
[]
[]
[]
[]
[]
[]
[]
[]
[]
[]
[]
[]
[]
[]
[]
[]
[]
[]
[]
[]
[]
[]
[]
[]
[]
[]
[]
[]
[]
[]
[]
[]
[]
[]
[]
[]
[]
[]
[]
[]
[]
[]
[]
[]
[]
[]
[]
[]
[]
[]
[]
[]
[]
[]
[]
[]
[]
[]
[]
[]
[]
[]
[]
[]
[]
[]
[]
[]
[]
[]
[]
[]
[]
[]
[]
[]
[]
[]
[]
[]
[]
[]
[]
[]
[]
[]
[]
[]
[]
[]
[]
[]
[]
[]
[]
[]
[]
[]
[]
[]
[]
[]
[]
[]
[]
[]
[]
[]
[]
[]
[]
[]
[]
[]
[]
[]
[]
[]
[]
[]
[]
[]
[]
[]
[]
[]
[]
[]
[]
[]
[]
[]
[]
[]
[]
[]
[]
[]
[]
[]
[]
[]
[]
[]
[]
[]
[]
[]
[]
[]
[]
[]
[]
[]
[]
[]
[]
[]
[]
[]
[]
[]
[]
[]
[]
[]
[]
[]
[]
[]
[]
[]
[]
[]
[]
[]
[]
[]
[]
[]
[]
[]
[]
[]
[]
[]
[]
[]
[]
[]
[]
[]
[]
[]
[]
[]
[]
[]
[]
[]
[]
[]
[]
[]
[]
[]
[]
[]
[]
[]
[]
[]
[]
[]
[]
[]
[]
[]
[]
[]
[]
[]
[]
[]
[]
[]
[]
[]
[]
[]
[]
[]
[]
[]
[]
[]
[]
[]
[]
[]
[]
[]
[]
[]
[]
[]
[]
[]
[]
[]
[]
[]
[]
[]
[]
[]
[]
[]
[]
[]
[]
[]
[]
[]
[]
[]
[]
[]
[]
[]
[]
[]
[]
[]
[]
[]
[]
[]
[]
[]
[]
[]
[]
[]
[]
[]
[]
[]
[]
[]
[]
[]
[]
[]
[]
[]
[]
[]
[]
[]
[]
[]
[]
[]
[]
[]
[]
[]
[]
[]
[]
[]
[]
[]
[]
[]
[]
[]
[]
[]
[]
[]
[]
[]
[]
[]
[]
[]
[]
[]
[]
[]
[]
[]
[]
[]
[]
[]
[]
[]
[]
[]
[]
[]
[]
[]
[]
[]
[]
[]
[]
[]
[]
[]
[]
[]
[]
[]
[]
[]
[]
[]
[]
[]
[]
[]
[]
[]
[]
[]
[]
[]
[]
[]
[]
[]
[]
[]
[]
[]
[]
[]
[]
[]
[]
[]
[]
[]
[]
[]
[]
[]
[]
[]
[]
[]
[]
[]
[]
[]
[]
[]
[]
[]
[]
[]
[]
[]
[]
[]
[]
[]
[]
[]
[]
[]
[]
[]
[]
[]
[]
[]
[]
[]
[]
[]
[]
[]
[]
[]
[]
[]
[]
[]
[]
[]
[]
[]
[]
[]
[]
[]
[]
[]
[]
[]
[]
[]
[]
[]
[]
[]
[]
[]
[]
[]
[]
[]
[]
[]
[]
[]
[]
[]
[]
[]
[]
[]
[]
[]
[]
[]
[]
[]
[]
[]
[]
[]
[]
[]
[]
[]
[]
[]
[]
[]
[]
[]
[]
[]
[]
[]
[]
[]
[]
[]
[]
[]
[]
[]
[]
[]
[]
[]
[]
[]
[]
[]
[]
[]
[]
[]
[]
[]
[]
[]
[]
[]
[]
[]
[]
[]
[]
[]
[]
[]
[]
[]
[]
[]
[]
[]
[]
[]
[]
[]
[]
[]
[]
[]
[]
[]
[]
[]
[]
[]
[]
[]
[]
[]
[]
[]
[]
[]
[]
[]
[]
[]
[]
[]
[]
[]
[]
[]
[]
[]
[]
[]
[]
[]
[]
[]
[]
[]
[]
[]
[]
[]
[]
[]
[]
[]
[]
[]
[]
[]
[]
[]
[]
[]
[]
[]
[]
[]
[]
[]
[]
[]
[]
[]
[]
[]
[]
[]
[]
[]
[]
[]
[]
[]
[]
[]
[]
[]
[]
[]
[]
[]
[]
[]
[]
[]
[]
[]
[]
[]
[]
[]
[]
[]
[]
[]
[]
[]
[]
[]
[]
[]
[]
[]
[]
[]
[]
[]
[]
[]
[]
[]
[]
[]
[]
[]
[]
[]
[]
[]
[]
[]
[]
[]
[]
[]
[]
[]
[]
[]
[]
[]
[]
[]
[]
[]
[]
[]
[]
[]
[]
[]
[]
[]
[]
[]
[]
[]
[]
[]
[]
[]
[]
[]
[]
[]
[]
[]
[]
[]
[]
[]
[]
[]
[]
[]
[]
[]
[]
[]
[]
[]
[]
[]
[]
[]
[]
[]
[]
[]
[]
[]
[]
[]
[]
[]
[]
[]
[]
[]
[]
[]
[]
[]
[]
[]
[]
[]
[]
[]
[]
[]
[]
[]
[]
[]
[]
[]
[]
[]
[]
[]
[]
[]
[]
[]
[]
[]
[]
[]
[]
[]
[]
[]
[]
[]
[]
[]
[]
[]
[]
[]
[]
[]
[]
[]
[]
[]
[]
[]
[]
[]
[]
[]
[]
[]
[]
[]
[]
[]
[]
[]
[]
[]
[]
[]
[]
[]
[]
[]
[]
[]
[]
[]
[]
[]
[]
[]
[]
[]
[]
[]
[]
[]
[]
[]
[]
[]
[]
[]
[]
[]
[]
[]
[]
[]
[]
[]
[]
[]
[]
[]
[]
[]
[]
[]
[]
[]
[]
[]
[]
[]
[]
[]
[]
[]
[]
[]
[]
[]
[]
[]
[]
[]
[]
[]
[]
[]
[]
[]
[]
[]
[]
[]
[]
[]
[]
[]
[]
[]
[]
[]
[]
[]
[]
[]
[]
[]
[]
[]
[]
[]
[]
[]
[]
[]
[]
[]
[]
[]
[]
[]
[]
[]
[]
[]
[]
[]
[]
[]
[]
[]
[]
[]
[]
[]
[]
[]
[]
[]
[]
[]
[]
[]
[]
[]
[]
[]
[]
[]
[]
[]
[]
[]
[]
[]
[]
[]
[]
[]
[]
[]
[]
[]
[]
[]
[]
[]
[]
[]
[]
[]
[]
[]
[]
[]
[]
[]
[]
[]
[]
[]
[]
[]
[]
[]
[]
[]
[]
[]
[]
[]
[]
[]
[]
[]
[]
[]
[]
[]
[]
[]
[]
[]
[]
[]
[]
[]
[]
[]
[]
[]
[]
[]
[]
[]
[]
[]
[]
[]
[]
[]
[]
[]
[]
[]
[]
[]
[]
[]
[]
[]
[]
[]
[]
[]
[]
[]
[]
[]
[]
[]
[]
[]
[]
[]
[]
[]
[]
[]
[]
[]
[]
[]
[]
[]
[]
[]
[]
[]
[]
[]
[]
[]
[]
[]
[]
[]
[]
[]
[]
[]
[]
[]
[]
[]
[]
[]
[]
[]
[]
[]
[]
[]
[]
[]
[]
[]
[]
[]
[]
[]
[]
[]
[]
[]
[]
[]
[]
[]
[]
[]
[]
[]
[]
[]
[]
[]
[]
[]
[]
[]
[]
[]
[]
[]
[]
[]
[]
[]
[]
[]
[]
[]
[]
[]
[]
[]
[]
[]
[]
[]
[]
[]
[]
[]
[]
[]
[]
[]
[]
[]
[]
[]
[]
[]
[]
[]
[]
[]
[]
[]
[]
[]
[]
[]
[]
[]
[]
[]
[]
[]
[]
[]
[]
[]
[]
[]
[]
[]
[]
[]
[]
[]
[]
[]
[]
[]
[]
[]
[]
[]
[]
[]
[]
[]
[]
[]
[]
[]
[]
[]
[]
[]
[]
[]
[]
[]
[]
[]
[]
[]
[]
[]
[]
[]
[]
[]
[]
[]
[]
[]
[]
[]
[]
[]
[]
[]
[]
[]
[]
[]
[]
[]
[]
[]
[]
[]
[]
[]
[]
[]
[]
[]
[]
[]
[]
[]
[]
[]
[]
[]
[]
[]
[]
[]
[]
[]
[]
[]
[]
[]
[]
[]
[]
[]
[]
[]
[]
[]
[]
[]
[]
[]
[]
[]
[]
[]
[]
[]
[]
[]
[]
[]
[]
[]
[]
[]
[]
[]
[]
[]
[]
[]
[]
[]
[]
[]
[]
[]
[]
[]
[]
[]
[]
[]
[]
[]
[]
[]
[]
[]
[]
[]
[]
[]
[]
[]
[]
[]
[]
[]
[]
[]
[]
[]
[]
[]
[]
[]
[]
[]
[]
[]
[]
[]
[]
[]
[]
[]
[]
[]
[]
[]
[]
[]
[]
[]
[]
[]
[]
[]
[]
[]
[]
[]
[]
[]
[]
[]
[]
[]
[]
[]
[]
[]
[]
[]
[]
[]
[]
[]
[]
[]
[]
[]
[]
[]
[]
[]
[]
[]
[]
[]
[]
[]
[]
[]
[]
[]
[]
[]
[]
[]
[]
[]
[]
[]
[]
[]
[]
[]
[]
[]
[]
[]
[]
[]
[]
[]
[]
[]
[]
[]
[]
[]
[]
[]
[]
[]
[]
[]
[]
[]
[]
[]
[]
[]
[]
[]
[]
[]
[]
[]
[]
[]
[]
[]
[]
[]
[]
[]
[]
[]
[]
[]
[]
[]
[]
[]
[]
[]
[]
[]
[]
[]
[]
[]
[]
[]
[]
[]
[]
[]
[]
[]
[]
[]
[]
[]
[]
[]
[]
[]
[]
[]
[]
[]
[]
[]
[]
[]
[]
[]
[]
[]
[]
[]
[]
[]
[]
[]
[]
[]
[]
[]
[]
[]
[]
[]
[]
[]
[]
[]
[]
[]
[]
[]
[]
[]
[]
[]
[]
[]
[]
[]
[]
[]
[]
[]
[]
[]
[]
[]
[]
[]
[]
[]
[null,null,"2018-12-17"]
[]
[null,null,"2018-12-17"]

{"sheet":"مصروفات","index":1,"n_rows":3,"n_cols":13,"rows_kept":3,"cut":false,"hidden":false,"merged":[[6,4,6,11],[7,4,7,11],[8,4,8,11],[9,4,9,11],[10,4,10,11],[11,4,11,11],[0,4,0,11],[1,4,1,11],[2,4,2,11],[3,4,3,11],[4,4,4,11],[5,4,5,11],[24,4,24,11],[25,4,25,11],[26,4,26,11],[27,4,27,11],[28,4,28,11],[29,4,29,11],[18,4,18,11],[19,4,19,11],[20,4,20,11],[21,4,21,11],[22,4,22,11],[23,4,23,11],[12,4,12,11],[13,4,13,11],[14,4,14,11],[15,4,15,11],[16,4,16,11],[17,4,17,11],[42,4,42,11],[43,4,43,11],[44,4,44,11],[45,4,45,11],[46,4,46,11],[47,4,47,11],[36,4,36,11],[37,4,37,11],[38,4,38,11],[39,4,39,11],[40,4,40,11],[41,4,41,11],[30,4,30,11],[31,4,31,11],[32,4,32,11],[33,4,33,11],[34,4,34,11],[35,4,35,11],[60,4,60,11],[61,4,61,11],[62,4,62,11],[63,4,63,11],[64,4,64,11],[65,4,65,11],[54,4,54,11],[55,4,55,11],[56,4,56,11],[57,4,57,11],[58,4,58,11],[59,4,59,11],[48,4,48,11],[49,4,49,11],[50,4,50,11],[51,4,51,11],[52,4,52,11],[53,4,53,11],[78,4,78,11],[79,4,79,11],[80,4,80,11],[81,4,81,11],[82,4,82,11],[83,4,83,11],[72,4,72,11],[73,4,73,11],[74,4,74,11],[75,4,75,11],[76,4,76,11],[77,4,77,11],[66,4,66,11],[67,4,67,11],[68,4,68,11],[69,4,69,11],[70,4,70,11],[71,4,71,11],[96,4,96,11],[97,4,97,11],[98,4,98,11],[99,4,99,11],[100,4,100,11],[101,4,101,11],[90,4,90,11],[91,4,91,11],[92,4,92,11],[93,4,93,11],[94,4,94,11],[95,4,95,11],[84,4,84,11],[85,4,85,11],[86,4,86,11],[87,4,87,11],[88,4,88,11],[89,4,89,11],[114,4,114,11],[115,4,115,11],[116,4,116,11],[117,4,117,11],[118,4,118,11],[119,4,119,11],[108,4,108,11],[109,4,109,11],[110,4,110,11],[111,4,111,11],[112,4,112,11],[113,4,113,11],[102,4,102,11],[103,4,103,11],[104,4,104,11],[105,4,105,11],[106,4,106,11],[107,4,107,11],[132,4,132,11],[133,4,133,11],[134,4,134,11],[135,4,135,11],[136,4,136,11],[137,4,137,11],[126,4,126,11],[127,4,127,11],[128,4,128,11],[129,4,129,11],[130,4,130,11],[131,4,131,11],[120,4,120,11],[121,4,121,11],[122,4,122,11],[123,4,123,11],[124,4,124,11],[125,4,125,11],[150,4,150,11],[151,4,151,11],[152,4,152,11],[153,4,153,11],[154,4,154,11],[155,4,155,11],[144,4,144,11],[145,4,145,11],[146,4,146,11],[147,4,147,11],[148,4,148,11],[149,4,149,11],[138,4,138,11],[139,4,139,11],[140,4,140,11],[141,4,141,11],[142,4,142,11],[143,4,143,11],[168,4,168,11],[169,4,169,11],[170,4,170,11],[171,4,171,11],[172,4,172,11],[173,4,173,11],[162,4,162,11],[163,4,163,11],[164,4,164,11],[165,4,165,11],[166,4,166,11],[167,4,167,11],[156,4,156,11],[157,4,157,11],[158,4,158,11],[159,4,159,11],[160,4,160,11],[161,4,161,11],[186,4,186,11],[187,4,187,11],[188,4,188,11],[189,4,189,11],[190,4,190,11],[191,4,191,11],[180,4,180,11],[181,4,181,11],[182,4,182,11],[183,4,183,11],[184,4,184,11],[185,4,185,11],[174,4,174,11],[175,4,175,11],[176,4,176,11],[177,4,177,11],[178,4,178,11],[179,4,179,11],[204,4,204,11],[205,4,205,11],[206,4,206,11],[207,4,207,11],[208,4,208,11],[209,4,209,11],[198,4,198,11],[199,4,199,11],[200,4,200,11],[201,4,201,11],[202,4,202,11],[203,4,203,11],[192,4,192,11],[193,4,193,11],[194,4,194,11],[195,4,195,11],[196,4,196,11],[197,4,197,11],[222,4,222,11],[223,4,223,11],[224,4,224,11],[225,4,225,11],[226,4,226,11],[227,4,227,11],[216,4,216,11],[217,4,217,11],[218,4,218,11],[219,4,219,11],[220,4,220,11],[221,4,221,11],[210,4,210,11],[211,4,211,11],[212,4,212,11],[213,4,213,11],[214,4,214,11],[215,4,215,11],[240,4,240,11],[241,4,241,11],[242,4,242,11],[243,4,243,11],[244,4,244,11],[245,4,245,11],[234,4,234,11],[235,4,235,11],[236,4,236,11],[237,4,237,11],[238,4,238,11],[239,4,239,11],[228,4,228,11],[229,4,229,11],[230,4,230,11],[231,4,231,11],[232,4,232,11],[233,4,233,11],[258,4,258,11],[259,4,259,11],[260,4,260,11],[261,4,261,11],[262,4,262,11],[263,4,263,11],[252,4,252,11],[253,4,253,11],[254,4,254,11],[255,4,255,11],[256,4,256,11],[257,4,257,11],[246,4,246,11],[247,4,247,11],[248,4,248,11],[249,4,249,11],[250,4,250,11],[251,4,251,11],[276,4,276,11],[277,4,277,11],[278,4,278,11],[279,4,279,11],[280,4,280,11],[281,4,281,11],[270,4,270,11],[271,4,271,11],[272,4,272,11],[273,4,273,11],[274,4,274,11],[275,4,275,11],[264,4,264,11],[265,4,265,11],[266,4,266,11],[267,4,267,11],[268,4,268,11],[269,4,269,11],[294,4,294,11],[295,4,295,11],[296,4,296,11],[297,4,297,11],[298,4,298,11],[299,4,299,11],[288,4,288,11],[289,4,289,11],[290,4,290,11],[291,4,291,11],[292,4,292,11],[293,4,293,11],[282,4,282,11],[283,4,283,11],[284,4,284,11],[285,4,285,11],[286,4,286,11],[287,4,287,11],[312,4,312,11],[313,4,313,11],[314,4,314,11],[315,4,315,11],[316,4,316,11],[317,4,317,11],[306,4,306,11],[307,4,307,11],[308,4,308,11],[309,4,309,11],[310,4,310,11],[311,4,311,11],[300,4,300,11],[301,4,301,11],[302,4,302,11],[303,4,303,11],[304,4,304,11],[305,4,305,11],[330,4,330,11],[331,4,331,11],[332,4,332,11],[333,4,333,11],[334,4,334,11],[335,4,335,11],[324,4,324,11],[325,4,325,11],[326,4,326,11],[327,4,327,11],[328,4,328,11],[329,4,329,11],[318,4,318,11],[319,4,319,11],[320,4,320,11],[321,4,321,11],[322,4,322,11],[323,4,323,11],[348,4,348,11],[349,4,349,11],[350,4,350,11],[351,4,351,11],[352,4,352,11],[353,4,353,11],[342,4,342,11],[343,4,343,11],[344,4,344,11],[345,4,345,11],[346,4,346,11],[347,4,347,11],[336,4,336,11],[337,4,337,11],[338,4,338,11],[339,4,339,11],[340,4,340,11],[341,4,341,11],[366,4,366,11],[367,4,367,11],[368,4,368,11],[369,4,369,11],[370,4,370,11],[371,4,371,11],[360,4,360,11],[361,4,361,11],[362,4,362,11],[363,4,363,11],[364,4,364,11],[365,4,365,11],[354,4,354,11],[355,4,355,11],[356,4,356,11],[357,4,357,11],[358,4,358,11],[359,4,359,11],[384,4,384,11],[385,4,385,11],[386,4,386,11],[387,4,387,11],[388,4,388,11],[389,4,389,11],[378,4,378,11],[379,4,379,11],[380,4,380,11],[381,4,381,11],[382,4,382,11],[383,4,383,11],[372,4,372,11],[373,4,373,11],[374,4,374,11],[375,4,375,11],[376,4,376,11],[377,4,377,11],[402,4,402,11],[403,4,403,11],[404,4,404,11],[405,4,405,11],[406,4,406,11],[407,4,407,11],[396,4,396,11],[397,4,397,11],[398,4,398,11],[399,4,399,11],[400,4,400,11],[401,4,401,11],[390,4,390,11],[391,4,391,11],[392,4,392,11],[393,4,393,11],[394,4,394,11],[395,4,395,11],[420,4,420,11],[421,4,421,11],[422,4,422,11],[423,4,423,11],[424,4,424,11],[425,4,425,11],[414,4,414,11],[415,4,415,11],[416,4,416,11],[417,4,417,11],[418,4,418,11],[419,4,419,11],[408,4,408,11],[409,4,409,11],[410,4,410,11],[411,4,411,11],[412,4,412,11],[413,4,413,11],[438,4,438,11],[439,4,439,11],[440,4,440,11],[441,4,441,11],[442,4,442,11],[443,4,443,11],[432,4,432,11],[433,4,433,11],[434,4,434,11],[435,4,435,11],[436,4,436,11],[437,4,437,11],[426,4,426,11],[427,4,427,11],[428,4,428,11],[429,4,429,11],[430,4,430,11],[431,4,431,11],[456,4,456,11],[457,4,457,11],[458,4,458,11],[459,4,459,11],[460,4,460,11],[461,4,461,11],[450,4,450,11],[451,4,451,11],[452,4,452,11],[453,4,453,11],[454,4,454,11],[455,4,455,11],[444,4,444,11],[445,4,445,11],[446,4,446,11],[447,4,447,11],[448,4,448,11],[449,4,449,11],[474,4,474,11],[475,4,475,11],[476,4,476,11],[477,4,477,11],[478,4,478,11],[479,4,479,11],[468,4,468,11],[469,4,469,11],[470,4,470,11],[471,4,471,11],[472,4,472,11],[473,4,473,11],[462,4,462,11],[463,4,463,11],[464,4,464,11],[465,4,465,11],[466,4,466,11],[467,4,467,11],[492,4,492,11],[493,4,493,11],[494,4,494,11],[495,4,495,11],[496,4,496,11],[497,4,497,11],[486,4,486,11],[487,4,487,11],[488,4,488,11],[489,4,489,11],[490,4,490,11],[491,4,491,11],[480,4,480,11],[481,4,481,11],[482,4,482,11],[483,4,483,11],[484,4,484,11],[485,4,485,11],[510,4,510,11],[511,4,511,11],[512,4,512,11],[513,4,513,11],[514,4,514,11],[515,4,515,11],[504,4,504,11],[505,4,505,11],[506,4,506,11],[507,4,507,11],[508,4,508,11],[509,4,509,11],[498,4,498,11],[499,4,499,11],[500,4,500,11],[501,4,501,11],[502,4,502,11],[503,4,503,11],[528,4,528,11],[529,4,529,11],[530,4,530,11],[531,4,531,11],[532,4,532,11],[533,4,533,11],[522,4,522,11],[523,4,523,11],[524,4,524,11],[525,4,525,11],[526,4,526,11],[527,4,527,11],[516,4,516,11],[517,4,517,11],[518,4,518,11],[519,4,519,11],[520,4,520,11],[521,4,521,11],[546,4,546,11],[547,4,547,11],[548,4,548,11],[549,4,549,11],[550,4,550,11],[551,4,551,11],[540,4,540,11],[541,4,541,11],[542,4,542,11],[543,4,543,11],[544,4,544,11],[545,4,545,11],[534,4,534,11],[535,4,535,11],[536,4,536,11],[537,4,537,11],[538,4,538,11],[539,4,539,11],[564,4,564,11],[565,4,565,11],[566,4,566,11],[567,4,567,11],[568,4,568,11],[569,4,569,11],[558,4,558,11],[559,4,559,11],[560,4,560,11],[561,4,561,11],[562,4,562,11],[563,4,563,11],[552,4,552,11],[553,4,553,11],[554,4,554,11],[555,4,555,11],[556,4,556,11],[557,4,557,11],[582,4,582,11],[583,4,583,11],[584,4,584,11],[585,4,585,11],[586,4,586,11],[587,4,587,11],[576,4,576,11],[577,4,577,11],[578,4,578,11],[579,4,579,11],[580,4,580,11],[581,4,581,11],[570,4,570,11],[571,4,571,11],[572,4,572,11],[573,4,573,11],[574,4,574,11],[575,4,575,11],[600,4,600,11],[601,4,601,11],[602,4,602,11],[603,4,603,11],[604,4,604,11],[605,4,605,11],[594,4,594,11],[595,4,595,11],[596,4,596,11],[597,4,597,11],[598,4,598,11],[599,4,599,11],[588,4,588,11],[589,4,589,11],[590,4,590,11],[591,4,591,11],[592,4,592,11],[593,4,593,11],[618,4,618,11],[619,4,619,11],[620,4,620,11],[621,4,621,11],[622,4,622,11],[623,4,623,11],[612,4,612,11],[613,4,613,11],[614,4,614,11],[615,4,615,11],[616,4,616,11],[617,4,617,11],[606,4,606,11],[607,4,607,11],[608,4,608,11],[609,4,609,11],[610,4,610,11],[611,4,611,11],[636,4,636,11],[637,4,637,11],[638,4,638,11],[639,4,639,11],[640,4,640,11],[641,4,641,11],[630,4,630,11],[631,4,631,11],[632,4,632,11],[633,4,633,11],[634,4,634,11],[635,4,635,11],[624,4,624,11],[625,4,625,11],[626,4,626,11],[627,4,627,11],[628,4,628,11],[629,4,629,11],[654,4,654,11],[655,4,655,11],[656,4,656,11],[657,4,657,11],[658,4,658,11],[659,4,659,11],[648,4,648,11],[649,4,649,11],[650,4,650,11],[651,4,651,11],[652,4,652,11],[653,4,653,11],[642,4,642,11],[643,4,643,11],[644,4,644,11],[645,4,645,11],[646,4,646,11],[647,4,647,11],[672,4,672,11],[673,4,673,11],[674,4,674,11],[675,4,675,11],[676,4,676,11],[677,4,677,11],[666,4,666,11],[667,4,667,11],[668,4,668,11],[669,4,669,11],[670,4,670,11],[671,4,671,11],[660,4,660,11],[661,4,661,11],[662,4,662,11],[663,4,663,11],[664,4,664,11],[665,4,665,11],[690,4,690,11],[691,4,691,11],[692,4,692,11],[693,4,693,11],[694,4,694,11],[695,4,695,11],[684,4,684,11],[685,4,685,11],[686,4,686,11],[687,4,687,11],[688,4,688,11],[689,4,689,11],[678,4,678,11],[679,4,679,11],[680,4,680,11],[681,4,681,11],[682,4,682,11],[683,4,683,11],[708,4,708,11],[709,4,709,11],[710,4,710,11],[711,4,711,11],[712,4,712,11],[713,4,713,11],[702,4,702,11],[703,4,703,11],[704,4,704,11],[705,4,705,11],[706,4,706,11],[707,4,707,11],[696,4,696,11],[697,4,697,11],[698,4,698,11],[699,4,699,11],[700,4,700,11],[701,4,701,11],[726,4,726,11],[727,4,727,11],[728,4,728,11],[729,4,729,11],[730,4,730,11],[731,4,731,11],[720,4,720,11],[721,4,721,11],[722,4,722,11],[723,4,723,11],[724,4,724,11],[725,4,725,11],[714,4,714,11],[715,4,715,11],[716,4,716,11],[717,4,717,11],[718,4,718,11],[719,4,719,11],[744,4,744,11],[745,4,745,11],[746,4,746,11],[747,4,747,11],[748,4,748,11],[749,4,749,11],[738,4,738,11],[739,4,739,11],[740,4,740,11],[741,4,741,11],[742,4,742,11],[743,4,743,11],[732,4,732,11],[733,4,733,11],[734,4,734,11],[735,4,735,11],[736,4,736,11],[737,4,737,11],[762,4,762,11],[763,4,763,11],[764,4,764,11],[765,4,765,11],[766,4,766,11],[767,4,767,11],[756,4,756,11],[757,4,757,11],[758,4,758,11],[759,4,759,11],[760,4,760,11],[761,4,761,11],[750,4,750,11],[751,4,751,11],[752,4,752,11],[753,4,753,11],[754,4,754,11],[755,4,755,11],[780,4,780,11],[781,4,781,11],[782,4,782,11],[783,4,783,11],[784,4,784,11],[785,4,785,11],[774,4,774,11],[775,4,775,11],[776,4,776,11],[777,4,777,11],[778,4,778,11],[779,4,779,11],[768,4,768,11],[769,4,769,11],[770,4,770,11],[771,4,771,11],[772,4,772,11],[773,4,773,11],[798,4,798,11],[799,4,799,11],[800,4,800,11],[801,4,801,11],[802,4,802,11],[803,4,803,11],[792,4,792,11],[793,4,793,11],[794,4,794,11],[795,4,795,11],[796,4,796,11],[797,4,797,11],[786,4,786,11],[787,4,787,11],[788,4,788,11],[789,4,789,11],[790,4,790,11],[791,4,791,11],[816,4,816,11],[817,4,817,11],[818,4,818,11],[819,4,819,11],[820,4,820,11],[821,4,821,11],[810,4,810,11],[811,4,811,11],[812,4,812,11],[813,4,813,11],[814,4,814,11],[815,4,815,11],[804,4,804,11],[805,4,805,11],[806,4,806,11],[807,4,807,11],[808,4,808,11],[809,4,809,11],[834,4,834,11],[835,4,835,11],[836,4,836,11],[837,4,837,11],[838,4,838,11],[839,4,839,11],[828,4,828,11],[829,4,829,11],[830,4,830,11],[831,4,831,11],[832,4,832,11],[833,4,833,11],[822,4,822,11],[823,4,823,11],[824,4,824,11],[825,4,825,11],[826,4,826,11],[827,4,827,11],[852,4,852,11],[853,4,853,11],[854,4,854,11],[855,4,855,11],[856,4,856,11],[857,4,857,11],[846,4,846,11],[847,4,847,11],[848,4,848,11],[849,4,849,11],[850,4,850,11],[851,4,851,11],[840,4,840,11],[841,4,841,11],[842,4,842,11],[843,4,843,11],[844,4,844,11],[845,4,845,11],[870,4,870,11],[871,4,871,11],[872,4,872,11],[873,4,873,11],[874,4,874,11],[875,4,875,11],[864,4,864,11],[865,4,865,11],[866,4,866,11],[867,4,867,11],[868,4,868,11],[869,4,869,11],[858,4,858,11],[859,4,859,11],[860,4,860,11],[861,4,861,11],[862,4,862,11],[863,4,863,11],[888,4,888,11],[889,4,889,11],[890,4,890,11],[891,4,891,11],[892,4,892,11],[893,4,893,11],[882,4,882,11],[883,4,883,11],[884,4,884,11],[885,4,885,11],[886,4,886,11],[887,4,887,11],[876,4,876,11],[877,4,877,11],[878,4,878,11],[879,4,879,11],[880,4,880,11],[881,4,881,11],[906,4,906,11],[907,4,907,11],[908,4,908,11],[909,4,909,11],[910,4,910,11],[911,4,911,11],[900,4,900,11],[901,4,901,11],[902,4,902,11],[903,4,903,11],[904,4,904,11],[905,4,905,11],[894,4,894,11],[895,4,895,11],[896,4,896,11],[897,4,897,11],[898,4,898,11],[899,4,899,11],[924,4,924,11],[925,4,925,11],[926,4,926,11],[927,4,927,11],[928,4,928,11],[929,4,929,11],[918,4,918,11],[919,4,919,11],[920,4,920,11],[921,4,921,11],[922,4,922,11],[923,4,923,11],[912,4,912,11],[913,4,913,11],[914,4,914,11],[915,4,915,11],[916,4,916,11],[917,4,917,11],[942,4,942,11],[943,4,943,11],[944,4,944,11],[945,4,945,11],[946,4,946,11],[947,4,947,11],[936,4,936,11],[937,4,937,11],[938,4,938,11],[939,4,939,11],[940,4,940,11],[941,4,941,11],[930,4,930,11],[931,4,931,11],[932,4,932,11],[933,4,933,11],[934,4,934,11],[935,4,935,11],[960,4,960,11],[961,4,961,11],[962,4,962,11],[963,4,963,11],[964,4,964,11],[965,4,965,11],[954,4,954,11],[955,4,955,11],[956,4,956,11],[957,4,957,11],[958,4,958,11],[959,4,959,11],[948,4,948,11],[949,4,949,11],[950,4,950,11],[951,4,951,11],[952,4,952,11],[953,4,953,11],[978,4,978,11],[979,4,979,11],[980,4,980,11],[981,4,981,11],[982,4,982,11],[983,4,983,11],[972,4,972,11],[973,4,973,11],[974,4,974,11],[975,4,975,11],[976,4,976,11],[977,4,977,11],[966,4,966,11],[967,4,967,11],[968,4,968,11],[969,4,969,11],[970,4,970,11],[971,4,971,11],[996,4,996,11],[997,4,997,11],[998,4,998,11],[999,4,999,11],[1000,4,1000,11],[1001,4,1001,11],[990,4,990,11],[991,4,991,11],[992,4,992,11],[993,4,993,11],[994,4,994,11],[995,4,995,11],[984,4,984,11],[985,4,985,11],[986,4,986,11],[987,4,987,11]],"merged_total":9177,"flags":["merged_cut"]}
[null,null,null,"المبلغ","ملاحظات",null,null,null,null,null,null,null,"التاريخ"]
[null,130,"طنطا",187,"دفع اشتراك النت عن شهر مارس2019",null,null,null,null,null,null,null,"2019-03-21"]
[null,null,null,100,"شراء عدد 2 قفل للمعرض",null,null,null,null,null,null,null,"2019-03-21"]

{"sheet":"المخزن","index":2,"n_rows":1673,"n_cols":8,"rows_kept":1673,"cut":false,"hidden":false,"merged":[]}
["Item","Description","Price","سعر التجارى",null,null,null,"سعر التجارى"]
["555","ملونات",0,0]
["03","مخزن العدد والادوات",0,0,null,null,null,0]
["03:01","قسم الفرش",0,1,null,null,null,0]
["03:01:V001","15 طقم فرش رسم",37,1,null,null,null,0]
["03:01:V002","فرشة فوندشن ناعمة صغيرة",49,1,null,null,null,0]
["03:01:V003","فرشة فوندشن ناعمة كبيرة",61,1,null,null,null,0]
["03:01:V004","فرشة فوندشن خشنة",49,1,null,null,null,0]
["03:01:V005","فرشة شعر أبيض بيد سوداء صغيرة",22,1,null,null,null,0]
["03:01:V006","(1) فرشة خيال رقم",4,1,null,null,null,0]
["03:01:V007","(2) فرشة خيال رقم",5,1,null,null,null,0]
["03:01:V008","(3) فرشة خيال رقم",7,1,null,null,null,0]
["03:01:V009","(4) فرشة خيال رقم",8,1,null,null,null,0]
["03:01:V010","(5) فرشة خيال رقم",11,1,null,null,null,0]
["03:01:V011","(6) فرشة خيال رقم",13,1,null,null,null,0]
["03:01:V012","(7) فرشة خيال رقم",14,1,null,null,null,0]
["03:01:V013","(8) فرشة خيال رقم",16,1,null,null,null,0]
["03:01:V014","(9) فرشة خيال رقم",19,1,null,null,null,0]
["03:01:V015","(10) فرشة خيال رقم",22,1,null,null,null,0]
["03:01:V016","(11) فرشة خيال رقم",23,1,null,null,null,0]
["03:01:V017","(12) فرشة خيال رقم",24,1,null,null,null,0]
["03:01:V018","فرشة يد خشب شعر بوليستر 2 بوصة",16,1,null,null,null,0]
["03:01:V019","فرشة يد خشب شعر بوليستر 3 بوصة",24,1,null,null,null,0]
["03:01:V021","WT401 فرشة دهان",49,1,null,null,null,0]
["03:01:V022","WT403 فرشة دهان",89,1,null,null,null,0]
["03:01:V023","WT404 فرشة دهان",119,1,null,null,null,0]
["03:01:V024","(1) فرشة نحيفة",7,1,null,null,null,0]
["03:01:V025","(2) فرشة نحيفة",11,1,null,null,null,0]
["03:01:V026","(3) فرشة نحيفة",14,1,null,null,null,0]
["03:01:V027","(4) فرشة نحيفة",23,1,null,null,null,0]
["03:01:V029","فرشة شعر بوليستر 1 بوصة",11,1,null,null,null,0]
["03:01:V030","فرشة شعر بوليستر 1.5بوصة",14,1,null,null,null,0]
["03:01:V031","فرشة شعر بوليستر 2 بوصة",18,1,null,null,null,0]
["03:01:V033","فرشة شعر بوليستر 3 بوصة",29,1,null,null,null,0]
["03:01:V034","فرشة شعر بوليستر 4 بوصة",32,1,null,null,null,0]
["03:01:V035","فرشة شعر نقى 1 بوصة",16,1,null,null,null,0]
["03:01:V036","فرشة شعر نقى 2 بوصة",24,1,null,null,null,0]
["03:01:V037","فرشة شعر نقى 3 بوصة",44,1,null,null,null,0]
["03:01:V038","فرشة شعر نقى 4 بوصة",60,1,null,null,null,0]
["03:01:V039","فرشة بيد أسود × أصفر 1 بوصة",13,1,null,null,null,0]
["03:01:V043","فرشة بيد زرقاء 1 بوصة",14,1,null,null,null,0]
["03:01:V046","فرشة بيد زرقاء 4 بوصة",40,1,null,null,null,0]
["03:01:V047","فرشة بيد خشب 1 بوصة",14,1,null,null,null,0]
["03:01:V050","فرشة بيد خشب 4 بوصة",76,1,null,null,null,0]
["03:01:V051","فرشة تطبيق السبلادور 4 بوصة",76,1,null,null,null,0]
["03:01:V052","فرشة تطبيق السبلادور 5 بوصة",109,1,null,null,null,0]
["03:01:V053","فرشة شكل بيضاوى كبيرة",178,1,null,null,null,0]
["03:01:V054","فرشة شكل بيضاوى صغيرة",139,1,null,null,null,0]
["03:01:V056","فرشة تطبيق البولو",89,1,null,null,null,0]
["03:01:V057","فرشة بيكانتو",80,1,null,null,null,0]
["03:01:V059","فرشة بيد طويلة شعر أسود 3 بوصة",76,1,null,null,null,0]
["03:01:V060","فرشة أكريلك ملونة 2 بوصة",24,1,null,null,null,0]
["03:01:V061","فرشة أكريلك ملونة 3 بوصة",30,1,null,null,null,0]
["03:01:V062","1.5 فرشة بيد خشب مشطوفة",25,1,null,null,null,0]
["03:01:V063","2 فرشة بيد خشب مشطوفة",35,1,null,null,null,0]
["03:01:V065","فرشة بيد خشب شعر رمادى 2 بوصة",30,1,null,null,null,0]
["03:01:V071","فرشة بيد نحاسى 4 بوصة",22,1,null,null,null,0]
["03:01:V072","فرشة بيد خشب × أزرق 1 بوصة",10,1,null,null,null,0]
["03:01:V075","فرشة بيد خشب × أزرق 4 بوصة",44,1,null,null,null,0]
["03:01:V081","فرشة بيد أكريلك أبيض 4 بوصة",30,1,null,null,null,0]
["03:01:V082","فرشة مرسام 8 بوصة",11,1,null,null,null,0]
["03:01:V083","فرشة مرسام 10 بوصة",14,1,null,null,null,0]
["03:01:V084","فرشة مرسام 12 بوصة",16,1,null,null,null,0]
["03:01:V085","طقم فرش رسم صغير ملون",14,1,null,null,null,0]
["03:01:V086","فرشة تطبيق الخيال رقم (3) صينى",40,1,null,null,null,0]
["03:01:V087","فرشة تطبيق الخيال رقم (4) صينى",49,1,null,null,null,0]
["03:01:V088","طقم فرش ( 3 قطع )",30,1,null,null,null,0]
["03:01:V096","فرشة معكوفة 2",30,1,null,null,null,0]
["03:01:V097","فرشة معكوفة  3",35,1,null,null,null,0]
["03:01:V098","فرشة معكوفة  4",40,1,null,null,null,0]
["03:01:V099","فرشة معكوفة  5",44,1,null,null,null,0]
["03:01:V100","فرشة معكوفة  6",49,1,null,null,null,0]
["03:01:V101","فرشة إيطالى 1 بوصة",13,1,null,null,null,0]
["03:01:V102","(1.5) فرشة إيطالى",16,1,null,null,null,0]
["03:01:V103","(30) فرشة إيطالى",24,1,null,null,null,0]
["03:01:V104","(40) فرشة إيطالى",37,1,null,null,null,0]
["03:01:V105","(50) فرشة إيطالى",40,1,null,null,null,0]
["03:01:V106","(60) فرشة إيطالى",49,1,null,null,null,0]
["03:01:V107","(70) فرشة إيطالى",60,1,null,null,null,0]
["03:01:V111","فرشة تعتيق وهاج",60,1,null,null,null,0]
["03:01:V112","فرشاه أورجينى ( ثنائية)",119,1,null,null,null,0]
["03:01:V113","فرشة الندى يد خشب 2 بوصه",32,1,null,null,null,0]
["03:01:V114","فرشة الندى يد خشب 3 بوصه",42,1,null,null,null,0]
["03:01:V115","فرشة الندى يد اسود 2 بوصه",40,1,null,null,null,0]
["03:01:V116","فرشة الندى يد اسود 3 بوصه",49,1,null,null,null,0]
["03:01:V117","فرشة الندى يد اخضر 2بوصة",18,1,null,null,null,0]
["03:01:V118","فرشة الندى يد اخضر 2.5بوصة",23,1,null,null,null,0]
["03:02","قسم السكين والكف",0,1,null,null,null,0]
["03:02:N001","سكين معجون بيد سوداء ( 1 بوصة )",22,1,null,null,null,0]
["03:02:N002","سكين معجون بيد سوداء ( 2 بوصة )",29,1,null,null,null,0]
["03:02:N003","سكين معجون بيد سوداء ( 3 بوصة )",35,1,null,null,null,0]
["03:02:N004","سكين معجون بيد سوداء ( 4 بوصة )",40,1,null,null,null,0]
["03:02:N005","سكين معجون بيد سوداء ( 5 بوصة )",49,1,null,null,null,0]
["03:02:N006","كف مثلث بيد خشب ( 6 بوصة )",11,1,null,null,null,0]
["03:02:N007","كف مثلث بيد خشب ( 8 بوصة )",13,1,null,null,null,0]
["03:02:N008","سكين معجون بلاستيك أبيض",11,1,null,null,null,0]
["03:02:N009","طقم سكين معجون بلاستيك ( 4 قطع )",22,1,null,null,null,0]
["03:02:N010","سكين معجون عريض ( 6 بوصة )",11,1,null,null,null,0]
["03:02:N011","سكين معجون عريض ( 8 بوصة )",13,1,null,null,null,0]
["03:02:N012","سكين معجون عريض ( 10 بوصة )",14,1,null,null,null,0]
["03:02:N013","طقم باغة ( 4 قطع ) بلاستيك",13,1,null,null,null,0]
["03:02:N014","سكين تطبيق الأنتيكا",30,1,null,null,null,0]
["03:02:N015","سكين بيد بلاستيك صفراء ( 3 بوصة )",13,1,null,null,null,0]
["03:02:N016","سكين بيد بلاستيك صفراء ( 4 بوصة )",16,1,null,null,null,0]
["03:02:N017","سكين بيد بلاستيك صفراء ( 5 بوصة )",22,1,null,null,null,0]
["03:02:N018","سكين بيد بلاستيك صفراء ( 6 بوصة )",24,1,null,null,null,0]
["03:02:N019","سكين بيد بلاستيك صفراء ( 8 بوصة )",29,1,null,null,null,0]
["03:02:N020","طقم سكين بلاستيك ( 3 قطع )",14,1,null,null,null,0]
["03:02:N022","سكين تقطيع ورق حائط",56,1,null,null,null,0]
["03:02:N023","سكين لزق ورق حائط",80,1,null,null,null,0]
["03:02:N024","سكين بلاستيك بشكل مثلث",30,1,null,null,null,0]
["03:02:N025","سكين معجون بيد حمراء ( 1 بوصة )",16,1,null,null,null,0]
["03:02:N026","سكين معجون بيد حمراء ( 2 بوصة )",22,1,null,null,null,0]
["03:02:N027","سكين معجون بيد حمراء ( 3 بوصة )",24,1,null,null,null,0]
["03:02:N028","سكين معجون بيد حمراء ( 4 بوصة )",29,1,null,null,null,0]
["03:02:N029","طقم سكين صلب ( 4 قطع )",24,1,null,null,null,0]
["03:02:N030","سكين مثلث بيد بلاستيك ( 6 بوصة )",35,1,null,null,null,0]
["03:02:N031","سكين مثلث بيد بلاستيك ( 8 بوصة )",44,1,null,null,null,0]
["03:02:N032","سكين عريض بيد حمراء ( 8 بوصة )",60,1,null,null,null,0]
["03:02:N033","سكين عريض بيد حمراء ( 12 بوصة )",76,1,null,null,null,0]
["03:02:N034","سكين بيد سوداء طرف حديد ( 1 بوصة )",11,1,null,null,null,0]
["03:02:N035","سكين بيد سوداء طرف حديد ( 1.5 بوصة )",13,1,null,null,null,0]
["03:02:N036","سكين بيد سوداء طرف حديد ( 2 بوصة )",14,1,null,null,null,0]
["03:02:N037","سكين بيد سوداء طرف حديد ( 2.5 بوصة )",16,1,null,null,null,0]
["03:02:N038","سكين بيد سوداء طرف حديد ( 3 بوصة )",19,1,null,null,null,0]
["03:02:N039","سكين بيد سوداء طرف حديد ( 4 بوصة )",22,1,null,null,null,0]
["03:02:N040","سكين بيد أحمر × أسود ( 1 بوصة )",7,1,null,null,null,0]
["03:02:N041","سكين بيد أحمر × أسود ( 1.5 بوصة )",10,1,null,null,null,0]
["03:02:N042","سكين بيد أحمر × أسود ( 2 بوصة )",11,1,null,null,null,0]
["03:02:N043","سكين بيد أحمر × أسود ( 2.5 بوصة )",13,1,null,null,null,0]
["03:02:N044","سكين بيد أحمر × أسود ( 3 بوصة )",14,1,null,null,null,0]
["03:02:N045","سكين بيد أحمر × أسود ( 4 بوصة )",16,1,null,null,null,0]
["03:02:N046","سكين تقطيع وتنظيف",35,1,null,null,null,0]
["03:02:N047","سكين كندا مربع ( 8 بوصة )",22,1,null,null,null,0]
["03:02:N048","سكين كندا مربع ( 10 بوصة )",24,1,null,null,null,0]
["03:02:N049","سكين كندا مربع ( 12 بوصة )",29,1,null,null,null,0]
["03:02:N050","سكين كندا عريض ( 8 بوصة )",30,1,null,null,null,0]
["03:02:N051","سكين كندا عريض ( 10 بوصة )",24,1,null,null,null,0]
["03:02:N052","سكين كندا عريض ( 12 بوصة )",30,1,null,null,null,0]
["03:02:N053","طقم سكين كندا أخضر ( 3 قطع )",49,1,null,null,null,0]
["03:02:N054","طقم سكين كندا أصفر ( 4 قطع )",40,1,null,null,null,0]
["03:02:N055","طقم سكين كندا أسود × أصفر ( 4 قطع )",60,1,null,null,null,0]
["03:02:N056","سكين كندا أسود × برتقالى ( 1 بوصة )",11,1,null,null,null,0]
["03:02:N057","سكين كندا أسود × برتقالى ( 1.5 بوصة )",13,1,null,null,null,0]
["03:02:N058","سكين كندا أسود × برتقالى ( 2 بوصة )",14,1,null,null,null,0]
["03:02:N059","سكين كندا أسود × برتقالى ( 2.5 بوصة )",16,1,null,null,null,0]
["03:02:N060","سكين كندا أسود × برتقالى ( 3 بوصة )",19,1,null,null,null,0]
["03:02:N061","سكين كندا أسود × برتقالى ( 4 بوصة )",22,1,null,null,null,0]
["03:02:N062","سكين كندا أسود × برتقالى ( 5 بوصة )",23,1,null,null,null,0]
["03:02:N064","سكين كندا أصفر ( 1 بوصة )",7,1,null,null,null,0]
["03:02:N065","سكين كندا أصفر ( 1.5 بوصة )",10,1,null,null,null,0]
["03:02:N066","سكين كندا أصفر ( 2 بوصة )",11,1,null,null,null,0]
["03:02:N067","سكين كندا أصفر ( 2.5 بوصة )",13,1,null,null,null,0]
["03:02:N068","سكين كندا أصفر ( 3 بوصة )",14,1,null,null,null,0]
["03:02:N069","سكين كندا أصفر ( 4 بوصة )",16,1,null,null,null,0]
["03:02:N070","سكين كندا أصفر ( 5 بوصة )",19,1,null,null,null,0]
["03:02:N071","سكين كندا أصفر ( 6 بوصة )",22,1,null,null,null,0]
["03:02:N072","سكين كندا أخضر ( 1 بوصة )",11,1,null,null,null,0]
["03:02:N073","سكين كندا أخضر ( 1.5 بوصة )",13,1,null,null,null,0]
["03:02:N074","سكين كندا أخضر ( 2 بوصة )",14,1,null,null,null,0]
["03:02:N075","سكين كندا أخضر ( 2.5 بوصة )",16,1,null,null,null,0]
["03:02:N076","سكين كندا أخضر ( 3 بوصة )",19,1,null,null,null,0]
["03:02:N077","سكين كندا أخضر ( 4 بوصة )",22,1,null,null,null,0]
["03:02:N078","سكين كندا أخضر ( 5 بوصة )",23,1,null,null,null,0]
["03:02:N079","سكين كندا أخضر ( 6 بوصة )",24,1,null,null,null,0]
["03:02:N080","سكين كندا أسود × أصفر ( 1 بوصة )",11,1,null,null,null,0]
["03:02:N081","سكين كندا أسود × أصفر ( 1.5 بوصة )",13,1,null,null,null,0]
["03:02:N082","سكين كندا أسود × أصفر ( 2 بوصة )",14,1,null,null,null,0]
["03:02:N083","سكين كندا أسود × أصفر ( 2.5 بوصة )",16,1,null,null,null,0]
["03:02:N084","سكين كندا أسود × أصفر ( 3 بوصة )",19,1,null,null,null,0]
["03:02:N085","سكين كندا أسود × أصفر ( 4 بوصة )",22,1,null,null,null,0]
["03:02:N086","سكين كندا أسود × أصفر ( 5 بوصة )",23,1,null,null,null,0]
["03:02:N087","سكين كندا أسود × أصفر ( 6 بوصة )",24,1,null,null,null,0]
["03:02:N088","سكين كندا أسود ( 1 بوصة )",6,1,null,null,null,0]
["03:02:N089","سكين كندا أسود ( 1.5 بوصة )",7,1,null,null,null,0]
["03:02:N090","سكين كندا أسود ( 2 بوصة )",10,1,null,null,null,0]
["03:02:N091","سكين كندا أسود ( 2.5 بوصة )",11,1,null,null,null,0]
["03:02:N092","سكين كندا أسود ( 3 بوصة )",13,1,null,null,null,0]
["03:02:N093","سكين كندا أسود ( 4 بوصة )",14,1,null,null,null,0]
["03:02:N094","سكين كندا أسود ( 5 بوصة )",16,1,null,null,null,0]
["03:02:N095","سكين كندا أسود ( 6 بوصة )",19,1,null,null,null,0]
["03:02:N096","سكين كندا بيد خشب ( 1 بوصة )",14,1,null,null,null,0]
["03:02:N097","سكين كندا بيد خشب ( 1.5 بوصة )",16,1,null,null,null,0]
["03:02:N098","سكين كندا بيد خشب ( 2 بوصة )",19,1,null,null,null,0]
["03:02:N099","سكين كندا بيد خشب ( 2.5 بوصة )",22,1,null,null,null,0]
["03:02:N100","سكين كندا بيد خشب ( 3 بوصة )",23,1,null,null,null,0]
["03:02:N101","سكين كندا بيد خشب ( 4 بوصة )",24,1,null,null,null,0]
["03:02:N102","سكين كندا بيد خشب ( 5 بوصة )",26,1,null,null,null,0]
["03:02:N103","سكين كندا بيد خشب ( 6 بوصة )",29,1,null,null,null,0]
["03:02:N104","سكين كندا ( 1 بوصة )",10,1,null,null,null,0]
["03:02:N105","سكين كندا ( 1.5 بوصة )",11,1,null,null,null,0]
["03:02:N106","سكين كندا ( 2 بوصة )",13,1,null,null,null,0]
["03:02:N107","سكين كندا ( 2.5 بوصة )",14,1,null,null,null,0]
["03:02:N108","سكين كندا ( 3 بوصة )",16,1,null,null,null,0]
["03:02:N109","سكين كندا ( 4 بوصة )",19,1,null,null,null,0]
["03:02:N110","سكين كندا ( 5 بوصة )",22,1,null,null,null,0]
["03:02:N111","سكين كندا ( 6 بوصة )",23,1,null,null,null,0]
["03:03","قسم الرولات",0,1,null,null,null,0]
["03:03:R001","رولة جلد باليد",49,1,null,null,null,0]
["03:03:R002","رولة فيونكة باليد",49,1,null,null,null,0]
["03:03:R004","AZ42 رولة حديد",30,1,null,null,null,0]
["03:03:R005","AW32 رولة حديد",30,1,null,null,null,0]
["03:03:R007","رولة بلاستيك بيد حمراء",24,1,null,null,null,0]
["03:03:R008","رولة ربل نقشات بالأيدى",49,1,null,null,null,0]
["03:03:R010","رولة ورق حائط (7 بوصة)",49,1,null,null,null,0]
["03:03:R012","رولة إيطالى (7 بوصة)",40,1,null,null,null,0]
["03:03:R014","رولة إيطالى (10 بوصة)",60,1,null,null,null,0]
["03:03:R015","رولة تعتيق أسفنج (7 بوصة)",49,1,null,null,null,0]
["03:03:R016","رولة تعتيق أسفنج (8 بوصة)",60,1,null,null,null,0]
["03:03:R017","رولة موهير (9 بوصة)",30,1,null,null,null,0]
["03:03:R019","غيار رولة شعر ملون (9 بوصة)",14,1,null,null,null,0]
["03:03:R020","غيار رولة موهير (10 سم)",6,1,null,null,null,0]
["03:03:R021","غيار فتلة خضراء",13,1,null,null,null,0]
["03:03:R023","غيار رولة ربل طرى",49,1,null,null,null,0]
["03:03:R024","غيار رولة أصفر (9 بوصة)",16,1,null,null,null,0]
["03:03:R025","غيار رولة أبيض (9 بوصة)",13,1,null,null,null,0]
["03:03:R026","غيار رولة أصفر (4 بوصة)",7,1,null,null,null,0]
["03:03:R029","غيار رولة تايجر (4 بوصة)  قطعة",4,1,null,null,null,0]
["03:03:R030","غيار رولة تايجر (9 بوصة)",13,1,null,null,null,0]
["03:03:R031","غيار رولة ربل نقشات",49,1,null,null,null,0]
["03:03:R032","غيار أبيض إيبوكسى (9 بوصة)",13,1,null,null,null,0]
["03:03:R033","غيار أبيض × أصفر (9 بوصة)",14,1,null,null,null,0]
["03:03:R034","غيار رولة موهير (10 بوصة)",22,1,null,null,null,0]
["03:03:R035","غيار أسفنج (4 بوصة)",5,1,null,null,null,0]
["03:03:R036","غيار أسفنج برتقالى (4 بوصة)",5,1,null,null,null,0]
["03:03:R037","غيار تايجر (2 بوصة)",4,1,null,null,null,0]
["03:03:R038","باكت غيار عادى (2 قطعة)",10,1,null,null,null,0]
["03:03:R039","باكت غيار أسفنج (2 قطعة)",14,1,null,null,null,0]
["03:03:R040","غيار ابيض 4بوصة",7,1,null,null,null,0]
["03:03:R041","يد رولة شبك (9 بوصة)",13,1,null,null,null,0]
["03:03:R042","يد رولة (10 سم)",7,1,null,null,null,0]
["03:03:R043","يد رولة نقشات",24,1,null,null,null,0]
["03:03:R045","يد سيخ (9 بوصة)",19,1,null,null,null,0]
["03:03:R046","يد ماكينة بدون غيار",32,1,null,null,null,0]
["03:04","اخري",0,1,null,null,null,0]
["03:04:M001","غيار طبعة فالفيت",30,1,null,null,null,0]
["03:04:M002","طبعة فالفيت",22,1,null,null,null,0]
["03:04:M003","عرض خاص طبعة فالفيت",35,1,null,null,null,0]
["03:04:M004","ماكينة بالخزان 2لون(5بوصة)",139,1,null,null,null,0]
["03:04:M006","يد ماكينة للتعتيق",46,1,null,null,null,0]
["03:04:M007","قلابة بلاستيك",7,1,null,null,null,0]
["03:04:M009","قطعة فينوس",60,1,null,null,null,0]
["03:04:M010","مالج قطيفة بلاستيك",40,1,null,null,null,0]
["03:04:M011","مالج إستالس بيد خشب",109,1,null,null,null,0]
["03:04:M012","مالج إستالس",158,1,null,null,null,0]
["03:04:M013","مالج صغير",60,1,null,null,null,0]
["03:04:M014","مالج إستالس إيطالى",398,1,null,null,null,0]
["03:04:M015","مالك بلاستيك اقتصادى",28,1,null,null,null,0]
["03:04:M016","ماسك صنفرة يد متحرك",35,1,null,null,null,0]
["03:04:M018","ربل تعتيق خشبى صغير",22,1,null,null,null,0]
["03:04:M019","ربل تعتيق خشبى وسط",24,1,null,null,null,0]
["03:04:M020","ربل تعتيق خشبى كبير",30,1,null,null,null,0]
["03:04:M021","ربل تعتيق أخضر مثلث",40,1,null,null,null,0]
["03:04:M022","ربل تعتيق أخضر شبه مربع",30,1,null,null,null,0]
["03:04:M023","ربل تعتيق أبيض بيد بلاستيك",29,1,null,null,null,0]
["03:04:M024","بروة تلبيس بيد أحمر × أسود",60,1,null,null,null,0]
["03:04:M025","بروة جرافياتو",76,1,null,null,null,0]
["03:04:M026","جلدة تعتيق خشب رفيع 2 قطعة",46,1,null,null,null,0]
["03:04:M027","جلدة تعتيق خشب عريض 2 قطعة",46,1,null,null,null,0]
["03:04:M028","بروش 170 × 70",40,1,null,null,null,0]
["03:04:M029","بروش شبه مستطيل 3 × 7",40,1,null,null,null,0]
["03:04:M030","بروش شبه مستطيل 3 × 10",60,1,null,null,null,0]
["03:04:M031","بروش شبه مستطيل 5 × 15",101,1,null,null,null,0]
["03:04:M032","بروش مستطيل 30 × 70",40,1,null,null,null,0]
["03:04:M033","بروش مستطيل 30 × 100",70,1,null,null,null,0]
["03:04:M034","بروش مستطيل 30 × 120",80,1,null,null,null,0]
["03:04:M035","بروش مستطيل 40 × 140",89,1,null,null,null,0]
["03:04:M036","بروش مستطيل 50 × 150",98,1,null,null,null,0]
["03:04:M037","بروش بيد بلاستيك أسود (4 بوصة)",49,1,null,null,null,0]
["03:04:M038","بروش بيد بلاستيك أسود (5 بوصة)",71,1,null,null,null,0]
["03:04:M039","بروش بيد بلاستيك أسود (6 بوصة)",80,1,null,null,null,0]
["03:04:M040","بروش بيد بلاستيك أسود (7 بوصة)",89,1,null,null,null,0]
["03:04:M041","بروش بيد بلاستيك أسود (8 بوصة)",98,1,null,null,null,0]
["03:04:M042","بروش مستطيل للسقف",40,1,null,null,null,0]
["03:04:M043","بروش بيضاوى",139,1,null,null,null,0]
["03:04:M044","بروش مدور",80,1,null,null,null,0]
["03:04:M046","قماش تعتيق باكستانى (1م)",16,1,null,null,null,0]
["03:04:M047","قماش تعتيق باكستانى (2م)",32,1,null,null,null,0]
["03:04:M048","قماش تعتيق باكستانى (5م)",76,1,null,null,null,0]
["03:04:M049","قماش تعتيق باكستانى (10م)",148,1,null,null,null,0]
["03:04:M050","أسفنج تعتيق بحرى 2",60,1,null,null,null,0]
["03:04:M052","L الندى سبونج",197,1,null,null,null,0]
["03:04:M053","XL الندى سبونج",295,1,null,null,null,0]
["03:04:M054","XXL الندى سبونج",398,1,null,null,null,0]
["03:04:M055","بكرة صنفرة (10م)",72,1,null,null,null,0]
["03:04:M056","قرص كاوتش صنفرة",10,1,null,null,null,0]
["03:04:M057","كف تعتيق قطن",119,1,null,null,null,0]
["03:04:M058","كف تعتيق صينى",30,1,null,null,null,0]
["03:04:M059","شنطة عدة",295,1,null,null,null,0]
["03:04:M060","شنطة دهانات جلد",398,1,null,null,null,0]
["03:04:M061","شنطة كندا صغير",119,1,null,null,null,0]
["03:04:M062","شنطة كندا وسط",158,1,null,null,null,0]
["03:04:M063","شنطة كندا كبيرة",197,1,null,null,null,0]
["03:04:M064","شنطة كندا صغير (هدية)",590,1,null,null,null,0]
["03:04:M065","شنطة كندا وسط (هدية)",984,1,null,null,null,0]
["03:04:M066","شنطة كندا كبيرة (هدية)",1376,1,null,null,null,0]
["03:04:M067","شنط بلاستيك",40,1,null,null,null,0]
["03:04:M068","إستاند عدة",1973,1,null,null,null,0]
["03:04:M071","PVA جلدة",35,1,null,null,null,0]
["03:04:M072","كارتلة نوفا كلر صغيرة",1295,1,null,null,null,0]
["03:04:M073","كارتلة نوفا كلر",2588,1,null,null,null,0]
["03:04:M074","كارتلة QC",1582,1,null,null,null,0]
["03:04:M075","عصا رول (2م)",32,1,null,null,null,0]
["03:04:M076","عصا رول (3م)",40,1,null,null,null,0]
["03:04:M078","عصا رول ألومونيوم (2 م)",62,1,null,null,null,0]
["03:04:M080","عصا رول ألومونيوم (4 م)",98,1,null,null,null,0]
["03:04:M081","بكرة إستراتز (1متر)",18,1,null,null,null,0]
["03:04:M082","بكرة إستراتز",155,1,null,null,null,0]
["03:04:M083","كيس الندى جيولس ستار",44,1,null,null,null,0]
["03:04:M084"," الندى جيولس ستار (علبة)",10,1,null,null,null,0]
["03:04:M085","(10) الندى جيولس ليجند",1.5,1,null,null,null,0]
["03:04:M086","(12) الندى جيولس ليجند",2,1,null,null,null,0]
["03:04:M087","(14) الندى جيولس ليجند",2.5,1,null,null,null,0]
["03:04:M088","(16) الندى جيولس ليجند",3,1,null,null,null,0]
["03:04:M089","(18) الندى جيولس ليجند",4,1,null,null,null,0]
["03:04:M090","(20) الندى جيولس ليجند",5,1,null,null,null,0]
["03:04:M091","جيولس ليجند مدور",5,1,null,null,null,0]
["03:04:M092","جيولس ليجند مربع",6,1,null,null,null,0]
["03:04:M093","جيولس ليجند بيضاوى",7,1,null,null,null,0]
["03:04:M094","لصق شروخ (45 متر)",30,1,null,null,null,0]
["03:04:M095","لصق شروخ (90 متر)",49,1,null,null,null,0]
["03:04:M096","هيتر تسخين كهربائي",474,1,null,null,null,0]
["03:04:M097","كوب أحمر دهان",14,1,null,null,null,0]
["03:04:M098","كوب شفاف مدرج للدهان",30,1,null,null,null,0]
["03:04:M099","جردل دهان كبير",40,1,null,null,null,0]
["03:04:M100","جردل دهان صغير",30,1,null,null,null,0]
["03:04:M102","عينات خشبية",11,1,null,null,null,0]
["03:04:M103","لوحة فنية",197,1,null,null,null,0]
["03:04:M104","عرض خاص عدة صغيرة",22,1,null,null,null,0]
["03:04:M105","عرض خاص عدة كبيرة",40,1,null,null,null,0]
["03:04:M106","لصق (1 سم) دوبل",7,1,null,null,null,0]
["03:04:M108","لصق (2 سم) عريض",10,1,null,null,null,0]
["03:04:M110","لصق (5 سم) دوبل",18,1,null,null,null,0]
["03:04:M111","لصق (5 سم) كورشيه",22,1,null,null,null,0]
["03:04:M112","لصق دبل فيس (5 سم)",32,1,null,null,null,0]
["03:04:M113","كنار أطفال تركى",13,1,null,null,null,0]
["03:04:M114","كنار مذهب",13,1,null,null,null,0]
["03:04:M115","كنار أطفال",18,1,null,null,null,0]
["03:04:M117","كنار مذهب ريشة",13,1,null,null,null,0]
["03:04:M118","كنار (8 سم) 10م",18,1,null,null,null,0]
["03:04:M119","حزام ديكورى (13 سم) 10م",18,1,null,null,null,0]
["03:04:M120","حزام ديكورى (13 سم) 5م",10,1,null,null,null,0]
["03:04:M121","A2006 مسدس",308,1,null,null,null,0]
["03:04:M122","H827A مسدس رش مقلوب",172,1,null,null,null,0]
["03:04:M123","H827 مسدس رش مقلوب",186,1,null,null,null,0]
["03:04:M124","FR300 مسدس تكتشر قمع ألومونيوم",200,1,null,null,null,0]
["03:04:M125","FR301 مسدس تكتشر قمع بلاستيك",200,1,null,null,null,0]
["03:04:M126","FR301A مسدس تكتشر قمع بلاستيك",200,1,null,null,null,0]
["03:04:M127","FR302 مسدس تكتشر قمع بلاستيك",234,1,null,null,null,0]
["03:04:M128","DW-10 مسدس رش",150,1,null,null,null,0]
["03:04:M129","DW-20 مسدس رش",150,1,null,null,null,0]
["03:04:M130","RS-W71 مسدس رش",799,1,null,null,null,0]
["03:04:M131","H3000 مسدس رش",1970,1,null,null,null,0]
["03:04:M132","H4001 مسدس بوية رش",186,1,null,null,null,0]
["03:04:M133","H2000 مسدس رش مقلوب",167,1,null,null,null,0]
["03:04:M134","ستاند بانر",395,1,null,null,null,0]
["03:04:M135","ميدالية الندى",98,1,null,null,null,0]
["03:04:M136","ميدالية الندى ( نحاس )",98,1,null,null,null,0]
["03:04:M137","ميدالية الندى ( فضة )",395,1,null,null,null,0]
["03:04:M138","ميدالية الندى خشبية",5,1,null,null,null,0]
["03:04:M139","تى شيرت الندى",98,1,null,null,null,0]
["03:04:M140","L قميص يونى فورم",295,1,null,null,null,0]
["03:04:M141","M قميص يونى فورم",295,1,null,null,null,0]
["03:04:M142","XL قميص يونى فورم",295,1,null,null,null,0]
["03:04:M143","كاب الندى مطبوع مطرز",60,1,null,null,null,0]
["03:04:M144","بالطو أبيض مطبوع",98,1,null,null,null,0]
["03:04:M145","دبوس الندى",98,1,null,null,null,0]
["03:04:M146","قلم الندى",197,1,null,null,null,0]
["03:04:M147","إسطوانة الدعم الفنى",22,1,null,null,null,0]
["03:04:M148","إسطوانة كتالوج إليكترونى",22,1,null,null,null,0]
["03:04:M149","كتالوج دليل المنتجات",98,1,null,null,null,0]
["03:04:M150","كتالوج دايموند كريم",40,1,null,null,null,0]
["03:04:M151","كتالوج الندى ورقى بولو",40,1,null,null,null,0]
["03:04:M152","كتالوج الندى ورقى بيكانتو",40,1,null,null,null,0]
["03:04:M153","كتالوج الندى ورقى سبلادور",40,1,null,null,null,0]
["03:04:M154","كتالوج الندى ورقى فلاور",40,1,null,null,null,0]
["03:04:M155","كتالوج الندى ورقى فلفيتو أورو",40,1,null,null,null,0]
["03:04:M156","كتالوج الندى مجلد صغير",40,1,null,null,null,0]
["03:04:M157","كتالوج الندى خيال",197,1,null,null,null,0]
["03:04:M158","كتالوج الندى مجلد",61,1,null,null,null,0]
["03:04:M159","ماكينة تلوين كورب 16 لون  (COROB)",194120,1,null,null,null,0]
["03:04:M160","ماكينة تلوين هيرو 16 لون (HERO)",207061,1,null,null,null,0]
["03:04:M161","ماكينة تلوين إيطالى كورب 24 لون (COROB)",220002,1,null,null,null,0]
["03:04:M162","نوت بوك مطبوع A5",30,1,null,null,null,0]
["03:04:M163","باكت نوت مطبوع 9*9",22,1,null,null,null,0]
["03:04:M164","كتاب المواصفات الفنيه",98,1,null,null,null,0]
["03:04:M165","شنطه هدايا فايبر مطبوعه",10,1,null,null,null,0]
["03:04:M166","اسطوانة عدة",22,1,null,null,null,0]
["03:04:M167","ماكينة ايطالي بالخزان",139,1,null,null,null,0]
["03:04:M168","ظرف الندى صغير مطبوع",5,1,null,null,null,0]
["03:04:M169","كتالوج الندى بروفكس",40,1,null,null,null,0]
["03:04:M170","قلم الندى عادى",18,1,null,null,null,0]
["03:04:M171","كتالوج الندى فيلفيت ميتاليك",40,1,null,null,null,0]
["03:04:M172","استاند الوان نوفا 720",5177,1,null,null,null,0]
["03:04:M173","كتالوج الندى استنسل",40,1,null,null,null,0]
["03:04:M174","كتالوج قطرات الندى",40,1,null,null,null,0]
["03:04:M175","كتالوج الندى لازوردى جولد",40,1,null,null,null,0]
["03:04:M176","NCS كرتلة",5177,1,null,null,null,0]
["03:04:M177","A4 فلاير",1.5,1,null,null,null,0]
["03:04:M178","A4 استيكر مطبوع",4,1,null,null,null,0]
["03:04:M179","كرتلة الون الندى 215لون",194,1,null,null,null,0]
["03:04:M180","الندى جيولس ليجند كيس",60,1,null,null,null,0]
["03:05","منتجات الاستنسل",0,1,null,null,null,0]
["03:05:01","(50*50) الندى إستنسل",25,1,null,null,null,0]
["03:05:01:ST1000NA","الندى نانو استنسل",2.5,1,null,null,null,0]
["03:05:01:ST1001","الندى إستنسل بوردر 12",11,1,null,null,null,0]
["03:05:01:ST1002","الندى إستنسل بوردر 15",13,1,null,null,null,0]
["03:05:01:ST1003","الندى إستنسل (20) سم",5.5,1,null,null,null,0]
["03:05:01:ST1004","الندى إستنسل (30) سم",11,1,null,null,null,0]
["03:05:01:ST1005","الندى إستنسل (40) سم",16,1,null,null,null,0]
["03:05:01:ST1006","QL001",18,1,null,null,null,0]
["03:05:01:ST1007","QL003",18,1,null,null,null,0]
["03:05:01:ST1008","QL007",18,1,null,null,null,0]
["03:05:01:ST1009","QL023",18,1,null,null,null,0]
["03:05:01:ST1010","QL024",18,1,null,null,null,0]
["03:05:01:ST1011","QL028",18,1,null,null,null,0]
["03:05:01:ST1012","QL029",18,1,null,null,null,0]
["03:05:01:ST1013","QL030",18,1,null,null,null,0]
["03:05:01:ST1014","QL035",18,1,null,null,null,0]
["03:05:01:ST1015","QL036",18,1,null,null,null,0]
["03:05:01:ST1016","QL037",18,1,null,null,null,0]
["03:05:01:ST1017","QL038",18,1,null,null,null,0]
["03:05:01:ST1018","QL041",18,1,null,null,null,0]
["03:05:01:ST1019","QL045",18,1,null,null,null,0]
["03:05:01:ST1020","QL046",18,1,null,null,null,0]
["03:05:01:ST1021","QL047",18,1,null,null,null,0]
["03:05:01:ST1022","QL049",18,1,null,null,null,0]
["03:05:01:ST1023","QL052",18,1,null,null,null,0]
["03:05:01:ST1024","QL054",18,1,null,null,null,0]
["03:05:01:ST1025","QL057",18,1,null,null,null,0]
["03:05:01:ST1026","QL060",18,1,null,null,null,0]
["03:05:01:ST1027","QL062",18,1,null,null,null,0]
["03:05:01:ST1028","QL063",18,1,null,null,null,0]
["03:05:01:ST1029","QL065",18,1,null,null,null,0]
["03:05:01:ST1030","QL069",18,1,null,null,null,0]
["03:05:01:ST1031","QL072",18,1,null,null,null,0]
["03:05:01:ST1032","QL077",18,1,null,null,null,0]
["03:05:01:ST1033","QL080",18,1,null,null,null,0]
["03:05:01:ST1034","QL081",18,1,null,null,null,0]
["03:05:01:ST1035","QL082",18,1,null,null,null,0]
["03:05:01:ST1036","QL085",18,1,null,null,null,0]
["03:05:01:ST1037","QL086",18,1,null,null,null,0]
["03:05:01:ST1038","QL088",18,1,null,null,null,0]
["03:05:01:ST1039","QL089",18,1,null,null,null,0]
["03:05:01:ST1040","QL090",18,1,null,null,null,0]
["03:05:01:ST1041","QL091",18,1,null,null,null,0]
["03:05:01:ST1042","QL092",18,1,null,null,null,0]
["03:05:01:ST1043","QL093",18,1,null,null,null,0]
["03:05:01:ST1044","QL094",18,1,null,null,null,0]
["03:05:01:ST1045","QL095",18,1,null,null,null,0]
["03:05:01:ST1046","QL096",18,1,null,null,null,0]
["03:05:01:ST1047","QL097",18,1,null,null,null,0]
["03:05:01:ST1048","QL098",18,1,null,null,null,0]
["03:05:01:ST1049","QL099",18,1,null,null,null,0]
["03:05:01:ST1050","QL100",18,1,null,null,null,0]
["03:05:01:ST1051","QL101",18,1,null,null,null,0]
["03:05:01:ST1052","QL102",18,1,null,null,null,0]
["03:05:01:ST1053","QL103",18,1,null,null,null,0]
["03:05:01:ST1054","QL104",18,1,null,null,null,0]
["03:05:01:ST1055","QL105",18,1,null,null,null,0]
["03:05:01:ST1056","QL106",18,1,null,null,null,0]
["03:05:01:ST1057","QL107",18,1,null,null,null,0]
["03:05:01:ST1058","QL108",18,1,null,null,null,0]
["03:05:01:ST1059","QL109",18,1,null,null,null,0]
["03:05:01:ST1060","QL110",18,1,null,null,null,0]
["03:05:01:ST1061","QL111",18,1,null,null,null,0]
["03:05:01:ST1062","QL112",18,1,null,null,null,0]
["03:05:01:ST1063","QL113",18,1,null,null,null,0]
["03:05:01:ST1064","QL114",18,1,null,null,null,0]
["03:05:01:ST1065","QL115",18,1,null,null,null,0]
["03:05:01:ST1066","QL116",18,1,null,null,null,0]
["03:05:01:ST1067","QL117",18,1,null,null,null,0]
["03:05:01:ST1068","QL118",18,1,null,null,null,0]
["03:05:01:ST1069","QL119",18,1,null,null,null,0]
["03:05:01:ST1070","QL120",18,1,null,null,null,0]
["03:05:01:ST1071","QL121",18,1,null,null,null,0]
["03:05:01:ST1072","QL122",18,1,null,null,null,0]
["03:05:01:ST1073","QL123",18,1,null,null,null,0]
["03:05:01:ST1074","QL124",18,1,null,null,null,0]
["03:05:01:ST1075","QL125",18,1,null,null,null,0]
["03:05:01:ST1076","QL126",18,1,null,null,null,0]
["03:05:01:ST1077","FREE",18,1,null,null,null,0]
["03:05:01:ST1078","QL129",18,1,null,null,null,0]
["03:05:01:ST1079","QL128",18,1,null,null,null,0]
["03:05:01:ST1080","QL130",18,1,null,null,null,0]
["03:05:01:ST1081","QL127",18,1,null,null,null,0]
["03:05:01:ST1082","QL131",18,1,null,null,null,0]
["03:05:01:ST1083","QL133",18,1,null,null,null,0]
["03:05:01:ST1084","QL132",18,1,null,null,null,0]
["03:05:01:ST1085","QL136",18,1,null,null,null,0]
["03:05:01:ST1086","QL137",18,1,null,null,null,0]
["03:05:01:ST1087","QL138",18,1,null,null,null,0]
["03:05:01:ST1088","QL140",18,1,null,null,null,0]
["03:05:01:ST1089","QL141",18,1,null,null,null,0]
["03:05:01:ST1090","QL143",18,1,null,null,null,0]
["03:05:01:ST1091","QL142",18,1,null,null,null,0]
["03:05:01:ST1092","QL139",18,1,null,null,null,0]
["03:05:01:ST1093","QL145",18,1,null,null,null,0]
["03:05:01:ST1094","Q144",18,1,null,null,null,0]
["03:05:01:ST1095","QL146",18,1,null,null,null,0]
["03:05:01:ST1097","استنسل 50سم صينى",18,1,null,null,null,0]
["03:05:02","الندى إستنسل (قطع) 50*50",0,1,null,null,null,0]
["03:05:02:ST2000","استنسل 50سم 2قطعة صينى",36,1,null,null,null,0]
["03:05:02:ST2001","الندى استنسل 2قطعة 50*50",36,1,null,null,null,0]
["03:05:02:ST2002","الندى استنسل 3قطعة 50*50",54,1,null,null,null,0]
["03:05:02:ST2003","(NK002) الندى إستنسل 50 سم 3 قطع",54,1,null,null,null,0]
["03:05:02:ST2004","(NK003) الندى إستنسل 50 سم 3 قطع",54,1,null,null,null,0]
["03:05:02:ST2005","(NK004) الندى إستنسل 50 سم 3 قطع",54,1,null,null,null,0]
["03:05:02:ST2006","(NK005) الندى إستنسل 50 سم 3 قطع",54,1,null,null,null,0]
["03:05:02:ST2007","(NK006) الندى إستنسل 50 سم 3 قطع",54,1,null,null,null,0]
["03:05:02:ST2008","(NK007) الندى إستنسل 50 سم 3 قطع",54,1,null,null,null,0]
["03:05:02:ST2009","(NK008) الندى إستنسل 50 سم 3 قطع",54,1,null,null,null,0]
["03:05:02:ST2010","(NK009) الندى إستنسل 50 سم 3 قطع",54,1,null,null,null,0]
["03:05:02:ST2011","(NK010) الندى إستنسل 50 سم 3 قطع",54,1,null,null,null,0]
["03:05:02:ST2012","(NK011) الندى إستنسل 50 سم 3 قطع",54,1,null,null,null,0]
["03:05:02:ST2013","(NK012) الندى إستنسل 50 سم 3 قطع",54,1,null,null,null,0]
["03:05:02:ST2014","(NK013) الندى إستنسل 50 سم 3 قطع",54,1,null,null,null,0]
["03:05:02:ST2015","(NK014) الندى إستنسل 50 سم 3 قطع",54,1,null,null,null,0]
["03:05:02:ST2016","(NK015) الندى إستنسل 50 سم 3 قطع",54,1,null,null,null,0]
["03:05:02:ST2017","(NK016) الندى إستنسل 50 سم 3 قطع",54,1,null,null,null,0]
["03:05:02:ST2018","(NK017) الندى إستنسل 50 سم 3 قطع",54,1,null,null,null,0]
["03:05:02:ST2019","(NK018) الندى إستنسل 50 سم 3 قطع",54,1,null,null,null,0]
["03:05:02:ST2020","(NK019) الندى إستنسل 50 سم 3 قطع",54,1,null,null,null,0]
["03:05:02:ST2021","(NK020) الندى إستنسل 50 سم 3 قطع",54,1,null,null,null,0]
["03:05:02:ST2022","(NK021) الندى إستنسل 50 سم 3 قطع",54,1,null,null,null,0]
["03:05:02:ST2023","(NK022) الندى إستنسل 50 سم 3 قطع",54,1,null,null,null,0]
["03:05:02:ST2024","(NK023) الندى إستنسل 50 سم 3 قطع",54,1,null,null,null,0]
["03:05:02:ST2025","(NK024) الندى إستنسل 50 سم 3 قطع",54,1,null,null,null,0]
["03:05:02:ST2026","(NK025) الندى إستنسل 50 سم 3 قطع",54,1,null,null,null,0]
["03:05:02:ST2027","(NK026) الندى إستنسل 50 سم 3 قطع",54,1,null,null,null,0]
["03:05:02:ST2028","(NK027) الندى إستنسل 50 سم 3 قطع",54,1,null,null,null,0]
["03:05:02:ST2029","(NK028) الندى إستنسل 50 سم 3 قطع",54,1,null,null,null,0]
["03:05:02:ST2030","(NK029) الندى إستنسل 50 سم 3 قطع",54,1,null,null,null,0]
["03:05:02:ST2031","(NK030) الندى إستنسل 50 سم 3 قطع",54,1,null,null,null,0]
["03:05:02:ST2032","(NK031) الندى إستنسل 50 سم 3 قطع",54,1,null,null,null,0]
["03:05:02:ST2033","(NK032) الندى إستنسل 50 سم 3 قطع",54,1,null,null,null,0]
["03:05:02:ST2034","(NK033) الندى إستنسل 50 سم 3 قطع",54,1,null,null,null,0]
["03:05:02:ST2035","(NK034) الندى إستنسل 50 سم 3 قطع",54,1,null,null,null,0]
["03:05:02:ST2036","(NK035) الندى إستنسل 50 سم 3 قطع",54,1,null,null,null,0]
["03:05:02:ST2037","(NK036) الندى إستنسل 50 سم 3 قطع",54,1,null,null,null,0]
["03:05:02:ST2038","(FREE) الندى إستنسل 50 سم 3 قطع",54,1,null,null,null,0]
["03:05:02:ST2600","الندى إستنسل 50 سم 4 قطع",96,1,null,null,null,0]
["03:05:03","(90*60) الندى إستنسل",36,1,null,null,null,0]
["03:05:03:ST3001","الندى إستنسل 60 سم",34,1,null,null,null,0]
["03:05:03:ST3002","(3D001) الندى إستنسل 60 * 90",36,1,null,null,null,0]
["03:05:03:ST3003","(3D002) الندى إستنسل 60 * 90",36,1,null,null,null,0]
["03:05:03:ST3004","(3D003) الندى إستنسل 60 * 90",36,1,null,null,null,0]
["03:05:03:ST3005","(3D004) الندى إستنسل 60 * 90",36,1,null,null,null,0]
["03:05:03:ST3006","N122",36,1,null,null,null,0]
["03:05:03:ST3007","N123",36,1,null,null,null,0]
["03:05:03:ST3008","N124",36,1,null,null,null,0]
["03:05:03:ST3009","N125",36,1,null,null,null,0]
["03:05:03:ST3010","N126",36,1,null,null,null,0]
["03:05:03:ST3011","N127",36,1,null,null,null,0]
["03:05:03:ST3012","N128",36,1,null,null,null,0]
["03:05:03:ST3013","N129",36,1,null,null,null,0]
["03:05:03:ST3014","N130",36,1,null,null,null,0]
["03:05:03:ST3015","N131",36,1,null,null,null,0]
["03:05:03:ST3016","N134",36,1,null,null,null,0]
["03:05:03:ST3017","N135",36,1,null,null,null,0]
["03:05:03:ST3018","N136",36,1,null,null,null,0]
["03:05:03:ST3019","N137",36,1,null,null,null,0]
["03:05:03:ST3020","N139",36,1,null,null,null,0]
["03:05:03:ST3021","N140",36,1,null,null,null,0]
["03:05:03:ST3022","N141",36,1,null,null,null,0]
["03:05:03:ST3023","N142",36,1,null,null,null,0]
["03:05:03:ST3024","N144",36,1,null,null,null,0]
["03:05:03:ST3025","N145",36,1,null,null,null,0]
["03:05:03:ST3026","N146",36,1,null,null,null,0]
["03:05:03:ST3027","N147",36,1,null,null,null,0]
["03:05:03:ST3028","N148",36,1,null,null,null,0]
["03:05:03:ST3029","N149",36,1,null,null,null,0]
["03:05:03:ST3030","N151",36,1,null,null,null,0]
["03:05:03:ST3031","N153",36,1,null,null,null,0]
["03:05:03:ST3032","N157",36,1,null,null,null,0]
["03:05:03:ST3033","N159",36,1,null,null,null,0]
["03:05:03:ST3034","N161",36,1,null,null,null,0]
["03:05:03:ST3035","N162",36,1,null,null,null,0]
["03:05:03:ST3036","N163",36,1,null,null,null,0]
["03:05:03:ST3037","N164",36,1,null,null,null,0]
["03:05:03:ST3038","N200",36,1,null,null,null,0]
["03:05:03:ST3039","N201",36,1,null,null,null,0]
["03:05:03:ST3040","N202",36,1,null,null,null,0]
["03:05:03:ST3041","N203",36,1,null,null,null,0]
["03:05:03:ST3042","N204",36,1,null,null,null,0]
["03:05:03:ST3043","N205",36,1,null,null,null,0]
["03:05:03:ST3044","N206",36,1,null,null,null,0]
["03:05:03:ST3045","N207",36,1,null,null,null,0]
["03:05:03:ST3046","N208",36,1,null,null,null,0]
["03:05:03:ST3047","N209",36,1,null,null,null,0]
["03:05:03:ST3048","N210",36,1,null,null,null,0]
["03:05:03:ST3049","N211",36,1,null,null,null,0]
["03:05:03:ST3050","N212",36,1,null,null,null,0]
["03:05:03:ST3051","N213",36,1,null,null,null,0]
["03:05:03:ST3052","N214",36,1,null,null,null,0]
["03:05:03:ST3053","N215",36,1,null,null,null,0]
["03:05:03:ST3054","N216",36,1,null,null,null,0]
["03:05:03:ST3055","N217",36,1,null,null,null,0]
["03:05:03:ST3056","N218",36,1,null,null,null,0]
["03:05:03:ST3057","N219",36,1,null,null,null,0]
["03:05:03:ST3058","N220",36,1,null,null,null,0]
["03:05:03:ST3059","N221",36,1,null,null,null,0]
["03:05:03:ST3060","N222",36,1,null,null,null,0]
["03:05:03:ST3061","N223",36,1,null,null,null,0]
["03:05:03:ST3062","N224",36,1,null,null,null,0]
["03:05:03:ST3063","N225",36,1,null,null,null,0]
["03:05:03:ST3064","N226",36,1,null,null,null,0]
["03:05:03:ST3065","N227",36,1,null,null,null,0]
["03:05:03:ST3066","N228",36,1,null,null,null,0]
["03:05:03:ST3067","N229",36,1,null,null,null,0]
["03:05:03:ST3068","N230",36,1,null,null,null,0]
["03:05:03:ST3069","N231",36,1,null,null,null,0]
["03:05:03:ST3070","N232",36,1,null,null,null,0]
["03:05:03:ST3071","N233",36,1,null,null,null,0]
["03:05:03:ST3072","N234",36,1,null,null,null,0]
["03:05:03:ST3073","N235",36,1,null,null,null,0]
["03:05:03:ST3074","N236",36,1,null,null,null,0]
["03:05:03:ST3075","N237",36,1,null,null,null,0]
["03:05:03:ST3076","N238",36,1,null,null,null,0]
["03:05:03:ST3077","N239",36,1,null,null,null,0]
["03:05:03:ST3078","N240",36,1,null,null,null,0]
["03:05:03:ST3079","N241",36,1,null,null,null,0]
["03:05:03:ST3080","N243",36,1,null,null,null,0]
["03:05:03:ST3081","N245",36,1,null,null,null,0]
["03:05:03:ST3082","N246",36,1,null,null,null,0]
["03:05:03:ST3083","N247",36,1,null,null,null,0]
["03:05:03:ST3084","N248",36,1,null,null,null,0]
["03:05:03:ST3085","N249",36,1,null,null,null,0]
["03:05:03:ST3086","N250",36,1,null,null,null,0]
["03:05:03:ST3087","N255",36,1,null,null,null,0]
["03:05:03:ST3088","N256",36,1,null,null,null,0]
["03:05:03:ST3089","N257",36,1,null,null,null,0]
["03:05:03:ST3090","N258",36,1,null,null,null,0]
["03:05:03:ST3091","N259",36,1,null,null,null,0]
["03:05:03:ST3092","N260",36,1,null,null,null,0]
["03:05:03:ST3093","N261",36,1,null,null,null,0]
["03:05:03:ST3094","N262",36,1,null,null,null,0]
["03:05:03:ST3095","N263",36,1,null,null,null,0]
["03:05:03:ST3096","N264",36,1,null,null,null,0]
["03:05:03:ST3097","N265",36,1,null,null,null,0]
["03:05:03:ST3098","N266",36,1,null,null,null,0]
["03:05:03:ST3099","N267",36,1,null,null,null,0]
["03:05:03:ST3100","N268",36,1,null,null,null,0]
["03:05:03:ST3101","N269",36,1,null,null,null,0]
["03:05:03:ST3102","N270",36,1,null,null,null,0]
["03:05:03:ST3103","N271",36,1,null,null,null,0]
["03:05:03:ST3104","N272",36,1,null,null,null,0]
["03:05:03:ST3105","N273",36,1,null,null,null,0]
["03:05:03:ST3106","N274",36,1,null,null,null,0]
["03:05:03:ST3107","N275",36,1,null,null,null,0]
["03:05:03:ST3108","N276",36,1,null,null,null,0]
["03:05:03:ST3109","N277",36,1,null,null,null,0]
["03:05:03:ST3110","N278",36,1,null,null,null,0]
["03:05:03:ST3111","N279",36,1,null,null,null,0]
["03:05:03:ST3112","N280",36,1,null,null,null,0]
["03:05:03:ST3113","N281",36,1,null,null,null,0]
["03:05:03:ST3114","N282",36,1,null,null,null,0]
["03:05:03:ST3115","N283",36,1,null,null,null,0]
["03:05:03:ST3116","N284",36,1,null,null,null,0]
["03:05:03:ST3117","N285",36,1,null,null,null,0]
["03:05:03:ST3118","N286",36,1,null,null,null,0]
["03:05:03:ST3119","N287",36,1,null,null,null,0]
["03:05:03:ST3120","N288",36,1,null,null,null,0]
["03:05:03:ST3121","N289",36,1,null,null,null,0]
["03:05:03:ST3122","N290",36,1,null,null,null,0]
["03:05:03:ST3123","N291",36,1,null,null,null,0]
["03:05:03:ST3124","N292",36,1,null,null,null,0]
["03:05:03:ST3125","N293",36,1,null,null,null,0]
["03:05:03:ST3126","N294",36,1,null,null,null,0]
["03:05:03:ST3127","N295",36,1,null,null,null,0]
["03:05:03:ST3128","N296",36,1,null,null,null,0]
["03:05:03:ST3129","N297",36,1,null,null,null,0]
["03:05:03:ST3130","N298",36,1,null,null,null,0]
["03:05:03:ST3131","N299",36,1,null,null,null,0]
["03:05:03:ST3132","N300",36,1,null,null,null,0]
["03:05:03:ST3133","N301",36,1,null,null,null,0]
["03:05:03:ST3134","N302",36,1,null,null,null,0]
["03:05:03:ST3135","N303",36,1,null,null,null,0]
["03:05:03:ST3136","N304",36,1,null,null,null,0]
["03:05:03:ST3137","N305",36,1,null,null,null,0]
["03:05:03:ST3138","N306",36,1,null,null,null,0]
["03:05:03:ST3139","N307",36,1,null,null,null,0]
["03:05:03:ST3140","N308",36,1,null,null,null,0]
["03:05:03:ST3141","N309",36,1,null,null,null,0]
["03:05:03:ST3142","N310",36,1,null,null,null,0]
["03:05:03:ST3143","N311",36,1,null,null,null,0]
["03:05:03:ST3144","N312",36,1,null,null,null,0]
["03:05:03:ST3145","N313",36,1,null,null,null,0]
["03:05:03:ST3146","N314",36,1,null,null,null,0]
["03:05:03:ST3147","N315",36,1,null,null,null,0]
["03:05:03:ST3148","N316",36,1,null,null,null,0]
["03:05:03:ST3149","N317",36,1,null,null,null,0]
["03:05:03:ST3150","N318",36,1,null,null,null,0]
["03:05:03:ST3151","N319",36,1,null,null,null,0]
["03:05:03:ST3152","N320",36,1,null,null,null,0]
["03:05:03:ST3153","N321",36,1,null,null,null,0]
["03:05:03:ST3154","N322",36,1,null,null,null,0]
["03:05:03:ST3155","N323",36,1,null,null,null,0]
["03:05:03:ST3156","N324",36,1,null,null,null,0]
["03:05:03:ST3157","N325",36,1,null,null,null,0]
["03:05:03:ST3158","N326",36,1,null,null,null,0]
["03:05:03:ST3159","N327",36,1,null,null,null,0]
["03:05:03:ST3160","N328",36,1,null,null,null,0]
["03:05:03:ST3161","N329",36,1,null,null,null,0]
["03:05:03:ST3162","N330",36,1,null,null,null,0]
["03:05:03:ST3163","N331",36,1,null,null,null,0]
["03:05:03:ST3164","N332",36,1,null,null,null,0]
["03:05:03:ST3165","N333",36,1,null,null,null,0]
["03:05:03:ST3166","N334",36,1,null,null,null,0]
["03:05:03:ST3167","N335",36,1,null,null,null,0]
["03:05:03:ST3168","N336",36,1,null,null,null,0]
["03:05:03:ST3169","N337",36,1,null,null,null,0]
["03:05:03:ST3170","N338",36,1,null,null,null,0]
["03:05:03:ST3171","N339",36,1,null,null,null,0]
["03:05:03:ST3172","N340",36,1,null,null,null,0]
["03:05:03:ST3173","N341",36,1,null,null,null,0]
["03:05:03:ST3174","N342",36,1,null,null,null,0]
["03:05:03:ST3175","N343",36,1,null,null,null,0]
["03:05:03:ST3176","N344",36,1,null,null,null,0]
["03:05:03:ST3177","N345",36,1,null,null,null,0]
["03:05:03:ST3178","N346",36,1,null,null,null,0]
["03:05:03:ST3179","N347",36,1,null,null,null,0]
["03:05:03:ST3180","N348",36,1,null,null,null,0]
["03:05:03:ST3181","N349",36,1,null,null,null,0]
["03:05:03:ST3182","N350",36,1,null,null,null,0]
["03:05:03:ST3183","N351",36,1,null,null,null,0]
["03:05:03:ST3184","N352",36,1,null,null,null,0]
["03:05:03:ST3185","N353",36,1,null,null,null,0]
["03:05:03:ST3186","N354",36,1,null,null,null,0]
["03:05:03:ST3187","N355",36,1,null,null,null,0]
["03:05:03:ST3188","N356",36,1,null,null,null,0]
["03:05:03:ST3189","N357",36,1,null,null,null,0]
["03:05:03:ST3190","N358",36,1,null,null,null,0]
["03:05:03:ST3191","N359",36,1,null,null,null,0]
["03:05:03:ST3192","N360",36,1,null,null,null,0]
["03:05:03:ST3193","N361",36,1,null,null,null,0]
["03:05:03:ST3194","N362",36,1,null,null,null,0]
["03:05:03:ST3195","N363",36,1,null,null,null,0]
["03:05:03:ST3196","N364",36,1,null,null,null,0]
["03:05:03:ST3197","N365",36,1,null,null,null,0]
["03:05:03:ST3198","N366",36,1,null,null,null,0]
["03:05:03:ST3199","N367",36,1,null,null,null,0]
["03:05:03:ST3200","N368",36,1,null,null,null,0]
["03:05:03:ST3201","N369",36,1,null,null,null,0]
["03:05:03:ST3202","N370",36,1,null,null,null,0]
["03:05:03:ST3203","FR002",36,1,null,null,null,0]
["03:05:03:ST3204","FR003",36,1,null,null,null,0]
["03:05:03:ST3205","FR004",36,1,null,null,null,0]
["03:05:03:ST3206","FR005",36,1,null,null,null,0]
["03:05:03:ST3207","FR006",36,1,null,null,null,0]
["03:05:03:ST3208","FREE",36,1,null,null,null,0]
["03:05:03:ST3209","N375",36,1,null,null,null,0]
["03:05:03:ST3210","N374",36,1,null,null,null,0]
["03:05:03:ST3211","N373",36,1,null,null,null,0]
["03:05:03:ST3212","N379",36,1,null,null,null,0]
["03:05:03:ST3213","N371",36,1,null,null,null,0]
["03:05:03:ST3214","N376",36,1,null,null,null,0]
["03:05:03:ST3215","N387",36,1,null,null,null,0]
["03:05:03:ST3216","N388",36,1,null,null,null,0]
["03:05:03:ST3217","N383",36,1,null,null,null,0]
["03:05:03:ST3218","N392",36,1,null,null,null,0]
["03:05:03:ST3219","N384",36,1,null,null,null,0]
["03:05:03:ST3220","N386",36,1,null,null,null,0]
["03:05:03:ST3221","N389",36,1,null,null,null,0]
["03:05:03:ST3222","N393",36,1,null,null,null,0]
["03:05:03:ST3223","N394",36,1,null,null,null,0]
["03:05:03:ST3224","N385",36,1,null,null,null,0]
["03:05:03:ST3225","N391",36,1,null,null,null,0]
["03:05:03:ST3226","N378",36,1,null,null,null,0]
["03:05:03:ST3227","N397",36,1,null,null,null,0]
["03:05:03:ST3228","N382",36,1,null,null,null,0]
["03:05:03:ST3229","N390",36,1,null,null,null,0]
["03:05:03:ST3230","N381",36,1,null,null,null,0]
["03:05:03:ST3231","N398",36,1,null,null,null,0]
["03:05:03:ST3232","N380",36,1,null,null,null,0]
["03:05:03:ST3233","N399",36,1,null,null,null,0]
["03:05:03:ST3234","N400",36,1,null,null,null,0]
["03:05:03:ST3235","N404",36,1,null,null,null,0]
["03:05:03:ST3236","N396",36,1,null,null,null,0]
["03:05:03:ST3237","N402",36,1,null,null,null,0]
["03:05:03:ST3238","N405",36,1,null,null,null,0]
["03:05:03:ST3239","FR008",36,1,null,null,null,0]
["03:05:03:ST3240","N406",36,1,null,null,null,0]
["03:05:03:ST3241","N407",36,1,null,null,null,0]
["03:05:03:ST3242","N395",36,1,null,null,null,0]
["03:05:03:ST3243","N401",36,1,null,null,null,0]
["03:05:03:ST3244","N411",36,1,null,null,null,0]
["03:05:03:ST3245","N409",36,1,null,null,null,0]
["03:05:03:ST3246","N414",36,1,null,null,null,0]
["03:05:03:ST3247","N415",36,1,null,null,null,0]
["03:05:03:ST3248","N410",36,1,null,null,null,0]
["03:05:03:ST3249","N377",36,1,null,null,null,0]
["03:05:03:ST3250","N416",36,1,null,null,null,0]
["03:05:03:ST3251","N403",36,1,null,null,null,0]
["03:05:03:ST3252","N412",36,1,null,null,null,0]
["03:05:03:ST3253","N418",36,1,null,null,null,0]
["03:05:03:ST3254","N419",36,1,null,null,null,0]
["03:05:03:ST3255","N417",36,1,null,null,null,0]
["03:05:03:ST3256","N408",36,1,null,null,null,0]
["03:05:03:ST3257","N413",36,1,null,null,null,0]
["03:05:03:ST3258","N424",36,1,null,null,null,0]
["03:05:03:ST3259","N425",36,1,null,null,null,0]
["03:05:03:St3260","N430",36,1,null,null,null,0]
["03:05:03:ST3261","N421",36,1,null,null,null,0]
["03:05:03:ST3262","N420",36,1,null,null,null,0]
["03:05:03:ST3263","N422",36,1,null,null,null,0]
["03:05:03:ST3264","N423",36,1,null,null,null,0]
["03:05:03:ST3265","N426",36,1,null,null,null,0]
["03:05:03:ST3266","N427",36,1,null,null,null,0]
["03:05:03:ST3267","N428",36,1,null,null,null,0]
["03:05:03:ST3268","N429",36,1,null,null,null,0]
["03:05:03:ST3269","N431",36,1,null,null,null,0]
["03:05:03:ST3270","N432",36,1,null,null,null,0]
["03:05:03:ST3271","N433",36,1,null,null,null,0]
["03:05:03:ST3272","N434",36,1,null,null,null,0]
["03:05:03:ST3273","N435",36,1,null,null,null,0]
["03:05:03:ST3274","N436",36,1,null,null,null,0]
["03:05:03:ST3275","N437",36,1,null,null,null,0]
["03:05:03:ST3276","N438",36,1,null,null,null,0]
["03:05:03:ST3277","N439",36,1,null,null,null,0]
["03:05:03:ST3278","N440",36,1,null,null,null,0]
["03:05:03:ST3279","N441",36,1,null,null,null,0]
["03:05:03:ST3280","N442",36,1,null,null,null,0]
["03:05:03:ST3281","FR007",36,1,null,null,null,0]
["03:05:03:ST3284","N446",36,1,null,null,null,0]
["03:05:03:ST3286","N444",36,1,null,null,null,0]
["03:05:03:ST3296","استنسل 60*90 صينى",36,1,null,null,null,0]
["03:05:03:ST3800","الندى إستنسل 50 * 100",48,1,null,null,null,0]
["03:05:03:ST3801","استنسل 60*120 صينى",48,1,null,null,null,0]
["03:05:03:ST5018","3D الندى اسطمبة",33,1,null,null,null,-1]
["03:05:04","استنسل قطع",0,1,null,null,null,0]
["03:05:04:ST4001","LA001 الندى إستنسل 2 قطعة",108,1,null,null,null,0]
["03:05:04:ST4003","LA003 الندى إستنسل 2 قطعة",108,1,null,null,null,0]
["03:05:04:ST4004","NP161 الندى إستنسل 2 قطعة",108,1,null,null,null,0]
["03:05:04:ST4005","NP162 الندى إستنسل 2 قطعة",108,1,null,null,null,0]
["03:05:04:ST4006","NP168 الندى إستنسل 2 قطعة",108,1,null,null,null,0]
["03:05:04:ST4007","NP170 الندى إستنسل 2 قطعة",108,1,null,null,null,0]
["03:05:04:ST4008","NP171 الندى إستنسل 2 قطعة",108,1,null,null,null,0]
["03:05:04:ST4009","NP173 الندى إستنسل 2 قطعة",108,1,null,null,null,0]
["03:05:04:ST4010","NP176 الندى إستنسل 2 قطعة",108,1,null,null,null,0]
["03:05:04:ST4011","NP177 الندى إستنسل 2 قطعة",108,1,null,null,null,0]
["03:05:04:ST4012","NP179 الندى إستنسل 2 قطعة",108,1,null,null,null,0]
["03:05:04:ST4013","NP198 الندى إستنسل 2 قطعة",108,1,null,null,null,0]
["03:05:04:ST4014","NP201 الندى إستنسل 2 قطعة",108,1,null,null,null,0]
["03:05:04:ST4015","NP204 الندى إستنسل 2 قطعة",108,1,null,null,null,0]
["03:05:04:ST4016","NP208 الندى إستنسل 2 قطعة",108,1,null,null,null,0]
["03:05:04:ST4017","NP213 الندى إستنسل 2 قطعة",108,1,null,null,null,0]
["03:05:04:ST4018","NP214 الندى إستنسل 2 قطعة",108,1,null,null,null,0]
["03:05:04:ST4019","NP219 الندى إستنسل 2 قطعة",108,1,null,null,null,0]
["03:05:04:ST4020","NP223 الندى إستنسل 2 قطعة",108,1,null,null,null,0]
["03:05:04:ST4021","NP224 الندى إستنسل 2 قطعة",108,1,null,null,null,0]
["03:05:04:ST4022","NP232 الندى إستنسل 2 قطعة",108,1,null,null,null,0]
["03:05:04:ST4023","NP234 الندى إستنسل 2 قطعة",108,1,null,null,null,0]
["03:05:04:ST4024","NP241 الندى إستنسل 2 قطعة",108,1,null,null,null,0]
["03:05:04:ST4025","NP243 الندى إستنسل 2 قطعة",108,1,null,null,null,0]
["03:05:04:ST4026","NP246 الندى إستنسل 2 قطعة",108,1,null,null,null,0]
["03:05:04:ST4027","NP247 الندى إستنسل 2 قطعة",108,1,null,null,null,0]
["03:05:04:ST4028","الندى إستنسل 2ق (( حمار وحشى ))",108,1,null,null,null,0]
["03:05:04:ST4029","الندى إستنسل 2ق (( فيل ))",108,1,null,null,null,0]
["03:05:04:ST4030","الندى إستنسل 2ق (( تمساح ))",108,1,null,null,null,0]
["03:05:04:ST4031","الندى إستنسل 2ق (( نمر مخطط ))",108,1,null,null,null,0]
["03:05:04:ST4032","الندى إستنسل 2ق (( نمر منقط ))",108,1,null,null,null,0]
["03:05:04:ST4033","الندى إستنسل 2ق (( زرافة ))",108,1,null,null,null,0]
["03:05:04:ST4034","(( FREE )) الندى إستنسل 2ق",108,1,null,null,null,0]
["03:05:04:ST4035","NP257 الندى إستنسل 2 قطعة",108,1,null,null,null,0]
["03:05:04:ST4036","NP251 الندى إستنسل 2 قطعة",108,1,null,null,null,0]
["03:05:04:ST4037","NP250 الندى إستنسل 2 قطعة",108,1,null,null,null,0]
["03:05:04:ST4038","NP261 الندى إستنسل 2 قطعة",108,1,null,null,null,0]
["03:05:04:ST4039","NP273 الندى إستنسل 2 قطعة",108,1,null,null,null,0]
["03:05:04:ST4040","NP278 الندى إستنسل 2 قطعة",108,1,null,null,null,0]
["03:05:04:ST4041","NP279 الندى إستنسل 2 قطعة",108,1,null,null,null,0]
["03:05:04:ST4042","NP277 الندى إستنسل 2 قطعة",108,1,null,null,null,0]
["03:05:04:ST4043","NP282 الندى إستنسل 2 قطعة",108,1,null,null,null,0]
["03:05:04:ST4044","NP288 الندى استنسل 2 قطعه",108,1,null,null,null,0]
["03:05:04:ST4045","NP293 الندى استنسل 2 قطعه",108,1,null,null,null,0]
["03:05:04:ST4046","NP294 الندى إستنسل 2 قطعة",108,1,null,null,null,0]
["03:05:04:ST4047","NP295 الندى إستنسل 2 قطعة",108,1,null,null,null,0]
["03:05:04:ST4053","استنسل قطع 2 قطعة صينى",108,1,null,null,null,0]
["03:05:04:ST4400","NP163 الندى إستنسل 3 قطعة",126,1,null,null,null,0]
["03:05:04:ST4401","NP164 الندى إستنسل 3 قطعة",126,1,null,null,null,0]
["03:05:04:ST4402","NP172 الندى إستنسل 3 قطعة",126,1,null,null,null,0]
["03:05:04:ST4403","NP174 الندى إستنسل 3 قطعة",126,1,null,null,null,0]
["03:05:04:ST4404","NP175 الندى إستنسل 3 قطعة",126,1,null,null,null,0]
["03:05:04:ST4405","NP178 الندى إستنسل 3 قطعة",126,1,null,null,null,0]
["03:05:04:ST4406","NP182 الندى إستنسل 3 قطعة",126,1,null,null,null,0]
["03:05:04:ST4407","NP187 الندى إستنسل 3 قطعة",126,1,null,null,null,0]
["03:05:04:ST4408","NP196 الندى إستنسل 3 قطعة",126,1,null,null,null,0]
["03:05:04:ST4409","NP197 الندى إستنسل 3 قطعة",126,1,null,null,null,0]
["03:05:04:ST4410","NP199 الندى إستنسل 3 قطعة",126,1,null,null,null,0]
["03:05:04:ST4411","NP200 الندى إستنسل 3 قطعة",126,1,null,null,null,0]
["03:05:04:ST4412","NP202 الندى إستنسل 3 قطعة",126,1,null,null,null,0]
["03:05:04:ST4413","NP203 الندى إستنسل 3 قطعة",126,1,null,null,null,0]
["03:05:04:ST4414","NP205 الندى إستنسل 3 قطعة",126,1,null,null,null,0]
["03:05:04:ST4415","NP206 الندى إستنسل 3 قطعة",126,1,null,null,null,0]
["03:05:04:ST4416","NP207 الندى إستنسل 3 قطعة",126,1,null,null,null,0]
["03:05:04:ST4417","NP210 الندى إستنسل 3 قطعة",126,1,null,null,null,0]
["03:05:04:ST4418","NP215 الندى إستنسل 3 قطعة",126,1,null,null,null,0]
["03:05:04:ST4419","NP217 الندى إستنسل 3 قطعة",126,1,null,null,null,0]
["03:05:04:ST4420","NP221 الندى إستنسل 3 قطعة",126,1,null,null,null,0]
["03:05:04:ST4421","NP225 الندى إستنسل 3 قطعة",126,1,null,null,null,0]
["03:05:04:ST4422","NP227 الندى إستنسل 3 قطعة",126,1,null,null,null,0]
["03:05:04:ST4423","NP230 الندى إستنسل 3 قطعة",126,1,null,null,null,0]
["03:05:04:ST4424","NP231 الندى إستنسل 3 قطعة",126,1,null,null,null,0]
["03:05:04:ST4425","NP235 الندى إستنسل 3 قطعة",126,1,null,null,null,0]
["03:05:04:ST4426","NP239 الندى إستنسل 3 قطعة",126,1,null,null,null,0]
["03:05:04:ST4427","NP245 الندى إستنسل 3 قطعة",126,1,null,null,null,0]
["03:05:04:ST4428","NW002 الندى إستنسل 3 قطعة",126,1,null,null,null,0]
["03:05:04:ST4429","((FREE)) الندى إستنسل 3 قطعة",126,1,null,null,null,0]
["03:05:04:ST4430","الندى استنسل جلود حيوانات 3 قطعه (جلد الثعبان)",126,1,null,null,null,0]
["03:05:04:ST4431","NP272 الندى إستنسل 3 قطعة",126,1,null,null,null,0]
["03:05:04:ST4432","LA002 الندى إستنسل 3 قطعة",126,1,null,null,null,0]
["03:05:04:ST4433","NP270 الندى إستنسل 3 قطعة",126,1,null,null,null,0]
["03:05:04:ST4434","NP280 الندى إستنسل 3 قطعة",126,1,null,null,null,0]
["03:05:04:ST4435","NP297 الندى استنسل 3ق",126,1,null,null,null,0]
["03:05:04:ST4436","استنسل قطع 3 قطعة صينى",126,1,null,null,null,0]
["03:05:04:ST4700","NP184 الندى إستنسل قطع كبيرة",180,1,null,null,null,0]
["03:05:04:ST4701","NP195 الندى إستنسل قطع كبيرة",180,1,null,null,null,0]
["03:05:04:ST4702","NP209 الندى إستنسل قطع كبيرة",180,1,null,null,null,0]
["03:05:04:ST4703","NP212 الندى إستنسل قطع كبيرة",180,1,null,null,null,0]
["03:05:04:ST4704","NP218 الندى إستنسل قطع كبيرة",180,1,null,null,null,0]
["03:05:04:ST4705","NP226 الندى إستنسل قطع كبيرة",180,1,null,null,null,0]
["03:05:04:ST4706","NP228 الندى إستنسل قطع كبيرة",180,1,null,null,null,0]
["03:05:04:ST4707","NP229 الندى إستنسل قطع كبيرة",180,1,null,null,null,0]
["03:05:04:ST4708","NP233 الندى إستنسل قطع كبيرة",180,1,null,null,null,0]
["03:05:04:ST4709","NP236 الندى إستنسل قطع كبيرة",180,1,null,null,null,0]
["03:05:04:ST4710","NP237 الندى إستنسل قطع كبيرة",180,1,null,null,null,0]
["03:05:04:ST4711","NP238 الندى إستنسل قطع كبيرة",180,1,null,null,null,0]
["03:05:04:ST4712","NW001 الندى إستنسل قطع كبيرة",180,1,null,null,null,0]
["03:05:04:ST4713","NW003 الندى إستنسل قطع كبيرة",180,1,null,null,null,0]
["03:05:04:ST4714","((FREE)) الندى إستنسل قطع كبيرة",180,1,null,null,null,0]
["03:05:04:ST4715","NP256 الندى إستنسل قطع كبيرة",180,1,null,null,null,0]
["03:05:04:ST4716","NP262 الندى استنسل قطع كبيره",180,1,null,null,null,0]
["03:05:04:ST4717","NP263 الندى استنسل قطع كبيرة",180,1,null,null,null,0]
["03:05:04:ST4718","NP248 الندى استنسل قطع كبيرة",180,1,null,null,null,0]
["03:05:04:ST4719","NP258 الندى استنسل قطع كبيرة",180,1,null,null,null,0]
["03:05:04:ST4720","NP260 الندى استنسل قطع كبيرة",180,1,null,null,null,0]
["03:05:04:ST4721","NP269 الندى استنسل قطع كبيرة",180,1,null,null,null,0]
["03:05:04:ST4722","NP271 الندى استنسل قطع كبيرة",180,1,null,null,null,0]
["03:05:04:ST4723","NP289 الندى استنسل قطع كبيرة",180,1,null,null,null,0]
["03:05:04:ST4724","NP296 الندى استنسل قطع كبيرة",180,1,null,null,null,0]
["03:05:04:ST4728","استنسل قطع كبيرة صينى",180,1,null,null,null,0]
["03:05:04:ST4900","NP186 الندى إستنسل 11 قطعة",300,1,null,null,null,0]
["03:05:04:ST4901","NP211 الندى إستنسل 11 قطعة",300,1,null,null,null,0]
["03:05:04:ST4902","NP216 الندى إستنسل 11 قطعة",300,1,null,null,null,0]
["03:05:04:ST4903","NP220 الندى إستنسل 11 قطعة",300,1,null,null,null,0]
["03:05:04:ST4904","NP222 الندى إستنسل 11 قطعة",300,1,null,null,null,0]
["03:05:04:ST4905","NP240 الندى إستنسل 11 قطعة",300,1,null,null,null,0]
["03:05:04:ST4906","NP242 الندى إستنسل 11 قطعة",300,1,null,null,null,0]
["03:05:04:ST4907","NP244 الندى إستنسل 11 قطعة",300,1,null,null,null,0]
["03:05:04:ST4908","الندى إستنسل 11 قطعة (فرعونى)",300,1,null,null,null,0]
["03:05:04:ST4909","((FREE)) الندى إستنسل 11 قطعة",300,1,null,null,null,0]
["03:05:04:ST4910","NP265 الندى استنسل 11 قطعه",300,1,null,null,null,0]
["03:05:04:ST4911","NP276 الندى استنسل 11 قطعه",300,1,null,null,null,0]
["03:05:04:ST4912","NP281 الندى استنسل 11 قطعه",300,1,null,null,null,0]
["03:05:04:ST4913","NP283 الندى استنسل 11 قطعه",300,1,null,null,null,0]
["03:05:04:ST4914","NP267 الندى استنسل 11 قطعه",300,1,null,null,null,0]
["03:05:05","إستنسل متنوع وعروض",0,1,null,null,null,0]
["03:05:05:ST5001","الندى إستنسل أطفال 210",252,1,null,null,null,0]
["03:05:05:ST5002","الندى إسبيشيال ديزاين 2 قطعة",216,1,null,null,null,0]
["03:05:05:ST5003","الندى إسبيشيال ديزاين 3 قطع",252,1,null,null,null,0]
["03:05:05:ST5004","الندى إسبيشيال ديزاين قطع كبيرة",360,1,null,null,null,0]
["03:05:05:ST5005","الندى إسبيشيال ديزاين 11 قطعة",480,1,null,null,null,0]
["03:05:05:ST5006","A عرض استنسل خاص",12,1,null,null,null,0]
["03:05:05:ST5007","B  عرض استنسل خاص",15,1,null,null,null,0]
["03:05:05:ST5008","C عرض استنسل خاص",24,1,null,null,null,0]
["03:05:05:ST5009","D عرض استنسل خاص",73,1,null,null,null,0]
["03:05:05:ST5010","E عرض استنسل خاص",101,1,null,null,null,0]
["03:05:05:ST5011","G عرض استنسل خاص",144,1,null,null,null,0]
["03:05:05:ST5012","الندى شيت بوردر",82,1,null,null,null,0]
["03:05:05:ST5013","الندى شيت 50 سم",56,1,null,null,null,0]
["03:05:05:ST5014","الندى شيت مجمع",82,1,null,null,null,0]
["03:05:05:ST5015","الندى شيت 70 * 100",119,1,null,null,null,0]
["03:05:05:ST5016","الندى نصف شيت",240,1,null,null,null,0]
["03:05:05:ST5017","الندى شيت 135 * 200",478,1,null,null,null,0]
["03:05:05:ST5018","3D الندي اسطمبه",31,1,null,null,null,1]
["03:05:06","الندى استنسل قطع 3قطعة",126,1,null,null,null,0]
["03:05:07","الندى استنسل قطع كبير",180,1,null,null,null,0]
["03:05:08","الندى استنسل قطع 11قطعة",300,1,null,null,null,0]
["04","مخزن المنتجات تامة الصنع",0,1,null,null,null,0]
["04:01","منتجات الندى",0,1,null,null,null,0]
["04:01:01","منتجات الأساس",0,1,null,null,null,0]
["04:01:01:N-S001-B11KG","الندى برايمكس",137,1,null,null,null,0]
["04:01:01:N-S001-D125kg","الندى برايمكس",0,1,null,null,null,0]
["04:01:01:N-S001-G3KG","الندى برايمكس",43,1,null,null,null,0]
["04:01:01:N-S002-1KG","الندى أرتيكو برايمر",60,1,null,null,null,0]
["04:01:01:N-S004-1KG","الندى أساس حجر فرعونى",60,1,null,null,null,0]
["04:01:01:N-S007-1KG","الندى أساس رستون أنتيك",60,1,null,null,null,0]
["04:01:01:N-S009-1KG","الندى أساس بترا ستون",60,1,null,null,null,0]
["04:01:01:N-S010","الندى اساس ديكورى",0,1,null,null,null,0]
["04:01:01:N-S010A-1KG","الندى اساس ديكورى ( A )",63,1,null,null,null,0]
["04:01:01:N-S010C-1KG","الندى اساس ديكورى ( C )",63,1,null,null,null,0]
["04:01:02","منتجات المعاجين",0,1,null,null,null,0]
["04:01:02:01","معجون ساف",0,1,null,null,null,0]
["04:01:02:01:N-P001-B15kg","الندى معجون ساف",110,1,null,null,null,0]
["04:01:02:01:N-P001-D125kg","الندى معجون ساف",0,1,null,null,null,0]
["04:01:02:01:N-P001-SH15kg","الندى معجون ساف",96,1,null,null,null,0]
["04:01:02:01:N-P001_G4KG","الندى معجون ساف",37,1,null,null,null,0]
["04:01:02:02","معجون ساس",0,1,null,null,null,0]
["04:01:02:02:N-P002-B15kg","الندى معجون ساس",138,1,null,null,null,0]
["04:01:02:02:N-P002-D125kg","الندى معجون ساس",0,1,null,null,null,0]
["04:01:02:02:N-P002-SH15kg","الندى معجون ساس",124,1,null,null,null,0]
["04:01:02:02:N-P002_G4KG","الندى معجون ساس",44,1,null,null,null,0]
["04:01:02:03","معجون شروخ",0,1,null,null,null,0]
["04:01:02:03:N-P003-1KG","الندى كراك فيلر (معجون شروخ )",0,1,null,null,null,0]
["04:01:03","منتجات البلاستيكات",0,1,null,null,null,0]
["04:01:03:01","بلاستيك مطفي",0,1,null,null,null,0]
["04:01:03:01:N-E001-0.65L","الندى بلاست سوبر مط ( أبيض )",38,1,null,null,null,0]
["04:01:03:01:N-E001-G2.5L","الندى بلاست سوبر مط ( أبيض )",131,1,null,null,null,0]
["04:01:03:01:N-E001_B9L","الندى بلاست سوبر مط ( أبيض )",467,1,null,null,null,0]
["04:01:03:01:N-E001_D125KG","الندى بلاست سوبر مط (ابيض)",0,1,null,null,null,0]
["04:01:03:01:N-E001A-0.9L","A-1 الندى بلاست سوبر مط",43,1,null,null,null,0]
["04:01:03:01:N-E001A-G2.7L","A-1 الندى بلاست سوبر مط",133,1,null,null,null,0]
["04:01:03:01:N-E001A_B9L","A-1 الندى بلاست سوبر مط",443,1,null,null,null,0]
["04:01:03:01:N-E001B-0.9L","B-1 الندى بلاست سوبر مط",40,1,null,null,null,0]
["04:01:03:01:N-E001B-G2.7L","B-1 الندى بلاست سوبر مط",122,1,null,null,null,0]
["04:01:03:01:N-E001B_B9L","B-1 الندى بلاست سوبر مط",419,1,null,null,null,0]
["04:01:03:01:N-E001C-0.9L","C-1 الندى بلاست سوبر مط",36,1,null,null,null,0]
["04:01:03:01:N-E001C-G2.7L","C-1 الندى بلاست سوبر مط",113,1,null,null,null,0]
["04:01:03:01:N-E001C_B9L","C-1 الندى بلاست سوبر مط",395,1,null,null,null,0]
["04:01:03:01:N-E005-0.65L","الندى ليفز ( أبيض )",25,1,null,null,null,0]
["04:01:03:01:N-E005-G2.5L","الندى ليفز ( أبيض )",95,1,null,null,null,0]
["04:01:03:01:N-E005_B9L","الندى ليفز ( أبيض )",318,1,null,null,null,0]
["04:01:03:01:N-E013-B14KG","الندى تودى",156,1,null,null,null,0]
["04:01:03:01:N-E013-D125KG","الندى تودى",0,1,null,null,null,0]
["04:01:03:01:N-E014-B14KG","الندى صن فلاور",222,1,null,null,null,0]
["04:01:03:01:N-E014-G3.75KG","الندى صن فلاور",68,1,null,null,null,0]
["04:01:03:01:N-E014_D125KG","الندى صن فلاور",0,1,null,null,null,0]
["04:01:03:02","بلاستيك ربع لامع",0,1,null,null,null,0]
["04:01:03:02:N-E003-0.65L","الندى إيجشل ربع لمعة ( أبيض )",37,1,null,null,null,0]
["04:01:03:02:N-E003-G2.5L","الندى إيجشل ربع لمعة ( أبيض )",138,1,null,null,null,0]
["04:01:03:02:N-E003_B9L","الندى إيجشل ربع لمعة ( أبيض )",479,1,null,null,null,0]
["04:01:03:02:N-E003A-0.9L","A-1 الندى إيجشل ربع لمعة",46,1,null,null,null,0]
["04:01:03:02:N-E003A-G2.7L","A-1 الندى إيجشل ربع لمعة",142,1,null,null,null,0]
["04:01:03:02:N-E003A_B9L","A-1 الندى إيجشل ربع لمعة",455,1,null,null,null,0]
["04:01:03:02:N-E003B-0.9L","B-1 الندى إيجشل ربع لمعة",43,1,null,null,null,0]
["04:01:03:02:N-E003B-G2.7L","B-1 الندى إيجشل ربع لمعة",134,1,null,null,null,0]
["04:01:03:02:N-E003B_B9L","B-1 الندى إيجشل ربع لمعة",431,1,null,null,null,0]
["04:01:03:02:N-E003C-0.9L","C-1 الندى إيجشل ربع لمعة",41,1,null,null,null,0]
["04:01:03:02:N-E003C-G2.7L","C-1 الندى إيجشل ربع لمعة",127,1,null,null,null,0]
["04:01:03:02:N-E003C_B9L","C-1 الندى إيجشل ربع لمعة",407,1,null,null,null,0]
["04:01:03:03","بلاستيك نصف لامع",0,1,null,null,null,0]
["04:01:03:03:N-E004-0.65L","الندى بلاستيك نصف لمعة ( أبيض )",38,1,null,null,null,0]
["04:01:03:03:N-E004-G2.5L","الندى بلاستيك نصف لمعة ( أبيض )",144,1,null,null,null,0]
["04:01:03:03:N-E004_B9L","الندى بلاستيك نصف لمعة ( أبيض )",498,1,null,null,null,0]
["04:01:03:03:N-E004_BB9L","الندى بلاستيك نصف لمعه (ابيض)",498,1,null,null,null,0]
["04:01:03:03:N-E004_D125KG","الندى بلاستيك نصف لمعه (ابيض)",0,1,null,null,null,0]
["04:01:03:03:N-E004A-0.9L","A-1 الندى بلاستيك نصف لمعة",50,1,null,null,null,0]
["04:01:03:03:N-E004A-G2.7L","A-1 الندى بلاستيك نصف لمعة",150,1,null,null,null,0]
["04:01:03:03:N-E004A_B9L","A-1 الندى بلاستيك نصف لمعة",485,1,null,null,null,0]
["04:01:03:03:N-E004B-0.9L","B-1 الندى بلاستيك نصف لمعة",47,1,null,null,null,0]
["04:01:03:03:N-E004B-G2.7L","B-1 الندى بلاستيك نصف لمعة",143,1,null,null,null,0]
["04:01:03:03:N-E004B_B9L","B-1 الندى بلاستيك نصف لمعة",461,1,null,null,null,0]
["04:01:03:03:N-E004C-0.9L","C-1 الندى بلاستيك نصف لمعة",46,1,null,null,null,0]
["04:01:03:03:N-E004C-G2.7L","C-1 الندى بلاستيك نصف لمعة",138,1,null,null,null,0]
["04:01:03:03:N-E004C_B9L","C-1 الندى بلاستيك نصف لمعة",443,1,null,null,null,0]
["04:01:03:04","بلاستيك لامع",0,1,null,null,null,0]
["04:01:03:04:N-E006-0.65L","الندى ماكس جلوس أكريليك ( أبيض )",53,1,null,null,null,0]
["04:01:03:04:N-E006-G2.5L","الندى ماكس جلوس أكريليك ( أبيض )",151,1,null,null,null,0]
["04:01:03:04:N-E006_B9L","الندى ماكس جلوس أكريليك ( أبيض )",522,1,null,null,null,0]
["04:01:03:04:N-E006A-0.9L","A الندى ماكس جلوس أكريليك",52,1,null,null,null,0]
["04:01:03:04:N-E006A-G2.7L","A الندى ماكس جلوس أكريليك",160,1,null,null,null,0]
["04:01:03:04:N-E006A_B9L","A الندى ماكس جلوس أكريليك",516,1,null,null,null,0]
["04:01:03:04:N-E006B-0.9L","B الندى ماكس جلوس أكريليك",49,1,null,null,null,0]
["04:01:03:04:N-E006B-G2.7L","B الندى ماكس جلوس أكريليك",155,1,null,null,null,0]
["04:01:03:04:N-E006B_B9L","B الندى ماكس جلوس أكريليك",498,1,null,null,null,0]
["04:01:03:04:N-E006C-0.9L","C الندى ماكس جلوس أكريليك",46,1,null,null,null,0]
["04:01:03:04:N-E006C-G2.7L","C الندى ماكس جلوس أكريليك",148,1,null,null,null,0]
["04:01:03:04:N-E006C_B9L","C الندى ماكس جلوس أكريليك",474,1,null,null,null,0]
["04:01:03:05","بلاستيك مطفى خارجى",0,1,null,null,null,0]
["04:01:03:05:N-E007-0.9L","الندى بروفكس(ابيض)",0,1,null,null,null,0]
["04:01:03:05:N-E007-G3L","الندى بروفكس(ابيض)",0,1,null,null,null,0]
["04:01:03:05:N-E007_B9L","الندى بروفكس ( ابيض)",513,1,null,null,null,0]
["04:01:03:05:N-E01209-B12KG","الندى بلاستيك رمادى",120,1,null,null,null,0]
["04:01:03:N-E012_B","الندى بلاستيك (خاص بندى الخير)",0,1,null,null,null,0]
["04:01:04","منتجات اللاكيهات",0,1,null,null,null,0]
["04:01:04:01","اساس الكيدي",0,1,null,null,null,0]
["04:01:04:01:N-S011-1.5KG","الندى برايمر احمر اوكسيد",43,1,null,null,null,0]
["04:01:04:01:N-S011-500G","الندى برايمر احمر اوكسيد",17,1,null,null,null,0]
["04:01:04:01:N-S011-G4KG","الندى برايمر احمر اوكسيد",108,1,null,null,null,0]
["04:01:04:02","لاكيه مط",0,1,null,null,null,0]
["04:01:04:02:N-A001-0.8L","الندى فلورال مطفى ( أبيض )",47,1,null,null,null,0]
["04:01:04:02:N-A001-B7.2L","الندى فلورال مطفى ( أبيض )",342,1,null,null,null,0]
["04:01:04:02:N-A001-G2.4L","الندى فلورال مطفى ( أبيض )",121,1,null,null,null,0]
["04:01:04:02:N-A001A-0.8L","A-1 الندى فلورال مطفى",44,1,null,null,null,0]
["04:01:04:02:N-A001A-B7.2L","A-1 الندى فلورال مطفى",325,1,null,null,null,0]
["04:01:04:02:N-A001A-G2.4L","A-1 الندى فلورال مطفى",113,1,null,null,null,0]
["04:01:04:02:N-A001C-0.8L","C-1 الندى فلورال مطفى",42,1,null,null,null,0]
["04:01:04:02:N-A001C-B7.2L","C-1 الندى فلورال مطفى",294,1,null,null,null,0]
["04:01:04:02:N-A001C-G2.4L","C-1 الندى فلورال مطفى",104,1,null,null,null,0]
["04:01:04:03","لاكيه لامع",0,1,null,null,null,0]
["04:01:04:03:N-A002-0.9L","الندى فلورال لامع ( أبيض )",53,1,null,null,null,0]
["04:01:04:03:N-A002-B8.1L","الندى فلورال لامع (ابيض)",402,1,null,null,null,0]
["04:01:04:03:N-A002-G2.7L","الندى فلورال لامع ( أبيض )",142,1,null,null,null,0]
["04:01:04:03:N-A002A-0.9L","A-1 الندى فلورال لامع",50,1,null,null,null,0]
["04:01:04:03:N-A002A-G2.7L","A-1 الندى فلورال لامع",134,1,null,null,null,0]
["04:01:04:03:N-A002A_B8.1L","A-1 الندى فلورال لامع",377,1,null,null,null,0]
["04:01:04:03:N-A002C-0.9L","C-1 الندى فلورال لامع",49,1,null,null,null,0]
["04:01:04:03:N-A002C-B8.1L","C-1 الندى فلورال لامع",354,1,null,null,null,0]
["04:01:04:03:N-A002C-G2.7L","C-1 الندى فلورال لامع",124,1,null,null,null,0]
["04:01:04:04","ورنيش الكيدى",0,1,null,null,null,0]
["04:01:04:04:N-A007-1L","الندى فلورال ورنيش لامع",48,1,null,null,null,0]
["04:01:04:04:N-A007-G3L","الندى فلورال ورنيش لامع",122,1,null,null,null,0]
["04:01:04:05","مذيبات",0,1,null,null,null,0]
["04:01:04:05:N-A010-750ML","نفط",26,1,null,null,null,0]
["04:01:04:06","الندى اخشاب",0,1,null,null,null,0]
["04:01:04:06:N-W001","الندى سيلر اخشاب",38,1,null,null,null,0]
["04:01:04:06:N-W002","الندى ديكو فارنيش لامع",36,1,null,null,null,0]
["04:01:04:06:N-W003","الندى ديكو فارنيش مط",36,1,null,null,null,0]
["04:01:04:06:N-W004-900G","الندى فاين تاتش",50,1,null,null,null,0]
["04:01:04:06:N-W004-G3KG","الندى فاين تاتش",166,1,null,null,null,0]
["04:01:04:06:N-W005-900G","الندى فلورست فارنيش",47,1,null,null,null,0]
["04:01:04:06:N-W005-G3KG","الندى فلورست فارنيش",168,1,null,null,null,0]
["04:01:04:06:N-W006-800G","الندى فلورال فارنيش",40,1,null,null,null,0]
["04:01:04:06:N-W006-G3KG","الندى فلورال فارنيش",126,1,null,null,null,0]
["04:01:04:06:N-W007-900G","الندا باندا فيكس",26,1,null,null,null,0]
["04:01:04:06:N-W007-B10KG","الندى باندا فيكس",216,1,null,null,null,0]
["04:01:04:06:N-W007-G3.5KG","الندى باندا فيكس",86,1,null,null,null,0]
["04:01:04:N-A006","الندى فلورال مطفى مرور",0,1,null,null,null,0]
["04:01:04:N-A00601-25KG","الندى فلورال مطفى مرور (اسود)",0,1,null,null,null,0]
["04:01:04:N-A00602-25KG","الندى فلورال مطفى مرور(اصفر)",0,1,null,null,null,0]
["04:01:04:N-A009","الندى بوية مرور نصف لامع",0,1,null,null,null,0]
["04:01:04:N-A00901-B25KG","الندى بوية مرور نصف لامع (اسود)",0,1,null,null,null,0]
["04:01:04:N-A00902-B25KG","الندى بوية مرور نصف لامع (اصفر)",0,1,null,null,null,0]
["04:01:05","منتجات الواجهات",0,1,null,null,null,0]
["04:01:05:N-EX001-B15kg","الندى سوفتكس - تكشتر",198,1,null,null,null,0]
["04:01:05:N-EX005-B15kg","الندى جرافياتو ستون ( ناعم )",171,1,null,null,null,0]
["04:01:05:N-EX006-B15kg","الندى جرافياتو ستون ( وسط )",171,1,null,null,null,0]
["04:01:05:N-EX007-B15kg","الندى جرافياتو ستون ( خشن )",171,1,null,null,null,0]
["04:01:06","منتجات ديكورية",0,1,null,null,null,0]
["04:01:06:01","منتجات الشامواه",0,1,null,null,null,0]
["04:01:06:01:N-D-SH00301-1KG","الندى فيلفتو أورو ( فضى )",190,1,null,null,null,0]
["04:01:06:01:N-D-SH00301-G3.75KG","الندى فيلفتو أورو ( فضى ) جالون3.75ك",684,1,null,null,null,0]
["04:01:06:01:N-D-SH00301-G3KG","الندى فيلفتو أورو ( فضى ) جالون 3ك",0,1,null,null,null,0]
["04:01:06:01:N-D-SH00302-1KG","الندى فيلفتو أورو ( ذهبى )",190,1,null,null,null,0]
["04:01:06:01:N-D-SH00302-G3.75KG","الندى فيلفتو أورو ( ذهبى ) جالون3.75ك",684,1,null,null,null,0]
["04:01:06:01:N-D-SH00303-1KG","الندى فيلفتو أورو ( نحاسى )",190,1,null,null,null,0]
["04:01:06:01:N-D-SH00303-G3.75KG","الندى فيلفتو أورو ( نحاسى ) جالون3.75ك",684,1,null,null,null,0]
["04:01:06:01:N-D-SH00304-1KG","الندى فيلفتو أورو ( نبيتى )",190,1,null,null,null,0]
["04:01:06:01:N-D-SH00304-G3.75KG","الندى فيلفتو أورو ( نبيتى ) جالون3.75ك",684,1,null,null,null,0]
["04:01:06:01:N-D-SH00305-1KG","الندى فيلفتو أورو ( برونز )",190,1,null,null,null,0]
["04:01:06:01:N-D-SH00305-G3.75KG","الندى فيلفتو أورو ( برونز ) جالون3.75ك",684,1,null,null,null,0]
["04:01:06:01:N-D-SH00401-1KG","الندى فلفيت ( فضى )",136,1,null,null,null,0]
["04:01:06:01:N-D-SH00401-G3.75KG","الندى فلفيت ( فضى ) جالون 3.75ك",480,1,null,null,null,0]
["04:01:06:01:N-D-SH00401-G3KG","الندى فلفيت ( فضى ) جالون 3ك",0,1,null,null,null,0]
["04:01:06:01:N-D-SH00405-1KG","الندى فلفيت ( نحاسى )",136,1,null,null,null,0]
["04:01:06:01:N-D-SH00407-1KG","الندى فلفيت ( برونز )",136,1,null,null,null,0]
["04:01:06:01:N-D-SH00408-1KG","الندى فلفيت ( نبيتي)",136,1,null,null,null,0]
["04:01:06:01:N-D-SH00409-1KG","الندى فلفيت ( بني)",136,1,null,null,null,0]
["04:01:06:01:N-D-SH00410-1KG","الندى فلفيت ( فضي غامق)",136,1,null,null,null,0]
["04:01:06:01:N-D-SH00411-1KG","الندى فلفيت ( روز )",136,1,null,null,null,0]
["04:01:06:01:N-D-SH00412-1KG","الندى فلفيت (موف)",136,1,null,null,null,0]
["04:01:06:01:N-D-SH00413-1KG","الندى فلفت ( دهبى )",136,1,null,null,null,0]
["04:01:06:01:N-D-SH00501-1KG","الندى أورجينى ( فضى )",192,1,null,null,null,0]
["04:01:06:01:N-D-SH00501-G3.75KG","الندى أورجينى ( فضى ) جالون 3.75ك",0,1,null,null,null,0]
["04:01:06:01:N-D-SH00601-1KG","( Silver 900 ) الندى شيدز",192,1,null,null,null,0]
["04:01:06:01:N-D-SH00601-G2.5KG","جالون 2.5ك( Silver 900 ) الندى شيدز",470,1,null,null,null,0]
["04:01:06:01:N-D-SH00602-1KG","( Gold 901 ) الندى شيدز",192,1,null,null,null,0]
["04:01:06:01:N-D-SH00603-1KG","( Copper 902 ) الندى شيدز",192,1,null,null,null,0]
["04:01:06:01:N-D-SH00604-1KG","( Red Copper 903 ) الندى شيدز",192,1,null,null,null,0]
["04:01:06:01:N-D-SH00701-1KG","الندى لازوردى جولد ( دهب 14 )",136,1,null,null,null,0]
["04:01:06:01:N-D-SH00702-1KG","الندى لازوردى جولد ( دهب 18 )",136,1,null,null,null,0]
["04:01:06:01:N-D-SH00703-1KG","الندى لازوردى جولد ( دهب 21 )",136,1,null,null,null,0]
["04:01:06:01:N-D-SH00704-1KG","الندى لازوردى جولد ( دهب 24 )",136,1,null,null,null,0]
["04:01:06:01:N-D-SH00705-1KG","الندى لازوردى جولد ( دهب 26 )",136,1,null,null,null,0]
["04:01:06:01:N-D-SH00706-1KG","الندى لازوردى جولد ( دهب 28 )",136,1,null,null,null,0]
["04:01:06:01:N-D-SH00801-1KG","الندى ويفز",108,1,null,null,null,0]
["04:01:06:01:N-D-SH0901-1KG","الندى رايز (فضى)",184,1,null,null,null,0]
["04:01:06:01:N-D-SH0902-1KG","الندى رايز (دهبى)",184,1,null,null,null,0]
["04:01:06:02","منتجات الرمليات",0,1,null,null,null,0]
["04:01:06:02:N-D-AG00301-1KG","الندى سبلادور ( فضى )",190,1,null,null,null,0]
["04:01:06:02:N-D-AG00301-G2.5KG","الندى سبلادور ( فضى )",461,1,null,null,null,0]
["04:01:06:02:N-D-AG00302-1KG","الندى سبلادور ( ذهبى )",190,1,null,null,null,0]
["04:01:06:02:N-D-AG00302-G2.5KG","الندى سبلادور ( ذهبى )",461,1,null,null,null,0]
["04:01:06:02:N-D-AG00303-1KG","الندى سبلادور ( نحاسى )",190,1,null,null,null,0]
["04:01:06:02:N-D-AG00303-G2.5KG","الندى سبلادور ( نحاسى )",461,1,null,null,null,0]
["04:01:06:02:N-D-AG00304-1KG","الندى سبلادور ( نبيتى )",190,1,null,null,null,0]
["04:01:06:02:N-D-AG00304-G2.5KG","الندى سبلادور ( نبيتى )",461,1,null,null,null,0]
["04:01:06:02:N-D-AG00305-1KG","الندى سبلادور ( برونز )",190,1,null,null,null,0]
["04:01:06:02:N-D-AG00305-G2.5KG","الندى سبلادور ( برونز )",461,1,null,null,null,0]
["04:01:06:02:N-D-AG00306-1KG","الندى سبلادور ( بنى )",190,1,null,null,null,0]
["04:01:06:02:N-D-AG00307-1KG","الندى سبلادور ( اسود )",190,1,null,null,null,0]
["04:01:06:02:N-D-AG00401-1KG","( Silver 900 ) الندى صحارى",192,1,null,null,null,0]
["04:01:06:02:N-D-AG00401-G2.5KG","( SILVER 900) الندى صحارى جالون 2.5ك",470,1,null,null,null,0]
["04:01:06:02:N-D-AG00402-1KG","( Gold 901 ) الندى صحارى",192,1,null,null,null,0]
["04:01:06:02:N-D-AG00403-1KG","( Copper 902 ) الندى صحارى",192,1,null,null,null,0]
["04:01:06:02:N-D-AG00404-1KG","( Red Copper 903 ) الندى صحارى",192,1,null,null,null,0]
["04:01:06:03","منتجات البذور",0,1,null,null,null,0]
["04:01:06:03:N-D-SE00101-1KG","الندى فلاور ( أبيض × أسود )",60,1,null,null,null,0]
["04:01:06:03:N-D-SE00101-500G","الندى فلاور(ابيض×اسود)",34,1,null,null,null,0]
["04:01:06:03:N-D-SE00102-1KG","الندى فلاور ( الأوركيد )",60,1,null,null,null,0]
["04:01:06:03:N-D-SE00102-500G","الندى فلاور (الاوركيد)",34,1,null,null,null,0]
["04:01:06:03:N-D-SE00103-1KG","الندى فلاور ( الكالونيا )",60,1,null,null,null,0]
["04:01:06:03:N-D-SE00103-500G","الندى فلاور (الكالونيا)",34,1,null,null,null,0]
["04:01:06:03:N-D-SE00104-1KG","الندى فلاور ( الجورى )",60,1,null,null,null,0]
["04:01:06:03:N-D-SE00104-500G","الندى فلاور (الجورى)",34,1,null,null,null,0]
["04:01:06:03:N-D-SE00105-1KG","الندى فلاور ( البنفسج )",60,1,null,null,null,0]
["04:01:06:03:N-D-SE00105-500G","الندى فلاور (البنفسج)",34,1,null,null,null,0]
["04:01:06:03:N-D-SE00106-1KG","الندى فلاور ( النيفنا )",60,1,null,null,null,0]
["04:01:06:03:N-D-SE00106-500G","الندى فلاور (النيفنا)",34,1,null,null,null,0]
["04:01:06:03:N-D-SE00107-1KG","الندى فلاور ( الكامليا )",60,1,null,null,null,0]
["04:01:06:03:N-D-SE00107-500G","الندى فلاور(الكاميليا)",34,1,null,null,null,0]
["04:01:06:03:N-D-SE00108-1KG","الندى فلاور ( الفل )",60,1,null,null,null,0]
["04:01:06:03:N-D-SE00108-500G","الندى فلاور(الفل)",34,1,null,null,null,0]
["04:01:06:03:N-D-SE00109-1KG","الندى فلاور ( فلورا )",60,1,null,null,null,0]
["04:01:06:03:N-D-SE00109-500G","الندى فلاور(فلورا)",34,1,null,null,null,0]
["04:01:06:03:N-D-SE00110-1KG","الندى فلاور ( الذهب )",60,1,null,null,null,0]
["04:01:06:03:N-D-SE00110-500G","الندى فلاور (الدهب)",34,1,null,null,null,0]
["04:01:06:03:N-D-SE00111-1KG","الندى فلاور ( التوليب )",60,1,null,null,null,0]
["04:01:06:03:N-D-SE00111-500G","الندى فلاور(التوليب)",34,1,null,null,null,0]
["04:01:06:03:N-D-SE00112-1KG","الندى فلاور ( ورود ملكية )",60,1,null,null,null,0]
["04:01:06:03:N-D-SE00112-500G","الندى فلاور(ورود ملكية)",34,1,null,null,null,0]
["04:01:06:03:N-D-SE00113-1KG","الندى فلاور ( الهيام )",60,1,null,null,null,0]
["04:01:06:03:N-D-SE00113-500G","الندى فلاور (الهيام)",34,1,null,null,null,0]
["04:01:06:03:N-D-SE00114-1KG","الندى فلاور ( لافندر )",60,1,null,null,null,0]
["04:01:06:03:N-D-SE00114-500G","الندى فلاور (لافندر)",34,1,null,null,null,0]
["04:01:06:03:N-D-SE00115-1KG","الندى فلاور ( السوسن الزرقاء )",60,1,null,null,null,0]
["04:01:06:03:N-D-SE00115-500G","الندى فلاور(السوسن الزرقاء)",34,1,null,null,null,0]
["04:01:06:03:N-D-SE00116-1KG","الندى فلاور ( النرجس )",60,1,null,null,null,0]
["04:01:06:03:N-D-SE00116-500G","الندى فلاور (النرجس)",34,1,null,null,null,0]
["04:01:06:03:N-D-SE00201-G3KG","( إمبلادور أزرق ) M & G الندى أرتيكو",180,1,null,null,null,0]
["04:01:06:03:N-D-SE00202-G3KG","( إمبلادور أخضر ) M & G الندى أرتيكو",180,1,null,null,null,0]
["04:01:06:03:N-D-SE00203-G3KG","( فيردى ) M & G الندى أرتيكو",180,1,null,null,null,0]
["04:01:06:03:N-D-SE00204-G3KG","( أحمر أسوانى ) M & G الندى أرتيكو",180,1,null,null,null,0]
["04:01:06:03:N-D-SE00205-G3KG","( جاندولا ) M & G الندى أرتيكو",180,1,null,null,null,0]
["04:01:06:03:N-D-SE00206-G3KG","( روز النصر ) M & G الندى أرتيكو",180,1,null,null,null,0]
["04:01:06:03:N-D-SE00207-G3KG","( رويال روز ) M & G الندى أرتيكو",180,1,null,null,null,0]
["04:01:06:03:N-D-SE00208-G3KG","(كريستا اصفر)M&Gالندى ارتيكو",180,1,null,null,null,0]
["04:01:06:03:N-D-SE00209-G3KG","(كراره ابيض)M&Gالندى ارتيكو",180,1,null,null,null,0]
["04:01:06:03:N-D-SE00401-1KG","الندى جاسمين فلاور",60,1,null,null,null,0]
["04:01:06:03:N-D-SE00401-500G","الندى جاسمين فلاور",34,1,null,null,null,0]
["04:01:06:04","منتجات المعاجين",0,1,null,null,null,0]
["04:01:06:04:N-D-PD00101-G4KG","الندى بيست آرت سوفت - جالون",84,1,null,null,null,0]
["04:01:06:04:N-D-PD00101_B12KG","الندى بيست آرت سوفت",222,1,null,null,null,0]
["04:01:06:04:N-D-PD00201-G4KG","الندى بيست آرت رف - جالون",84,1,null,null,null,0]
["04:01:06:04:N-D-PD00201_B12KG","الندى بيست آرت رف",222,1,null,null,null,0]
["04:01:06:04:N-D-PD00301-G4KG","الندى روشن - جالون",126,1,null,null,null,0]
["04:01:06:04:N-D-PD00301_B12KG","الندى روشن",354,1,null,null,null,0]
["04:01:06:04:N-D-PD00501-G4KG","الندى حجر فرعونى ( أبيض ) جالون",108,1,null,null,null,0]
["04:01:06:04:N-D-PD00501_B12KG","الندى حجر فرعونى ( أبيض )",306,1,null,null,null,0]
["04:01:06:04:N-D-PD00601-1KG","الندى رستون آنتيك ( فضى )",222,1,null,null,null,0]
["04:01:06:04:N-D-PD00601-G2.5KG","الندى رستون أنتيك ( فضى )",534,1,null,null,null,0]
["04:01:06:04:N-D-PD00602-1KG","الندى رستون أنتيك ( نبيتى )",222,1,null,null,null,0]
["04:01:06:04:N-D-PD00602-G2.5KG","الندى رستون أنتيك ( نبيتى )",534,1,null,null,null,0]
["04:01:06:04:N-D-PD00603-1KG","الندى رستون أنتيك ( بنى )",222,1,null,null,null,0]
["04:01:06:04:N-D-PD00603-G2.5KG","الندى رستون أنتيك ( بنى )",534,1,null,null,null,0]
["04:01:06:04:N-D-PD00604-1KG","الندى رستون أنتيك ( أزرق )",222,1,null,null,null,0]
["04:01:06:04:N-D-PD00604-G2.5KG","الندى رستون أنتيك ( أزرق )",534,1,null,null,null,0]
["04:01:06:04:N-D-PD00605-1KG","الندى رستون أنتيك ( ذهبى )",222,1,null,null,null,0]
["04:01:06:04:N-D-PD00605-G2.5KG","الندى رستون أنتيك ( ذهبى )",534,1,null,null,null,0]
["04:01:06:04:N-D-PD00606-1KG","الندى رستون أنتيك ( موف )",222,1,null,null,null,0]
["04:01:06:04:N-D-PD00606-G2.5KG","الندى رستون أنتيك ( موف )",534,1,null,null,null,0]
["04:01:06:04:N-D-PD00607-1KG","الندى رستون آنتيك ( نحاسى )",222,1,null,null,null,0]
["04:01:06:04:N-D-PD00607-G2.5KG","الندى رستون آنتيك ( نحاسى )",534,1,null,null,null,0]
["04:01:06:04:N-D-PD00608-1KG","الندى رستون أنتيك ( اسود )",222,1,null,null,null,0]
["04:01:06:04:N-D-PD00608-G2.5KG","الندى رستون أنتيك ( اسود)",534,1,null,null,null,0]
["04:01:06:04:N-D-PD00609-1KG","الندى رستون أنتيك ( أخضر )",222,1,null,null,null,0]
["04:01:06:04:N-D-PD00609-G2.5KG","الندى رستون أنتيك ( أخضر )",534,1,null,null,null,0]
["04:01:06:04:N-D-PD00610-G2.5KG","الندى رستون أنتيك ( بيس)",534,1,null,null,null,0]
["04:01:06:04:N-D-PD00701A-1.350KG","A-1 الندى استوكو",72,1,null,null,null,0]
["04:01:06:04:N-D-PD00701A-G4KG","A-1 الندى استوكو",205,1,null,null,null,0]
["04:01:06:04:N-D-PD00701A_B12KG","A-1 الندى استوكو",539,1,null,null,null,0]
["04:01:06:04:N-D-PD00702C-1.350KG","C-1 الندى استوكو",59,1,null,null,null,0]
["04:01:06:04:N-D-PD00702C-G4KG","C-1 الندى استوكو",165,1,null,null,null,0]
["04:01:06:04:N-D-PD00702C_B12KG","C-1 الندى استوكو",482,1,null,null,null,0]
["04:01:06:04:N-D-PD00801-G4KG","A-1 الندى معجونة بيترا ستون",0,1,null,null,null,0]
["04:01:06:04:N-D-PD010-1.3KG","الندي استوكو (ابيض)",70,1,null,null,null,0]
["04:01:06:04:N-D-PD010-G4KG","الندي استوكو (ابيض )",192,1,null,null,null,0]
["04:01:06:05","منتجات الإستنسل",0,1,null,null,null,0]
["04:01:06:05:N-D-ST00101-1KG","الندى دايموند كريم ( فضى )",138,1,null,null,null,0]
["04:01:06:05:N-D-ST00101-500G","الندى دايموند كريم (فضى)",73,1,null,null,null,0]
["04:01:06:05:N-D-ST00101-G3KG","الندى دايموند كريم (فضى ) جالون",395,1,null,null,null,0]
["04:01:06:05:N-D-ST00102-1KG","الندى دايموند كريم ( ذهبى )",138,1,null,null,null,0]
["04:01:06:05:N-D-ST00102-500G","الندى دايوند كريم (دهبى)",73,1,null,null,null,0]
["04:01:06:05:N-D-ST00103-1KG","الندى دايموند كريم ( نحاسى )",138,1,null,null,null,0]
["04:01:06:05:N-D-ST00103-500G","الندى دايموند كريم (نحاسى)",73,1,null,null,null,0]
["04:01:06:05:N-D-ST00104-1KG","الندى دايموند كريم ( نبيتى )",138,1,null,null,null,0]
["04:01:06:05:N-D-ST00104-500G","الندى دايموند كريم (نبيتى)",73,1,null,null,null,0]
["04:01:06:05:N-D-ST00105-1KG","الندى دايموند كريم ( أسود )",138,1,null,null,null,0]
["04:01:06:05:N-D-ST00105-500G","الندى دايموند كريم (اسود)",73,1,null,null,null,0]
["04:01:06:05:N-D-ST00106-1KG","الندى دايموند كريم ( لؤلؤى )",138,1,null,null,null,0]
["04:01:06:05:N-D-ST00106-500G","الندى دايموند كريم (لؤلؤى)",73,1,null,null,null,0]
["04:01:06:05:N-D-ST00106-G3KG","الندى دايموند كريم ( لؤلؤى )",395,1,null,null,null,0]
["04:01:06:05:N-D-ST00107-1KG","الندى دايموند كريم ( تركواز )",138,1,null,null,null,0]
["04:01:06:05:N-D-ST00107-500G","الندى دايموند كريم (تركواز)",73,1,null,null,null,0]
["04:01:06:05:N-D-ST00108-1KG","الندى دايموند كريم ( موف )",138,1,null,null,null,0]
["04:01:06:05:N-D-ST00108-500G","الندى دايموند كريم (موف)",73,1,null,null,null,0]
["04:01:06:05:N-D-ST00109-1KG","الندى دايموند كريم ( موف غامق )",138,1,null,null,null,0]
["04:01:06:05:N-D-ST00109-500G","الندى دايموند كريم (موف غامق)",73,1,null,null,null,0]
["04:01:06:05:N-D-ST00110-1KG","الندى دايموند كريم ( ذهبى فسفورى )",138,1,null,null,null,0]
["04:01:06:05:N-D-ST00110-500G","الندى دايوند كريم (دهبى فسفورى",73,1,null,null,null,0]
["04:01:06:05:N-D-ST00111-1KG","الندى دايموند كريم ( أخضر )",138,1,null,null,null,0]
["04:01:06:05:N-D-ST00111-500G","الندى دايموند كريم (اخضر)",73,1,null,null,null,0]
["04:01:06:05:N-D-ST00112-1KG","الندى دايموند كريم ( أزرق )",138,1,null,null,null,0]
["04:01:06:05:N-D-ST00112-500G","الندى دايموند كريم (ازرق)",73,1,null,null,null,0]
["04:01:06:05:N-D-ST00113-1KG","الندى دايموند كريم ( بنك )",138,1,null,null,null,0]
["04:01:06:05:N-D-ST00113-500G","الندى دايوند كريم (بنك)",73,1,null,null,null,0]
["04:01:06:05:N-D-ST00114-1KG","الندى دايموند كريم ( بنى )",138,1,null,null,null,0]
["04:01:06:05:N-D-ST00114-500G","الندى دايموند كريم (بنى)",73,1,null,null,null,0]
["04:01:06:05:N-D-ST00115-1KG","الندى دايموند كريم ( فسفورى )",138,1,null,null,null,0]
["04:01:06:05:N-D-ST00115-500G","الندى دايموند كريم (فسفورى)",73,1,null,null,null,0]
["04:01:06:05:N-D-ST00116-1KG","الندى دايموند كريم ( برونز )",138,1,null,null,null,0]
["04:01:06:05:N-D-ST00116-500G","الندى دايموند كريم(برونز)",73,1,null,null,null,0]
["04:01:06:05:N-D-ST00117-1KG","الندى دايموند كريم ( فوشيا )",138,1,null,null,null,0]
["04:01:06:05:N-D-ST00117-500G","الندى دايموند كريم (فوشيا)",73,1,null,null,null,0]
["04:01:06:05:N-D-ST00118-1KG","الندى دايموند كريم ( ذهبى فاتح )",138,1,null,null,null,0]
["04:01:06:05:N-D-ST00118-500G","الندى دايموند كريم (دهبى فاتح)",73,1,null,null,null,0]
["04:01:06:05:N-D-ST00119-1KG","الندى دايموند كريم ( روز )",138,1,null,null,null,0]
["04:01:06:05:N-D-ST00119-500G","الندى دايموند كريم (روز)",73,1,null,null,null,0]
["04:01:06:05:N-D-ST00120-1KG","الندى دايموند كريم ( أحمر )",138,1,null,null,null,0]
["04:01:06:05:N-D-ST00120-500G","الندى دايموند كريم (احمر)",73,1,null,null,null,0]
["04:01:06:05:N-D-ST00121-1KG","الندى دايموند كريم ( بنفسجي)",138,1,null,null,null,0]
["04:01:06:05:N-D-ST00121-500G","الندى دايموند كريم (بنفسجى)",73,1,null,null,null,0]
["04:01:06:05:N-D-ST00201-1KG","(فضى) (3D) الندى هيتر",120,1,null,null,null,0]
["04:01:06:05:N-D-ST00301-1KG","دهان إستنسل مجسم CH",120,1,null,null,null,0]
["04:01:06:05:N-D-ST00301-G3.75KG","دهان إستنسل مجسم CH جالون 3.75",0,1,null,null,null,0]
["04:01:06:06","منتجات النانو",0,1,null,null,null,0]
["04:01:06:06:N-D-NA00101-200GR","الندى دايموند بودر (فضى)",36,1,null,null,null,0]
["04:01:06:06:N-D-NA00102-200GR","الندى دايموند بودر (ذهبى)",36,1,null,null,null,0]
["04:01:06:06:N-D-NA00103-200GR","الندى دايموند بودر (نحاسى)",36,1,null,null,null,0]
["04:01:06:06:N-D-NA00104-200GR","الندى دايموند بودر ( نبيتى)",36,1,null,null,null,0]
["04:01:06:06:N-D-NA00105-200GR","الندى دايوند بودر ( اسود)",36,1,null,null,null,0]
["04:01:06:06:N-D-NA00106-200GR","الندى دايموند بودر (اخضر)",36,1,null,null,null,0]
["04:01:06:06:N-D-NA00107-200GR","الندى دايموند بودر (الوان مختلفة)",36,1,null,null,null,0]
["04:01:06:06:N-D-NA00601","الندى ستار ( علبة )",14,1,null,null,null,0]
["04:01:06:06:N-D-NA00601-100GM","الندى ستار ( ذهبى )",48,1,null,null,null,0]
["04:01:06:06:N-D-NA00602-100GM","الندى ستار ( فضى )",48,1,null,null,null,0]
["04:01:06:06:N-D-NA00603-100GM","الندى ستار ( لؤلؤى )",48,1,null,null,null,0]
["04:01:06:06:N-D-NA00604-100GM","الندى ستار ( اسود )",48,1,null,null,null,0]
["04:01:06:06:N-D-NA00605-100GM","الندى ستار ( نبيتي )",48,1,null,null,null,0]
["04:01:06:06:N-D-NA00606-100GM","الندى ستار ( نحاسي )",48,1,null,null,null,0]
["04:01:06:06:N-D-NA00801-200GM","الندى نانو سباركل",36,1,null,null,null,0]
["04:01:06:06:N-D-NA00901","كيس غراء كبير",11,1,null,null,null,0]
["04:01:06:06:N-D-NA01001-250gm","الندى سكاي لايت ( أكوا )",174,1,null,null,null,0]
["04:01:06:06:N-D-NA01002-250gm","الندى سكاي لايت ( بنك )",174,1,null,null,null,0]
["04:01:06:06:N-D-NA01003-250gm","الندى سكاي لايت ( أخضر )",174,1,null,null,null,0]
["04:01:06:06:N-D-NA01004-250gm","الندى سكاي لايت ( أصفر × أخضر )",174,1,null,null,null,0]
["04:01:06:06:N-D-NA01005-250gm","الندى سكاي لايت ( أصفر )",174,1,null,null,null,0]
["04:01:06:06:N-D-NA01006-250gm","الندى سكاي لايت ( أورانج )",174,1,null,null,null,0]
["04:01:06:06:N-D-NA01007-250gm","الندى سكاي لايت ( أزرق )",174,1,null,null,null,0]
["04:01:06:06:N-D-NA01008-250gm","الندى سكاي لايت ( أحمر )",174,1,null,null,null,0]
["04:01:06:06:N-D-NA01301-200gm","الندى سكاي لايت بودر ( فسفورى )",293,1,null,null,null,0]
["04:01:06:06:N-D-NA01302-200gm","الندى سكاي لايت بودر ( أزرق )",293,1,null,null,null,0]
["04:01:06:06:N-D-NA01303-200gm","الندى سكاي لايت بودر ( أخضر )",293,1,null,null,null,0]
["04:01:06:06:N-D-NA01304-200gm","الندى سكاي لايت بودر ( أصفر )",293,1,null,null,null,0]
["04:01:06:06:N-D-NA01305-200gm","الندى سكاي لايت بودر ( أورانج )",293,1,null,null,null,0]
["04:01:06:06:N-D-NA01306-200gm","الندى سكاي لايت بودر ( أحمر )",293,1,null,null,null,0]
["04:01:06:06:N-D-NA01307-200gm","الندى سكاي لايت بودر ( بنك )",293,1,null,null,null,0]
["04:01:06:06:N-D-NA01308-200G","الندى سكاى لايت بودر ( اكوا )",293,1,null,null,null,0]
["04:01:06:06:N-D-NA01401-100gm","الندى جنجا شعر ( فضى )",42,1,null,null,null,0]
["04:01:06:06:N-D-NA01402-100gm","الندى جنجا شعر ( ذهبى )",42,1,null,null,null,0]
["04:01:06:06:N-D-NA01501-150gm","الندى نانو غراء أبيض",7,1,null,null,null,0]
["04:01:06:06:N-D-NA01501-300gm","الندى نانو غراء أبيض",14,1,null,null,null,0]
["04:01:06:06:N-D-NA016","الندى نانو ( مركزات ألوان )",0,1,null,null,null,0]
["04:01:06:06:N-D-NA01601-50gm","مركز ألوان ( أصفر )",7,1,null,null,null,0]
["04:01:06:06:N-D-NA01601_100gm","مركز ألوان ( أصفر )",8,1,null,null,null,0]
["04:01:06:06:N-D-NA01602-50gm","مركز ألوان ( أصفر أوكسيد )",7,1,null,null,null,0]
["04:01:06:06:N-D-NA01602_100gm","مركز ألوان ( أصفر أوكسيد )",8,1,null,null,null,0]
["04:01:06:06:N-D-NA01603-50gm","مركز ألوان ( برتقالى )",7,1,null,null,null,0]
["04:01:06:06:N-D-NA01603_100gm","مركز ألوان ( برتقالى )",8,1,null,null,null,0]
["04:01:06:06:N-D-NA01604-50gm","مركز ألوان ( أحمر )",7,1,null,null,null,0]
["04:01:06:06:N-D-NA01604_100gm","مركز ألوان ( أحمر )",8,1,null,null,null,0]
["04:01:06:06:N-D-NA01605-50gm","مركز ألوان ( نبيتى )",7,1,null,null,null,0]
["04:01:06:06:N-D-NA01605_100gm","مركز ألوان ( نبيتى )",8,1,null,null,null,0]
["04:01:06:06:N-D-NA01606-50gm","مركز ألوان ( أخضر فاتح )",7,1,null,null,null,0]
["04:01:06:06:N-D-NA01606_100gm","مركز ألوان ( أخضر فاتح )",8,1,null,null,null,0]
["04:01:06:06:N-D-NA01607-50gm","مركز ألوان ( أخضر غامق )",7,1,null,null,null,0]
["04:01:06:06:N-D-NA01607_100gm","مركز ألوان ( أخضر غامق )",8,1,null,null,null,0]
["04:01:06:06:N-D-NA01608-50gm","مركز ألوان ( أزرق )",7,1,null,null,null,0]
["04:01:06:06:N-D-NA01608_100gm","مركز ألوان ( أزرق )",8,1,null,null,null,0]
["04:01:06:06:N-D-NA01609-50gm","مركز ألوان ( موف )",7,1,null,null,null,0]
["04:01:06:06:N-D-NA01609_100gm","مركز ألوان ( موف )",8,1,null,null,null,0]
["04:01:06:06:N-D-NA01610-50gm","مركز ألوان ( بنى )",7,1,null,null,null,0]
["04:01:06:06:N-D-NA01610_100gm","مركز ألوان ( بنى )",8,1,null,null,null,0]
["04:01:06:06:N-D-NA01611-50gm","مركز ألوان ( أسود )",7,1,null,null,null,0]
["04:01:06:06:N-D-NA01611_100gm","مركز ألوان ( أسود )",8,1,null,null,null,0]
["04:01:06:06:N-D-NA01701-50gm","الندى نانو أرتز فلاور",54,1,null,null,null,0]
["04:01:06:06:N-D-NA019","الندى نانو برلانت بودر",0,1,null,null,null,0]
["04:01:06:06:N-D-NA01901-75GM","الندى نانو برلانت بودر ( فضى )",54,1,null,null,null,0]
["04:01:06:06:N-D-NA01902-75GM","الندى نانو برلانت بودر ( دهبى )",54,1,null,null,null,0]
["04:01:06:06:N-D-NA01903-75GM","الندى نانو برلانت بودر ( احمر )",54,1,null,null,null,0]
["04:01:06:06:N-D-NA01904-75GM","الندى نانو برلانت بودر ( موف )",54,1,null,null,null,0]
["04:01:06:06:N-D-NA01905-75GM","الندى نانو برلانت بودر ( أزرق )",54,1,null,null,null,0]
["04:01:06:06:N-D-NA01906-75GM","الندى نانو برلانت بودر ( أخضر )",54,1,null,null,null,0]
["04:01:06:06:N-D-NA020","الندى نانو فلاور نت",0,1,null,null,null,0]
["04:01:06:06:N-D-NA02001-250GM","الندى نانو فلاور نت ( الفل)",38,1,null,null,null,0]
["04:01:06:06:N-D-NA02002-250GM","الندى نانو فلاور نت ( الاوركيد)",38,1,null,null,null,0]
["04:01:06:06:N-D-NA02003-250GM","الندى نانو فلاور نت ( الكالونيا)",38,1,null,null,null,0]
["04:01:06:06:N-D-NA02004-250GM","الندى نانو فلاور نت ( الجورى)",38,1,null,null,null,0]
["04:01:06:06:N-D-NA02005-250GM","الندى نانو فلاور نت ( زهرة البنفسج)",38,1,null,null,null,0]
["04:01:06:06:N-D-NA02006-250GM","الندى نانو فلاور نت ( النيفنا)",38,1,null,null,null,0]
["04:01:06:06:N-D-NA02007-250GM","الندى نانو فلاور نت (الفلورا)",38,1,null,null,null,0]
["04:01:06:06:N-D-NA02008-250GM","الندى نانو فلاور نت ( جاسمين فلاور )",38,1,null,null,null,0]
["04:01:06:06:N-D-NA02009-250GM","الندى نانو فلاور نت ( التوليب )",38,1,null,null,null,0]
["04:01:06:06:N-D-NA021","الندى نانو برل سنت بودر",0,1,null,null,null,0]
["04:01:06:06:N-D-NA02101-75GM","الندى نانو برل سنت بودر ( فضى 001)",96,1,null,null,null,0]
["04:01:06:06:N-D-NA02102-75GM","الندى نانو برل سنت بودر ( دهبى 002)",96,1,null,null,null,0]
["04:01:06:06:N-D-NA02103-75GM","الندى نانو برل سنت بودر ( احمر 003)",96,1,null,null,null,0]
["04:01:06:06:N-D-NA02104-75GM","الندى نانو برل سنت بودر ( موف 004)",96,1,null,null,null,0]
["04:01:06:06:N-D-NA02105-75GM","الندى نانو برل سنت بودر ( ازرق 005 )",96,1,null,null,null,0]
["04:01:06:06:N-D-NA02106-75GM","الندى نانو برل سنت بودر ( اخضر 006 )",96,1,null,null,null,0]
["04:01:06:06:N-D-NA022","الندى نانو أوكسيدية",0,1,null,null,null,0]
["04:01:06:06:N-D-NA02201-100GM","الندى نانو أوكسيدية(فضى أوكسيدية)",67,1,null,null,null,0]
["04:01:06:06:N-D-NA02202-100GM","الندى نانو أوكسيدية(دهبى أوكسيدية)",67,1,null,null,null,0]
["04:01:06:06:N-D-NA02203-100GM","الندى نانو أوكسيدية(برونز أوكسيدية)",67,1,null,null,null,0]
["04:01:06:07","منتجات تعتيق",0,1,null,null,null,0]
["04:01:06:07:N-D-SP002-1KG","الندى قوس قزح بريق",131,1,null,null,null,0]
["04:01:06:07:N-D-SP002-375GM","الندى قوس قزح بريق",52,1,null,null,null,0]
["04:01:06:07:N-D-SP00301_0.350L","الندى قوس قزح بيز ( شفاف )",25,1,null,null,null,0]
["04:01:06:07:N-D-SP00301_0.750L","الندى قوس قزح بيز ( شفاف )",48,1,null,null,null,0]
["04:01:06:07:N-D-SP00401-1KG","الندى فانتازى بيز ( شفاف )",60,1,null,null,null,0]
["04:01:06:07:N-D-SP00501-1KG","الندى فانتازى بريق ( نبيتى )",105,1,null,null,null,0]
["04:01:06:07:N-D-SP00502-1KG","الندى فانتازى بريق ( فضى )",105,1,null,null,null,0]
["04:01:06:07:N-D-SP00503-1KG","الندى فانتازى بريق ( ذهبى )",105,1,null,null,null,0]
["04:01:06:08","منتجات أخرى",0,1,null,null,null,0]
["04:01:06:08:N-D-ME00101-1KG","الندى كراكليه",82,1,null,null,null,0]
["04:01:06:08:N-D-ME002A01-1KG","A-1 الندى جينز",84,1,null,null,null,0]
["04:01:06:08:N-D-ME002B02-1KG","B-1 الندى جينز",84,1,null,null,null,0]
["04:01:06:08:N-D-ME00301-1KG","الندى أكرى لكر",24,1,null,null,null,0]
["04:01:06:08:N-D-ME00301-G2.4L","الندى اكرى لكر",56,1,null,null,null,0]
["04:01:06:08:N-D-ME00301_B10L","الندى اكرى لكر",186,1,null,null,null,0]
["04:01:06:08:N-D-ME00401","دهان جلود حيوانات ( الحمار الوحشى )",483,1,null,null,null,0]
["04:01:06:08:N-D-ME00402","دهان جلود حيوانات ( النمر المخطط )",483,1,null,null,null,0]
["04:01:06:08:N-D-ME00403","دهان جلود حيوانات ( النمر المنقط )",483,1,null,null,null,0]
["04:01:06:08:N-D-ME00404","دهان جلود حيوانات ( الفيل )",483,1,null,null,null,0]
["04:01:06:08:N-D-ME00405","دهان جلود حيوانات ( النمر الأبيض )",483,1,null,null,null,0]
["04:01:06:08:N-D-ME00407","دهان جلود حيوانات ( التمساح )",483,1,null,null,null,0]
["04:01:06:08:N-D-ME00408-1KG","STEP3 دهان جلود حيوانات = اسود",63,1,null,null,null,0]
["04:01:06:08:N-D-ME0040901","دهان جلود حيوانات (الثعبان نحاسى)",483,1,null,null,null,0]
["04:01:06:08:N-D-ME0040902","دهان جلود حيوانات ( الثعبان ازرق)",483,1,null,null,null,0]
["04:01:06:08:N-D-ME0040903","دهان جلود حيوانات ( الثعبان نبيتى)",483,1,null,null,null,0]
["04:01:06:08:N-D-ME0040904","دهان جلود حيوانات ( الثعبان اخضر)",483,1,null,null,null,0]
["04:01:06:08:N-D-ME00501-400gm","الندى واكس",54,1,null,null,null,0]
["04:01:06:08:N-D-ME00701-500gm","الندى أرتيكو فارنيش",96,1,null,null,null,0]
["04:01:06:08:N-D-ME01101-1KG","الندى ستون فينش ( فضى )",162,1,null,null,null,0]
["04:01:06:08:N-D-ME01102-1KG","الندى ستون فينش ( دهبى )",162,1,null,null,null,0]
["04:01:06:08:N-D-ME012-1KG","الندى ستونيك",34,1,null,null,null,0]
["04:01:06:08:N-D-MED012-G3KG","الندى ستونيك",96,1,null,null,null,0]
["04:01:07","ملونات الماكينات",0,1,null,null,null,0]
["04:01:07:N-C001-1L","RT (yellow oxide)",290,1,null,null,null,0]
["04:01:07:N-C002-1L","FT (violeD)",365,1,null,null,null,0]
["04:01:07:N-C003-1L","HS (bordeaux)",1034,1,null,null,null,0]
["04:01:07:N-C004-1L","KS (yellow)",547,1,null,null,null,0]
["04:01:07:N-C005-1L","LS (dark green)",538,1,null,null,null,0]
["04:01:07:N-C006-1L","LT (lighD green)",426,1,null,null,null,0]
["04:01:07:N-C007-1L","MS (dark blue)",558,1,null,null,null,0]
["04:01:07:N-C008-1L","TT (black)",243,1,null,null,null,0]
["04:01:07:N-C009-1L","MT (lighD blue)",335,1,null,null,null,0]
["04:01:07:N-C010-1L","PT (orange)",1308,1,null,null,null,0]
["04:01:07:N-C011-1L","RS (red)",588,1,null,null,null,0]
["04:01:07:N-C012-1L","ST (brown oxide)",301,1,null,null,null,0]
["04:01:07:N-C013-1L","US (orange yellow)",1058,1,null,null,null,0]
["04:01:07:N-C014-1L","VT (red oxide)",354,1,null,null,null,0]
["04:01:07:N-C015-1L","ZT (yellow ciDron)",832,1,null,null,null,0]
["04:01:07:N-C016-1L","XT (whiDe)",395,1,null,null,null,0]
["04:02","منتجات الايزى",0,1,null,null,null,0]
["04:02:01","منتجات الأساس",0,1,null,null,null,0]
["04:02:01:E-S001-B10.5KG","إيزى سيلر (شفاف)",115,1,null,null,null,0]
["04:02:01:E-S001-D125KG","إيزى سيلر (شفاف)",0,1,null,null,null,0]
["04:02:01:E-S001-G3KG","إيزى سيلر (شفاف)",41,1,null,null,null,0]
["04:02:01:E-S003-B10KG","ايزى بيتو بلاست (اسود )",91,1,null,null,null,0]
["04:02:02","منتجات المعاجين",0,1,null,null,null,0]
["04:02:02:01","معجون بوتي",0,1,null,null,null,0]
["04:02:02:01:E-P002-B15KG","إيزى  بوتى (أبيض)",98,1,null,null,null,0]
["04:02:02:01:E-P002-B24KG","إيزى  بوتى (أبيض)",149,1,null,null,null,0]
["04:02:02:01:E-P002-D125KG","إيزى  بوتى (أبيض)",0,1,null,null,null,0]
["04:02:02:01:E-P002-D250KG","إيزى  بوتى (أبيض)",0,1,null,null,null,0]
["04:02:02:01:E-P002-SH15KG","إيزى  بوتى (أبيض)",84,1,null,null,null,0]
["04:02:02:01:E-P002_G4KG","إيزى  بوتى (أبيض)",28,1,null,null,null,0]
["04:02:03","منتجات البلاستيكات",0,1,null,null,null,0]
["04:02:03:01","بلاستيك مطفي",0,1,null,null,null,0]
["04:02:03:01:E-E002-B9L","إيزى  ستان (أبيض)",252,1,null,null,null,0]
["04:02:03:01:E-E002-G2.5L","ايزى ستان (ابيض )",93,1,null,null,null,0]
["04:02:03:01:E-E008-B12KG","إيزى  رويال ( أبيض )",153,1,null,null,null,0]
["04:02:03:01:E-E008-B14KG","ايزى رويال (ابيض)",180,1,null,null,null,0]
["04:02:03:01:E-E008-G3.75L","ايزى رويال (ابيض)",53,1,null,null,null,0]
["04:02:03:01:E-E008_B25KG","ايزى رويال (ابيض)",311,1,null,null,null,0]
["04:02:03:01:E-E008_D125KG","ايزى  رويال (ابيض)",0,1,null,null,null,0]
["04:02:03:01:E-E010-0.65L","ايزى ريفال (ابيض)",29,1,null,null,null,0]
["04:02:03:01:E-E010-G2.5L","ايزى  ريفال (ابيض)",108,1,null,null,null,0]
["04:02:03:01:E-E010_B9L","ايزى  ريفال (ابيض)",377,1,null,null,null,0]
["04:02:03:01:E-E010A-0.9L","A-1 ايزى ريفال",42,1,null,null,null,0]
["04:02:03:01:E-E010A-G2.7L","A-1 ايزى  ريفال",109,1,null,null,null,0]
["04:02:03:01:E-E010A_B9L","A-1 ايزى  ريفال",359,1,null,null,null,0]
["04:02:03:01:E-E010B-0.9L","B-1 ايزى ريفال",36,1,null,null,null,0]
["04:02:03:01:E-E010B-G2.7L","B-1 ايزى  ريفال",92,1,null,null,null,0]
["04:02:03:01:E-E010B_B9L","B-1 ايزى  ريفال",311,1,null,null,null,0]
["04:02:03:01:E-E010C-0.9L","C-1 ايزى  ريفال",29,1,null,null,null,0]
["04:02:03:01:E-E010C-G2.7L","C-1 ايزى  ريفال",76,1,null,null,null,0]
["04:02:03:01:E-E010C_B9L","C-1 ايزى  ريفال",263,1,null,null,null,0]
["04:02:03:E-E004-B10KG","إيزى إكشل (أبيض)",375,1,null,null,null,0]
["04:02:03:E-E004-G3.5KG","ايزى  اكشل (ابيض )",140,1,null,null,null,0]
["04:02:03:E-E004_1KG","ايزى اكشل (ابيض )",45,1,null,null,null,0]
["04:02:03:E-E005-B10KG","إيزى  فينيل سلك (أبيض)",387,1,null,null,null,0]
["04:02:03:E-E005-G3.5KG","ايزى فينيل سلك (ابيض )",143,1,null,null,null,0]
["04:02:03:E-E005_1KG","ايزى  فينيل سلك (ابيض )",46,1,null,null,null,0]
["04:02:03:E-E007-B12KG","ايزى نوفال (ابيض)",323,1,null,null,null,0]
["04:02:03:E-E007-G4KG","ايزى  نوفال (ابيض )",117,1,null,null,null,0]
["04:02:03:E-E007_1KG","ايزى  نوفال (ابيض )",44,1,null,null,null,0]
["04:02:04","منتجات الواجهات",0,1,null,null,null,0]
["04:02:05","منتجات ديكورية",0,1,null,null,null,0]
["04:02:05:E-D001","إيزى  شاين",0,1,null,null,null,0]
["04:02:05:E-D00101-0.750KG","ايزى شاين (فضى)",60,1,null,null,null,0]
["04:02:05:E-D00101-1KG","إيزى  شاين ( فضى )",75,1,null,null,null,0]
["04:02:05:E-D00101-G2.5KG","ايزى  شاين (فضى )",188,1,null,null,null,0]
["04:02:05:E-D00101_0.350KG","ايزى شاين (فضى)",33,1,null,null,null,0]
["04:02:05:E-D00102-0.750KG","ايزى شاين (برونز)",60,1,null,null,null,0]
["04:02:05:E-D00102-1KG","إيزى  شاين ( برونز )",75,1,null,null,null,0]
["04:02:05:E-D00102_0.350KG","ايزى شاين (برونز)",33,1,null,null,null,0]
["04:02:05:E-D00103-0.750KG","ايزى شاين (دهبى)",60,1,null,null,null,0]
["04:02:05:E-D00103-1KG","إيزى  شاين ( ذهبى )",75,1,null,null,null,0]
["04:02:05:E-D00103_0.350KG","ايزى شاين (دهبى)",33,1,null,null,null,0]
["04:02:05:E-D00104-0.750KG","ايزى شاين (بنى)",60,1,null,null,null,0]
["04:02:05:E-D00104-1KG","إيزى  شاين ( بنى )",75,1,null,null,null,0]
["04:02:05:E-D00104_0.350KG","ايزى شاين (بنى)",33,1,null,null,null,0]
["04:02:05:E-D00105-1KG","إيزى  شاين ( فضى غامق )",75,1,null,null,null,0]
["04:02:05:E-D00106-0.750KG","ايزى شاين (نبيتى)",60,1,null,null,null,0]
["04:02:05:E-D00106-1KG","إيزى  شاين ( نبيتى )",75,1,null,null,null,0]
["04:02:05:E-D00106_0.350KG","ايزى شاين (نبيتى)",33,1,null,null,null,0]
["04:02:05:E-D00107-0.750KG","ايزى شاين (نحاسى)",60,1,null,null,null,0]
["04:02:05:E-D00107-1KG","إيزى شاين ( نحاسى )",75,1,null,null,null,0]
["04:02:05:E-D00107_0.350KG","ايزى شاين (نحاسى)",33,1,null,null,null,0]
["04:02:05:E-D00108-1KG","إيزى  شاين ( موف )",75,1,null,null,null,0]
["04:02:05:E-D002","إيزى  شامواه",0,1,null,null,null,0]
["04:02:05:E-D00201-0.750KG","ايزى شامواة (نبيتى)",93,1,null,null,null,0]
["04:02:05:E-D00201-1KG","إيزى  شامواه ( نبيتى )",120,1,null,null,null,0]
["04:02:05:E-D00201_0.350KG","ايزى شامواة (نبيتى)",48,1,null,null,null,0]
["04:02:05:E-D00202-0.750KG","ايزى شامواة (نحاسى)",93,1,null,null,null,0]
["04:02:05:E-D00202-1KG","إيزى شامواه ( نحاسى )",120,1,null,null,null,0]
["04:02:05:E-D00202_0.350KG","ايزى شامواة (نحاسى)",48,1,null,null,null,0]
["04:02:05:E-D00203-0.750KG","ايزى شامواة (برونز)",93,1,null,null,null,0]
["04:02:05:E-D00203-1KG","إيزى  شامواه ( برونز )",120,1,null,null,null,0]
["04:02:05:E-D00203_0.350KG","ايزى شامواة (برونز)",48,1,null,null,null,0]
["04:02:05:E-D00204-0.750KG","ايزى شامواة (دهبى)",93,1,null,null,null,0]
["04:02:05:E-D00204-1KG","إيزى  شامواه ( ذهبى )",120,1,null,null,null,0]
["04:02:05:E-D00204_0.350KG","ايزى شامواة (دهبى)",48,1,null,null,null,0]
["04:02:05:E-D00205-0.750KG","ايزى شامواة (فضى)",93,1,null,null,null,0]
["04:02:05:E-D00205-1KG","إيزى شامواه ( فضى )",120,1,null,null,null,0]
["04:02:05:E-D00205-G2.5KG","ايزى  شامواه (فضى )",300,1,null,null,null,0]
["04:02:05:E-D00205_0.350KG","ايزى شامواة (فضى)",48,1,null,null,null,0]
["04:02:05:E-D003","إيزى  كريستال",0,1,null,null,null,0]
["04:02:05:E-D00301-1KG","إيزى  كريستال ( موف غامق )",75,1,null,null,null,0]
["04:02:05:E-D00302-1KG","إيزى  كريستال ( موف فاتح )",75,1,null,null,null,0]
["04:02:05:E-D00303-0.750KG","ايزى كريستال (نبيتى)",60,1,null,null,null,0]
["04:02:05:E-D00303-1KG","إيزى كريستال ( نبيتى )",75,1,null,null,null,0]
["04:02:05:E-D00303_0.350KG","ايزى كريستال (نبيتى)",33,1,null,null,null,0]
["04:02:05:E-D00304-0.750KG","ايزى كريستال (نحاسى)",60,1,null,null,null,0]
["04:02:05:E-D00304-1KG","إيزى كريستال ( نحاسى )",75,1,null,null,null,0]
["04:02:05:E-D00304_0.350KG","ايزى كريستال (نحاسى)",33,1,null,null,null,0]
["04:02:05:E-D00305-1KG","إيزى  كريستال ( أحمر )",75,1,null,null,null,0]
["04:02:05:E-D00306-1KG","إيزى كريستال ( أخضر )",75,1,null,null,null,0]
["04:02:05:E-D00307-0.750KG","ايزى كريستال (اسود)",60,1,null,null,null,0]
["04:02:05:E-D00307-1KG","إيزى كريستال ( أسود )",75,1,null,null,null,0]
["04:02:05:E-D00307_0.350KG","ايزى كريستال (اسود)",33,1,null,null,null,0]
["04:02:05:E-D00308-1KG","إيزى كريستال ( أزرق )",75,1,null,null,null,0]
["04:02:05:E-D00309-1KG","إيزى كريستال ( تركواز )",75,1,null,null,null,0]
["04:02:05:E-D00310-0.750KG","ايزى كريستال (دهبى)",60,1,null,null,null,0]
["04:02:05:E-D00310-1KG","إيزى  كريستال ( ذهبى )",75,1,null,null,null,0]
["04:02:05:E-D00310_0.350KG","ايزى كريستال (دهبى)",33,1,null,null,null,0]
["04:02:05:E-D00311-1KG","إيزى  كريستال ( روز )",75,1,null,null,null,0]
["04:02:05:E-D00312-1KG","إيزى  كريستال ( فوشيا )",75,1,null,null,null,0]
["04:02:05:E-D00313-0.750KG","ايزى كريستال (فضى)",60,1,null,null,null,0]
["04:02:05:E-D00313-1KG","إيزى  كريستال ( فضى )",75,1,null,null,null,0]
["04:02:05:E-D00313-G2.5KG","ايزى  كريستال (فضى)",188,1,null,null,null,0]
["04:02:05:E-D00313_0.350KG","ايزى كريستال (فضى)",33,1,null,null,null,0]
["04:02:05:E-D00314-0.750KG","ايزى كريستال (بنى)",60,1,null,null,null,0]
["04:02:05:E-D00314-1KG","إيزى  كريستال ( بنى)",75,1,null,null,null,0]
["04:02:05:E-D00314_0.350KG","ايزى كريستال (بنى)",33,1,null,null,null,0]
["04:02:05:E-D004","إيزى  فيستفال",0,1,null,null,null,0]
["04:02:05:E-D00401-0.750KG","ايزى فيستفال (نبيتى)",84,1,null,null,null,0]
["04:02:05:E-D00401-1KG","إيزى  فيستفال ( نبيتى )",105,1,null,null,null,0]
["04:02:05:E-D00401_0.350KG","ايزى فيستفال (نبيتى)",45,1,null,null,null,0]
["04:02:05:E-D00402-0.750KG","ايزى فيستفال (نحاسى)",84,1,null,null,null,0]
["04:02:05:E-D00402-1KG","إيزى فيستفال ( نحاسى )",105,1,null,null,null,0]
["04:02:05:E-D00402_0.350KG","ايزى فيستفال(نحاسى)",45,1,null,null,null,0]
["04:02:05:E-D00403-0.750KG","ايزى فيستفال (برونز)",84,1,null,null,null,0]
["04:02:05:E-D00403-1KG","إيزى  فيستفال ( برونز )",105,1,null,null,null,0]
["04:02:05:E-D00403_0.350KG","ايزى فيستفال (برونز)",45,1,null,null,null,0]
["04:02:05:E-D00404-0.750KG","ايزى فيستفال(دهبى)",84,1,null,null,null,0]
["04:02:05:E-D00404-1KG","إيزى فيستفال ( ذهبى )",105,1,null,null,null,0]
["04:02:05:E-D00404_0.350KG","ايزى فيستفال (دهبى)",45,1,null,null,null,0]
["04:02:05:E-D00405-0.750KG","ايزى فيستفال (فضى)",84,1,null,null,null,0]
["04:02:05:E-D00405-1KG","إيزى  فيستفال ( فضى )",105,1,null,null,null,0]
["04:02:05:E-D00405-G2.5KG","ايزى  فيستفال(فضى )",263,1,null,null,null,0]
["04:02:05:E-D00405_0.350KG","ايزى فيستفال (فضى)",45,1,null,null,null,0]
["04:02:05:E-D00406-0.750KG","ايزى فيستفال (بنى)",84,1,null,null,null,0]
["04:02:05:E-D00406-1KG","ايزى  فيستفال ( بنى )",105,1,null,null,null,0]
["04:02:05:E-D00406_0.350KG","ايزى فيستفال (بنى)",45,1,null,null,null,0]
["04:02:05:E-D00407-0.750KG","ايزى فيستفال (اسود)",84,1,null,null,null,0]
["04:02:05:E-D00407-1KG","ايزى  فيستفال (اسود)",105,1,null,null,null,0]
["04:02:05:E-D00407_0.350KG","ايزى فيستفال (اسود)",45,1,null,null,null,0]
["04:02:05:E-D005","إيزى  ورود",0,1,null,null,null,0]
["04:02:05:E-D00501-1KG","إيزى ورود ( نهدى )",53,1,null,null,null,0]
["04:02:05:E-D00502-0.750KG","ايزى ورود (نبيتى)",44,1,null,null,null,0]
["04:02:05:E-D00502-1KG","إيزى ورود ( نبيتى )",53,1,null,null,null,0]
["04:02:05:E-D00502_0.350KG","ايزى ورود (نبيتى)",27,1,null,null,null,0]
["04:02:05:E-D00503-0.750KG","ايزى ورود (نحاسى)",44,1,null,null,null,0]
["04:02:05:E-D00503-1KG","إيزى  ورود ( نحاسى )",53,1,null,null,null,0]
["04:02:05:E-D00503_0.350KG","ايزى ورود(نحاسى)",27,1,null,null,null,0]
["04:02:05:E-D00504-1KG","إيزى  ورود ( ميكس موف )",53,1,null,null,null,0]
["04:02:05:E-D00505-1KG","إيزى ورود ( ميكس نحاسى )",53,1,null,null,null,0]
["04:02:05:E-D00506-1KG","إيزى  ورود ( ميكس أحمر )",53,1,null,null,null,0]
["04:02:05:E-D00507-1KG","إيزى  ورود ( ميكس أسود )",53,1,null,null,null,0]
["04:02:05:E-D00508-1KG","إيزى  ورود ( ميكس أزرق )",53,1,null,null,null,0]
["04:02:05:E-D00509-1KG","إيزى  ورود ( ميكس روز )",53,1,null,null,null,0]
["04:02:05:E-D00510-0.750KG","ايزى ورود (ابيض)",44,1,null,null,null,0]
["04:02:05:E-D00510-1KG","إيزى  ورود ( أبيض )",53,1,null,null,null,0]
["04:02:05:E-D00510_0.350KG","ايزى ورود(ابيض)",27,1,null,null,null,0]
["04:02:05:E-D00511-0.750KG","ايزى ورود(ابيض×اسود)",44,1,null,null,null,0]
["04:02:05:E-D00511-1KG","إيزى  ورود ( أبيض × أسود )",53,1,null,null,null,0]
["04:02:05:E-D00511_0.350KG","ايزى ورود(ابيض×اسود)",27,1,null,null,null,0]
["04:02:05:E-D00512-1KG","إيزى  ورود ( أحمر )",53,1,null,null,null,0]
["04:02:05:E-D00513-1KG","إيزى  ورود ( أخضر )",53,1,null,null,null,0]
["04:02:05:E-D00514-1KG","إيزى  ورود ( أسود )",53,1,null,null,null,0]
["04:02:05:E-D00515-1KG","إيزى ورود ( أزرق )",53,1,null,null,null,0]
["04:02:05:E-D00516-0.750KG","ايزى ورود (بنى)",44,1,null,null,null,0]
["04:02:05:E-D00516-1KG","إيزى  ورود ( بنى )",53,1,null,null,null,0]
["04:02:05:E-D00516_0.350KG","ايزى ورود (بنى)",27,1,null,null,null,0]
["04:02:05:E-D00517-1KG","إيزى ورود ( تركواز )",53,1,null,null,null,0]
["04:02:05:E-D00518-0.750KG","ايزى ورود (دهبى)",44,1,null,null,null,0]
["04:02:05:E-D00518-1KG","إيزى  ورود ( ذهبى )",53,1,null,null,null,0]
["04:02:05:E-D00518_0.350KG","ايزى ورود (دهبى)",27,1,null,null,null,0]
["04:02:05:E-D00519-1KG","إيزى  ورود ( زهرى )",53,1,null,null,null,0]
["04:02:05:E-D00520-1KG","إيزى  ورود ( عسلى )",53,1,null,null,null,0]
["04:02:05:E-D00521-1KG","إيزى  ورود ( عفنى )",53,1,null,null,null,0]
["04:02:05:E-D00522-1KG","إيزى  ورود ( فضى )",53,1,null,null,null,0]
["04:02:05:E-D00523-1KG","إيزى ورود ( طوبى )",53,1,null,null,null,0]
["04:02:05:E-D006","إيزى  وهاج",0,1,null,null,null,0]
["04:02:05:E-D00601-1KG","إيزى وهاج ( ذهبى )",108,1,null,null,null,0]
["04:02:05:E-D00602-1KG","إيزى وهاج ( فضى )",108,1,null,null,null,0]
["04:02:05:E-D007","إيزى  أورجينتو",0,1,null,null,null,0]
["04:02:05:E-D00701-1KG","إيزى أورجينتو ( فضى )",176,1,null,null,null,0]
["04:02:05:E-D009","إيزى  آرابيسك",0,1,null,null,null,0]
["04:02:05:E-D00901-B14KG","إيزى  آرابيسك ( أبيض )",104,1,null,null,null,0]
["04:02:05:E-D010","إيزى  فوندشن",0,1,null,null,null,0]
["04:02:05:E-D01001-B14KG","إيزى  فوندشن ( أبيض )",216,1,null,null,null,0]
["04:02:05:E-D01001-G4.5KG","إيزى  فوندشن ( أبيض )",77,1,null,null,null,0]
["04:02:05:E-D011","إيزى  ستار & جلاكسى",0,1,null,null,null,0]
["04:02:05:E-D01101-1KG"," (( night )) إيزى  ستار & جلاكسى",125,1,null,null,null,0]
["04:02:05:E-D01102-1KG","(( Sun Rise )) إيزى  ستار & جلاكسى",125,1,null,null,null,0]
["04:02:05:E-D01103-1KG","(( Sun Set )) إيزى ستار & جلاكسى",125,1,null,null,null,0]
["04:02:05:E-D01104-1KG","(( midnight )) إيزى  ستار & جلاكسى",125,1,null,null,null,0]
["04:02:05:E-D01105-1KG","(( noon )) إيزى  ستار & جلاكسى",125,1,null,null,null,0]
["04:02:05:E-D01106-1KG","(( Dawn )) إيزى  ستار & جلاكسى",125,1,null,null,null,0]
["04:02:05:E-D012","ايزى  مارمورينو",0,1,null,null,null,0]
["04:02:05:E-D01201-1KG","إيزى  مارمرينو (أبيض)",60,1,null,null,null,0]
["04:03","منتجات ايكو",0,1,null,null,null,0]
["04:03:01","منتجات الاساس",0,1,null,null,null,0]
["04:03:01:E-S002-B10.5KG"," ايكو سيلر(شفاف)",84,1,null,null,null,0]
["04:03:02","منتجات المعاجين",0,1,null,null,null,0]
["04:03:02:01","معجون ايكو",0,1,null,null,null,0]
["04:03:02:01:E-P004-SH14KG","ايكو معجون(ابيض)",56,1,null,null,null,0]
["04:03:02:01:E-P004-SH15KG","ايكو معجون(ابيض)",64,1,null,null,null,0]
["04:03:02:01:E-P004_B15KG","ايكو معجون(ابيض)",76,1,null,null,null,0]
["04:03:02:01:E-P004_B24KG","ايكو معجون(ابيض)",115,1,null,null,null,0]
["04:03:02:01:E-P004_D125KG","ايكو معجون (ابيض)",0,1,null,null,null,0]
["04:03:03","منتجات البلاستيك",0,1,null,null,null,0]
["04:03:03:01","بلاستيك مطفي",0,1,null,null,null,0]
["04:03:03:01:E-E009-B10KG"," ايكو بلاست (ابيض)",71,1,null,null,null,0]
["04:03:03:01:E-E009-B15KG"," ايكو بلاست (ابيض)",106,1,null,null,null,0]
["04:03:03:01:E-E009_B24KG"," ايكو بلاست (ابيض)",156,1,null,null,null,0]
["04:03:03:01:E-E009_D125KG"," ايكو بلاست (ابيض)",0,1,null,null,null,0]
["04:03:03:01:E-E01101-B12KG"," ايكو سنواويت (ابيض)",111,1,null,null,null,0]
["04:03:03:01:E-E01101-B24KG"," ايكو سنواويت (ابيض)",212,1,null,null,null,0]
["04:03:03:01:E-E01101-D125KG"," ايكو سنواويت (ابيض)",0,1,null,null,null,0]
["N-D-NA16002-50ML","N-D-NA16002-50ml",0,1,null,null,null,0]
["222","اشعار اضافة",0]
["444","اشعار خصم",0]
["Reimb Subt","Reimbursable Expenses Subtotal"]
["الاجمالي","اجمالي قيمة الفاتورة"]
["Reimb Group","Total Reimbursable Expenses"]
["الخصم","الخصم",0]
["عروض","عروض",0]
["Out of State","Out-of-state sale, exempt from sales tax",150]

{"sheet":"يوميه المبيعات","index":3,"n_rows":5,"n_cols":9,"rows_kept":5,"cut":false,"hidden":false,"merged":[[1,2,2,7]]}
[]
[null,null,"يوميه المبيعات"]
[]
[]
[null,"رقم الفاتورة","التاريخ","نوع الفاتورة","تجارى / تجزئة","الاسم","الاجمالى","الخصم","الصافى"]

{"sheet":"كشف حساب عميل","index":4,"n_rows":0,"n_cols":0,"rows_kept":0,"cut":false,"hidden":false,"merged":[]}